{"text_format":"1","workbook":"xlsx","n_sheets":6,"sheets":["Instrucciones","Formulario 2- Planta","Formulario 2A - Nómina","Formulario 2B- Programático","DESPLEGABLES","Programático"],"not_rendered":{"charts":0,"images":6,"macros":0,"external_links":2,"defined_names":41,"comments":3,"pivot_tables":0},"unopened":[],"bounds":{"document_bytes":16777216,"sheet_cells":100000,"rows_first":2000,"rows_last":500,"rows_between":2000,"halvings":0,"cell_chars":16384,"cell_head_chars":4096},"cells_cut":0,"cells_raw":0,"read":"whole","date_system":"1900"}

{"sheet":"Instrucciones","index":0,"n_rows":183,"n_cols":1,"rows_kept":183,"cut":false,"hidden":false,"merged":[]}
[]
[]
[]
["Formulario 2. Anteproyecto Planta de personal"]
[]
["La información contenida en este formulario permitirá calcular el valor de los gastos asociados a la planta a servicio de la entidad, lo cual, constituye una base de datos para facilitar la toma de decisiones en materia presupuestal."]
[]
["El formulario 2, considera los diferentes niveles ocupacionales que posee cada planta de personal, distinguiendo el tipo de vinculación laboral que existe en el respectivo órgano. Para tal fin, se debe especificar la denominación de los cargos, grados, número de cargos y asignación básica vigente. Esta información servirá de base para calcular los gastos que se generen por: Salario (Factores salariales comunes, Factores salariales especiales), Remuneraciones no constitutivas de factor salarial (Prestaciones sociales según definición legal y otras remuneraciones no constitutivas de factor salarial), las contribuciones inherentes a la nómina y los gastos que, de acuerdo con su naturaleza económica son de la cuenta de transferencias, pero para efectos analíticos son parte de las erogaciones que realiza una entidad a favor de sus funcionarios, tales como: el reconocimiento y pago de incapacidades y las licencias de maternidad y paternidad. Clasificando esta información por objeto de gasto de acuerdo con el Catálogo de Clasificación Presupuestal establecido por la DGPPN. "]
[]
["Es importante que el funcionario tenga claridad respecto del régimen salarial aplicable a los funcionarios de la entidad objeto de programación y por tanto la base legal que soporta cada uno de los conceptos de reconocimiento, las modificaciones que se hayan autorizado sobre las plantas de personal y la nómina certificada registrada en formulario No. 2A, las normas sobre control de gasto público como la Ley 617 de 2000, así como los criterios de programación establecidos por el gobierno en cumplimiento de la restricción fiscal que garantice la sostenibilidad de las finanzas públicas. "]
[]
["El diligenciamiento de los formularios relacionados a continuación, hacen parte de los documentos complementarios del anteproyecto, que deben enviar por correo electronico a la dirección email proyecto_presupuesto@minhacienda.gov.co el detalle de esta información podra encontrarla en el documento \"Anexo 2. Información a remitir 2027\". Por otra parte se dispone del documento \"Instructivo de Programación Presupuestal 2027\" donde podra consultar la estructura, el proposito y la conceptualización de cada formulario."]
[]
[]
[]
[]
[]
[]
[]
[]
[]
[]
[]
[]
[]
[]
["Procedimiento Formulario 2-Planta"]
[]
["El funcionario que tenga claridad respecto del régimen salarial aplicable a los funcionarios de la entidad objeto de programación y por tanto la base legal que soporta cada uno de los conceptos debera diligenciar las siguientes casillas:"]
[]
["NOTA: Si se requiere incluir filas en el Formulario 2-Planta, por favor adicione el mismo número de filas en el Formulario 2B-Programatico (De este ultimo formulario incluya las formulas no solo de las celdas visibles, si no tambien de las celdas ocultas XYZ). "]
[]
["FILA A5 CÓDIGO UEJ: Diligencie el codigo de la unidad ejecutora, el cual, podra consultarlo en el Sistema Integrado de Información Financiera SIIF."]
[]
["FILA A6 UNIDAD EJECUTORA: No diligencie esta casilla. Esta casilla indica de manera automatica el nombre de la entidad asociada al código UEJ."]
["FILA A7 SECTOR PRESUPUESTAL: No diligencie esta casilla. Esta casilla indica de manera automatica el sector al cual pertenece la entidad asociada al código UEJ."]
["FILA L9 ANTEPROYECTO PLANTA DE PERSONAL - VIGENCIA: Diligencie la vigencia para la cual se estan proyectando las erogaciones reportadas por la entidad."]
[]
["COLUMNA 1 DENOMINACIÓN DE CARGOS: Diligencie el nombre del cargo determinado en el acto administrativo por el cual se establece la planta de personal de la entidad de la entidad, en la casilla correspondiente si es empleado público o trabajador oficial."]
["COLUMNA 2 GRADO: Diligencie el grado del cargo determinado en el acto administrativo por el cual se establece la planta de personal de la entidad de la entidad. En caso de que exista un mismo cargo con diferente grado, se deberán incluir tantas filas como grados tenga la entidad."]
["COLUMNA 3 No DE CARGOS: Cantidad de personas nombradas en el cargo de acuerdo conl acto administrativo por el cual se establece la planta de personal de la entidad de la entidad. "]
["COLUMNA MES: Diligencie el total del sueldo basico menual a devengar de todos los cargos que hace referencia la denominación de cargos anteriormente diligenciada."]
["COLUMNA 4,1 ANUAL: Diligencie el total del sueldo basico anual a devengar de todos los cargos que hace referencia la denominación de cargos anteriormente diligenciada."]
["COLUMNA 4,2 A LA COLUMNA 4,12 FACTORES SALARIALES COMUNES: Diligencie el total de las remuneraciones que por ley devengarán todos los cargos estipulados en la denominación de cargos al año."]
[]
["COLUMNA 4 SUBTOTAL 1: No diligencie esta casilla rellene con la formula en caso de incluir nuevas casillas. Este subtotal es la sumatoria del sueldo basico a devengar en la vigencia y las remuneraciones por ley distintas al sueldo basico que devengarán anualmente la totalidad de las/los funcionarios de la entidad."]
[]
["COLUMNA 5,1 A LA COLUMNA 5,4 FACTORES SALARIALES ESPECIALES: Diligencie el total de las remuneraciones no constitutivas de factor salarial que se presupuestan devengarán todos los cargos estipulados en la denominación de cargos al año."]
[]
["COLUMNA 5 SUBTOTAL 2: No diligencie esta casilla rellene con la formula en caso de incluir nuevas casillas. Este subtotal es la sumatoria de las remuneraciones no constitutivas de factor salarial a devengar en la vigencia de la totalidad de funcionarios de la entidad."]
["COLUMNA 6 TOTAL: No diligencie esta casilla rellene con la formula en caso de incluir nuevas casillas. Este total es la sumatoria de los factores salariales comunes y los factores salariales especiales. "]
[]
["COLUMNA 7,1 A LA COLUMNA 7,3 PRESTACIONES SOCIALES SEGÚN DEFINICIÓN LEGAL: Diligencie el total de las prestaciones sociales señaladas (sueldo de vacaciones, indemnizaciones por vacaciones y bonificación especial de recreación) que se presupuesten pagar en la vigencia a todos los cargos estipulados en la denominación de cargos."]
[]
["COLUMNA 7 SUBTOTAL 1: No diligencie esta casilla rellene con la formula en caso de incluir nuevas casillas. Este subtotal es la sumatoria de las prestaciones sociales señaladas en la comuna 7,1 a la columna 7,3 (sueldo de vacaciones, indemnizaciones por vacaciones y bonificación especial de recreación) de la totalidad de funcionarios de la entidad en la vigencia."]
[]
["COLUMNA 8,1 A LA COLUMNA 8,4 OTRAS REMUNERACIONES NO CONSTITUTIVAS DE FACTOR SALARIAL: Diligencie el total de las remuneraciones que no se hayan contemplado en el formulario 2 que se preseupuesta devengarán todos los cargos estipulados en la denominación de cargos en la vigencia. "]
[]
["COLUMNA 8 SUBTOTAL 2: No diligencie esta casilla rellene con la formula en caso de incluir nuevas casillas. Este subtotal es la sumatoria de las remuneraciones que no se hayan contemplado en el formulario 2-Planta de la totalidad de funcionarios de la entidad en la vigencia."]
["COLUMNA 9 TOTAL: No diligencie esta casilla rellene con la formula en caso de incluir nuevas casillas. Este total es la sumatoria de las prestaciones sociales según definición Otras remuneraciones no constitutivas de factor salarial."]
[]
["COLUMNA 10,1 A LA COLUMNA 10,10 CONTRIBUCIONES INHERENTES A LA NÓMINA: Diligencie el total de la seguridad social que por ley se presupuesta pagar por todos los cargos estipulados en la denominación de cargos de la vigencia. "]
[]
["COLUMNA 10 TOTAL: No diligencie esta casilla rellene con la formula en caso de incluir nuevas casillas. Este total es la sumatoria de la seguridad social que por ley se presupuesta pagar por todos los/las funcionarios de la entidad. "]
[]
["COLUMNA 11,1 A LA COLUMNA 11,2 PRESTACIONES SOCIALES RELACIONADAS CON EL EMPLEO: Diligencie el total de las prestaciones sociales que se presupuesta pagar a todos los cargos estipulados en la denominación de cargos de la vigencia. "]
[]
["COLUMNA 11 TOTAL: No diligencie esta casilla rellene con la formula en caso de incluir nuevas casillas. Este total es la sumatoria de las prestaciones sociales que se presupuesta pagar a todos los/las funcionarios de la entidad. "]
["COLUMNA 12 GASTOS DE PERSONAL: No diligencie esta casilla rellene con la formula en caso de incluir nuevas casillas. Este total es la sumatoria de las erogaciones presupuestadas para la planta de personal permanente de la entidad, la cual suma el total del salario (columna 6), remuneraciones no constitutivas de Factor Salarial (columna 9) y de las contribuciones inherentes a la nómina (columna 10)."]
["FILA C138 RESUMEN - ANTEPROYECTO PLANTA DE PERSONAL: No diligencie ninguna de las casillas del resumen. El resumen es una tabla de salida que permite tener el resumen de la información diligenciada con anterioridad por la entidad para la programación de las plantas de personal a un nivel agregado de las cuentas del Clasificador por objeto de gasto. La información diligenciada en este formulario servirá como insumo para el diligenciamiento del formulario 3-Gasto (Formularios de programación ) en los conceptos de salarios, contribuciones inherentes a la nómina y remuneraciones no constitutivas de factor salarial (filas 16 a 28)."]
[]
[]
[]
["Procedimiento Formulario 2A-Nómina"]
[]
["Como complemento de la información contenida en el formulario No. 2, las entidades diligenciarán este el formulario 2A-Nómina para certificar el costo del personal vinculado a la planta de personal al último día calendario del mes de febrero del año en curso. Aquí se señalarán los cargos provistos y vacantes a la fecha de certificación. Esta información es requerida para efectos de evaluación de situación de cada entidad respecto a los concursos para provisión definitiva y características de la estructura."]
[]
["FILA B5 CÓDIGO UEJ: No diligencie esta casilla. Esta casilla indica el código de la unidad ejecutora, el cual, podra consultarlo en el Sistema Integrado de Información Financiera SIIF."]
["FILA B6 UNIDAD EJECUTORA: No diligencie esta casilla. Esta casilla indica de manera automatica el nombre de la entidad asociada al código UEJ."]
["FILA B7 SECTOR PRESUPUESTAL: No diligencie esta casilla. Esta casilla indica de manera automatica el sector al cual pertenece la entidad asociada al código UEJ."]
["FILA G9 SECTOR PRESUPUESTAL: No diligencie esta casilla. Esta casilla indica de manera automatica el sector al cual pertenece la entidad asociada al código UEJ."]
["FILA L9 ANTEPROYECTO PLANTA DE PERSONAL - VIGENCIA: No diligencie esta casilla. Esta casilla indica la vigencia para la cual se estan proyectando las erogaciones reportadas por la entidad."]
[]
["COLUMNA DENOMINACIÓN DE CARGO: Diligencie el nombre del cargo determinado en el acto administrativo por el cual se establece la planta de personal de la entidad de la entidad, en la casilla correspondiente si es empleado público o trabajador oficial de acuerdo con la información diligenciada en el formulario 2 - Planta."]
["COLUMNA GRADO: Diligencie el grado del cargo determinado en el acto administrativo por el cual se establece la planta de personal de la entidad de la entidad de acuerdo con la información diligenciada en el formulario 2 - Planta."]
[]
["COLUMNA 1 PLANTA ACTUAL: Diligencie la cantidad de cargo de planta que tiene la entidad, independientemente del personal nombrado en el cargo. Esta casilla indica el total de cargos de planta que tiene la entidad, provistos y vacantes. "]
["COLUMNA 2 A LA COLUMNA 4 NÓMINA PROVISTA: Diligencie la cantidad de personal de cada cargo nombrada en Libre nombramiento y remoción, en carrera administrativa en propiedad o en provisionalidad. "]
[]
["COLUMNA 5 TOTAL CARGOS PROVISTOS: No diligencie esta casilla rellene con la formula en caso de incluir nuevas casillas. Esta casilla indica la sumatoria de cargos provistos de libre nombramiento y en carrera administrativa."]
["COLUMNA 6 TOTAL CARGOS VACANTES: No diligencie esta casilla rellene con la formula en caso de incluir nuevas casillas. Esta casilla indica la cantidad de cargos de planta vacantes de la entidad. "]
[]
[]
["Procedimiento Formulario 2B-Programático"]
[]
["Este formulario tiene como objetivo distribuir los gastos de personal por salarios, contribuciones inherentes a la nómina y remuneraciones no constitutivas de factor salarial, entre los programas presupuestales de la entidad, de acuerdo con la clasificación programática, resultando en porcentajes de distribución de estos gastos entre programas. Los valores resultantes de este formulario se deben trasladar al Formulario No. 4. Clasificador Programático en las filas correspondientes y los porcentajes de distribución resultantes servirán para realizar la asignación de las otras categorías de gastos, de acuerdo con los lineamientos presentados previamente. Para consultar el concepto de cada programa asignado al sector que pertenece la entidad puede consultar el MANUAL DE CLASIFICACIÓN PROGRAMÁTICO DEL PRESUPUESTO PÚBLICO."]
[]
["NOTA: Si se requiere incluir filas en el Formulario 2B-Programatico, por favor adicione el mismo número de filas en el Formulario 2-Planta. En el Formulario 2B-Programático tenga en cuenta incluir las formulas no solo de las celdas visibles, si no tambien de las celdas ocultas XYZ. "]
[]
["FILA A5 CÓDIGO UEJ: No diligencie esta casilla. Esta casilla indica el código de la unidad ejecutora, el cual, podra consultarlo en el Sistema Integrado de Información Financiera SIIF."]
["FILA A6 UNIDAD EJECUTORA: No diligencie esta casilla. Esta casilla indica de manera automatica el nombre de la entidad asociada al código UEJ."]
["FILA A7 SECTOR PRESUPUESTAL: No diligencie esta casilla. Esta casilla indica de manera automatica el sector al cual pertenece la entidad asociada al código UEJ."]
["COLUMNA DENOMINACIÓN DE CARGO:  No diligencie esta casilla rellene con la formula en caso de incluir nuevas casillas. Esta casilla indica el cargo determinado en el acto administrativo por el cual se establece la planta de personal de la entidad de la entidad, en la casilla correspondiente si es empleado público o trabajador oficial de acuerdo con la información diligenciada en el formulario 2 - Planta."]
["COLUMNA GRADO: No diligencie esta casilla rellene con la formula en caso de incluir nuevas casillas. Esta casilla indica el grado del cargo determinado en el acto administrativo por el cual se establece la planta de personal de la entidad de la entidad de acuerdo con la información diligenciada en el formulario 2 - Planta. En caso de que exista un mismo cargo con diferente grado, se deberán incluir tantas filas como grados tenga la entidad."]
[]
["COLUMNA No DE CARGOS: Diligencie la cantidad de cargos activos de planta que tiene la entidad, si bien la columna está formulada con los cargos de planta, este sólo es un indicativo que la entidad deberá modificar según su realidad. Es decir, la cantidad de personas nombradas en el cargo de acuerdo con el acto administrativo por esl cual se establece la planta de personal de la entidad y al formulario 2-Planta."]
[]
["COLUMNA TOTAL SALARIO: No diligencie esta casilla rellene con la formula en caso de incluir nuevas casillas. Esta casilla indica el total de los factores salariales comunes y los factores salariales especiales, de acuerdo con la información diligenciada en el formulario 2 - Planta."]
["COLUMNA PORC. UNIT. SALARIOS: No diligencie esta casilla rellene con la formula en caso de incluir nuevas casillas. Esta casilla indica el porcentaje de representatividad por cada cargo sobre el total presupuestado del sueldo basico para la vigencia. "]
["COLUMNA TOTAL REMUNERACIONES NO CONSTITUTIVAS DE FACTOR SALARIAL: No diligencie esta casilla rellene con la formula en caso de incluir nuevas casillas. Esta casilla indica el total de las prestaciones sociales según definición y Otras remuneraciones no constitutivas de factor salarial, de acuerdo con la información diligenciada en el formulario 2 - Planta."]
["COLUMNA PORC. UNIT. REMUNERACIONES: No diligencie esta casilla rellene con la formula en caso de incluir nuevas casillas. Esta casilla indica el porcentaje de representatividad por cada cargo sobre el total presupuestado para las prestaciones sociales según definición y Otras remuneraciones no constitutivas de factor salarial, de acuerdo con la información diligenciada en el formulario 2 - Planta."]
["COLUMNA TOTAL CONTRIBUCIONES INHERENTES A LA NÓMINA: No diligencie esta casilla rellene con la formula en caso de incluir nuevas casillas. Este total es la sumatoria de la seguridad social que por ley se presupuesta pagar por todos los/las funcionarios de la entidad de acuerdo con la información diligenciada en el formulario 2-Planta."]
["COLUMNA PORC. UNIT. CONTRIBUCIONES: No diligencie esta casilla rellene con la formula en caso de incluir nuevas casillas. Esta casilla indica el porcentaje de representatividad por cada cargo sobre el total presupuestado para la seguridad social que por ley se presupuesta pagar por todos los/las funcionarios de la entidad de acuerdo con la información diligenciada en el formulario 2-Planta."]
["COLUMNA GASTOS DE PERSONAL: No diligencie esta casilla rellene con la formula en caso de incluir nuevas casillas. Este total es la sumatoria de las erogaciones presupuestadas para la planta de personal permanente de la entidad, la cual suma el total del salario, remuneraciones no constitutivas de Factor Salarial y de las contribuciones inherentes a la nómina."]
[]
["COLUMNA ALTA GERENCIA: Diligencie el número de funcionarios de cada cargo que sean considerados de alta gerencia, es decir, que imparten los lineamientos misionales de la entidad como: presidentes, ministros, directores, viceministros, subdirectores generales. Se sugiere que esta agrupación responda al programa de Fortalecimiento y Apoyo a la Gestión de la entidad."]
["COLUMNA SECRETARIA GENERAL Y DEPENDENCIAS DE APOYO: Diligencie el número de funcionarios de cada cargo que sean considerados de apoyo, es decir, procesos que soportan la gestión administrativa y apoyo de la entidad como: secretarias generales, logística, talento humano, financiera, archivos, entre otras que se incluyan en este propósito"]
["COLUMNA OFICINAS ASESORAS: Diligencie el número de funcionarios de cada cargo que esten relacionados en función del asesoramiento de la alta dirección como: Planeación, Jurídica, comunicaciones, tecnología, control interno, control interno disciplinario, entre otras que se incluyan en este propósito."]
["COLUMNA DEPENDENCIA MISIONAL 1: Diligencie el número de funcionarios de cada cargo que esten relacionados en dependencias de alto nivel, que comprenden el que hacer institucional y puede identificarse en grandes grupos como viceministerios, subdirecciones generales, direcciones generales, entre otras que se incluyan en este propósito, según su estructura organizacional y en coherencia a los programas presupuestales."]
["COLUMNA DEPENDENCIA MISIONAL 2: Si la entidad tiene más de una dependiencia misional según su estructura organizacional diligencie el número de funcionarios de cada cargo que esten relacionados en dependencias de alto nivel, que comprenden el que hacer institucional y puede identificarse en grandes grupos como viceministerios, subdirecciones generales, direcciones generales, entre otras que se incluyan en este propósito."]
["COLUMNA DEPENDENCIA MISIONAL 3: Si la entidad tiene más de una dependiencia misional según su estructura organizacional diligencie el número de funcionarios de cada cargo que esten relacionados en dependencias de alto nivel, que comprenden el que hacer institucional y puede identificarse en grandes grupos como viceministerios, subdirecciones generales, direcciones generales, entre otras que se incluyan en este propósito."]
["COLUMNA DEPENDENCIA MISIONAL 4: Si la entidad tiene más de una dependiencia misional según su estructura organizacional diligencie el número de funcionarios de cada cargo que esten relacionados en dependencias de alto nivel, que comprenden el que hacer institucional y puede identificarse en grandes grupos como viceministerios, subdirecciones generales, direcciones generales, entre otras que se incluyan en este propósito."]
["COLUMNA DEPENDENCIA MISIONAL 5: Si la entidad tiene más de una dependiencia misional según su estructura organizacional diligencie el número de funcionarios de cada cargo que esten relacionados en dependencias de alto nivel, que comprenden el que hacer institucional y puede identificarse en grandes grupos como viceministerios, subdirecciones generales, direcciones generales, entre otras que se incluyan en este propósito."]
["COLUMNA CHECK: No diligencie esta casilla rellene con la formula en caso de incluir nuevas casillas. Es una columnas de verificación que suma los números de cargos diligenciados por dependencia e indican si se encuentran distribuidos todos los cargos inicialmente identificados. En caso de que la validación de FALSO, debera verificar que la suma de cada dependencia con fines programaticos incluya todos los cargo o que no haya incopnsistencia entre los cargos digitados en la columna No de cargos sean los mismos que la distribución de números de cargos en cada dependencia."]
[]
["Una vez se cuente con la distribución de cargos completamente diligenciado y validado, el formulario presentará en la parte inferior un resumen con los gastos de personal programados por dependencia, así como su porcentaje de participación. La última columna permite validar que los gastos de personal programados al inicio se encuentren distribuidos en su totalidad entre las dependencias."]
[]
[]
[]
[]
[]
[]
[]
[]
[]
["Como último paso para asignar los gastos de personal programados según la clasificación programática, se encuentra la asociación entre las dependencias y los programas presupuestales. La última sección del formulario incluye una tabla en la que se relacionan las dependencias (filas) con los programas presupuestales de la entidad (columna). En esta tabla la entidad deberá definir la participación de cada dependencia con sus programas en términos porcentuales."]
[]
["FILA E178 CONCEPTOS RELACIÓN PROGRAMATICO: Diligencie la proporción de cargos ubicados en cada dependencia que en el desarrollo de sus funciones, impacte a los programas que relaciona la matriz de acuerdo al sector perteneciente de la entidad. De esta forma la matriz traera automaticamente el nombre de los programas relacionados a su sector, y de acuerdo a la estructura organizacional y los programas presupuestados, se determinara la proporción de personal involucrado en cada programa. Para consultar el concepto de cada programa asignado al sector que pertenece la entidad puede consultar el MANUAL DE CLASIFICACIÓN PROGRAMÁTICO DEL PRESUPUESTO PÚBLICO. Como por ejemplo:"]
[]
["Se considera que la secretaria general y dependencias de apoyo y las oficinas asesoras participan exclusivamente en el Programa de fortalecimiento y apoyo a la gestión institucional. Igualmente, que ningún gasto de personal debe estar asociado al programa No asignable a programas. Para las dependencias misionales la entidad deberá diligenciar el porcentaje de participación en cada programa. La última columna de validación permitirá verificar que esta distribución se encuentre completa (100%)."]
[]
[]
[]
[]
[]
[]
[]
[]
[]
[]
[]
[]
[]
[]
[]
[]
[]
[]
["La última columna validará que el valor presentado sea consistente con los montos diligenciados. En la última fila se encuentra el porcentaje de prorrateo que presenta la participación de los gastos de personal entre los programas presupuestales de la entidad, el cual servirá para distribuir los demás gastos de la entidad según la clasificación programática. La información de esta tabla resumen se deberá migrar al  \"Formulario 4. Programático\", en los conceptos de salarios, contribuciones inherentes a la nómina y remuneraciones no constitutivas de factor salarial tanto para la planta de personal permanente (filas 16, 17 y 18) como para el personal supernumerario y planta temporal (filas 23, 24 y 25) distribuyendo el valor según corresponda la naturaleza de la planta y según los programas presupuestales de la entidad."]
[]
[]
[]
[]
[]
[]
[]
[]
[]
[]
[]
[]
[]
[]
["FILA A135 ALTA GERENCIA: Diligencie el nombre de las dependencias a las que pertenecen los cargos relacionados en la columna alta gerencia de este archivo, de acuerdo con las descripciones del Instructivo de Programación Presupuestal 2026."]
["FILA A136 SECRETARIA GENERAL Y DEPENDENCIAS DE APOYO: Diligencie el nombre de las dependencias a las que pertenecen los cargos relacionados en la columna Secretaria general y dependencias de apoyo."]
["FILA A137 OFICINAS ASESORAS: Diligencie el nombre de las dependencias a las que pertenecen los cargos relacionados en la columna Oficinas asesoras."]
["FILA A138 ALTA DEPENDENCIA MISIONAL 1: Diligencie el nombre de las dependencias a las que pertenecen los cargos relacionados en la columna Dependencia misional 1."]
["FILA A139 ALTA DEPENDENCIA MISIONAL 2: Diligencie el nombre de las dependencias a las que pertenecen los cargos relacionados en la columna Dependencia misional 2."]
["FILA A140 ALTA DEPENDENCIA MISIONAL 3: Diligencie el nombre de las dependencias a las que pertenecen los cargos relacionados en la columna Dependencia misional 3."]
["FILA A141 ALTA DEPENDENCIA MISIONAL 4: Diligencie el nombre de las dependencias a las que pertenecen los cargos relacionados en la columna Dependencia misional 4."]
["FILA A142 ALTA DEPENDENCIA MISIONAL 5: Diligencie el nombre de las dependencias a las que pertenecen los cargos relacionados en la columna Dependencia misional 5."]
[]
["NOTA: Presente sus sugerencias frente la creación de programas en el formulario \"Sugerencia de adición programas presupuestales\" si así lo requiere la entidad."]

{"sheet":"Formulario 2- Planta","index":1,"n_rows":226,"n_cols":48,"rows_kept":226,"cut":false,"hidden":false,"merged":[[217,12,218,14],[219,12,220,14],[221,12,222,14],[205,12,206,14],[207,12,208,14],[209,12,210,14],[211,12,212,14],[213,12,214,14],[221,6,222,8],[219,6,220,8],[217,6,218,8],[215,6,216,8],[213,6,214,8],[211,6,212,8],[209,6,210,8],[207,6,208,8],[205,6,206,8],[11,44,13,44],[11,45,13,45],[10,44,10,46],[11,46,13,46],[11,43,13,43],[11,33,13,33],[11,34,13,34],[11,35,13,35],[11,36,13,36],[11,42,13,42],[11,41,13,41],[11,37,13,37],[11,38,13,38],[11,40,13,40],[12,19,13,19],[12,20,13,20],[11,22,13,22],[11,39,13,39],[12,21,13,21],[12,23,13,23],[12,24,13,24],[12,26,13,26],[12,25,13,25],[12,30,13,30],[11,23,11,26],[12,31,13,31],[11,32,13,32],[4,1,4,11],[10,33,10,43],[10,47,13,47],[10,2,13,2],[10,3,10,22],[11,3,11,16],[11,17,11,21],[12,3,12,4],[12,5,13,5],[10,23,10,32],[11,27,11,31],[12,27,13,27],[12,28,13,28],[12,29,13,29],[12,11,13,11],[12,12,13,12],[12,13,13,13],[12,16,13,16],[12,14,13,14],[12,6,13,6],[12,7,13,7],[12,8,13,8],[12,9,13,9],[12,10,13,10],[217,2,218,5],[200,2,202,5],[203,2,204,5],[12,17,13,17],[12,18,13,18],[205,2,206,5],[5,1,5,11],[8,3,8,10],[10,0,13,0],[10,1,13,1],[12,15,13,15],[207,2,208,5],[203,12,204,14],[203,9,204,11],[213,9,214,11],[211,9,212,11],[209,9,210,11],[207,9,208,11],[205,9,206,11],[201,9,202,11],[203,6,204,8],[200,12,202,14],[200,6,200,11],[215,12,216,14],[0,0,0,15],[1,0,1,15],[2,0,2,15],[6,1,6,11],[223,2,224,5],[225,2,226,5],[223,6,224,8],[225,6,226,8],[223,9,224,11],[223,12,224,14],[225,9,226,11],[225,12,226,14],[199,2,199,6],[221,9,222,11],[219,9,220,11],[217,9,218,11],[215,9,216,11],[219,2,220,5],[221,2,222,5],[201,6,202,8],[209,2,210,5],[211,2,212,5],[213,2,214,5],[215,2,216,5]]}
["MINISTERIO DE HACIENDA Y CRÉDITO PÚBLICO "]
["Dirección General del Presupuesto Público Nacional"]
["Formulario 2. Anteproyecto Planta de personal"]
[]
["CÓDIGO UEJ","130101"]
["UNIDAD EJECUTORA",{"$f":"+IFERROR(VLOOKUP(B5,DESPLEGABLES!$A$2:$C$229,2,0),\"\")","v":"MINISTERIO DE HACIENDA Y CRÉDITO PÚBLICO - GESTIÓN GENERAL"}]
["SECTOR PRESUPUESTAL",{"$f":"+IFERROR(VLOOKUP(B5,DESPLEGABLES!$A$2:$C$229,3,0),\"\")","v":"HACIENDA"}]
[]
[null,null,null,"ANTEPROYECTO PLANTA DE PERSONAL - VIGENCIA",null,null,null,null,null,null,null,2027,null,null,"(diligenciar en pesos)"]
[]
["DENOMINACIÓN DE CARGOS","Grado","No. Cargos","Salario",null,null,null,null,null,null,null,null,null,null,null,null,null,null,null,null,null,null,null,"Remuneraciones no constitutivas de Factor Salarial",null,null,null,null,null,null,null,null,null,"Contribuciones Inherentes a la Nómina",null,null,null,null,null,null,null,null,null,null,"Prestaciones sociales relacionadas con el empleo",null,null,"Total  \nGastos de personal"]
[null,null,null,"Factores Salariales comunes",null,null,null,null,null,null,null,null,null,null,null,null,null,"Factores Salariales Especiales",null,null,null,null,"Total","Prestaciones sociales según definición legal",null,null,null,"Otras remuneraciones no constitutivas de Factor Salarial",null,null,null,null,"Total","Pensiones","Salud","Aportes de Cesantías","Cajas de Compensación Familiar","Aportes Generales al Sistema de Riesgos Laborales","Aportes al ICBF","Aportes al SENA","Aportes a la ESAP","Aportes a escuelas industriales e institutos técnicos","Subsidio de vivienda Fuerzas Militares y Policía","Total","Incapacidades (No de pensiones)","Licencias de maternidad y paternidad (No de pensiones)","Total \nTransferencia"]
[null,null,null,"Sueldo básico",null,"Gastos de representación","Prima técnica salarial","Subsidio de alimentación","Auxilio de transporte","Prima de servicio","Bonificación por servicios prestados","Horas extras, dominicales, festivos y recargos","Prima de navidad","Prima de vacaciones","Viáticos de los funcionarios en comisión","Auxilio de conectividad digital","Subtotal 1","Factor Salarial Especial 1","Factor Salarial Especial 2","Factor Salarial Especial 3","Factor Salarial Especial 4","Subtotal 2",null,"Sueldo de vacaciones","Indemnización por vacaciones","Bonificación especial de recreación","Subtotal 1","Remuneración 1","Remuneración 2","Remuneración 3","Remuneración 4","Subtotal 2",null,null,null,null,null,null,null,null,null,"Institutos","Institutos","Institutos"]
[null,null,null,"Mes","Anual",null,null,null,null,null,null,null,null,null,null,null,null,null,null,null,null,null,null,null,null,null,null,null,null,null,null,null,null,null,null,null,null,null,null,null,null,"Técnicos","Técnicos","Técnicos"]
[1,2,3,null,4.0999999999999996,4.2,4.3,4.4000000000000004,4.5,4.5999999999999996,4.7,4.8,4.9000000000000004,4.0999999999999996,4.1100000000000003,4.12,4,5.0999999999999996,5.2,5.3,5.4,5,"4+5= 6",7.1,7.2,7.3,7,8.1,8.1999999999999993,8.3000000000000007,8.4,8,"7+8=9",10.1,10.199999999999999,10.3,10.4,10.5,10.6,10.7,10.8,10.9,10.1,10,11.1,11.2,"11.1+11.2=11","6+9+10=12"]
["EMPLEADOS PÚBLICOS"]
["NIVEL DIRECTIVO",{"$f":"SUM(B18:B30)","v":0},{"$f":"SUM(C18:C30)","v":0},{"$f":"SUM(D18:D30)","v":0},{"$f":"SUM(E18:E30)","v":0},0,0,0,0,0,0,0,0,0,0,0,0,0,0,0,0,0,0,0,0,0,0,0,0,0,0,0,0,0,0,0,0,0,0,0,0,0,0,0,0,0,0,0]
[null,null,null,null,null,null,null,null,null,null,null,null,null,null,null,null,{"$f":"SUM(E18:P18)","v":0},null,null,null,null,{"$f":"SUM(R18:U18)","v":0},{"$f":"Q18+V18","v":0},null,null,null,{"$f":"SUM(X18:Z18)","v":0},null,null,null,null,{"$f":"SUM(AB18:AE18)","v":0},{"$f":"AA18+AF18","v":0},null,null,null,null,null,null,null,null,null,null,{"$f":"SUM(AH18:AQ18)","v":0},null,null,{"$f":"SUM(AS18:AT18)","v":0},{"$f":"W18+AG18+AR18","v":0}]
[null,null,null,null,null,null,null,null,null,null,null,null,null,null,null,null,{"$f":"SUM(E19:P19)","v":0},null,null,null,null,0,{"$f":"Q19+V19","v":0},null,null,null,{"$f":"SUM(X19:Z19)","v":0},null,null,null,null,{"$f":"SUM(AB19:AE19)","v":0},{"$f":"AA19+AF19","v":0},null,null,null,null,null,null,null,null,null,null,0,null,null,{"$f":"SUM(AS19:AT19)","v":0},0]
[null,null,null,null,null,null,null,null,null,null,null,null,null,null,null,null,{"$f":"SUM(E20:P20)","v":0},null,null,null,null,0,{"$f":"Q20+V20","v":0},null,null,null,{"$f":"SUM(X20:Z20)","v":0},null,null,null,null,{"$f":"SUM(AB20:AE20)","v":0},0,null,null,null,null,null,null,null,null,null,null,0,null,null,0,0]
[null,null,null,null,null,null,null,null,null,null,null,null,null,null,null,null,{"$f":"SUM(E21:P21)","v":0},null,null,null,null,0,{"$f":"Q21+V21","v":0},null,null,null,{"$f":"SUM(X21:Z21)","v":0},null,null,null,null,{"$f":"SUM(AB21:AE21)","v":0},0,null,null,null,null,null,null,null,null,null,null,0,null,null,0,0]
[null,null,null,null,null,null,null,null,null,null,null,null,null,null,null,null,0,null,null,null,null,0,0,null,null,null,0,null,null,null,null,0,0,null,null,null,null,null,null,null,null,null,null,0,null,null,0,0]
[null,null,null,null,null,null,null,null,null,null,null,null,null,null,null,null,0,null,null,null,null,0,0,null,null,null,0,null,null,null,null,0,0,null,null,null,null,null,null,null,null,null,null,0,null,null,0,0]
[null,null,null,null,null,null,null,null,null,null,null,null,null,null,null,null,0,null,null,null,null,0,0,null,null,null,0,null,null,null,null,0,0,null,null,null,null,null,null,null,null,null,null,0,null,null,0,0]
[null,null,null,null,null,null,null,null,null,null,null,null,null,null,null,null,0,null,null,null,null,0,0,null,null,null,0,null,null,null,null,0,0,null,null,null,null,null,null,null,null,null,null,0,null,null,0,0]
[null,null,null,null,null,null,null,null,null,null,null,null,null,null,null,null,{"$f":"SUM(E26:P26)","v":0},null,null,null,null,{"$f":"SUM(R26:U26)","v":0},{"$f":"Q26+V26","v":0},null,null,null,{"$f":"SUM(X26:Z26)","v":0},null,null,null,null,{"$f":"SUM(AB26:AE26)","v":0},{"$f":"AA26+AF26","v":0},null,null,null,null,null,null,null,null,null,null,{"$f":"SUM(AH26:AQ26)","v":0},null,null,{"$f":"SUM(AS26:AT26)","v":0},{"$f":"W26+AG26+AR26","v":0}]
[null,null,null,null,null,null,null,null,null,null,null,null,null,null,null,null,0,null,null,null,null,0,0,null,null,null,{"$f":"SUM(X27:Z27)","v":0},null,null,null,null,{"$f":"SUM(AB27:AE27)","v":0},0,null,null,null,null,null,null,null,null,null,null,0,null,null,0,0]
[null,null,null,null,null,null,null,null,null,null,null,null,null,null,null,null,0,null,null,null,null,0,0,null,null,null,0,null,null,null,null,{"$f":"SUM(AB28:AE28)","v":0},0,null,null,null,null,null,null,null,null,null,null,0,null,null,0,0]
[null,null,null,null,null,null,null,null,null,null,null,null,null,null,null,null,0,null,null,null,null,0,0,null,null,null,0,null,null,null,null,0,0,null,null,null,null,null,null,null,null,null,null,0,null,null,0,0]
[null,null,null,null,null,null,null,null,null,null,null,null,null,null,null,null,0,null,null,null,null,0,0,null,null,null,0,null,null,null,null,0,0,null,null,null,null,null,null,null,null,null,null,0,null,null,0,0]
["NIVEL ASESOR",{"$f":"SUM(B32:B49)","v":0},0,0,0,0,0,0,0,0,0,0,0,0,0,0,0,0,0,0,0,0,0,0,0,0,0,0,0,0,0,0,0,0,0,0,0,0,0,0,0,0,0,0,0,0,0,0]
[null,null,null,null,null,null,null,null,null,null,null,null,null,null,null,null,{"$f":"SUM(E32:P32)","v":0},null,null,null,null,{"$f":"SUM(R32:U32)","v":0},{"$f":"Q32+V32","v":0},null,null,null,{"$f":"SUM(X32:Z32)","v":0},null,null,null,null,{"$f":"SUM(AB32:AE32)","v":0},{"$f":"AA32+AF32","v":0},null,null,null,null,null,null,null,null,null,null,{"$f":"SUM(AH32:AQ32)","v":0},null,null,{"$f":"SUM(AS32:AT32)","v":0},{"$f":"W32+AG32+AR32","v":0}]
[null,null,null,null,null,null,null,null,null,null,null,null,null,null,null,null,0,null,null,null,null,0,0,null,null,null,0,null,null,null,null,0,0,null,null,null,null,null,null,null,null,null,null,0,null,null,0,0]
[null,null,null,null,null,null,null,null,null,null,null,null,null,null,null,null,0,null,null,null,null,0,0,null,null,null,0,null,null,null,null,0,0,null,null,null,null,null,null,null,null,null,null,0,null,null,0,0]
[null,null,null,null,null,null,null,null,null,null,null,null,null,null,null,null,{"$f":"SUM(E35:P35)","v":0},null,null,null,null,{"$f":"SUM(R35:U35)","v":0},{"$f":"Q35+V35","v":0},null,null,null,{"$f":"SUM(X35:Z35)","v":0},null,null,null,null,{"$f":"SUM(AB35:AE35)","v":0},{"$f":"AA35+AF35","v":0},null,null,null,null,null,null,null,null,null,null,{"$f":"SUM(AH35:AQ35)","v":0},null,null,{"$f":"SUM(AS35:AT35)","v":0},{"$f":"W35+AG35+AR35","v":0}]
[null,null,null,null,null,null,null,null,null,null,null,null,null,null,null,null,0,null,null,null,null,0,0,null,null,null,0,null,null,null,null,0,0,null,null,null,null,null,null,null,null,null,null,0,null,null,0,0]
[null,null,null,null,null,null,null,null,null,null,null,null,null,null,null,null,0,null,null,null,null,0,0,null,null,null,0,null,null,null,null,0,0,null,null,null,null,null,null,null,null,null,null,0,null,null,0,0]
[null,null,null,null,null,null,null,null,null,null,null,null,null,null,null,null,0,null,null,null,null,0,0,null,null,null,0,null,null,null,null,0,0,null,null,null,null,null,null,null,null,null,null,0,null,null,0,0]
[null,null,null,null,null,null,null,null,null,null,null,null,null,null,null,null,0,null,null,null,null,0,0,null,null,null,0,null,null,null,null,0,0,null,null,null,null,null,null,null,null,null,null,0,null,null,0,0]
[null,null,null,null,null,null,null,null,null,null,null,null,null,null,null,null,0,null,null,null,null,0,0,null,null,null,0,null,null,null,null,0,0,null,null,null,null,null,null,null,null,null,null,0,null,null,0,0]
[null,null,null,null,null,null,null,null,null,null,null,null,null,null,null,null,0,null,null,null,null,0,0,null,null,null,0,null,null,null,null,0,0,null,null,null,null,null,null,null,null,null,null,0,null,null,0,0]
[null,null,null,null,null,null,null,null,null,null,null,null,null,null,null,null,0,null,null,null,null,0,0,null,null,null,0,null,null,null,null,0,0,null,null,null,null,null,null,null,null,null,null,0,null,null,0,0]
[null,null,null,null,null,null,null,null,null,null,null,null,null,null,null,null,0,null,null,null,null,0,0,null,null,null,0,null,null,null,null,0,0,null,null,null,null,null,null,null,null,null,null,0,null,null,0,0]
[null,null,null,null,null,null,null,null,null,null,null,null,null,null,null,null,0,null,null,null,null,0,0,null,null,null,0,null,null,null,null,0,0,null,null,null,null,null,null,null,null,null,null,0,null,null,0,0]
[null,null,null,null,null,null,null,null,null,null,null,null,null,null,null,null,{"$f":"SUM(E45:P45)","v":0},null,null,null,null,{"$f":"SUM(R45:U45)","v":0},{"$f":"Q45+V45","v":0},null,null,null,{"$f":"SUM(X45:Z45)","v":0},null,null,null,null,{"$f":"SUM(AB45:AE45)","v":0},0,null,null,null,null,null,null,null,null,null,null,{"$f":"SUM(AH45:AQ45)","v":0},null,null,{"$f":"SUM(AS45:AT45)","v":0},{"$f":"W45+AG45+AR45","v":0}]
[null,null,null,null,null,null,null,null,null,null,null,null,null,null,null,null,0,null,null,null,null,0,0,null,null,null,{"$f":"SUM(X46:Z46)","v":0},null,null,null,null,0,0,null,null,null,null,null,null,null,null,null,null,0,null,null,{"$f":"SUM(AS46:AT46)","v":0},0]
[null,null,null,null,null,null,null,null,null,null,null,null,null,null,null,null,0,null,null,null,null,0,0,null,null,null,{"$f":"SUM(X47:Z47)","v":0},null,null,null,null,{"$f":"SUM(AB47:AE47)","v":0},0,null,null,null,null,null,null,null,null,null,null,0,null,null,0,0]
[null,null,null,null,null,null,null,null,null,null,null,null,null,null,null,null,0,null,null,null,null,0,0,null,null,null,{"$f":"SUM(X48:Z48)","v":0},null,null,null,null,0,0,null,null,null,null,null,null,null,null,null,null,0,null,null,0,0]
[null,null,null,null,null,null,null,null,null,null,null,null,null,null,null,null,{"$f":"SUM(E49:P49)","v":0},null,null,null,null,0,0,null,null,null,0,null,null,null,null,{"$f":"SUM(AB49:AE49)","v":0},0,null,null,null,null,null,null,null,null,null,null,0,null,null,0,0]
["NIVEL EJECUTIVO",{"$f":"SUM(B51:B57)","v":0},{"$f":"SUM(C51:C57)","v":0},{"$f":"SUM(D51:D57)","v":0},{"$f":"SUM(E51:E57)","v":0},0,0,0,0,0,0,0,0,0,0,0,0,0,0,0,0,0,0,0,0,0,0,0,0,0,0,0,0,0,0,0,0,0,0,0,0,0,0,0,0,0,0,0]
[null,null,null,null,null,null,null,null,null,null,null,null,null,null,null,null,{"$f":"SUM(E51:P51)","v":0},null,null,null,null,{"$f":"SUM(R51:U51)","v":0},{"$f":"Q51+V51","v":0},null,null,null,{"$f":"SUM(X51:Z51)","v":0},null,null,null,null,{"$f":"SUM(AB51:AE51)","v":0},{"$f":"AA51+AF51","v":0},null,null,null,null,null,null,null,null,null,null,{"$f":"SUM(AH51:AQ51)","v":0},null,null,{"$f":"SUM(AS51:AT51)","v":0},{"$f":"W51+AG51+AR51","v":0}]
[null,null,null,null,null,null,null,null,null,null,null,null,null,null,null,null,{"$f":"SUM(E52:P52)","v":0},null,null,null,null,{"$f":"SUM(R52:U52)","v":0},{"$f":"Q52+V52","v":0},null,null,null,{"$f":"SUM(X52:Z52)","v":0},null,null,null,null,{"$f":"SUM(AB52:AE52)","v":0},0,null,null,null,null,null,null,null,null,null,null,{"$f":"SUM(AH52:AQ52)","v":0},null,null,{"$f":"SUM(AS52:AT52)","v":0},{"$f":"W52+AG52+AR52","v":0}]
[null,null,null,null,null,null,null,null,null,null,null,null,null,null,null,null,0,null,null,null,null,0,0,null,null,null,0,null,null,null,null,0,0,null,null,null,null,null,null,null,null,null,null,0,null,null,0,0]
[null,null,null,null,null,null,null,null,null,null,null,null,null,null,null,null,0,null,null,null,null,0,0,null,null,null,0,null,null,null,null,0,0,null,null,null,null,null,null,null,null,null,null,0,null,null,0,0]
[null,null,null,null,null,null,null,null,null,null,null,null,null,null,null,null,0,null,null,null,null,0,0,null,null,null,0,null,null,null,null,0,0,null,null,null,null,null,null,null,null,null,null,0,null,null,0,0]
[null,null,null,null,null,null,null,null,null,null,null,null,null,null,null,null,0,null,null,null,null,0,0,null,null,null,0,null,null,null,null,0,0,null,null,null,null,null,null,null,null,null,null,0,null,null,0,0]
[null,null,null,null,null,null,null,null,null,null,null,null,null,null,null,null,0,null,null,null,null,0,0,null,null,null,0,null,null,null,null,0,0,null,null,null,null,null,null,null,null,null,null,0,null,null,0,0]
["NIVEL PROFESIONAL",{"$f":"SUM(B59:B106)","v":0},{"$f":"SUM(C59:C106)","v":0},{"$f":"SUM(D59:D106)","v":0},{"$f":"SUM(E59:E106)","v":0},0,0,0,0,0,0,0,0,{"$f":"SUM(N59:N106)","v":0},0,0,{"$f":"SUM(Q59:Q106)","v":0},0,0,0,0,0,0,0,0,0,0,0,0,0,0,0,0,0,0,0,0,0,0,0,0,0,0,0,0,0,0,0]
[null,null,null,null,null,null,null,null,null,null,null,null,null,null,null,null,{"$f":"SUM(E59:P59)","v":0},null,null,null,null,{"$f":"SUM(R59:U59)","v":0},{"$f":"Q59+V59","v":0},null,null,null,{"$f":"SUM(X59:Z59)","v":0},null,null,null,null,{"$f":"SUM(AB59:AE59)","v":0},{"$f":"AA59+AF59","v":0},null,null,null,null,null,null,null,null,null,null,{"$f":"SUM(AH59:AQ59)","v":0},null,null,null,{"$f":"W59+AG59+AR59","v":0}]
[null,null,null,null,null,null,null,null,null,null,null,null,null,null,null,null,{"$f":"SUM(E60:P60)","v":0},null,null,null,null,{"$f":"SUM(R60:U60)","v":0},{"$f":"Q60+V60","v":0},null,null,null,{"$f":"SUM(X60:Z60)","v":0},null,null,null,null,{"$f":"SUM(AB60:AE60)","v":0},0,null,null,null,null,null,null,null,null,null,null,{"$f":"SUM(AH60:AQ60)","v":0},null,null,null,{"$f":"W60+AG60+AR60","v":0}]
[null,null,null,null,null,null,null,null,null,null,null,null,null,null,null,null,0,null,null,null,null,0,0,null,null,null,0,null,null,null,null,0,0,null,null,null,null,null,null,null,null,null,null,0,null,null,null,0]
[null,null,null,null,null,null,null,null,null,null,null,null,null,null,null,null,0,null,null,null,null,0,0,null,null,null,0,null,null,null,null,0,0,null,null,null,null,null,null,null,null,null,null,0,null,null,null,0]
[null,null,null,null,null,null,null,null,null,null,null,null,null,null,null,null,0,null,null,null,null,0,0,null,null,null,0,null,null,null,null,0,0,null,null,null,null,null,null,null,null,null,null,0,null,null,null,0]
[null,null,null,null,null,null,null,null,null,null,null,null,null,null,null,null,0,null,null,null,null,0,0,null,null,null,0,null,null,null,null,0,0,null,null,null,null,null,null,null,null,null,null,0,null,null,null,0]
[null,null,null,null,null,null,null,null,null,null,null,null,null,null,null,null,0,null,null,null,null,0,0,null,null,null,0,null,null,null,null,0,0,null,null,null,null,null,null,null,null,null,null,0,null,null,null,0]
[null,null,null,null,null,null,null,null,null,null,null,null,null,null,null,null,0,null,null,null,null,0,0,null,null,null,0,null,null,null,null,0,0,null,null,null,null,null,null,null,null,null,null,0,null,null,null,0]
[null,null,null,null,null,null,null,null,null,null,null,null,null,null,null,null,{"$f":"SUM(E67:P67)","v":0},null,null,null,null,{"$f":"SUM(R67:U67)","v":0},{"$f":"Q67+V67","v":0},null,null,null,{"$f":"SUM(X67:Z67)","v":0},null,null,null,null,{"$f":"SUM(AB67:AE67)","v":0},{"$f":"AA67+AF67","v":0},null,null,null,null,null,null,null,null,null,null,{"$f":"SUM(AH67:AQ67)","v":0},null,null,{"$f":"SUM(AS67:AT67)","v":0},{"$f":"W67+AG67+AR67","v":0}]
[null,null,null,null,null,null,null,null,null,null,null,null,null,null,null,null,0,null,null,null,null,0,0,null,null,null,0,null,null,null,null,0,0,null,null,null,null,null,null,null,null,null,null,0,null,null,0,0]
[null,null,null,null,null,null,null,null,null,null,null,null,null,null,null,null,0,null,null,null,null,0,0,null,null,null,0,null,null,null,null,0,0,null,null,null,null,null,null,null,null,null,null,0,null,null,0,0]
[null,null,null,null,null,null,null,null,null,null,null,null,null,null,null,null,0,null,null,null,null,0,0,null,null,null,0,null,null,null,null,0,0,null,null,null,null,null,null,null,null,null,null,0,null,null,0,0]
[null,null,null,null,null,null,null,null,null,null,null,null,null,null,null,null,0,null,null,null,null,0,0,null,null,null,0,null,null,null,null,0,0,null,null,null,null,null,null,null,null,null,null,0,null,null,0,0]
[null,null,null,null,null,null,null,null,null,null,null,null,null,null,null,null,0,null,null,null,null,0,0,null,null,null,0,null,null,null,null,0,0,null,null,null,null,null,null,null,null,null,null,0,null,null,0,0]
[null,null,null,null,null,null,null,null,null,null,null,null,null,null,null,null,0,null,null,null,null,0,0,null,null,null,0,null,null,null,null,0,0,null,null,null,null,null,null,null,null,null,null,0,null,null,0,0]
[null,null,null,null,null,null,null,null,null,null,null,null,null,null,null,null,0,null,null,null,null,0,0,null,null,null,0,null,null,null,null,0,0,null,null,null,null,null,null,null,null,null,null,0,null,null,0,0]
[null,null,null,null,null,null,null,null,null,null,null,null,null,null,null,null,0,null,null,null,null,0,0,null,null,null,0,null,null,null,null,0,0,null,null,null,null,null,null,null,null,null,null,0,null,null,0,0]
[null,null,null,null,null,null,null,null,null,null,null,null,null,null,null,null,0,null,null,null,null,0,0,null,null,null,0,null,null,null,null,0,0,null,null,null,null,null,null,null,null,null,null,0,null,null,0,0]
[null,null,null,null,null,null,null,null,null,null,null,null,null,null,null,null,{"$f":"SUM(E77:P77)","v":0},null,null,null,null,0,0,null,null,null,0,null,null,null,null,0,0,null,null,null,null,null,null,null,null,null,null,0,null,null,{"$f":"SUM(AS77:AT77)","v":0},0]
[null,null,null,null,null,null,null,null,null,null,null,null,null,null,null,null,0,null,null,null,null,0,0,null,null,null,0,null,null,null,null,0,0,null,null,null,null,null,null,null,null,null,null,0,null,null,0,0]
[null,null,null,null,null,null,null,null,null,null,null,null,null,null,null,null,0,null,null,null,null,0,0,null,null,null,0,null,null,null,null,0,0,null,null,null,null,null,null,null,null,null,null,0,null,null,0,0]
[null,null,null,null,null,null,null,null,null,null,null,null,null,null,null,null,0,null,null,null,null,0,0,null,null,null,0,null,null,null,null,0,0,null,null,null,null,null,null,null,null,null,null,0,null,null,0,0]
[null,null,null,null,null,null,null,null,null,null,null,null,null,null,null,null,0,null,null,null,null,0,0,null,null,null,0,null,null,null,null,0,0,null,null,null,null,null,null,null,null,null,null,0,null,null,0,0]
[null,null,null,null,null,null,null,null,null,null,null,null,null,null,null,null,0,null,null,null,null,0,0,null,null,null,0,null,null,null,null,0,0,null,null,null,null,null,null,null,null,null,null,0,null,null,0,0]
[null,null,null,null,null,null,null,null,null,null,null,null,null,null,null,null,0,null,null,null,null,0,0,null,null,null,0,null,null,null,null,0,0,null,null,null,null,null,null,null,null,null,null,0,null,null,0,0]
[null,null,null,null,null,null,null,null,null,null,null,null,null,null,null,null,0,null,null,null,null,0,0,null,null,null,0,null,null,null,null,0,0,null,null,null,null,null,null,null,null,null,null,0,null,null,0,0]
[null,null,null,null,null,null,null,null,null,null,null,null,null,null,null,null,0,null,null,null,null,0,0,null,null,null,0,null,null,null,null,0,0,null,null,null,null,null,null,null,null,null,null,0,null,null,0,0]
[null,null,null,null,null,null,null,null,null,null,null,null,null,null,null,null,0,null,null,null,null,0,0,null,null,null,0,null,null,null,null,0,0,null,null,null,null,null,null,null,null,null,null,0,null,null,0,0]
[null,null,null,null,null,null,null,null,null,null,null,null,null,null,null,null,0,null,null,null,null,0,0,null,null,null,0,null,null,null,null,0,0,null,null,null,null,null,null,null,null,null,null,0,null,null,0,0]
[null,null,null,null,null,null,null,null,null,null,null,null,null,null,null,null,0,null,null,null,null,0,0,null,null,null,0,null,null,null,null,0,0,null,null,null,null,null,null,null,null,null,null,0,null,null,0,0]
[null,null,null,null,null,null,null,null,null,null,null,null,null,null,null,null,0,null,null,null,null,0,0,null,null,null,0,null,null,null,null,0,0,null,null,null,null,null,null,null,null,null,null,0,null,null,0,0]
[null,null,null,null,null,null,null,null,null,null,null,null,null,null,null,null,0,null,null,null,null,0,0,null,null,null,0,null,null,null,null,0,0,null,null,null,null,null,null,null,null,null,null,0,null,null,0,0]
[null,null,null,null,null,null,null,null,null,null,null,null,null,null,null,null,{"$f":"SUM(E91:P91)","v":0},null,null,null,null,{"$f":"SUM(R91:U91)","v":0},{"$f":"Q91+V91","v":0},null,null,null,{"$f":"SUM(X91:Z91)","v":0},null,null,null,null,{"$f":"SUM(AB91:AE91)","v":0},{"$f":"AA91+AF91","v":0},null,null,null,null,null,null,null,null,null,null,{"$f":"SUM(AH91:AQ91)","v":0},null,null,{"$f":"SUM(AS91:AT91)","v":0},{"$f":"W91+AG91+AR91","v":0}]
[null,null,null,null,null,null,null,null,null,null,null,null,null,null,null,null,0,null,null,null,null,0,0,null,null,null,0,null,null,null,null,0,0,null,null,null,null,null,null,null,null,null,null,0,null,null,0,0]
[null,null,null,null,null,null,null,null,null,null,null,null,null,null,null,null,0,null,null,null,null,0,0,null,null,null,0,null,null,null,null,0,0,null,null,null,null,null,null,null,null,null,null,0,null,null,0,0]
[null,null,null,null,null,null,null,null,null,null,null,null,null,null,null,null,0,null,null,null,null,0,0,null,null,null,0,null,null,null,null,0,0,null,null,null,null,null,null,null,null,null,null,0,null,null,0,0]
[null,null,null,null,null,null,null,null,null,null,null,null,null,null,null,null,0,null,null,null,null,0,0,null,null,null,0,null,null,null,null,0,0,null,null,null,null,null,null,null,null,null,null,0,null,null,0,0]
[null,null,null,null,null,null,null,null,null,null,null,null,null,null,null,null,0,null,null,null,null,0,0,null,null,null,0,null,null,null,null,0,0,null,null,null,null,null,null,null,null,null,null,0,null,null,0,0]
[null,null,null,null,null,null,null,null,null,null,null,null,null,null,null,null,0,null,null,null,null,0,0,null,null,null,0,null,null,null,null,0,0,null,null,null,null,null,null,null,null,null,null,0,null,null,0,0]
[null,null,null,null,null,null,null,null,null,null,null,null,null,null,null,null,0,null,null,null,null,0,0,null,null,null,0,null,null,null,null,0,0,null,null,null,null,null,null,null,null,null,null,0,null,null,0,0]
[null,null,null,null,null,null,null,null,null,null,null,null,null,null,null,null,0,null,null,null,null,0,0,null,null,null,0,null,null,null,null,0,0,null,null,null,null,null,null,null,null,null,null,0,null,null,0,0]
[null,null,null,null,null,null,null,null,null,null,null,null,null,null,null,null,0,null,null,null,null,0,0,null,null,null,0,null,null,null,null,0,0,null,null,null,null,null,null,null,null,null,null,0,null,null,0,0]
[null,null,null,null,null,null,null,null,null,null,null,null,null,null,null,null,0,null,null,null,null,0,0,null,null,null,0,null,null,null,null,0,0,null,null,null,null,null,null,null,null,null,null,0,null,null,0,0]
[null,null,null,null,null,null,null,null,null,null,null,null,null,null,null,null,0,null,null,null,null,0,0,null,null,null,0,null,null,null,null,0,0,null,null,null,null,null,null,null,null,null,null,0,null,null,0,0]
[null,null,null,null,null,null,null,null,null,null,null,null,null,null,null,null,0,null,null,null,null,0,0,null,null,null,0,null,null,null,null,0,0,null,null,null,null,null,null,null,null,null,null,0,null,null,0,0]
[null,null,null,null,null,null,null,null,null,null,null,null,null,null,null,null,0,null,null,null,null,0,0,null,null,null,0,null,null,null,null,0,0,null,null,null,null,null,null,null,null,null,null,0,null,null,0,0]
[null,null,null,null,null,null,null,null,null,null,null,null,null,null,null,null,0,null,null,null,null,0,0,null,null,null,0,null,null,null,null,0,0,null,null,null,null,null,null,null,null,null,null,0,null,null,0,0]
[null,null,null,null,null,null,null,null,null,null,null,null,null,null,null,null,0,null,null,null,null,0,0,null,null,null,0,null,null,null,null,0,0,null,null,null,null,null,null,null,null,null,null,0,null,null,0,0]
["NIVEL TÉCNICO",{"$f":"SUM(B108:B126)","v":0},{"$f":"SUM(C108:C126)","v":0},0,0,0,0,0,0,0,0,0,0,0,0,0,0,0,0,0,0,0,0,0,0,0,0,0,0,0,0,0,0,0,0,0,0,0,0,0,0,0,0,0,0,0,0,0]
[null,null,null,null,null,null,null,null,null,null,null,null,null,null,null,null,{"$f":"SUM(E108:P108)","v":0},null,null,null,null,{"$f":"SUM(R108:U108)","v":0},{"$f":"Q108+V108","v":0},null,null,null,{"$f":"SUM(X108:Z108)","v":0},null,null,null,null,{"$f":"SUM(AB108:AE108)","v":0},{"$f":"AA108+AF108","v":0},null,null,null,null,null,null,null,null,null,null,{"$f":"SUM(AH108:AQ108)","v":0},null,null,{"$f":"SUM(AS108:AT108)","v":0},{"$f":"W108+AG108+AR108","v":0}]
[null,null,null,null,null,null,null,null,null,null,null,null,null,null,null,null,{"$f":"SUM(E109:P109)","v":0},null,null,null,null,{"$f":"SUM(R109:U109)","v":0},{"$f":"Q109+V109","v":0},null,null,null,{"$f":"SUM(X109:Z109)","v":0},null,null,null,null,{"$f":"SUM(AB109:AE109)","v":0},0,null,null,null,null,null,null,null,null,null,null,{"$f":"SUM(AH109:AQ109)","v":0},null,null,{"$f":"SUM(AS109:AT109)","v":0},{"$f":"W109+AG109+AR109","v":0}]
[null,null,null,null,null,null,null,null,null,null,null,null,null,null,null,null,0,null,null,null,null,0,0,null,null,null,0,null,null,null,null,0,0,null,null,null,null,null,null,null,null,null,null,0,null,null,0,0]
[null,null,null,null,null,null,null,null,null,null,null,null,null,null,null,null,{"$f":"SUM(E111:P111)","v":0},null,null,null,null,0,0,null,null,null,0,null,null,null,null,0,0,null,null,null,null,null,null,null,null,null,null,0,null,null,0,0]
[null,null,null,null,null,null,null,null,null,null,null,null,null,null,null,null,0,null,null,null,null,0,0,null,null,null,0,null,null,null,null,0,0,null,null,null,null,null,null,null,null,null,null,0,null,null,0,0]
[null,null,null,null,null,null,null,null,null,null,null,null,null,null,null,null,0,null,null,null,null,0,0,null,null,null,0,null,null,null,null,0,0,null,null,null,null,null,null,null,null,null,null,0,null,null,0,0]
[null,null,null,null,null,null,null,null,null,null,null,null,null,null,null,null,0,null,null,null,null,0,{"$f":"Q114+V114","v":0},null,null,null,0,null,null,null,null,0,0,null,null,null,null,null,null,null,null,null,null,0,null,null,0,0]
[null,null,null,null,null,null,null,null,null,null,null,null,null,null,null,null,{"$f":"SUM(E115:P115)","v":0},null,null,null,null,{"$f":"SUM(R115:U115)","v":0},{"$f":"Q115+V115","v":0},null,null,null,{"$f":"SUM(X115:Z115)","v":0},null,null,null,null,{"$f":"SUM(AB115:AE115)","v":0},{"$f":"AA115+AF115","v":0},null,null,null,null,null,null,null,null,null,null,{"$f":"SUM(AH115:AQ115)","v":0},null,null,{"$f":"SUM(AS115:AT115)","v":0},{"$f":"W115+AG115+AR115","v":0}]
[null,null,null,null,null,null,null,null,null,null,null,null,null,null,null,null,0,null,null,null,null,0,0,null,null,null,0,null,null,null,null,0,0,null,null,null,null,null,null,null,null,null,null,0,null,null,0,0]
[null,null,null,null,null,null,null,null,null,null,null,null,null,null,null,null,0,null,null,null,null,0,0,null,null,null,0,null,null,null,null,0,0,null,null,null,null,null,null,null,null,null,null,0,null,null,0,0]
[null,null,null,null,null,null,null,null,null,null,null,null,null,null,null,null,0,null,null,null,null,0,{"$f":"Q118+V118","v":0},null,null,null,0,null,null,null,null,0,0,null,null,null,null,null,null,null,null,null,null,0,null,null,0,0]
[null,null,null,null,null,null,null,null,null,null,null,null,null,null,null,null,{"$f":"SUM(E119:P119)","v":0},null,null,null,null,0,0,null,null,null,0,null,null,null,null,0,0,null,null,null,null,null,null,null,null,null,null,0,null,null,0,0]
[null,null,null,null,null,null,null,null,null,null,null,null,null,null,null,null,0,null,null,null,null,0,0,null,null,null,0,null,null,null,null,0,0,null,null,null,null,null,null,null,null,null,null,0,null,null,0,0]
[null,null,null,null,null,null,null,null,null,null,null,null,null,null,null,null,0,null,null,null,null,0,0,null,null,null,0,null,null,null,null,0,0,null,null,null,null,null,null,null,null,null,null,0,null,null,0,0]
[null,null,null,null,null,null,null,null,null,null,null,null,null,null,null,null,0,null,null,null,null,0,{"$f":"Q122+V122","v":0},null,null,null,0,null,null,null,null,0,0,null,null,null,null,null,null,null,null,null,null,0,null,null,0,0]
[null,null,null,null,null,null,null,null,null,null,null,null,null,null,null,null,{"$f":"SUM(E123:P123)","v":0},null,null,null,null,{"$f":"SUM(R123:U123)","v":0},{"$f":"Q123+V123","v":0},null,null,null,{"$f":"SUM(X123:Z123)","v":0},null,null,null,null,{"$f":"SUM(AB123:AE123)","v":0},{"$f":"AA123+AF123","v":0},null,null,null,null,null,null,null,null,null,null,{"$f":"SUM(AH123:AQ123)","v":0},null,null,{"$f":"SUM(AS123:AT123)","v":0},{"$f":"W123+AG123+AR123","v":0}]
[null,null,null,null,null,null,null,null,null,null,null,null,null,null,null,null,0,null,null,null,null,0,0,null,null,null,0,null,null,null,null,0,0,null,null,null,null,null,null,null,null,null,null,0,null,null,0,0]
[null,null,null,null,null,null,null,null,null,null,null,null,null,null,null,null,0,null,null,null,null,0,0,null,null,null,0,null,null,null,null,0,0,null,null,null,null,null,null,null,null,null,null,0,null,null,0,0]
[null,null,null,null,null,null,null,null,null,null,null,null,null,null,null,null,0,null,null,null,null,0,{"$f":"Q126+V126","v":0},null,null,null,0,null,null,null,null,0,0,null,null,null,null,null,null,null,null,null,null,0,null,null,0,0]
["NIVEL ASISTENCIAL",{"$f":"SUM(B128:B148)","v":0},{"$f":"SUM(C128:C148)","v":0},{"$f":"SUM(D128:D148)","v":0},{"$f":"SUM(E128:E148)","v":0},0,0,0,0,0,0,0,0,0,0,0,0,0,0,0,0,0,0,0,0,0,0,0,0,0,0,0,0,0,0,0,0,0,0,0,0,0,0,0,0,0,0,0]
[null,null,null,null,null,null,null,null,null,null,null,null,null,null,null,null,{"$f":"SUM(E128:P128)","v":0},null,null,null,null,{"$f":"SUM(R128:U128)","v":0},{"$f":"Q128+V128","v":0},null,null,null,{"$f":"SUM(X128:Z128)","v":0},null,null,null,null,{"$f":"SUM(AB128:AE128)","v":0},{"$f":"AA128+AF128","v":0},null,null,null,null,null,null,null,null,null,null,{"$f":"SUM(AH128:AQ128)","v":0},null,null,{"$f":"SUM(AS128:AT128)","v":0},{"$f":"W128+AG128+AR128","v":0}]
[null,null,null,null,null,null,null,null,null,null,null,null,null,null,null,null,{"$f":"SUM(E129:P129)","v":0},null,null,null,null,{"$f":"SUM(R129:U129)","v":0},{"$f":"Q129+V129","v":0},null,null,null,{"$f":"SUM(X129:Z129)","v":0},null,null,null,null,{"$f":"SUM(AB129:AE129)","v":0},0,null,null,null,null,null,null,null,null,null,null,{"$f":"SUM(AH129:AQ129)","v":0},null,null,{"$f":"SUM(AS129:AT129)","v":0},{"$f":"W129+AG129+AR129","v":0}]
[null,null,null,null,null,null,null,null,null,null,null,null,null,null,null,null,0,null,null,null,null,0,0,null,null,null,0,null,null,null,null,0,0,null,null,null,null,null,null,null,null,null,null,0,null,null,0,0]
[null,null,null,null,null,null,null,null,null,null,null,null,null,null,null,null,0,null,null,null,null,0,0,null,null,null,0,null,null,null,null,0,0,null,null,null,null,null,null,null,null,null,null,0,null,null,0,0]
[null,null,null,null,null,null,null,null,null,null,null,null,null,null,null,null,0,null,null,null,null,0,0,null,null,null,0,null,null,null,null,0,0,null,null,null,null,null,null,null,null,null,null,0,null,null,0,0]
[null,null,null,null,null,null,null,null,null,null,null,null,null,null,null,null,0,null,null,null,null,{"$f":"SUM(R133:U133)","v":0},0,null,null,null,0,null,null,null,null,0,0,null,null,null,null,null,null,null,null,null,null,0,null,null,{"$f":"SUM(AS133:AT133)","v":0},0]
[null,null,null,null,null,null,null,null,null,null,null,null,null,null,null,null,{"$f":"SUM(E134:P134)","v":0},null,null,null,null,{"$f":"SUM(R134:U134)","v":0},{"$f":"Q134+V134","v":0},null,null,null,{"$f":"SUM(X134:Z134)","v":0},null,null,null,null,{"$f":"SUM(AB134:AE134)","v":0},{"$f":"AA134+AF134","v":0},null,null,null,null,null,null,null,null,null,null,{"$f":"SUM(AH134:AQ134)","v":0},null,null,{"$f":"SUM(AS134:AT134)","v":0},{"$f":"W134+AG134+AR134","v":0}]
[null,null,null,null,null,null,null,null,null,null,null,null,null,null,null,null,0,null,null,null,null,0,0,null,null,null,0,null,null,null,null,0,0,null,null,null,null,null,null,null,null,null,null,0,null,null,0,0]
[null,null,null,null,null,null,null,null,null,null,null,null,null,null,null,null,0,null,null,null,null,0,0,null,null,null,0,null,null,null,null,0,0,null,null,null,null,null,null,null,null,null,null,0,null,null,0,0]
[null,null,null,null,null,null,null,null,null,null,null,null,null,null,null,null,0,null,null,null,null,0,0,null,null,null,0,null,null,null,null,0,0,null,null,null,null,null,null,null,null,null,null,0,null,null,0,0]
[null,null,null,null,null,null,null,null,null,null,null,null,null,null,null,null,0,null,null,null,null,{"$f":"SUM(R138:U138)","v":0},0,null,null,null,0,null,null,null,null,0,0,null,null,null,null,null,null,null,null,null,null,0,null,null,{"$f":"SUM(AS138:AT138)","v":0},0]
[null,null,null,null,null,null,null,null,null,null,null,null,null,null,null,null,{"$f":"SUM(E139:P139)","v":0},null,null,null,null,{"$f":"SUM(R139:U139)","v":0},{"$f":"Q139+V139","v":0},null,null,null,{"$f":"SUM(X139:Z139)","v":0},null,null,null,null,{"$f":"SUM(AB139:AE139)","v":0},0,null,null,null,null,null,null,null,null,null,null,{"$f":"SUM(AH139:AQ139)","v":0},null,null,{"$f":"SUM(AS139:AT139)","v":0},{"$f":"W139+AG139+AR139","v":0}]
[null,null,null,null,null,null,null,null,null,null,null,null,null,null,null,null,0,null,null,null,null,0,0,null,null,null,0,null,null,null,null,0,0,null,null,null,null,null,null,null,null,null,null,0,null,null,0,0]
[null,null,null,null,null,null,null,null,null,null,null,null,null,null,null,null,0,null,null,null,null,0,0,null,null,null,0,null,null,null,null,0,0,null,null,null,null,null,null,null,null,null,null,0,null,null,0,0]
[null,null,null,null,null,null,null,null,null,null,null,null,null,null,null,null,0,null,null,null,null,0,0,null,null,null,0,null,null,null,null,0,0,null,null,null,null,null,null,null,null,null,null,0,null,null,0,0]
[null,null,null,null,null,null,null,null,null,null,null,null,null,null,null,null,0,null,null,null,null,{"$f":"SUM(R143:U143)","v":0},0,null,null,null,0,null,null,null,null,0,0,null,null,null,null,null,null,null,null,null,null,0,null,null,{"$f":"SUM(AS143:AT143)","v":0},0]
[null,null,null,null,null,null,null,null,null,null,null,null,null,null,null,null,{"$f":"SUM(E144:P144)","v":0},null,null,null,null,{"$f":"SUM(R144:U144)","v":0},{"$f":"Q144+V144","v":0},null,null,null,{"$f":"SUM(X144:Z144)","v":0},null,null,null,null,{"$f":"SUM(AB144:AE144)","v":0},{"$f":"AA144+AF144","v":0},null,null,null,null,null,null,null,null,null,null,{"$f":"SUM(AH144:AQ144)","v":0},null,null,{"$f":"SUM(AS144:AT144)","v":0},{"$f":"W144+AG144+AR144","v":0}]
[null,null,null,null,null,null,null,null,null,null,null,null,null,null,null,null,0,null,null,null,null,0,0,null,null,null,0,null,null,null,null,0,0,null,null,null,null,null,null,null,null,null,null,0,null,null,0,0]
[null,null,null,null,null,null,null,null,null,null,null,null,null,null,null,null,0,null,null,null,null,0,0,null,null,null,0,null,null,null,null,0,0,null,null,null,null,null,null,null,null,null,null,0,null,null,0,0]
[null,null,null,null,null,null,null,null,null,null,null,null,null,null,null,null,0,null,null,null,null,0,0,null,null,null,0,null,null,null,null,0,0,null,null,null,null,null,null,null,null,null,null,0,null,null,0,0]
[null,null,null,null,null,null,null,null,null,null,null,null,null,null,null,null,0,null,null,null,null,{"$f":"SUM(R148:U148)","v":0},0,null,null,null,0,null,null,null,null,0,0,null,null,null,null,null,null,null,null,null,null,0,null,null,{"$f":"SUM(AS148:AT148)","v":0},0]
["TOTAL EMPLEADOS PÚBLICOS",null,{"$f":"C127+C107+C58+C50+C31+C17","v":0},{"$f":"D17+D31+D50+D58+D107+D127","v":0},0,0,0,0,0,0,0,0,0,0,0,null,{"$f":"SUM(E149:P149)","v":0},{"$f":"R17+R31+R50+R58+R107+R127","v":0},{"$f":"S17+S31+S50+S58+S107+S127","v":0},{"$f":"T17+T31+T50+T58+T107+T127","v":0},{"$f":"U17+U31+U50+U58+U107+U127","v":0},{"$f":"SUM(R149:U149)","v":0},{"$f":"Q149+V149","v":0},{"$f":"X17+X31+X50+X58+X107+X127","v":0},{"$f":"Y17+Y31+Y50+Y58+Y107+Y127","v":0},{"$f":"Z17+Z31+Z50+Z58+Z107+Z127","v":0},{"$f":"SUM(X149:Z149)","v":0},{"$f":"AB17+AB31+AB50+AB58+AB107+AB127","v":0},{"$f":"AC17+AC31+AC50+AC58+AC107+AC127","v":0},{"$f":"AD17+AD31+AD50+AD58+AD107+AD127","v":0},{"$f":"AE17+AE31+AE50+AE58+AE107+AE127","v":0},{"$f":"SUM(AB149:AE149)","v":0},{"$f":"AA149+AF149","v":0},{"$f":"AH17+AH31+AH50+AH58+AH107+AH127","v":0},0,0,0,0,0,0,0,0,0,{"$f":"SUM(AH149:AQ149)","v":0},{"$f":"AS17+AS31+AS50+AS58+AS107+AS127","v":0},{"$f":"AT17+AT31+AT50+AT58+AT107+AT127","v":0},{"$f":"SUM(AS149:AT149)","v":0},{"$f":"W149+AG149+AR149","v":0}]
["TRABAJADORES OFICIALES"]
[null,null,null,null,null,null,null,null,null,null,null,null,null,null,null,null,{"$f":"SUM(E151:P151)","v":0},null,null,null,null,{"$f":"SUM(R151:U151)","v":0},{"$f":"Q151+V151","v":0},null,null,null,{"$f":"SUM(X151:Z151)","v":0},null,null,null,null,{"$f":"SUM(AB151:AE151)","v":0},{"$f":"AA151+AF151","v":0},null,null,null,null,null,null,null,null,null,null,{"$f":"SUM(AH151:AQ151)","v":0},null,null,{"$f":"SUM(AS151:AT151)","v":0},{"$f":"W151+AG151+AR151","v":0}]
[null,null,null,null,null,null,null,null,null,null,null,null,null,null,null,null,{"$f":"SUM(E152:P152)","v":0},null,null,null,null,{"$f":"SUM(R152:U152)","v":0},{"$f":"Q152+V152","v":0},null,null,null,{"$f":"SUM(X152:Z152)","v":0},null,null,null,null,{"$f":"SUM(AB152:AE152)","v":0},{"$f":"AA152+AF152","v":0},null,null,null,null,null,null,null,null,null,null,{"$f":"SUM(AH152:AQ152)","v":0},null,null,{"$f":"SUM(AS152:AT152)","v":0},{"$f":"W152+AG152+AR152","v":0}]
[null,null,null,null,null,null,null,null,null,null,null,null,null,null,null,null,0,null,null,null,null,0,0,null,null,null,0,null,null,null,null,0,0,null,null,null,null,null,null,null,null,null,null,0,null,null,0,0]
[null,null,null,null,null,null,null,null,null,null,null,null,null,null,null,null,0,null,null,null,null,0,0,null,null,null,0,null,null,null,null,0,0,null,null,null,null,null,null,null,null,null,null,0,null,null,0,0]
[null,null,null,null,null,null,null,null,null,null,null,null,null,null,null,null,0,null,null,null,null,0,0,null,null,null,0,null,null,null,null,0,0,null,null,null,null,null,null,null,null,null,null,0,null,null,0,0]
[null,null,null,null,null,null,null,null,null,null,null,null,null,null,null,null,0,null,null,null,null,0,0,null,null,null,0,null,null,null,null,0,0,null,null,null,null,null,null,null,null,null,null,0,null,null,0,0]
[null,null,null,null,null,null,null,null,null,null,null,null,null,null,null,null,{"$f":"SUM(E157:P157)","v":0},null,null,null,null,0,{"$f":"Q157+V157","v":0},null,null,null,{"$f":"SUM(X157:Z157)","v":0},null,null,null,null,{"$f":"SUM(AB157:AE157)","v":0},0,null,null,null,null,null,null,null,null,null,null,{"$f":"SUM(AH157:AQ157)","v":0},null,null,{"$f":"SUM(AS157:AT157)","v":0},0]
[null,null,null,null,null,null,null,null,null,null,null,null,null,null,null,null,0,null,null,null,null,0,0,null,null,null,0,null,null,null,null,0,0,null,null,null,null,null,null,null,null,null,null,0,null,null,0,0]
[null,null,null,null,null,null,null,null,null,null,null,null,null,null,null,null,0,null,null,null,null,0,0,null,null,null,0,null,null,null,null,0,0,null,null,null,null,null,null,null,null,null,null,0,null,null,0,0]
[null,null,null,null,null,null,null,null,null,null,null,null,null,null,null,null,0,null,null,null,null,0,0,null,null,null,0,null,null,null,null,0,0,null,null,null,null,null,null,null,null,null,null,0,null,null,0,0]
[null,null,null,null,null,null,null,null,null,null,null,null,null,null,null,null,0,null,null,null,null,0,0,null,null,null,0,null,null,null,null,0,0,null,null,null,null,null,null,null,null,null,null,0,null,null,0,0]
[null,null,null,null,null,null,null,null,null,null,null,null,null,null,null,null,0,null,null,null,null,0,0,null,null,null,0,null,null,null,null,0,0,null,null,null,null,null,null,null,null,null,null,0,null,null,0,0]
[null,null,null,null,null,null,null,null,null,null,null,null,null,null,null,null,0,null,null,null,null,0,0,null,null,null,0,null,null,null,null,0,0,null,null,null,null,null,null,null,null,null,null,0,null,null,0,0]
[null,null,null,null,null,null,null,null,null,null,null,null,null,null,null,null,0,null,null,null,null,0,0,null,null,null,0,null,null,null,null,0,0,null,null,null,null,null,null,null,null,null,null,0,null,null,0,0]
[null,null,null,null,null,null,null,null,null,null,null,null,null,null,null,null,0,null,null,null,null,0,0,null,null,null,0,null,null,null,null,0,0,null,null,null,null,null,null,null,null,null,null,0,null,null,0,0]
[null,null,null,null,null,null,null,null,null,null,null,null,null,null,null,null,0,null,null,null,null,0,0,null,null,null,0,null,null,null,null,0,0,null,null,null,null,null,null,null,null,null,null,0,null,null,0,0]
[null,null,null,null,null,null,null,null,null,null,null,null,null,null,null,null,0,null,null,null,null,0,0,null,null,null,0,null,null,null,null,0,0,null,null,null,null,null,null,null,null,null,null,0,null,null,0,0]
[null,null,null,null,null,null,null,null,null,null,null,null,null,null,null,null,0,null,null,null,null,0,{"$f":"Q168+V168","v":0},null,null,null,0,null,null,null,null,0,0,null,null,null,null,null,null,null,null,null,null,0,null,null,0,0]
["TOTAL TRABAJADORES OFICIALES",null,{"$f":"SUM(C151:C168)","v":0},{"$f":"SUM(D151:D168)","v":0},{"$f":"SUM(E151:E168)","v":0},{"$f":"SUM(F151:F168)","v":0},0,0,0,0,0,0,0,0,0,null,{"$f":"SUM(Q151:Q168)","v":0},{"$f":"SUM(R151:R168)","v":0},{"$f":"SUM(S151:S168)","v":0},{"$f":"SUM(T151:T168)","v":0},{"$f":"SUM(U151:U168)","v":0},{"$f":"SUM(V151:V168)","v":0},{"$f":"SUM(W151:W168)","v":0},{"$f":"SUM(X151:X168)","v":0},{"$f":"SUM(Y151:Y168)","v":0},{"$f":"SUM(Z151:Z168)","v":0},{"$f":"SUM(AA151:AA168)","v":0},{"$f":"SUM(AB151:AB168)","v":0},{"$f":"SUM(AC151:AC168)","v":0},{"$f":"SUM(AD151:AD168)","v":0},{"$f":"SUM(AE151:AE168)","v":0},{"$f":"SUM(AF151:AF168)","v":0},{"$f":"SUM(AG151:AG168)","v":0},{"$f":"SUM(AH151:AH168)","v":0},{"$f":"SUM(AI151:AI168)","v":0},{"$f":"SUM(AJ151:AJ168)","v":0},{"$f":"SUM(AK151:AK168)","v":0},{"$f":"SUM(AL151:AL168)","v":0},{"$f":"SUM(AM151:AM168)","v":0},{"$f":"SUM(AN151:AN168)","v":0},{"$f":"SUM(AO151:AO168)","v":0},{"$f":"SUM(AP151:AP168)","v":0},{"$f":"SUM(AQ151:AQ168)","v":0},{"$f":"SUM(AR151:AR168)","v":0},{"$f":"SUM(AS151:AS168)","v":0},{"$f":"SUM(AT151:AT168)","v":0},{"$f":"SUM(AU151:AU168)","v":0},{"$f":"W169+AG169+AR169","v":0}]
["TOTAL PLANTA DE PERSONAL",{"$f":"B149+B169","v":0},{"$f":"C149+C169","v":0},{"$f":"D149+D169","v":0},{"$f":"E149+E169","v":0},{"$f":"F149+F169","v":0},0,0,0,0,0,0,0,0,0,null,{"$f":"SUM(E170:O170)","v":0},{"$f":"R149+R169","v":0},{"$f":"S149+S169","v":0},{"$f":"T149+T169","v":0},{"$f":"U149+U169","v":0},{"$f":"SUM(R170:U170)","v":0},{"$f":"Q170+V170","v":0},{"$f":"X149+X169","v":0},{"$f":"Y149+Y169","v":0},{"$f":"Z149+Z169","v":0},{"$f":"SUM(X170:Z170)","v":0},{"$f":"AB149+AB169","v":0},{"$f":"AC149+AC169","v":0},{"$f":"AD149+AD169","v":0},{"$f":"AE149+AE169","v":0},{"$f":"SUM(AB170:AE170)","v":0},{"$f":"AA170+AF170","v":0},{"$f":"AH149+AH169","v":0},{"$f":"AI149+AI169","v":0},{"$f":"AJ149+AJ169","v":0},{"$f":"AK149+AK169","v":0},{"$f":"AL149+AL169","v":0},{"$f":"AM149+AM169","v":0},{"$f":"AN149+AN169","v":0},{"$f":"AO149+AO169","v":0},{"$f":"AP149+AP169","v":0},{"$f":"AQ149+AQ169","v":0},{"$f":"SUM(AH170:AQ170)","v":0},{"$f":"AS149+AS169","v":0},{"$f":"AT149+AT169","v":0},{"$f":"SUM(AS170:AT170)","v":0},{"$f":"W170+AG170+AR170","v":0}]
[]
[]
[]
[]
[]
[]
[]
[]
[]
[]
[]
[]
[]
[]
[]
[]
[]
[]
[]
[]
[]
[]
[]
[]
[]
[]
[]
[]
[null,null,"RESUMEN - ANTEPROYECTO PLANTA DE PERSONAL"]
[]
[null,null,"CUENTA ",null,null,null,"TOTAL",null,null,null,null,null,"TOTAL PLANTA DE PERSONAL"]
[null,null,null,null,null,null,"ELPLEADOS PÚBLICOS",null,null,"TRABAJADORES OFICIALES "]
[]
[null,null,"GASTOS DE PERSONAL ",null,null,null,{"$f":"G206+G212+G218","v":0},null,null,{"$f":"J206+J212+J218","v":0},null,null,{"$f":"M206+M212+M218","v":0}]
[]
[null,null,"         Salario ",null,null,null,{"$f":"G208+G210","v":0},null,null,{"$f":"J208+J210","v":0},null,null,{"$f":"SUM(M208:O211)","v":0}]
[]
[null,null,"                    Factores salariales comunes ",null,null,null,{"$f":"Q149","v":0},null,null,{"$f":"Q169","v":0},null,null,{"$f":"G208+J208","v":0}]
[]
[null,null,"                     Factores salariales especiales ",null,null,null,{"$f":"V149","v":0},null,null,{"$f":"V169","v":0},null,null,{"$f":"G210+J210","v":0}]
[]
[null,null,"         Remuneraciones no constitutivas de factor salarial ",null,null,null,{"$f":"G214+G216","v":0},null,null,{"$f":"J214+J216","v":0},null,null,{"$f":"SUM(M214:O217)","v":0}]
[]
[null,null,"                    Prestaciones sociales según definición legal ",null,null,null,{"$f":"AA149","v":0},null,null,{"$f":"AA169","v":0},null,null,{"$f":"G214+J214","v":0}]
[]
[null,null,"                     Otras prestaciones no constitutivas de factor salarial ",null,null,null,{"$f":"AF149","v":0},null,null,{"$f":"AF169","v":0},null,null,{"$f":"G216+J216","v":0}]
[]
[null,null,"         Contribuciones inherentes a la nómina ",null,null,null,{"$f":"AR149","v":0},null,null,{"$f":"AR169","v":0},null,null,{"$f":"G218+J218","v":0}]
[]
[null,null,"TRANSFERENCIAS CORRIENTES",null,null,null,{"$f":"G222","v":0},null,null,{"$f":"J222","v":0},null,null,{"$f":"M222","v":0}]
[]
[null,null,"         Prestaciones sociales relacionadas con el empleo",null,null,null,{"$f":"G224+G226","v":0},null,null,{"$f":"J224+J226","v":0},null,null,{"$f":"G222+J222","v":0}]
[]
[null,null,"                     Incapacidades",null,null,null,{"$f":"AS149","v":0},null,null,{"$f":"AS169","v":0},null,null,{"$f":"G224+J224","v":0}]
[]
[null,null,"                     Licencias de maternidad y paternidad",null,null,null,{"$f":"AT149","v":0},null,null,{"$f":"AT169","v":0},null,null,{"$f":"G226+J226","v":0}]

{"sheet":"Formulario 2A - Nómina","index":2,"n_rows":66,"n_cols":9,"rows_kept":66,"cut":false,"hidden":false,"merged":[[8,1,8,4],[0,0,0,9],[1,0,1,9],[2,0,2,9],[4,2,4,8],[5,2,5,8],[8,5,8,7],[6,2,6,8],[64,7,64,8],[65,7,65,8],[10,1,12,1],[10,2,12,2],[10,3,12,3],[10,4,10,6],[10,7,12,7],[10,8,12,8],[11,4,12,4],[11,5,11,6]]}
["MINISTERIO DE HACIENDA Y CRÉDITO PÚBLICO "]
["Dirección General del Presupuesto Público Nacional"]
["Formulario 2A Certificación de Nómina"]
[]
[null,"CÓDIGO UEJ",{"$f":"+'Formulario 2- Planta'!B5","v":"130101"}]
[null,"UNIDAD EJECUTORA",{"$f":"+IFERROR(VLOOKUP(C5,DESPLEGABLES!$A$2:$C$229,2,0),\"\")","v":"MINISTERIO DE HACIENDA Y CRÉDITO PÚBLICO - GESTIÓN GENERAL"}]
[null,"SECTOR PRESUPUESTAL",{"$f":"+IFERROR(VLOOKUP(C5,DESPLEGABLES!$A$2:$C$229,3,0),\"\")","v":"HACIENDA"}]
[]
[null,"ANTEPROYECTO COSTO DE NÓMINA - VIGENCIA",null,null,null,{"$f":"+'Formulario 2- Planta'!L9","v":2027}]
[]
[null,"DENOMINACIÓN DE CARGO","Grado","Planta Actual","Nómina Provista",null,null,"Total Cargos Provistos","Cargos Vacantes"]
[null,null,null,null,"Libre Nombramiento","Carrera Administrativa"]
[null,null,null,null,null,"Propiedad","Provisionales"]
[null,null,null,1,2,3,4,"5=2+3+4","6=1-5"]
[null,"Empleados Públicos"]
[null,"NIVEL DIRECTIVO",null,null,{"$f":"+SUM(E17:E21)","v":0},{"$f":"+SUM(F17:F21)","v":0},0,{"$f":"F16+E16+G16","v":0},{"$f":"D16-H16","v":0}]
[null,null,null,null,null,null,null,{"$f":"F17+E17+G17","v":0},{"$f":"D17-H17","v":0}]
[null,null,null,null,null,null,null,{"$f":"F18+E18+G18","v":0},0]
[null,null,null,null,null,null,null,0,0]
[null,null,null,null,null,null,null,0,0]
[null,null,null,null,null,null,null,0,0]
[null,"NIVEL ASESOR",null,null,{"$f":"+SUM(E23:E27)","v":0},{"$f":"+SUM(F23:F27)","v":0},{"$f":"+SUM(G23:G27)","v":0},0,0]
[null,null,null,null,null,null,null,0,0]
[null,null,null,null,null,null,null,0,0]
[null,null,null,null,null,null,null,0,0]
[null,null,null,null,null,null,null,0,0]
[null,null,null,null,null,null,null,0,0]
[null,"NIVEL EJECUTIVO",null,null,{"$f":"+SUM(E29:E33)","v":0},{"$f":"+SUM(F29:F33)","v":0},0,0,0]
[null,null,null,null,null,null,null,0,0]
[null,null,null,null,null,null,null,0,0]
[null,null,null,null,null,null,null,0,0]
[null,null,null,null,null,null,null,0,0]
[null,null,null,null,null,null,null,0,0]
[null,"NIVEL PROFESIONAL",null,null,{"$f":"+SUM(E35:E39)","v":0},{"$f":"+SUM(F35:F39)","v":0},{"$f":"+SUM(G35:G39)","v":0},0,0]
[null,null,null,null,null,null,null,0,0]
[null,null,null,null,null,null,null,0,0]
[null,null,null,null,null,null,null,0,0]
[null,null,null,null,null,null,null,0,0]
[null,null,null,null,null,null,null,0,0]
[null,"NIVEL TÉCNICO",null,null,{"$f":"+SUM(E41:E45)","v":0},{"$f":"+SUM(F41:F45)","v":0},{"$f":"+SUM(G41:G45)","v":0},0,0]
[null,null,null,null,null,null,null,0,0]
[null,null,null,null,null,null,null,0,0]
[null,null,null,null,null,null,null,0,0]
[null,null,null,null,null,null,null,0,0]
[null,null,null,null,null,null,null,0,0]
[null,"NIVEL ASISTENCIAL",null,null,{"$f":"+SUM(E47:E51)","v":0},{"$f":"+SUM(F47:F51)","v":0},{"$f":"+SUM(G47:G51)","v":0},0,0]
[null,null,null,null,null,null,null,0,0]
[null,null,null,null,null,null,null,0,0]
[null,null,null,null,null,null,null,0,0]
[null,null,null,null,null,null,null,0,0]
[null,null,null,null,null,null,null,0,0]
[null,"Total Empleados Públicos",null,{"$f":"+D16+D22+D28+D34+D40+D46","v":0},{"$f":"+E16+E22+E28+E34+E40+E46","v":0},{"$f":"+F16+F22+F28+F34+F40+F46","v":0},{"$f":"+G16+G22+G28+G34+G40+G46","v":0},0,0]
[null,"Trabajadores Oficiales"]
[null,null,null,null,null,null,null,0,0]
[null,null,null,null,null,null,null,0,0]
[null,null,null,null,null,null,null,0,0]
[null,null,null,null,null,null,null,0,0]
[null,null,null,null,null,null,null,0,0]
[null,"Total  Trabajadores Oficiales",null,{"$f":"SUM(D54:D58)","v":0},{"$f":"SUM(E54:E58)","v":0},{"$f":"SUM(F54:F58)","v":0},{"$f":"SUM(G54:G58)","v":0},0,0]
[null,"Total Personal",null,{"$f":"D52+D59","v":0},{"$f":"E52+E59","v":0},{"$f":"F52+F59","v":0},{"$f":"G52+G59","v":0},0,0]
[]
[]
[]
[]
[]
[null,"Ciudad y fecha ",null,null,null,null,null,"Jefe de Personal"]

{"sheet":"Formulario 2B- Programático","index":3,"n_rows":203,"n_cols":26,"rows_kept":203,"cut":false,"hidden":false,"merged":[[201,1,201,12],[202,1,202,12],[197,1,197,12],[198,1,198,12],[199,1,199,12],[9,10,9,17],[200,1,200,12],[9,18,10,19],[168,0,168,9],[169,0,169,9],[195,1,195,12],[196,1,196,12],[5,1,5,9],[0,0,0,19],[1,0,1,19],[2,0,2,19],[4,1,4,9],[6,1,6,9],[9,0,10,0],[9,1,10,1],[9,2,10,2],[9,3,10,3],[9,5,10,5],[9,7,10,7],[9,9,10,9],[7,1,7,9]]}
["MINISTERIO DE HACIENDA Y CRÉDITO PÚBLICO "]
["Dirección General del Presupuesto Público Nacional"]
["Formulario 2B. Anteproyecto Planta de personal - Clasificador Programatico"]
[]
["CÓDIGO UEJ",{"$f":"+'Formulario 2- Planta'!B5","v":"130101"}]
["UNIDAD EJECUTORA",{"$f":"+IFERROR(VLOOKUP(B5,DESPLEGABLES!$A$2:$C$229,2,0),\"\")","v":"MINISTERIO DE HACIENDA Y CRÉDITO PÚBLICO - GESTIÓN GENERAL"}]
["SECTOR PRESUPUESTAL",{"$f":"+IFERROR(VLOOKUP(B5,DESPLEGABLES!$A$2:$C$229,3,0),\"\")","v":"HACIENDA"}]
["VIGENCIA",{"$f":"+'Formulario 2- Planta'!L9","v":2027}]
[]
["DENOMINACIÓN DE CARGOS","Grado","No. Cargos","Total Salario",null,"Total Remuneraciones no constitutivas de Factor Salarial",null,"Total Contribuciones Inherentes a la Nómina",null,"Total  \nGastos de personal","Dependencias con fines programaticos",null,null,null,null,null,null,null,"CHECK"]
[null,null,null,null,"Porc. Unit. Salarios",null,"Porc. Unit. Remuneraciones",null,"Porc. Unit. Contribuciones",null,"Alta gerencia","Secretaria general y dependencias de apoyo","Oficinas asesoras","Dependencia misional 1","Dependencia misional 2","Dependencia misional 3","Dependencia misional 4","Dependencia msional 5"]
["EMPLEADOS PÚBLICOS"]
["NIVEL DIRECTIVO",{"$f":"+'Formulario 2- Planta'!B17","v":0},{"$f":"SUM(C14:C26)","v":0},{"$f":"+'Formulario 2- Planta'!W17","v":0},{"$f":"IFERROR((D13/C13)/($D$166),0)","v":0},{"$f":"+'Formulario 2- Planta'!AG17","v":0},{"$f":"IFERROR((F13/C13)/$F$166,0)","v":0},{"$f":"SUM(H14:H26)","v":0},{"$f":"IFERROR((H13/C13)/$H$166,0)","v":0},{"$f":"SUM(J14:J26)","v":0},{"$f":"+SUM(K14:K26)","v":0},0,0,0,0,0,0,0,{"$f":"+SUM(K13:R13)","v":0},{"$f":"+S13=C13","v":true}]
[{"$f":"+'Formulario 2- Planta'!A18","v":0},{"$f":"+'Formulario 2- Planta'!B18","v":0},{"$f":"+'Formulario 2- Planta'!C18","v":0},{"$f":"+'Formulario 2- Planta'!W18","v":0},0,{"$f":"+'Formulario 2- Planta'!AG18","v":0},0,{"$f":"+'Formulario 2- Planta'!AR18","v":0},0,{"$f":"D14+F14+H14","v":0},null,null,null,null,null,null,null,null,{"$f":"+SUM(K14:R14)","v":0},{"$f":"+S14=C14","v":true},null,null,null,{"$f":"$D$166","v":0},{"$f":"$F$166","v":0},{"$f":"$H$166","v":0}]
[{"$f":"+'Formulario 2- Planta'!A19","v":0},{"$f":"+'Formulario 2- Planta'!B19","v":0},{"$f":"+'Formulario 2- Planta'!C19","v":0},{"$f":"+'Formulario 2- Planta'!W19","v":0},0,{"$f":"+'Formulario 2- Planta'!AG19","v":0},0,{"$f":"+'Formulario 2- Planta'!AR19","v":0},0,{"$f":"D15+F15+H15","v":0},null,null,null,null,null,null,null,null,{"$f":"+SUM(K15:R15)","v":0},{"$f":"+S15=C15","v":true},null,null,null,0,0,0]
[{"$f":"+'Formulario 2- Planta'!A20","v":0},{"$f":"+'Formulario 2- Planta'!B20","v":0},{"$f":"+'Formulario 2- Planta'!C20","v":0},{"$f":"+'Formulario 2- Planta'!W20","v":0},0,{"$f":"+'Formulario 2- Planta'!AG20","v":0},0,{"$f":"+'Formulario 2- Planta'!AR20","v":0},0,0,null,null,null,null,null,null,null,null,{"$f":"+SUM(K16:R16)","v":0},true,null,null,null,0,0,0]
[{"$f":"+'Formulario 2- Planta'!A21","v":0},{"$f":"+'Formulario 2- Planta'!B21","v":0},{"$f":"+'Formulario 2- Planta'!C21","v":0},{"$f":"+'Formulario 2- Planta'!W21","v":0},0,{"$f":"+'Formulario 2- Planta'!AG21","v":0},0,{"$f":"+'Formulario 2- Planta'!AR21","v":0},0,{"$f":"D17+F17+H17","v":0},null,null,null,null,null,null,null,null,{"$f":"+SUM(K17:R17)","v":0},{"$f":"+S17=C17","v":true},null,null,null,0,0,0]
[{"$f":"+'Formulario 2- Planta'!A22","v":0},{"$f":"+'Formulario 2- Planta'!B22","v":0},{"$f":"+'Formulario 2- Planta'!C22","v":0},{"$f":"+'Formulario 2- Planta'!W22","v":0},0,{"$f":"+'Formulario 2- Planta'!AG22","v":0},0,{"$f":"+'Formulario 2- Planta'!AR22","v":0},0,0,null,null,null,null,null,null,null,null,0,true,null,null,null,0,0,0]
[{"$f":"+'Formulario 2- Planta'!A23","v":0},{"$f":"+'Formulario 2- Planta'!B23","v":0},{"$f":"+'Formulario 2- Planta'!C23","v":0},{"$f":"+'Formulario 2- Planta'!W23","v":0},0,{"$f":"+'Formulario 2- Planta'!AG23","v":0},0,{"$f":"+'Formulario 2- Planta'!AR23","v":0},0,0,null,null,null,null,null,null,null,null,0,true,null,null,null,0,0,0]
[{"$f":"+'Formulario 2- Planta'!A24","v":0},{"$f":"+'Formulario 2- Planta'!B24","v":0},{"$f":"+'Formulario 2- Planta'!C24","v":0},{"$f":"+'Formulario 2- Planta'!W24","v":0},0,{"$f":"+'Formulario 2- Planta'!AG24","v":0},0,{"$f":"+'Formulario 2- Planta'!AR24","v":0},0,0,null,null,null,null,null,null,null,null,0,true,null,null,null,0,0,0]
[{"$f":"+'Formulario 2- Planta'!A25","v":0},{"$f":"+'Formulario 2- Planta'!B25","v":0},{"$f":"+'Formulario 2- Planta'!C25","v":0},{"$f":"+'Formulario 2- Planta'!W25","v":0},0,{"$f":"+'Formulario 2- Planta'!AG25","v":0},0,{"$f":"+'Formulario 2- Planta'!AR25","v":0},0,0,null,null,null,null,null,null,null,null,0,true,null,null,null,0,0,0]
[{"$f":"+'Formulario 2- Planta'!A26","v":0},{"$f":"+'Formulario 2- Planta'!B26","v":0},{"$f":"+'Formulario 2- Planta'!C26","v":0},{"$f":"+'Formulario 2- Planta'!W26","v":0},0,{"$f":"+'Formulario 2- Planta'!AG26","v":0},0,{"$f":"+'Formulario 2- Planta'!AR26","v":0},0,0,null,null,null,null,null,null,null,null,0,true,null,null,null,0,0,0]
[{"$f":"+'Formulario 2- Planta'!A27","v":0},{"$f":"+'Formulario 2- Planta'!B27","v":0},{"$f":"+'Formulario 2- Planta'!C27","v":0},{"$f":"+'Formulario 2- Planta'!W27","v":0},0,{"$f":"+'Formulario 2- Planta'!AG27","v":0},0,{"$f":"+'Formulario 2- Planta'!AR27","v":0},0,0,null,null,null,null,null,null,null,null,0,true,null,null,null,0,0,0]
[{"$f":"+'Formulario 2- Planta'!A28","v":0},{"$f":"+'Formulario 2- Planta'!B28","v":0},{"$f":"+'Formulario 2- Planta'!C28","v":0},{"$f":"+'Formulario 2- Planta'!W28","v":0},0,{"$f":"+'Formulario 2- Planta'!AG28","v":0},0,{"$f":"+'Formulario 2- Planta'!AR28","v":0},0,0,null,null,null,null,null,null,null,null,0,true,null,null,null,0,0,0]
[{"$f":"+'Formulario 2- Planta'!A29","v":0},{"$f":"+'Formulario 2- Planta'!B29","v":0},{"$f":"+'Formulario 2- Planta'!C29","v":0},{"$f":"+'Formulario 2- Planta'!W29","v":0},0,{"$f":"+'Formulario 2- Planta'!AG29","v":0},0,{"$f":"+'Formulario 2- Planta'!AR29","v":0},0,0,null,null,null,null,null,null,null,null,0,true,null,null,null,0,0,0]
[{"$f":"+'Formulario 2- Planta'!A30","v":0},{"$f":"+'Formulario 2- Planta'!B30","v":0},{"$f":"+'Formulario 2- Planta'!C30","v":0},{"$f":"+'Formulario 2- Planta'!W30","v":0},0,{"$f":"+'Formulario 2- Planta'!AG30","v":0},0,{"$f":"+'Formulario 2- Planta'!AR30","v":0},0,0,null,null,null,null,null,null,null,null,0,true,null,null,null,0,0,0]
["NIVEL ASESOR",{"$f":"+'Formulario 2- Planta'!B31","v":0},{"$f":"SUM(C28:C45)","v":0},{"$f":"+'Formulario 2- Planta'!W31","v":0},0,{"$f":"+'Formulario 2- Planta'!AG31","v":0},0,{"$f":"+'Formulario 2- Planta'!AR31","v":0},0,{"$f":"D27+F27+H27","v":0},{"$f":"+SUM(K28:K45)","v":0},0,0,0,0,0,0,0,{"$f":"+SUM(K27:R27)","v":0},true]
[{"$f":"+'Formulario 2- Planta'!A32","v":0},{"$f":"+'Formulario 2- Planta'!B32","v":0},{"$f":"+'Formulario 2- Planta'!C32","v":0},{"$f":"+'Formulario 2- Planta'!W32","v":0},0,{"$f":"+'Formulario 2- Planta'!AG32","v":0},0,{"$f":"+'Formulario 2- Planta'!AR32","v":0},0,0,null,null,null,null,null,null,null,null,0,true,null,null,null,{"$f":"$D$166","v":0},{"$f":"$F$166","v":0},{"$f":"$H$166","v":0}]
[{"$f":"+'Formulario 2- Planta'!A33","v":0},{"$f":"+'Formulario 2- Planta'!B33","v":0},{"$f":"+'Formulario 2- Planta'!C33","v":0},{"$f":"+'Formulario 2- Planta'!W33","v":0},0,{"$f":"+'Formulario 2- Planta'!AG33","v":0},0,{"$f":"+'Formulario 2- Planta'!AR33","v":0},0,0,null,null,null,null,null,null,null,null,{"$f":"+SUM(K29:R29)","v":0},{"$f":"+S29=C29","v":true},null,null,null,0,0,0]
[{"$f":"+'Formulario 2- Planta'!A34","v":0},{"$f":"+'Formulario 2- Planta'!B34","v":0},{"$f":"+'Formulario 2- Planta'!C34","v":0},{"$f":"+'Formulario 2- Planta'!W34","v":0},0,{"$f":"+'Formulario 2- Planta'!AG34","v":0},0,{"$f":"+'Formulario 2- Planta'!AR34","v":0},0,0,null,null,null,null,null,null,null,null,0,true,null,null,null,0,0,0]
[{"$f":"+'Formulario 2- Planta'!A35","v":0},{"$f":"+'Formulario 2- Planta'!B35","v":0},{"$f":"+'Formulario 2- Planta'!C35","v":0},{"$f":"+'Formulario 2- Planta'!W35","v":0},0,{"$f":"+'Formulario 2- Planta'!AG35","v":0},0,{"$f":"+'Formulario 2- Planta'!AR35","v":0},0,0,null,null,null,null,null,null,null,null,0,true,null,null,null,0,0,0]
[{"$f":"+'Formulario 2- Planta'!A36","v":0},{"$f":"+'Formulario 2- Planta'!B36","v":0},{"$f":"+'Formulario 2- Planta'!C36","v":0},{"$f":"+'Formulario 2- Planta'!W36","v":0},0,{"$f":"+'Formulario 2- Planta'!AG36","v":0},0,{"$f":"+'Formulario 2- Planta'!AR36","v":0},0,0,null,null,null,null,null,null,null,null,0,true,null,null,null,0,0,0]
[{"$f":"+'Formulario 2- Planta'!A37","v":0},{"$f":"+'Formulario 2- Planta'!B37","v":0},{"$f":"+'Formulario 2- Planta'!C37","v":0},{"$f":"+'Formulario 2- Planta'!W37","v":0},0,{"$f":"+'Formulario 2- Planta'!AG37","v":0},0,{"$f":"+'Formulario 2- Planta'!AR37","v":0},0,0,null,null,null,null,null,null,null,null,0,true,null,null,null,0,0,0]
[{"$f":"+'Formulario 2- Planta'!A38","v":0},{"$f":"+'Formulario 2- Planta'!B38","v":0},{"$f":"+'Formulario 2- Planta'!C38","v":0},{"$f":"+'Formulario 2- Planta'!W38","v":0},0,{"$f":"+'Formulario 2- Planta'!AG38","v":0},0,{"$f":"+'Formulario 2- Planta'!AR38","v":0},0,0,null,null,null,null,null,null,null,null,0,true,null,null,null,0,0,0]
[{"$f":"+'Formulario 2- Planta'!A39","v":0},{"$f":"+'Formulario 2- Planta'!B39","v":0},{"$f":"+'Formulario 2- Planta'!C39","v":0},{"$f":"+'Formulario 2- Planta'!W39","v":0},0,{"$f":"+'Formulario 2- Planta'!AG39","v":0},0,{"$f":"+'Formulario 2- Planta'!AR39","v":0},0,0,null,null,null,null,null,null,null,null,0,true,null,null,null,0,0,0]
[{"$f":"+'Formulario 2- Planta'!A40","v":0},{"$f":"+'Formulario 2- Planta'!B40","v":0},{"$f":"+'Formulario 2- Planta'!C40","v":0},{"$f":"+'Formulario 2- Planta'!W40","v":0},0,{"$f":"+'Formulario 2- Planta'!AG40","v":0},0,{"$f":"+'Formulario 2- Planta'!AR40","v":0},0,0,null,null,null,null,null,null,null,null,0,true,null,null,null,0,0,0]
[{"$f":"+'Formulario 2- Planta'!A41","v":0},{"$f":"+'Formulario 2- Planta'!B41","v":0},{"$f":"+'Formulario 2- Planta'!C41","v":0},{"$f":"+'Formulario 2- Planta'!W41","v":0},0,{"$f":"+'Formulario 2- Planta'!AG41","v":0},0,{"$f":"+'Formulario 2- Planta'!AR41","v":0},0,0,null,null,null,null,null,null,null,null,0,true,null,null,null,0,0,0]
[{"$f":"+'Formulario 2- Planta'!A42","v":0},{"$f":"+'Formulario 2- Planta'!B42","v":0},{"$f":"+'Formulario 2- Planta'!C42","v":0},{"$f":"+'Formulario 2- Planta'!W42","v":0},0,{"$f":"+'Formulario 2- Planta'!AG42","v":0},0,{"$f":"+'Formulario 2- Planta'!AR42","v":0},0,0,null,null,null,null,null,null,null,null,0,true,null,null,null,0,0,0]
[{"$f":"+'Formulario 2- Planta'!A43","v":0},{"$f":"+'Formulario 2- Planta'!B43","v":0},{"$f":"+'Formulario 2- Planta'!C43","v":0},{"$f":"+'Formulario 2- Planta'!W43","v":0},0,{"$f":"+'Formulario 2- Planta'!AG43","v":0},0,{"$f":"+'Formulario 2- Planta'!AR43","v":0},0,0,null,null,null,null,null,null,null,null,0,true,null,null,null,0,0,0]
[{"$f":"+'Formulario 2- Planta'!A44","v":0},{"$f":"+'Formulario 2- Planta'!B44","v":0},{"$f":"+'Formulario 2- Planta'!C44","v":0},{"$f":"+'Formulario 2- Planta'!W44","v":0},0,{"$f":"+'Formulario 2- Planta'!AG44","v":0},0,{"$f":"+'Formulario 2- Planta'!AR44","v":0},0,0,null,null,null,null,null,null,null,null,0,true,null,null,null,0,0,0]
[{"$f":"+'Formulario 2- Planta'!A45","v":0},{"$f":"+'Formulario 2- Planta'!B45","v":0},{"$f":"+'Formulario 2- Planta'!C45","v":0},{"$f":"+'Formulario 2- Planta'!W45","v":0},0,{"$f":"+'Formulario 2- Planta'!AG45","v":0},0,{"$f":"+'Formulario 2- Planta'!AR45","v":0},0,0,null,null,null,null,null,null,null,null,0,true,null,null,null,0,0,0]
[{"$f":"+'Formulario 2- Planta'!A46","v":0},{"$f":"+'Formulario 2- Planta'!B46","v":0},{"$f":"+'Formulario 2- Planta'!C46","v":0},{"$f":"+'Formulario 2- Planta'!W46","v":0},0,{"$f":"+'Formulario 2- Planta'!AG46","v":0},0,{"$f":"+'Formulario 2- Planta'!AR46","v":0},0,0,null,null,null,null,null,null,null,null,0,true,null,null,null,0,0,0]
[{"$f":"+'Formulario 2- Planta'!A47","v":0},{"$f":"+'Formulario 2- Planta'!B47","v":0},{"$f":"+'Formulario 2- Planta'!C47","v":0},{"$f":"+'Formulario 2- Planta'!W47","v":0},0,{"$f":"+'Formulario 2- Planta'!AG47","v":0},0,{"$f":"+'Formulario 2- Planta'!AR47","v":0},0,0,null,null,null,null,null,null,null,null,0,true,null,null,null,0,0,0]
[{"$f":"+'Formulario 2- Planta'!A48","v":0},{"$f":"+'Formulario 2- Planta'!B48","v":0},{"$f":"+'Formulario 2- Planta'!C48","v":0},{"$f":"+'Formulario 2- Planta'!W48","v":0},0,{"$f":"+'Formulario 2- Planta'!AG48","v":0},0,{"$f":"+'Formulario 2- Planta'!AR48","v":0},0,0,null,null,null,null,null,null,null,null,0,true,null,null,null,0,0,0]
[{"$f":"+'Formulario 2- Planta'!A49","v":0},{"$f":"+'Formulario 2- Planta'!B49","v":0},{"$f":"+'Formulario 2- Planta'!C49","v":0},{"$f":"+'Formulario 2- Planta'!W49","v":0},{"$f":"IFERROR((D45/C45)/($D$166),0)","v":0},{"$f":"+'Formulario 2- Planta'!AG49","v":0},{"$f":"IFERROR((F45/C45)/$F$166,0)","v":0},{"$f":"+'Formulario 2- Planta'!AR49","v":0},{"$f":"IFERROR((H45/C45)/$H$166,0)","v":0},0,null,null,null,null,null,null,null,null,0,true,null,null,null,0,0,0]
["NIVEL EJECUTIVO",{"$f":"+'Formulario 2- Planta'!B50","v":0},{"$f":"SUM(C47:C53)","v":0},{"$f":"+'Formulario 2- Planta'!W50","v":0},0,{"$f":"+'Formulario 2- Planta'!AG50","v":0},0,{"$f":"+'Formulario 2- Planta'!AR50","v":0},0,{"$f":"D46+F46+H46","v":0},{"$f":"+SUM(K47:K53)","v":0},{"$f":"+SUM(L47:L53)","v":0},{"$f":"+SUM(M47:M53)","v":0},{"$f":"+SUM(N47:N53)","v":0},{"$f":"+SUM(O47:O53)","v":0},{"$f":"+SUM(P47:P53)","v":0},{"$f":"+SUM(Q47:Q53)","v":0},{"$f":"+SUM(R47:R53)","v":0},0,true]
[{"$f":"+'Formulario 2- Planta'!A51","v":0},{"$f":"+'Formulario 2- Planta'!B51","v":0},{"$f":"+'Formulario 2- Planta'!C51","v":0},{"$f":"+'Formulario 2- Planta'!W51","v":0},0,{"$f":"+'Formulario 2- Planta'!AG51","v":0},0,{"$f":"+'Formulario 2- Planta'!AR51","v":0},0,0,null,null,null,null,null,null,null,null,{"$f":"+SUM(K47:R47)","v":0},true,null,null,null,{"$f":"$D$166","v":0},{"$f":"$F$166","v":0},{"$f":"$H$166","v":0}]
[{"$f":"+'Formulario 2- Planta'!A52","v":0},{"$f":"+'Formulario 2- Planta'!B52","v":0},{"$f":"+'Formulario 2- Planta'!C52","v":0},{"$f":"+'Formulario 2- Planta'!W52","v":0},0,{"$f":"+'Formulario 2- Planta'!AG52","v":0},0,{"$f":"+'Formulario 2- Planta'!AR52","v":0},0,0,null,null,null,null,null,null,null,null,0,true,null,null,null,0,0,0]
[{"$f":"+'Formulario 2- Planta'!A53","v":0},{"$f":"+'Formulario 2- Planta'!B53","v":0},{"$f":"+'Formulario 2- Planta'!C53","v":0},{"$f":"+'Formulario 2- Planta'!W53","v":0},0,{"$f":"+'Formulario 2- Planta'!AG53","v":0},0,{"$f":"+'Formulario 2- Planta'!AR53","v":0},0,0,null,null,null,null,null,null,null,null,0,true,null,null,null,0,0,0]
[{"$f":"+'Formulario 2- Planta'!A54","v":0},{"$f":"+'Formulario 2- Planta'!B54","v":0},{"$f":"+'Formulario 2- Planta'!C54","v":0},{"$f":"+'Formulario 2- Planta'!W54","v":0},0,{"$f":"+'Formulario 2- Planta'!AG54","v":0},0,{"$f":"+'Formulario 2- Planta'!AR54","v":0},0,0,null,null,null,null,null,null,null,null,{"$f":"+SUM(K50:R50)","v":0},true,null,null,null,0,0,0]
[{"$f":"+'Formulario 2- Planta'!A55","v":0},{"$f":"+'Formulario 2- Planta'!B55","v":0},{"$f":"+'Formulario 2- Planta'!C55","v":0},{"$f":"+'Formulario 2- Planta'!W55","v":0},0,{"$f":"+'Formulario 2- Planta'!AG55","v":0},0,{"$f":"+'Formulario 2- Planta'!AR55","v":0},0,0,null,null,null,null,null,null,null,null,0,true,null,null,null,0,0,0]
[{"$f":"+'Formulario 2- Planta'!A56","v":0},{"$f":"+'Formulario 2- Planta'!B56","v":0},{"$f":"+'Formulario 2- Planta'!C56","v":0},{"$f":"+'Formulario 2- Planta'!W56","v":0},0,{"$f":"+'Formulario 2- Planta'!AG56","v":0},0,{"$f":"+'Formulario 2- Planta'!AR56","v":0},0,0,null,null,null,null,null,null,null,null,0,true,null,null,null,0,0,0]
[{"$f":"+'Formulario 2- Planta'!A57","v":0},{"$f":"+'Formulario 2- Planta'!B57","v":0},{"$f":"+'Formulario 2- Planta'!C57","v":0},{"$f":"+'Formulario 2- Planta'!W57","v":0},0,{"$f":"+'Formulario 2- Planta'!AG57","v":0},0,{"$f":"+'Formulario 2- Planta'!AR57","v":0},0,0,null,null,null,null,null,null,null,null,0,true,null,null,null,0,0,0]
["NIVEL PROFESIONAL",{"$f":"+'Formulario 2- Planta'!B58","v":0},{"$f":"SUM(C55:C102)","v":0},{"$f":"+'Formulario 2- Planta'!W58","v":0},0,{"$f":"+'Formulario 2- Planta'!AG58","v":0},0,{"$f":"+'Formulario 2- Planta'!AR58","v":0},0,{"$f":"D54+F54+H54","v":0},{"$f":"+SUM(K55:K102)","v":0},0,0,0,0,0,0,0,0,true]
[{"$f":"+'Formulario 2- Planta'!A59","v":0},{"$f":"+'Formulario 2- Planta'!B59","v":0},{"$f":"+'Formulario 2- Planta'!C59","v":0},{"$f":"+'Formulario 2- Planta'!W59","v":0},0,{"$f":"+'Formulario 2- Planta'!AG59","v":0},0,{"$f":"+'Formulario 2- Planta'!AR59","v":0},0,0,null,null,null,null,null,null,null,null,0,true,null,null,null,{"$f":"$D$166","v":0},{"$f":"$F$166","v":0},{"$f":"$H$166","v":0}]
[{"$f":"+'Formulario 2- Planta'!A60","v":0},{"$f":"+'Formulario 2- Planta'!B60","v":0},{"$f":"+'Formulario 2- Planta'!C60","v":0},{"$f":"+'Formulario 2- Planta'!W60","v":0},0,{"$f":"+'Formulario 2- Planta'!AG60","v":0},0,{"$f":"+'Formulario 2- Planta'!AR60","v":0},0,0,null,null,null,null,null,null,null,null,{"$f":"+SUM(K56:R56)","v":0},{"$f":"+S56=C56","v":true},null,null,null,0,0,0]
[{"$f":"+'Formulario 2- Planta'!A61","v":0},{"$f":"+'Formulario 2- Planta'!B61","v":0},{"$f":"+'Formulario 2- Planta'!C61","v":0},{"$f":"+'Formulario 2- Planta'!W61","v":0},0,{"$f":"+'Formulario 2- Planta'!AG61","v":0},0,{"$f":"+'Formulario 2- Planta'!AR61","v":0},0,0,null,null,null,null,null,null,null,null,0,true,null,null,null,0,0,0]
[{"$f":"+'Formulario 2- Planta'!A62","v":0},{"$f":"+'Formulario 2- Planta'!B62","v":0},{"$f":"+'Formulario 2- Planta'!C62","v":0},{"$f":"+'Formulario 2- Planta'!W62","v":0},0,{"$f":"+'Formulario 2- Planta'!AG62","v":0},0,{"$f":"+'Formulario 2- Planta'!AR62","v":0},0,0,null,null,null,null,null,null,null,null,0,true,null,null,null,0,0,0]
[{"$f":"+'Formulario 2- Planta'!A63","v":0},{"$f":"+'Formulario 2- Planta'!B63","v":0},{"$f":"+'Formulario 2- Planta'!C63","v":0},{"$f":"+'Formulario 2- Planta'!W63","v":0},0,{"$f":"+'Formulario 2- Planta'!AG63","v":0},0,{"$f":"+'Formulario 2- Planta'!AR63","v":0},0,0,null,null,null,null,null,null,null,null,0,true,null,null,null,0,0,0]
[{"$f":"+'Formulario 2- Planta'!A64","v":0},{"$f":"+'Formulario 2- Planta'!B64","v":0},{"$f":"+'Formulario 2- Planta'!C64","v":0},{"$f":"+'Formulario 2- Planta'!W64","v":0},0,{"$f":"+'Formulario 2- Planta'!AG64","v":0},0,{"$f":"+'Formulario 2- Planta'!AR64","v":0},0,0,null,null,null,null,null,null,null,null,0,true,null,null,null,0,0,0]
[{"$f":"+'Formulario 2- Planta'!A65","v":0},{"$f":"+'Formulario 2- Planta'!B65","v":0},{"$f":"+'Formulario 2- Planta'!C65","v":0},{"$f":"+'Formulario 2- Planta'!W65","v":0},0,{"$f":"+'Formulario 2- Planta'!AG65","v":0},0,{"$f":"+'Formulario 2- Planta'!AR65","v":0},0,0,null,null,null,null,null,null,null,null,0,true,null,null,null,0,0,0]
[{"$f":"+'Formulario 2- Planta'!A66","v":0},{"$f":"+'Formulario 2- Planta'!B66","v":0},{"$f":"+'Formulario 2- Planta'!C66","v":0},{"$f":"+'Formulario 2- Planta'!W66","v":0},0,{"$f":"+'Formulario 2- Planta'!AG66","v":0},0,{"$f":"+'Formulario 2- Planta'!AR66","v":0},0,0,null,null,null,null,null,null,null,null,0,true,null,null,null,0,0,0]
[{"$f":"+'Formulario 2- Planta'!A67","v":0},{"$f":"+'Formulario 2- Planta'!B67","v":0},{"$f":"+'Formulario 2- Planta'!C67","v":0},{"$f":"+'Formulario 2- Planta'!W67","v":0},0,{"$f":"+'Formulario 2- Planta'!AG67","v":0},0,{"$f":"+'Formulario 2- Planta'!AR67","v":0},0,0,null,null,null,null,null,null,null,null,0,true,null,null,null,0,0,0]
[{"$f":"+'Formulario 2- Planta'!A68","v":0},{"$f":"+'Formulario 2- Planta'!B68","v":0},{"$f":"+'Formulario 2- Planta'!C68","v":0},{"$f":"+'Formulario 2- Planta'!W68","v":0},0,{"$f":"+'Formulario 2- Planta'!AG68","v":0},0,{"$f":"+'Formulario 2- Planta'!AR68","v":0},0,0,null,null,null,null,null,null,null,null,0,true,null,null,null,0,0,0]
[{"$f":"+'Formulario 2- Planta'!A69","v":0},{"$f":"+'Formulario 2- Planta'!B69","v":0},{"$f":"+'Formulario 2- Planta'!C69","v":0},{"$f":"+'Formulario 2- Planta'!W69","v":0},0,{"$f":"+'Formulario 2- Planta'!AG69","v":0},0,{"$f":"+'Formulario 2- Planta'!AR69","v":0},0,0,null,null,null,null,null,null,null,null,0,true,null,null,null,0,0,0]
[{"$f":"+'Formulario 2- Planta'!A70","v":0},{"$f":"+'Formulario 2- Planta'!B70","v":0},{"$f":"+'Formulario 2- Planta'!C70","v":0},{"$f":"+'Formulario 2- Planta'!W70","v":0},0,{"$f":"+'Formulario 2- Planta'!AG70","v":0},0,{"$f":"+'Formulario 2- Planta'!AR70","v":0},0,0,null,null,null,null,null,null,null,null,0,true,null,null,null,0,0,0]
[{"$f":"+'Formulario 2- Planta'!A71","v":0},{"$f":"+'Formulario 2- Planta'!B71","v":0},{"$f":"+'Formulario 2- Planta'!C71","v":0},{"$f":"+'Formulario 2- Planta'!W71","v":0},0,{"$f":"+'Formulario 2- Planta'!AG71","v":0},0,{"$f":"+'Formulario 2- Planta'!AR71","v":0},0,0,null,null,null,null,null,null,null,null,0,true,null,null,null,0,0,0]
[{"$f":"+'Formulario 2- Planta'!A72","v":0},{"$f":"+'Formulario 2- Planta'!B72","v":0},{"$f":"+'Formulario 2- Planta'!C72","v":0},{"$f":"+'Formulario 2- Planta'!W72","v":0},0,{"$f":"+'Formulario 2- Planta'!AG72","v":0},0,{"$f":"+'Formulario 2- Planta'!AR72","v":0},0,0,null,null,null,null,null,null,null,null,0,true,null,null,null,0,0,0]
[{"$f":"+'Formulario 2- Planta'!A73","v":0},{"$f":"+'Formulario 2- Planta'!B73","v":0},{"$f":"+'Formulario 2- Planta'!C73","v":0},{"$f":"+'Formulario 2- Planta'!W73","v":0},0,{"$f":"+'Formulario 2- Planta'!AG73","v":0},0,{"$f":"+'Formulario 2- Planta'!AR73","v":0},0,0,null,null,null,null,null,null,null,null,0,true,null,null,null,0,0,0]
[{"$f":"+'Formulario 2- Planta'!A74","v":0},{"$f":"+'Formulario 2- Planta'!B74","v":0},{"$f":"+'Formulario 2- Planta'!C74","v":0},{"$f":"+'Formulario 2- Planta'!W74","v":0},0,{"$f":"+'Formulario 2- Planta'!AG74","v":0},0,{"$f":"+'Formulario 2- Planta'!AR74","v":0},0,0,null,null,null,null,null,null,null,null,0,true,null,null,null,0,0,0]
[{"$f":"+'Formulario 2- Planta'!A75","v":0},{"$f":"+'Formulario 2- Planta'!B75","v":0},{"$f":"+'Formulario 2- Planta'!C75","v":0},{"$f":"+'Formulario 2- Planta'!W75","v":0},0,{"$f":"+'Formulario 2- Planta'!AG75","v":0},0,{"$f":"+'Formulario 2- Planta'!AR75","v":0},0,0,null,null,null,null,null,null,null,null,0,true,null,null,null,0,0,0]
[{"$f":"+'Formulario 2- Planta'!A76","v":0},{"$f":"+'Formulario 2- Planta'!B76","v":0},{"$f":"+'Formulario 2- Planta'!C76","v":0},{"$f":"+'Formulario 2- Planta'!W76","v":0},0,{"$f":"+'Formulario 2- Planta'!AG76","v":0},0,{"$f":"+'Formulario 2- Planta'!AR76","v":0},0,0,null,null,null,null,null,null,null,null,0,true,null,null,null,0,0,0]
[{"$f":"+'Formulario 2- Planta'!A77","v":0},{"$f":"+'Formulario 2- Planta'!B77","v":0},{"$f":"+'Formulario 2- Planta'!C77","v":0},{"$f":"+'Formulario 2- Planta'!W77","v":0},0,{"$f":"+'Formulario 2- Planta'!AG77","v":0},0,{"$f":"+'Formulario 2- Planta'!AR77","v":0},0,{"$f":"D73+F73+H73","v":0},null,null,null,null,null,null,null,null,{"$f":"+SUM(K73:R73)","v":0},{"$f":"+S73=C73","v":true},null,null,null,0,0,0]
[{"$f":"+'Formulario 2- Planta'!A78","v":0},{"$f":"+'Formulario 2- Planta'!B78","v":0},{"$f":"+'Formulario 2- Planta'!C78","v":0},{"$f":"+'Formulario 2- Planta'!W78","v":0},0,{"$f":"+'Formulario 2- Planta'!AG78","v":0},0,{"$f":"+'Formulario 2- Planta'!AR78","v":0},0,0,null,null,null,null,null,null,null,null,0,true,null,null,null,0,0,0]
[{"$f":"+'Formulario 2- Planta'!A79","v":0},{"$f":"+'Formulario 2- Planta'!B79","v":0},{"$f":"+'Formulario 2- Planta'!C79","v":0},{"$f":"+'Formulario 2- Planta'!W79","v":0},0,{"$f":"+'Formulario 2- Planta'!AG79","v":0},0,{"$f":"+'Formulario 2- Planta'!AR79","v":0},0,0,null,null,null,null,null,null,null,null,0,true,null,null,null,0,0,0]
[{"$f":"+'Formulario 2- Planta'!A80","v":0},{"$f":"+'Formulario 2- Planta'!B80","v":0},{"$f":"+'Formulario 2- Planta'!C80","v":0},{"$f":"+'Formulario 2- Planta'!W80","v":0},0,{"$f":"+'Formulario 2- Planta'!AG80","v":0},0,{"$f":"+'Formulario 2- Planta'!AR80","v":0},0,0,null,null,null,null,null,null,null,null,0,true,null,null,null,0,0,0]
[{"$f":"+'Formulario 2- Planta'!A81","v":0},{"$f":"+'Formulario 2- Planta'!B81","v":0},{"$f":"+'Formulario 2- Planta'!C81","v":0},{"$f":"+'Formulario 2- Planta'!W81","v":0},{"$f":"IFERROR((D77/C77)/($D$166),0)","v":0},{"$f":"+'Formulario 2- Planta'!AG81","v":0},{"$f":"IFERROR((F77/C77)/$F$166,0)","v":0},{"$f":"+'Formulario 2- Planta'!AR81","v":0},{"$f":"IFERROR((H77/C77)/$H$166,0)","v":0},0,null,null,null,null,null,null,null,null,0,true,null,null,null,0,0,0]
[{"$f":"+'Formulario 2- Planta'!A82","v":0},{"$f":"+'Formulario 2- Planta'!B82","v":0},{"$f":"+'Formulario 2- Planta'!C82","v":0},{"$f":"+'Formulario 2- Planta'!W82","v":0},0,{"$f":"+'Formulario 2- Planta'!AG82","v":0},0,{"$f":"+'Formulario 2- Planta'!AR82","v":0},0,0,null,null,null,null,null,null,null,null,0,true,null,null,null,0,0,0]
[{"$f":"+'Formulario 2- Planta'!A83","v":0},{"$f":"+'Formulario 2- Planta'!B83","v":0},{"$f":"+'Formulario 2- Planta'!C83","v":0},{"$f":"+'Formulario 2- Planta'!W83","v":0},0,{"$f":"+'Formulario 2- Planta'!AG83","v":0},0,{"$f":"+'Formulario 2- Planta'!AR83","v":0},0,0,null,null,null,null,null,null,null,null,0,true,null,null,null,0,0,0]
[{"$f":"+'Formulario 2- Planta'!A84","v":0},{"$f":"+'Formulario 2- Planta'!B84","v":0},{"$f":"+'Formulario 2- Planta'!C84","v":0},{"$f":"+'Formulario 2- Planta'!W84","v":0},0,{"$f":"+'Formulario 2- Planta'!AG84","v":0},0,{"$f":"+'Formulario 2- Planta'!AR84","v":0},0,0,null,null,null,null,null,null,null,null,0,true,null,null,null,0,0,0]
[{"$f":"+'Formulario 2- Planta'!A85","v":0},{"$f":"+'Formulario 2- Planta'!B85","v":0},{"$f":"+'Formulario 2- Planta'!C85","v":0},{"$f":"+'Formulario 2- Planta'!W85","v":0},0,{"$f":"+'Formulario 2- Planta'!AG85","v":0},0,{"$f":"+'Formulario 2- Planta'!AR85","v":0},0,0,null,null,null,null,null,null,null,null,0,true,null,null,null,0,0,0]
[{"$f":"+'Formulario 2- Planta'!A86","v":0},{"$f":"+'Formulario 2- Planta'!B86","v":0},{"$f":"+'Formulario 2- Planta'!C86","v":0},{"$f":"+'Formulario 2- Planta'!W86","v":0},0,{"$f":"+'Formulario 2- Planta'!AG86","v":0},0,{"$f":"+'Formulario 2- Planta'!AR86","v":0},0,0,null,null,null,null,null,null,null,null,0,true,null,null,null,0,0,0]
[{"$f":"+'Formulario 2- Planta'!A87","v":0},{"$f":"+'Formulario 2- Planta'!B87","v":0},{"$f":"+'Formulario 2- Planta'!C87","v":0},{"$f":"+'Formulario 2- Planta'!W87","v":0},0,{"$f":"+'Formulario 2- Planta'!AG87","v":0},0,{"$f":"+'Formulario 2- Planta'!AR87","v":0},0,0,null,null,null,null,null,null,null,null,0,true,null,null,null,0,0,0]
[{"$f":"+'Formulario 2- Planta'!A88","v":0},{"$f":"+'Formulario 2- Planta'!B88","v":0},{"$f":"+'Formulario 2- Planta'!C88","v":0},{"$f":"+'Formulario 2- Planta'!W88","v":0},0,{"$f":"+'Formulario 2- Planta'!AG88","v":0},0,{"$f":"+'Formulario 2- Planta'!AR88","v":0},0,0,null,null,null,null,null,null,null,null,0,true,null,null,null,0,0,0]
[{"$f":"+'Formulario 2- Planta'!A89","v":0},{"$f":"+'Formulario 2- Planta'!B89","v":0},{"$f":"+'Formulario 2- Planta'!C89","v":0},{"$f":"+'Formulario 2- Planta'!W89","v":0},0,{"$f":"+'Formulario 2- Planta'!AG89","v":0},0,{"$f":"+'Formulario 2- Planta'!AR89","v":0},0,0,null,null,null,null,null,null,null,null,0,true,null,null,null,0,0,0]
[{"$f":"+'Formulario 2- Planta'!A90","v":0},{"$f":"+'Formulario 2- Planta'!B90","v":0},{"$f":"+'Formulario 2- Planta'!C90","v":0},{"$f":"+'Formulario 2- Planta'!W90","v":0},0,{"$f":"+'Formulario 2- Planta'!AG90","v":0},0,{"$f":"+'Formulario 2- Planta'!AR90","v":0},0,0,null,null,null,null,null,null,null,null,0,true,null,null,null,0,0,0]
[{"$f":"+'Formulario 2- Planta'!A91","v":0},{"$f":"+'Formulario 2- Planta'!B91","v":0},{"$f":"+'Formulario 2- Planta'!C91","v":0},{"$f":"+'Formulario 2- Planta'!W91","v":0},0,{"$f":"+'Formulario 2- Planta'!AG91","v":0},0,{"$f":"+'Formulario 2- Planta'!AR91","v":0},0,0,null,null,null,null,null,null,null,null,0,true,null,null,null,0,0,0]
[{"$f":"+'Formulario 2- Planta'!A92","v":0},{"$f":"+'Formulario 2- Planta'!B92","v":0},{"$f":"+'Formulario 2- Planta'!C92","v":0},{"$f":"+'Formulario 2- Planta'!W92","v":0},0,{"$f":"+'Formulario 2- Planta'!AG92","v":0},0,{"$f":"+'Formulario 2- Planta'!AR92","v":0},0,0,null,null,null,null,null,null,null,null,0,true,null,null,null,0,0,0]
[{"$f":"+'Formulario 2- Planta'!A93","v":0},{"$f":"+'Formulario 2- Planta'!B93","v":0},{"$f":"+'Formulario 2- Planta'!C93","v":0},{"$f":"+'Formulario 2- Planta'!W93","v":0},0,{"$f":"+'Formulario 2- Planta'!AG93","v":0},0,{"$f":"+'Formulario 2- Planta'!AR93","v":0},0,0,null,null,null,null,null,null,null,null,0,true,null,null,null,0,0,0]
[{"$f":"+'Formulario 2- Planta'!A94","v":0},{"$f":"+'Formulario 2- Planta'!B94","v":0},{"$f":"+'Formulario 2- Planta'!C94","v":0},{"$f":"+'Formulario 2- Planta'!W94","v":0},0,{"$f":"+'Formulario 2- Planta'!AG94","v":0},0,{"$f":"+'Formulario 2- Planta'!AR94","v":0},0,0,null,null,null,null,null,null,null,null,0,{"$f":"+S90=C90","v":true},null,null,null,0,0,0]
[{"$f":"+'Formulario 2- Planta'!A95","v":0},{"$f":"+'Formulario 2- Planta'!B95","v":0},{"$f":"+'Formulario 2- Planta'!C95","v":0},{"$f":"+'Formulario 2- Planta'!W95","v":0},0,{"$f":"+'Formulario 2- Planta'!AG95","v":0},0,{"$f":"+'Formulario 2- Planta'!AR95","v":0},0,0,null,null,null,null,null,null,null,null,0,true,null,null,null,0,0,0]
[{"$f":"+'Formulario 2- Planta'!A96","v":0},{"$f":"+'Formulario 2- Planta'!B96","v":0},{"$f":"+'Formulario 2- Planta'!C96","v":0},{"$f":"+'Formulario 2- Planta'!W96","v":0},0,{"$f":"+'Formulario 2- Planta'!AG96","v":0},0,{"$f":"+'Formulario 2- Planta'!AR96","v":0},0,0,null,null,null,null,null,null,null,null,0,true,null,null,null,0,0,0]
[{"$f":"+'Formulario 2- Planta'!A97","v":0},{"$f":"+'Formulario 2- Planta'!B97","v":0},{"$f":"+'Formulario 2- Planta'!C97","v":0},{"$f":"+'Formulario 2- Planta'!W97","v":0},0,{"$f":"+'Formulario 2- Planta'!AG97","v":0},0,{"$f":"+'Formulario 2- Planta'!AR97","v":0},0,0,null,null,null,null,null,null,null,null,0,true,null,null,null,0,0,0]
[{"$f":"+'Formulario 2- Planta'!A98","v":0},{"$f":"+'Formulario 2- Planta'!B98","v":0},{"$f":"+'Formulario 2- Planta'!C98","v":0},{"$f":"+'Formulario 2- Planta'!W98","v":0},0,{"$f":"+'Formulario 2- Planta'!AG98","v":0},0,{"$f":"+'Formulario 2- Planta'!AR98","v":0},0,0,null,null,null,null,null,null,null,null,0,true,null,null,null,0,0,0]
[{"$f":"+'Formulario 2- Planta'!A99","v":0},{"$f":"+'Formulario 2- Planta'!B99","v":0},{"$f":"+'Formulario 2- Planta'!C99","v":0},{"$f":"+'Formulario 2- Planta'!W99","v":0},0,{"$f":"+'Formulario 2- Planta'!AG99","v":0},0,{"$f":"+'Formulario 2- Planta'!AR99","v":0},0,0,null,null,null,null,null,null,null,null,0,true,null,null,null,0,0,0]
[{"$f":"+'Formulario 2- Planta'!A100","v":0},{"$f":"+'Formulario 2- Planta'!B100","v":0},{"$f":"+'Formulario 2- Planta'!C100","v":0},{"$f":"+'Formulario 2- Planta'!W100","v":0},0,{"$f":"+'Formulario 2- Planta'!AG100","v":0},0,{"$f":"+'Formulario 2- Planta'!AR100","v":0},0,0,null,null,null,null,null,null,null,null,0,true,null,null,null,0,0,0]
[{"$f":"+'Formulario 2- Planta'!A101","v":0},{"$f":"+'Formulario 2- Planta'!B101","v":0},{"$f":"+'Formulario 2- Planta'!C101","v":0},{"$f":"+'Formulario 2- Planta'!W101","v":0},0,{"$f":"+'Formulario 2- Planta'!AG101","v":0},0,{"$f":"+'Formulario 2- Planta'!AR101","v":0},0,0,null,null,null,null,null,null,null,null,0,true,null,null,null,0,0,0]
[{"$f":"+'Formulario 2- Planta'!A102","v":0},{"$f":"+'Formulario 2- Planta'!B102","v":0},{"$f":"+'Formulario 2- Planta'!C102","v":0},{"$f":"+'Formulario 2- Planta'!W102","v":0},0,{"$f":"+'Formulario 2- Planta'!AG102","v":0},0,{"$f":"+'Formulario 2- Planta'!AR102","v":0},0,0,null,null,null,null,null,null,null,null,0,true,null,null,null,0,0,0]
[{"$f":"+'Formulario 2- Planta'!A103","v":0},{"$f":"+'Formulario 2- Planta'!B103","v":0},{"$f":"+'Formulario 2- Planta'!C103","v":0},{"$f":"+'Formulario 2- Planta'!W103","v":0},0,{"$f":"+'Formulario 2- Planta'!AG103","v":0},0,{"$f":"+'Formulario 2- Planta'!AR103","v":0},0,0,null,null,null,null,null,null,null,null,0,true,null,null,null,0,0,0]
[{"$f":"+'Formulario 2- Planta'!A104","v":0},{"$f":"+'Formulario 2- Planta'!B104","v":0},{"$f":"+'Formulario 2- Planta'!C104","v":0},{"$f":"+'Formulario 2- Planta'!W104","v":0},0,{"$f":"+'Formulario 2- Planta'!AG104","v":0},0,{"$f":"+'Formulario 2- Planta'!AR104","v":0},0,0,null,null,null,null,null,null,null,null,0,true,null,null,null,0,0,0]
[{"$f":"+'Formulario 2- Planta'!A105","v":0},{"$f":"+'Formulario 2- Planta'!B105","v":0},{"$f":"+'Formulario 2- Planta'!C105","v":0},{"$f":"+'Formulario 2- Planta'!W105","v":0},0,{"$f":"+'Formulario 2- Planta'!AG105","v":0},0,{"$f":"+'Formulario 2- Planta'!AR105","v":0},0,0,null,null,null,null,null,null,null,null,0,true,null,null,null,0,0,0]
[{"$f":"+'Formulario 2- Planta'!A106","v":0},{"$f":"+'Formulario 2- Planta'!B106","v":0},{"$f":"+'Formulario 2- Planta'!C106","v":0},{"$f":"+'Formulario 2- Planta'!W106","v":0},0,{"$f":"+'Formulario 2- Planta'!AG106","v":0},0,{"$f":"+'Formulario 2- Planta'!AR106","v":0},0,0,null,null,null,null,null,null,null,null,0,true,null,null,null,0,0,0]
["NIVEL TÉCNICO",{"$f":"+'Formulario 2- Planta'!B107","v":0},{"$f":"SUM(C104:C122)","v":0},{"$f":"+'Formulario 2- Planta'!W107","v":0},0,{"$f":"+'Formulario 2- Planta'!AG107","v":0},0,{"$f":"+'Formulario 2- Planta'!AR107","v":0},0,0,{"$f":"+SUM(K104:K122)","v":0},{"$f":"+SUM(L104:L122)","v":0},0,0,0,0,0,0,0,true]
[{"$f":"+'Formulario 2- Planta'!A108","v":0},{"$f":"+'Formulario 2- Planta'!B108","v":0},{"$f":"+'Formulario 2- Planta'!C108","v":0},{"$f":"+'Formulario 2- Planta'!W108","v":0},0,{"$f":"+'Formulario 2- Planta'!AG108","v":0},0,{"$f":"+'Formulario 2- Planta'!AR108","v":0},0,0,null,null,null,null,null,null,null,null,{"$f":"+SUM(K104:R104)","v":0},{"$f":"+S104=C104","v":true},null,null,null,{"$f":"$D$166","v":0},{"$f":"$F$166","v":0},{"$f":"$H$166","v":0}]
[{"$f":"+'Formulario 2- Planta'!A109","v":0},{"$f":"+'Formulario 2- Planta'!B109","v":0},{"$f":"+'Formulario 2- Planta'!C109","v":0},{"$f":"+'Formulario 2- Planta'!W109","v":0},0,{"$f":"+'Formulario 2- Planta'!AG109","v":0},0,{"$f":"+'Formulario 2- Planta'!AR109","v":0},0,0,null,null,null,null,null,null,null,null,0,true,null,null,null,0,0,0]
[{"$f":"+'Formulario 2- Planta'!A110","v":0},{"$f":"+'Formulario 2- Planta'!B110","v":0},{"$f":"+'Formulario 2- Planta'!C110","v":0},{"$f":"+'Formulario 2- Planta'!W110","v":0},0,{"$f":"+'Formulario 2- Planta'!AG110","v":0},0,{"$f":"+'Formulario 2- Planta'!AR110","v":0},0,0,null,null,null,null,null,null,null,null,0,true,null,null,null,0,0,0]
[{"$f":"+'Formulario 2- Planta'!A111","v":0},{"$f":"+'Formulario 2- Planta'!B111","v":0},{"$f":"+'Formulario 2- Planta'!C111","v":0},{"$f":"+'Formulario 2- Planta'!W111","v":0},0,{"$f":"+'Formulario 2- Planta'!AG111","v":0},0,{"$f":"+'Formulario 2- Planta'!AR111","v":0},0,{"$f":"D107+F107+H107","v":0},null,null,null,null,null,null,null,null,{"$f":"+SUM(K107:R107)","v":0},{"$f":"+S107=C107","v":true},null,null,null,0,0,0]
[{"$f":"+'Formulario 2- Planta'!A112","v":0},{"$f":"+'Formulario 2- Planta'!B112","v":0},{"$f":"+'Formulario 2- Planta'!C112","v":0},{"$f":"+'Formulario 2- Planta'!W112","v":0},0,{"$f":"+'Formulario 2- Planta'!AG112","v":0},0,{"$f":"+'Formulario 2- Planta'!AR112","v":0},0,0,null,null,null,null,null,null,null,null,0,true,null,null,null,0,0,0]
[{"$f":"+'Formulario 2- Planta'!A113","v":0},{"$f":"+'Formulario 2- Planta'!B113","v":0},{"$f":"+'Formulario 2- Planta'!C113","v":0},{"$f":"+'Formulario 2- Planta'!W113","v":0},{"$f":"IFERROR((D109/C109)/($D$166),0)","v":0},{"$f":"+'Formulario 2- Planta'!AG113","v":0},{"$f":"IFERROR((F109/C109)/$F$166,0)","v":0},{"$f":"+'Formulario 2- Planta'!AR113","v":0},{"$f":"IFERROR((H109/C109)/$H$166,0)","v":0},0,null,null,null,null,null,null,null,null,0,true,null,null,null,0,0,0]
[{"$f":"+'Formulario 2- Planta'!A114","v":0},{"$f":"+'Formulario 2- Planta'!B114","v":0},{"$f":"+'Formulario 2- Planta'!C114","v":0},{"$f":"+'Formulario 2- Planta'!W114","v":0},0,{"$f":"+'Formulario 2- Planta'!AG114","v":0},0,{"$f":"+'Formulario 2- Planta'!AR114","v":0},0,0,null,null,null,null,null,null,null,null,0,true,null,null,null,0,0,0]
[{"$f":"+'Formulario 2- Planta'!A115","v":0},{"$f":"+'Formulario 2- Planta'!B115","v":0},{"$f":"+'Formulario 2- Planta'!C115","v":0},{"$f":"+'Formulario 2- Planta'!W115","v":0},0,{"$f":"+'Formulario 2- Planta'!AG115","v":0},0,{"$f":"+'Formulario 2- Planta'!AR115","v":0},0,0,null,null,null,null,null,null,null,null,0,true,null,null,null,0,0,0]
[{"$f":"+'Formulario 2- Planta'!A116","v":0},{"$f":"+'Formulario 2- Planta'!B116","v":0},{"$f":"+'Formulario 2- Planta'!C116","v":0},{"$f":"+'Formulario 2- Planta'!W116","v":0},0,{"$f":"+'Formulario 2- Planta'!AG116","v":0},0,{"$f":"+'Formulario 2- Planta'!AR116","v":0},0,0,null,null,null,null,null,null,null,null,0,true,null,null,null,0,0,0]
[{"$f":"+'Formulario 2- Planta'!A117","v":0},{"$f":"+'Formulario 2- Planta'!B117","v":0},{"$f":"+'Formulario 2- Planta'!C117","v":0},{"$f":"+'Formulario 2- Planta'!W117","v":0},0,{"$f":"+'Formulario 2- Planta'!AG117","v":0},0,{"$f":"+'Formulario 2- Planta'!AR117","v":0},0,0,null,null,null,null,null,null,null,null,0,true,null,null,null,0,0,0]
[{"$f":"+'Formulario 2- Planta'!A118","v":0},{"$f":"+'Formulario 2- Planta'!B118","v":0},{"$f":"+'Formulario 2- Planta'!C118","v":0},{"$f":"+'Formulario 2- Planta'!W118","v":0},0,{"$f":"+'Formulario 2- Planta'!AG118","v":0},0,{"$f":"+'Formulario 2- Planta'!AR118","v":0},0,0,null,null,null,null,null,null,null,null,0,true,null,null,null,0,0,0]
[{"$f":"+'Formulario 2- Planta'!A119","v":0},{"$f":"+'Formulario 2- Planta'!B119","v":0},{"$f":"+'Formulario 2- Planta'!C119","v":0},{"$f":"+'Formulario 2- Planta'!W119","v":0},0,{"$f":"+'Formulario 2- Planta'!AG119","v":0},0,{"$f":"+'Formulario 2- Planta'!AR119","v":0},0,{"$f":"D115+F115+H115","v":0},null,null,null,null,null,null,null,null,{"$f":"+SUM(K115:R115)","v":0},{"$f":"+S115=C115","v":true},null,null,null,0,0,0]
[{"$f":"+'Formulario 2- Planta'!A120","v":0},{"$f":"+'Formulario 2- Planta'!B120","v":0},{"$f":"+'Formulario 2- Planta'!C120","v":0},{"$f":"+'Formulario 2- Planta'!W120","v":0},0,{"$f":"+'Formulario 2- Planta'!AG120","v":0},0,{"$f":"+'Formulario 2- Planta'!AR120","v":0},0,0,null,null,null,null,null,null,null,null,0,true,null,null,null,0,0,0]
[{"$f":"+'Formulario 2- Planta'!A121","v":0},{"$f":"+'Formulario 2- Planta'!B121","v":0},{"$f":"+'Formulario 2- Planta'!C121","v":0},{"$f":"+'Formulario 2- Planta'!W121","v":0},0,{"$f":"+'Formulario 2- Planta'!AG121","v":0},0,{"$f":"+'Formulario 2- Planta'!AR121","v":0},0,0,null,null,null,null,null,null,null,null,0,true,null,null,null,0,0,0]
[{"$f":"+'Formulario 2- Planta'!A122","v":0},{"$f":"+'Formulario 2- Planta'!B122","v":0},{"$f":"+'Formulario 2- Planta'!C122","v":0},{"$f":"+'Formulario 2- Planta'!W122","v":0},0,{"$f":"+'Formulario 2- Planta'!AG122","v":0},0,{"$f":"+'Formulario 2- Planta'!AR122","v":0},0,0,null,null,null,null,null,null,null,null,0,true,null,null,null,0,0,0]
[{"$f":"+'Formulario 2- Planta'!A123","v":0},{"$f":"+'Formulario 2- Planta'!B123","v":0},{"$f":"+'Formulario 2- Planta'!C123","v":0},{"$f":"+'Formulario 2- Planta'!W123","v":0},0,{"$f":"+'Formulario 2- Planta'!AG123","v":0},0,{"$f":"+'Formulario 2- Planta'!AR123","v":0},0,0,null,null,null,null,null,null,null,null,0,true,null,null,null,0,0,0]
[{"$f":"+'Formulario 2- Planta'!A124","v":0},{"$f":"+'Formulario 2- Planta'!B124","v":0},{"$f":"+'Formulario 2- Planta'!C124","v":0},{"$f":"+'Formulario 2- Planta'!W124","v":0},0,{"$f":"+'Formulario 2- Planta'!AG124","v":0},0,{"$f":"+'Formulario 2- Planta'!AR124","v":0},0,{"$f":"D120+F120+H120","v":0},null,null,null,null,null,null,null,null,0,true,null,null,null,0,0,0]
[{"$f":"+'Formulario 2- Planta'!A125","v":0},{"$f":"+'Formulario 2- Planta'!B125","v":0},{"$f":"+'Formulario 2- Planta'!C125","v":0},{"$f":"+'Formulario 2- Planta'!W125","v":0},0,{"$f":"+'Formulario 2- Planta'!AG125","v":0},0,{"$f":"+'Formulario 2- Planta'!AR125","v":0},0,0,null,null,null,null,null,null,null,null,0,true,null,null,null,0,0,0]
[{"$f":"+'Formulario 2- Planta'!A126","v":0},{"$f":"+'Formulario 2- Planta'!B126","v":0},{"$f":"+'Formulario 2- Planta'!C126","v":0},{"$f":"+'Formulario 2- Planta'!W126","v":0},0,{"$f":"+'Formulario 2- Planta'!AG126","v":0},0,{"$f":"+'Formulario 2- Planta'!AR126","v":0},0,0,null,null,null,null,null,null,null,null,0,true,null,null,null,0,0,0]
["NIVEL ASISTENCIAL",{"$f":"+'Formulario 2- Planta'!B127","v":0},{"$f":"SUM(C124:C144)","v":0},{"$f":"+'Formulario 2- Planta'!W127","v":0},0,{"$f":"+'Formulario 2- Planta'!AG127","v":0},0,{"$f":"+'Formulario 2- Planta'!AR127","v":0},0,0,{"$f":"+SUM(K124:K144)","v":0},{"$f":"+SUM(L124:L144)","v":0},0,0,0,0,0,0,0,true]
[{"$f":"+'Formulario 2- Planta'!A128","v":0},{"$f":"+'Formulario 2- Planta'!B128","v":0},{"$f":"+'Formulario 2- Planta'!C128","v":0},{"$f":"+'Formulario 2- Planta'!W128","v":0},0,{"$f":"+'Formulario 2- Planta'!AG128","v":0},0,{"$f":"+'Formulario 2- Planta'!AR128","v":0},0,0,null,null,null,null,null,null,null,null,{"$f":"+SUM(K124:R124)","v":0},{"$f":"+S124=C124","v":true},null,null,null,{"$f":"$D$166","v":0},{"$f":"$F$166","v":0},{"$f":"$H$166","v":0}]
[{"$f":"+'Formulario 2- Planta'!A129","v":0},{"$f":"+'Formulario 2- Planta'!B129","v":0},{"$f":"+'Formulario 2- Planta'!C129","v":0},{"$f":"+'Formulario 2- Planta'!W129","v":0},0,{"$f":"+'Formulario 2- Planta'!AG129","v":0},0,{"$f":"+'Formulario 2- Planta'!AR129","v":0},0,{"$f":"D125+F125+H125","v":0},null,null,null,null,null,null,null,null,{"$f":"+SUM(K125:R125)","v":0},{"$f":"+S125=C125","v":true},null,null,null,0,0,0]
[{"$f":"+'Formulario 2- Planta'!A130","v":0},{"$f":"+'Formulario 2- Planta'!B130","v":0},{"$f":"+'Formulario 2- Planta'!C130","v":0},{"$f":"+'Formulario 2- Planta'!W130","v":0},0,{"$f":"+'Formulario 2- Planta'!AG130","v":0},0,{"$f":"+'Formulario 2- Planta'!AR130","v":0},0,0,null,null,null,null,null,null,null,null,0,true,null,null,null,0,0,0]
[{"$f":"+'Formulario 2- Planta'!A131","v":0},{"$f":"+'Formulario 2- Planta'!B131","v":0},{"$f":"+'Formulario 2- Planta'!C131","v":0},{"$f":"+'Formulario 2- Planta'!W131","v":0},0,{"$f":"+'Formulario 2- Planta'!AG131","v":0},0,{"$f":"+'Formulario 2- Planta'!AR131","v":0},0,0,null,null,null,null,null,null,null,null,0,true,null,null,null,0,0,0]
[{"$f":"+'Formulario 2- Planta'!A132","v":0},{"$f":"+'Formulario 2- Planta'!B132","v":0},{"$f":"+'Formulario 2- Planta'!C132","v":0},{"$f":"+'Formulario 2- Planta'!W132","v":0},0,{"$f":"+'Formulario 2- Planta'!AG132","v":0},0,{"$f":"+'Formulario 2- Planta'!AR132","v":0},0,0,null,null,null,null,null,null,null,null,0,true,null,null,null,0,0,0]
[{"$f":"+'Formulario 2- Planta'!A133","v":0},{"$f":"+'Formulario 2- Planta'!B133","v":0},{"$f":"+'Formulario 2- Planta'!C133","v":0},{"$f":"+'Formulario 2- Planta'!W133","v":0},0,{"$f":"+'Formulario 2- Planta'!AG133","v":0},0,{"$f":"+'Formulario 2- Planta'!AR133","v":0},0,0,null,null,null,null,null,null,null,null,0,true,null,null,null,0,0,0]
[{"$f":"+'Formulario 2- Planta'!A134","v":0},{"$f":"+'Formulario 2- Planta'!B134","v":0},{"$f":"+'Formulario 2- Planta'!C134","v":0},{"$f":"+'Formulario 2- Planta'!W134","v":0},0,{"$f":"+'Formulario 2- Planta'!AG134","v":0},0,{"$f":"+'Formulario 2- Planta'!AR134","v":0},0,0,null,null,null,null,null,null,null,null,0,true,null,null,null,0,0,0]
[{"$f":"+'Formulario 2- Planta'!A135","v":0},{"$f":"+'Formulario 2- Planta'!B135","v":0},{"$f":"+'Formulario 2- Planta'!C135","v":0},{"$f":"+'Formulario 2- Planta'!W135","v":0},0,{"$f":"+'Formulario 2- Planta'!AG135","v":0},0,{"$f":"+'Formulario 2- Planta'!AR135","v":0},0,0,null,null,null,null,null,null,null,null,0,true,null,null,null,0,0,0]
[{"$f":"+'Formulario 2- Planta'!A136","v":0},{"$f":"+'Formulario 2- Planta'!B136","v":0},{"$f":"+'Formulario 2- Planta'!C136","v":0},{"$f":"+'Formulario 2- Planta'!W136","v":0},0,{"$f":"+'Formulario 2- Planta'!AG136","v":0},0,{"$f":"+'Formulario 2- Planta'!AR136","v":0},0,0,null,null,null,null,null,null,null,null,0,true,null,null,null,0,0,0]
[{"$f":"+'Formulario 2- Planta'!A137","v":0},{"$f":"+'Formulario 2- Planta'!B137","v":0},{"$f":"+'Formulario 2- Planta'!C137","v":0},{"$f":"+'Formulario 2- Planta'!W137","v":0},0,{"$f":"+'Formulario 2- Planta'!AG137","v":0},0,{"$f":"+'Formulario 2- Planta'!AR137","v":0},0,0,null,null,null,null,null,null,null,null,0,true,null,null,null,0,0,0]
[{"$f":"+'Formulario 2- Planta'!A138","v":0},{"$f":"+'Formulario 2- Planta'!B138","v":0},{"$f":"+'Formulario 2- Planta'!C138","v":0},{"$f":"+'Formulario 2- Planta'!W138","v":0},0,{"$f":"+'Formulario 2- Planta'!AG138","v":0},0,{"$f":"+'Formulario 2- Planta'!AR138","v":0},0,0,null,null,null,null,null,null,null,null,0,true,null,null,null,0,0,0]
[{"$f":"+'Formulario 2- Planta'!A139","v":0},{"$f":"+'Formulario 2- Planta'!B139","v":0},{"$f":"+'Formulario 2- Planta'!C139","v":0},{"$f":"+'Formulario 2- Planta'!W139","v":0},0,{"$f":"+'Formulario 2- Planta'!AG139","v":0},0,{"$f":"+'Formulario 2- Planta'!AR139","v":0},0,{"$f":"D135+F135+H135","v":0},null,null,null,null,null,null,null,null,{"$f":"+SUM(K135:R135)","v":0},{"$f":"+S135=C135","v":true},null,null,null,0,0,0]
[{"$f":"+'Formulario 2- Planta'!A140","v":0},{"$f":"+'Formulario 2- Planta'!B140","v":0},{"$f":"+'Formulario 2- Planta'!C140","v":0},{"$f":"+'Formulario 2- Planta'!W140","v":0},0,{"$f":"+'Formulario 2- Planta'!AG140","v":0},0,{"$f":"+'Formulario 2- Planta'!AR140","v":0},0,0,null,null,null,null,null,null,null,null,0,true,null,null,null,0,0,0]
[{"$f":"+'Formulario 2- Planta'!A141","v":0},{"$f":"+'Formulario 2- Planta'!B141","v":0},{"$f":"+'Formulario 2- Planta'!C141","v":0},{"$f":"+'Formulario 2- Planta'!W141","v":0},0,{"$f":"+'Formulario 2- Planta'!AG141","v":0},0,{"$f":"+'Formulario 2- Planta'!AR141","v":0},0,0,null,null,null,null,null,null,null,null,0,true,null,null,null,0,0,0]
[{"$f":"+'Formulario 2- Planta'!A142","v":0},{"$f":"+'Formulario 2- Planta'!B142","v":0},{"$f":"+'Formulario 2- Planta'!C142","v":0},{"$f":"+'Formulario 2- Planta'!W142","v":0},0,{"$f":"+'Formulario 2- Planta'!AG142","v":0},0,{"$f":"+'Formulario 2- Planta'!AR142","v":0},0,0,null,null,null,null,null,null,null,null,0,true,null,null,null,0,0,0]
[{"$f":"+'Formulario 2- Planta'!A143","v":0},{"$f":"+'Formulario 2- Planta'!B143","v":0},{"$f":"+'Formulario 2- Planta'!C143","v":0},{"$f":"+'Formulario 2- Planta'!W143","v":0},0,{"$f":"+'Formulario 2- Planta'!AG143","v":0},0,{"$f":"+'Formulario 2- Planta'!AR143","v":0},0,0,null,null,null,null,null,null,null,null,0,true,null,null,null,0,0,0]
[{"$f":"+'Formulario 2- Planta'!A144","v":0},{"$f":"+'Formulario 2- Planta'!B144","v":0},{"$f":"+'Formulario 2- Planta'!C144","v":0},{"$f":"+'Formulario 2- Planta'!W144","v":0},0,{"$f":"+'Formulario 2- Planta'!AG144","v":0},0,{"$f":"+'Formulario 2- Planta'!AR144","v":0},0,0,null,null,null,null,null,null,null,null,0,true,null,null,null,0,0,0]
[{"$f":"+'Formulario 2- Planta'!A145","v":0},{"$f":"+'Formulario 2- Planta'!B145","v":0},{"$f":"+'Formulario 2- Planta'!C145","v":0},{"$f":"+'Formulario 2- Planta'!W145","v":0},{"$f":"IFERROR((D141/C141)/($D$166),0)","v":0},{"$f":"+'Formulario 2- Planta'!AG145","v":0},{"$f":"IFERROR((F141/C141)/$F$166,0)","v":0},{"$f":"+'Formulario 2- Planta'!AR145","v":0},{"$f":"IFERROR((H141/C141)/$H$166,0)","v":0},0,null,null,null,null,null,null,null,null,0,true,null,null,null,0,0,0]
[{"$f":"+'Formulario 2- Planta'!A146","v":0},{"$f":"+'Formulario 2- Planta'!B146","v":0},{"$f":"+'Formulario 2- Planta'!C146","v":0},{"$f":"+'Formulario 2- Planta'!W146","v":0},0,{"$f":"+'Formulario 2- Planta'!AG146","v":0},0,{"$f":"+'Formulario 2- Planta'!AR146","v":0},0,0,null,null,null,null,null,null,null,null,0,true,null,null,null,0,0,0]
[{"$f":"+'Formulario 2- Planta'!A147","v":0},{"$f":"+'Formulario 2- Planta'!B147","v":0},{"$f":"+'Formulario 2- Planta'!C147","v":0},{"$f":"+'Formulario 2- Planta'!W147","v":0},0,{"$f":"+'Formulario 2- Planta'!AG147","v":0},0,{"$f":"+'Formulario 2- Planta'!AR147","v":0},0,0,null,null,null,null,null,null,null,null,0,true,null,null,null,0,0,0]
[{"$f":"+'Formulario 2- Planta'!A148","v":0},{"$f":"+'Formulario 2- Planta'!B148","v":0},{"$f":"+'Formulario 2- Planta'!C148","v":0},{"$f":"+'Formulario 2- Planta'!W148","v":0},0,{"$f":"+'Formulario 2- Planta'!AG148","v":0},0,{"$f":"+'Formulario 2- Planta'!AR148","v":0},0,0,null,null,null,null,null,null,null,null,0,true,null,null,null,0,0,0]
["TOTAL PLANTA DE PERSONAL",{"$f":"B123+B103+B54+B46+B27+B13","v":0},{"$f":"C123+C103+C54+C46+C27+C13","v":0},{"$f":"+D13+D27+D46+D54+D103+D123","v":0},0,{"$f":"+F13+F27+F46+F54+F103+F123","v":0},0,{"$f":"+H13+H27+H46+H54+H103+H123","v":0},0,0,{"$f":"+K13+K27+K46+K54+K103+K123","v":0},{"$f":"+L13+L27+L46+L54+L103+L123","v":0},0,0,0,0,0,0,{"$f":"+SUM(K145:R145)","v":0},{"$f":"+S145=C145","v":true}]
["TRABAJADORES OFICIALES",null,{"$f":"SUM(C147:C164)","v":0},null,0,null,0,null,0,null,0]
[{"$f":"+'Formulario 2- Planta'!A151","v":0},{"$f":"+'Formulario 2- Planta'!B151","v":0},{"$f":"+'Formulario 2- Planta'!C151","v":0},null,0,null,0,null,0,null,null,null,null,null,null,null,null,null,null,null,null,null,null,{"$f":"$D$166","v":0},{"$f":"$F$166","v":0},{"$f":"$H$166","v":0}]
[{"$f":"+'Formulario 2- Planta'!A152","v":0},{"$f":"+'Formulario 2- Planta'!B152","v":0},{"$f":"+'Formulario 2- Planta'!C152","v":0},null,0,null,0,null,0,null,null,null,null,null,null,null,null,null,null,null,null,null,null,0,0,0]
[{"$f":"+'Formulario 2- Planta'!A153","v":0},{"$f":"+'Formulario 2- Planta'!B153","v":0},{"$f":"+'Formulario 2- Planta'!C153","v":0},null,0,null,0,null,0,null,null,null,null,null,null,null,null,null,null,null,null,null,null,0,0,0]
[{"$f":"+'Formulario 2- Planta'!A154","v":0},{"$f":"+'Formulario 2- Planta'!B154","v":0},{"$f":"+'Formulario 2- Planta'!C154","v":0},null,0,null,0,null,0,null,null,null,null,null,null,null,null,null,null,null,null,null,null,0,0,0]
[{"$f":"+'Formulario 2- Planta'!A155","v":0},{"$f":"+'Formulario 2- Planta'!B155","v":0},{"$f":"+'Formulario 2- Planta'!C155","v":0},null,0,null,0,null,0,null,null,null,null,null,null,null,null,null,null,null,null,null,null,0,0,0]
[{"$f":"+'Formulario 2- Planta'!A156","v":0},{"$f":"+'Formulario 2- Planta'!B156","v":0},{"$f":"+'Formulario 2- Planta'!C156","v":0},null,0,null,0,null,0,null,null,null,null,null,null,null,null,null,null,null,null,null,null,0,0,0]
[{"$f":"+'Formulario 2- Planta'!A157","v":0},{"$f":"+'Formulario 2- Planta'!B157","v":0},{"$f":"+'Formulario 2- Planta'!C157","v":0},null,0,null,0,null,0,null,null,null,null,null,null,null,null,null,null,null,null,null,null,0,0,0]
[{"$f":"+'Formulario 2- Planta'!A158","v":0},{"$f":"+'Formulario 2- Planta'!B158","v":0},{"$f":"+'Formulario 2- Planta'!C158","v":0},null,0,null,0,null,0,null,null,null,null,null,null,null,null,null,null,null,null,null,null,0,0,0]
[{"$f":"+'Formulario 2- Planta'!A159","v":0},{"$f":"+'Formulario 2- Planta'!B159","v":0},{"$f":"+'Formulario 2- Planta'!C159","v":0},null,0,null,0,null,0,null,null,null,null,null,null,null,null,null,null,null,null,null,null,0,0,0]
[{"$f":"+'Formulario 2- Planta'!A160","v":0},{"$f":"+'Formulario 2- Planta'!B160","v":0},{"$f":"+'Formulario 2- Planta'!C160","v":0},null,0,null,0,null,0,null,null,null,null,null,null,null,null,null,null,null,null,null,null,0,0,0]
[{"$f":"+'Formulario 2- Planta'!A161","v":0},{"$f":"+'Formulario 2- Planta'!B161","v":0},{"$f":"+'Formulario 2- Planta'!C161","v":0},null,0,null,0,null,0,null,null,null,null,null,null,null,null,null,null,null,null,null,null,0,0,0]
[{"$f":"+'Formulario 2- Planta'!A162","v":0},{"$f":"+'Formulario 2- Planta'!B162","v":0},{"$f":"+'Formulario 2- Planta'!C162","v":0},null,0,null,0,null,0,null,null,null,null,null,null,null,null,null,null,null,null,null,null,0,0,0]
[{"$f":"+'Formulario 2- Planta'!A163","v":0},{"$f":"+'Formulario 2- Planta'!B163","v":0},{"$f":"+'Formulario 2- Planta'!C163","v":0},null,0,null,0,null,0,null,null,null,null,null,null,null,null,null,null,null,null,null,null,0,0,0]
[{"$f":"+'Formulario 2- Planta'!A164","v":0},{"$f":"+'Formulario 2- Planta'!B164","v":0},{"$f":"+'Formulario 2- Planta'!C164","v":0},null,0,null,0,null,0,null,null,null,null,null,null,null,null,null,null,null,null,null,null,0,0,0]
[{"$f":"+'Formulario 2- Planta'!A165","v":0},{"$f":"+'Formulario 2- Planta'!B165","v":0},{"$f":"+'Formulario 2- Planta'!C165","v":0},null,0,null,0,null,0,null,null,null,null,null,null,null,null,null,null,null,null,null,null,0,0,0]
[{"$f":"+'Formulario 2- Planta'!A166","v":0},{"$f":"+'Formulario 2- Planta'!B166","v":0},{"$f":"+'Formulario 2- Planta'!C166","v":0},null,0,null,0,null,0,null,null,null,null,null,null,null,null,null,null,null,null,null,null,0,0,0]
[{"$f":"+'Formulario 2- Planta'!A167","v":0},{"$f":"+'Formulario 2- Planta'!B167","v":0},{"$f":"+'Formulario 2- Planta'!C167","v":0},null,0,null,0,null,0,null,null,null,null,null,null,null,null,null,null,null,null,null,null,0,0,0]
[{"$f":"+'Formulario 2- Planta'!A168","v":0},{"$f":"+'Formulario 2- Planta'!B168","v":0},{"$f":"+'Formulario 2- Planta'!C168","v":0},null,0,null,0,null,0,null,null,null,null,null,null,null,null,null,null,null,null,null,null,0,0,0]
["TOTAL TRABAJADORES OFICIALES",null,{"$f":"SUM(C147:C164)","v":0},{"$f":"SUM(D147:D164)","v":0},0,{"$f":"SUM(F147:F164)","v":0},0,{"$f":"SUM(H147:H164)","v":0},0,{"$f":"D165+F165+H165","v":0}]
["TOTAL PLANTA DE PERSONAL",null,{"$f":"+C145+C165","v":0},{"$f":"+D145+D165","v":0},0,{"$f":"+F145+F165","v":0},0,{"$f":"+H145+H165","v":0},0,{"$f":"+J145+J165","v":0},0,0,0,0,0,0,0,0,{"$f":"+SUM(K166:R166)","v":0},{"$f":"+S166=C166","v":true}]
[]
[]
["% Partipicación dependencias",null,null,null,null,null,null,null,null,null,{"$f":"+K170/$S$170","v":{"$error":"#DIV/0!"}},{"$f":"+L170/$S$170","v":{"$error":"#DIV/0!"}},{"$error":"#DIV/0!"},{"$error":"#DIV/0!"},{"$error":"#DIV/0!"},{"$error":"#DIV/0!"},{"$error":"#DIV/0!"},{"$error":"#DIV/0!"},{"$f":"SUM(K169:R169)","v":{"$error":"#DIV/0!"}}]
["COSTO DE PLANTA POR DEPENDENCIA",null,null,null,null,null,null,null,null,null,{"$f":"K171+K172+K173","v":0},{"$f":"L171+L172+L173","v":0},0,0,0,0,0,0,{"$f":"+SUM(K170:R170)","v":0},{"$f":"+J166=S170","v":true}]
["SALARIO",null,null,null,null,null,null,null,null,null,{"$f":"SUMPRODUCT(_xlfn._xlws.FILTER($E$14:$E$164,ISNUMBER(K14:K164)),_xlfn._xlws.FILTER($X$14:$X$164,ISNUMBER(K14:K164)),_xlfn._xlws.FILTER(K14:K164,ISNUMBER(K14:K164)))","v":0},{"$f":"SUMPRODUCT(_xlfn._xlws.FILTER($E$14:$E$164,ISNUMBER(L14:L164)),_xlfn._xlws.FILTER($X$14:$X$164,ISNUMBER(L14:L164)),_xlfn._xlws.FILTER(L14:L164,ISNUMBER(L14:L164)))","v":0},{"$f":"SUMPRODUCT(_xlfn._xlws.FILTER($E$14:$E$164,ISNUMBER(M14:M164)),_xlfn._xlws.FILTER($X$14:$X$164,ISNUMBER(M14:M164)),_xlfn._xlws.FILTER(M14:M164,ISNUMBER(M14:M164)))","v":0},{"$f":"SUMPRODUCT(_xlfn._xlws.FILTER($E$14:$E$164,ISNUMBER(N14:N164)),_xlfn._xlws.FILTER($X$14:$X$164,ISNUMBER(N14:N164)),_xlfn._xlws.FILTER(N14:N164,ISNUMBER(N14:N164)))","v":0},{"$f":"SUMPRODUCT(_xlfn._xlws.FILTER($E$14:$E$164,ISNUMBER(O14:O164)),_xlfn._xlws.FILTER($X$14:$X$164,ISNUMBER(O14:O164)),_xlfn._xlws.FILTER(O14:O164,ISNUMBER(O14:O164)))","v":0},{"$f":"SUMPRODUCT(_xlfn._xlws.FILTER($E$14:$E$164,ISNUMBER(P14:P164)),_xlfn._xlws.FILTER($X$14:$X$164,ISNUMBER(P14:P164)),_xlfn._xlws.FILTER(P14:P164,ISNUMBER(P14:P164)))","v":0},{"$f":"SUMPRODUCT(_xlfn._xlws.FILTER($E$14:$E$164,ISNUMBER(Q14:Q164)),_xlfn._xlws.FILTER($X$14:$X$164,ISNUMBER(Q14:Q164)),_xlfn._xlws.FILTER(Q14:Q164,ISNUMBER(Q14:Q164)))","v":0},{"$f":"SUMPRODUCT(_xlfn._xlws.FILTER($E$14:$E$164,ISNUMBER(R14:R164)),_xlfn._xlws.FILTER($X$14:$X$164,ISNUMBER(R14:R164)),_xlfn._xlws.FILTER(R14:R164,ISNUMBER(R14:R164)))","v":0},{"$f":"+SUM(K171:R171)","v":0},{"$f":"+D166=S171","v":true}]
["REMUNERACIONES NO CONSTITUTIVAS DE FACTOR SALARIAL",null,null,null,null,null,null,null,null,null,{"$f":"SUMPRODUCT(_xlfn._xlws.FILTER($G$14:$G$164,ISNUMBER(K$14:K$164)),_xlfn._xlws.FILTER($Y$14:$Y$164,ISNUMBER(K$14:K$164)),_xlfn._xlws.FILTER(K$14:K$164,ISNUMBER(K$14:K$164)))","v":0},{"$f":"SUMPRODUCT(_xlfn._xlws.FILTER($G$14:$G$164,ISNUMBER(L$14:L$164)),_xlfn._xlws.FILTER($Y$14:$Y$164,ISNUMBER(L$14:L$164)),_xlfn._xlws.FILTER(L$14:L$164,ISNUMBER(L$14:L$164)))","v":0},{"$f":"SUMPRODUCT(_xlfn._xlws.FILTER($G$14:$G$164,ISNUMBER(M$14:M$164)),_xlfn._xlws.FILTER($Y$14:$Y$164,ISNUMBER(M$14:M$164)),_xlfn._xlws.FILTER(M$14:M$164,ISNUMBER(M$14:M$164)))","v":0},{"$f":"SUMPRODUCT(_xlfn._xlws.FILTER($G$14:$G$164,ISNUMBER(N$14:N$164)),_xlfn._xlws.FILTER($Y$14:$Y$164,ISNUMBER(N$14:N$164)),_xlfn._xlws.FILTER(N$14:N$164,ISNUMBER(N$14:N$164)))","v":0},{"$f":"SUMPRODUCT(_xlfn._xlws.FILTER($G$14:$G$164,ISNUMBER(O$14:O$164)),_xlfn._xlws.FILTER($Y$14:$Y$164,ISNUMBER(O$14:O$164)),_xlfn._xlws.FILTER(O$14:O$164,ISNUMBER(O$14:O$164)))","v":0},{"$f":"SUMPRODUCT(_xlfn._xlws.FILTER($G$14:$G$164,ISNUMBER(P$14:P$164)),_xlfn._xlws.FILTER($Y$14:$Y$164,ISNUMBER(P$14:P$164)),_xlfn._xlws.FILTER(P$14:P$164,ISNUMBER(P$14:P$164)))","v":0},{"$f":"SUMPRODUCT(_xlfn._xlws.FILTER($G$14:$G$164,ISNUMBER(Q$14:Q$164)),_xlfn._xlws.FILTER($Y$14:$Y$164,ISNUMBER(Q$14:Q$164)),_xlfn._xlws.FILTER(Q$14:Q$164,ISNUMBER(Q$14:Q$164)))","v":0},{"$f":"SUMPRODUCT(_xlfn._xlws.FILTER($G$14:$G$164,ISNUMBER(R$14:R$164)),_xlfn._xlws.FILTER($Y$14:$Y$164,ISNUMBER(R$14:R$164)),_xlfn._xlws.FILTER(R$14:R$164,ISNUMBER(R$14:R$164)))","v":0},{"$f":"+SUM(K172:R172)","v":0},{"$f":"+F166=S172","v":true}]
[" CONTRIBUCIONES INHERENTES A LA NÓMINA",null,null,null,null,null,null,null,null,null,{"$f":"SUMPRODUCT(_xlfn._xlws.FILTER($I$14:$I$164,ISNUMBER(K$14:K$164)),_xlfn._xlws.FILTER($Z$14:$Z$164,ISNUMBER(K$14:K$164)),_xlfn._xlws.FILTER(K$14:K$164,ISNUMBER(K$14:K$164)))","v":0},{"$f":"SUMPRODUCT(_xlfn._xlws.FILTER($I$14:$I$164,ISNUMBER(L$14:L$164)),_xlfn._xlws.FILTER($Z$14:$Z$164,ISNUMBER(L$14:L$164)),_xlfn._xlws.FILTER(L$14:L$164,ISNUMBER(L$14:L$164)))","v":0},{"$f":"SUMPRODUCT(_xlfn._xlws.FILTER($I$14:$I$164,ISNUMBER(M$14:M$164)),_xlfn._xlws.FILTER($Z$14:$Z$164,ISNUMBER(M$14:M$164)),_xlfn._xlws.FILTER(M$14:M$164,ISNUMBER(M$14:M$164)))","v":0},{"$f":"SUMPRODUCT(_xlfn._xlws.FILTER($I$14:$I$164,ISNUMBER(N$14:N$164)),_xlfn._xlws.FILTER($Z$14:$Z$164,ISNUMBER(N$14:N$164)),_xlfn._xlws.FILTER(N$14:N$164,ISNUMBER(N$14:N$164)))","v":0},{"$f":"SUMPRODUCT(_xlfn._xlws.FILTER($I$14:$I$164,ISNUMBER(O$14:O$164)),_xlfn._xlws.FILTER($Z$14:$Z$164,ISNUMBER(O$14:O$164)),_xlfn._xlws.FILTER(O$14:O$164,ISNUMBER(O$14:O$164)))","v":0},{"$f":"SUMPRODUCT(_xlfn._xlws.FILTER($I$14:$I$164,ISNUMBER(P$14:P$164)),_xlfn._xlws.FILTER($Z$14:$Z$164,ISNUMBER(P$14:P$164)),_xlfn._xlws.FILTER(P$14:P$164,ISNUMBER(P$14:P$164)))","v":0},{"$f":"SUMPRODUCT(_xlfn._xlws.FILTER($I$14:$I$164,ISNUMBER(Q$14:Q$164)),_xlfn._xlws.FILTER($Z$14:$Z$164,ISNUMBER(Q$14:Q$164)),_xlfn._xlws.FILTER(Q$14:Q$164,ISNUMBER(Q$14:Q$164)))","v":0},{"$f":"SUMPRODUCT(_xlfn._xlws.FILTER($I$14:$I$164,ISNUMBER(R$14:R$164)),_xlfn._xlws.FILTER($Z$14:$Z$164,ISNUMBER(R$14:R$164)),_xlfn._xlws.FILTER(R$14:R$164,ISNUMBER(R$14:R$164)))","v":0},{"$f":"+SUM(K173:R173)","v":0},{"$f":"+H166=S173","v":true}]
[]
[]
["RELACIÓN DEPENDENCIAS - PROGRAMAS PRESUPUESTALES"]
[]
[null,null,null,null,"CONCEPTOS RELACIÓN PROGRAMATICO",{"$f":"_xlfn._xlws.FILTER(CHOOSE(VLOOKUP(B7,Programático!$T$3:$AI$32,16,FALSE)-1,Programático!U2:V32,Programático!U2:W32,Programático!U2:X32,Programático!U2:Y32,Programático!U2:Z32,Programático!U2:AA32,Programático!U2:AB32,Programático!U2:AC32,Programático!U2:AD32,Programático!U2:AE32,Programático!U2:AF32,Programático!U2:AG32,Programático!U2:AH32),Programático!T2:T32=B7)","v":"1301 Política macroeconómica y fiscal"},"1302 Gestión de recursos públicos","1303 Reducción de la vulnerabilidad fiscal ante desastres y riesgos climáticos","1304 Inspección, control y vigilancia financiera, solidaria y de recursos públicos","1305 Fortalecimiento de recaudo y tributación","1399 Fortalecimiento y apoyo a la gestión institucional del sector Hacienda","2408 Prestación de servicios de transporte público de pasajeros","2202 Calidad y fomento de la educación superior","2501 Fortalecimiento del control y la vigilancia de la gestión fiscal y resarcimiento al daño del patrimonio público","3606 Protección Económica para la Vejez","1300 No asignable a programas",null,null,null,null,"CHECK"]
[null,null,null,null,{"$f":"+$K$11","v":"Alta gerencia"},0.3,0.3,0.4,null,null,null,null,null,null,null,null,null,null,null,null,{"$f":"+SUM(F179:T179)","v":1}]
[null,null,null,null,{"$f":"+$L$11","v":"Secretaria general y dependencias de apoyo"},null,null,null,null,null,null,null,null,null,null,null,null,null,null,null,0]
[null,null,null,null,{"$f":"+$M$11","v":"Oficinas asesoras"},null,null,null,null,null,null,null,null,null,null,null,null,null,null,null,0]
[null,null,null,null,{"$f":"+$N$11","v":"Dependencia misional 1"},null,null,null,null,null,null,null,null,null,null,null,null,null,null,null,0]
[null,null,null,null,{"$f":"+$O$11","v":"Dependencia misional 2"},null,null,null,null,null,null,null,null,null,null,null,null,null,null,null,0]
[{"$f":"1705/100","v":17.05},null,null,null,{"$f":"+$P$11","v":"Dependencia misional 3"},null,null,null,null,null,null,null,null,null,null,null,null,null,null,null,0]
[null,null,null,null,{"$f":"+$Q$11","v":"Dependencia misional 4"},null,null,null,null,null,null,null,null,null,null,null,null,null,null,null,0]
[null,null,null,null,{"$f":"+$R$11","v":"Dependencia msional 5"},null,null,null,null,null,null,null,null,null,null,null,null,null,null,null,0]
[null,null,null,null,"SALARIO",{"$f":"(F179*$K$171)+(F180*$L$171)+(F181*$M$171)+(F182*$N$171)+(F183*$O$171)+(F184*$P$171)+(F185*$Q$171)+(F186*$R$171)","v":0},{"$f":"(G179*$K$171)+(G180*$L$171)+(G181*$M$171)+(G182*$N$171)+(G183*$O$171)+(G184*$P$171)+(G185*$Q$171)+(G186*$R$171)","v":0},{"$f":"(H179*$K$171)+(H180*$L$171)+(H181*$M$171)+(H182*$N$171)+(H183*$O$171)+(H184*$P$171)+(H185*$Q$171)+(H186*$R$171)","v":0},{"$f":"(I179*$K$171)+(I180*$L$171)+(I181*$M$171)+(I182*$N$171)+(I183*$O$171)+(I184*$P$171)+(I185*$Q$171)+(I186*$R$171)","v":0},0,0,0,0,0,0,0,0,0,0,0,{"$f":"+SUM(F187:T187)=S171","v":true}]
[null,null,null,null,"REMUNERACIONES NO CONSTITUTIVAS DE FACTOR SALARIAL",{"$f":"(F179*$K$172)+(F180*$L$172)+(F181*$M$172)+(F182*$N$172)+(F183*$O$172)+(F184*$P$172)+(F185*$Q$172)+(F186*$R$172)","v":0},{"$f":"(G179*$K$172)+(G180*$L$172)+(G181*$M$172)+(G182*$N$172)+(G183*$O$172)+(G184*$P$172)+(G185*$Q$172)+(G186*$R$172)","v":0},0,0,0,0,0,0,0,0,0,0,0,0,0,{"$f":"+SUM(F188:T188)=S172","v":true}]
[null,null,null,null,"CONTRIBUCIONES INHERENTES A LA NÓMINA",{"$f":"(F179*$K$173)+(F180*$L$173)+(F181*$M$173)+(F182*$N$173)+(F183*$O$173)+(F184*$P$173)+(F185*$Q$173)+(F186*$R$173)","v":0},{"$f":"(G179*$K$173)+(G180*$L$173)+(G181*$M$173)+(G182*$N$173)+(G183*$O$173)+(G184*$P$173)+(G185*$Q$173)+(G186*$R$173)","v":0},0,0,0,0,0,0,0,0,0,0,0,0,0,{"$f":"+SUM(F189:T189)=S173","v":true}]
[null,null,null,null,"TOTAL",{"$f":"+F187+F188+F189","v":0},{"$f":"+G187+G188+G189","v":0},0,0,0,0,0,0,0,0,0,0,0,0,0,{"$f":"+SUM(F190:T190)=S170","v":true}]
[null,null,null,null,"Porcentaje Prorrateo",{"$f":"IF(F190=0,0,F190/SUM($F$190:$T$190))","v":0},{"$f":"IF(G190=0,0,G190/SUM($F$190:$T$190))","v":0},0,0,0,0,0,0,0,0,0,0,0,0,0]
[]
[]
["DENOMINACIÓN DEPENDENCIAS MISIONALES (Especificación de las dependencias que hacen parte de cada agregación)"]
[]
["Alta gerencia"]
["Secretaria general y dependencias de apoyo:"]
["Oficinas asesoras:"]
["Dependencia misional 1:"]
["Dependencia msional 2:"]
["Dependencia msional 3:"]
["Dependencia msional 4:"]
["Dependencia msional 5:"]

{"sheet":"DESPLEGABLES","index":4,"n_rows":223,"n_cols":38,"rows_kept":223,"cut":false,"hidden":true,"merged":[]}
["CÓDIGO","UNIDAD EJECUTORA ","SECTOR",null,"FONDOS ESPECIALES ","COD",null,"IMPUESTOS INDIRECTOS -FE","CÓD ",null,"CONTRIBUCIONES SOCIALES- EP","CÓD",null,"CONTRIBUCIONES SOCIALES -FE","CÓD",null,"CONTRIBUCIONES DIVERSAS - FE","CÓD",null,"CONTRIBUCIONES DIVERSAS - ESTAPÚBLICO","CÓD",null,"TASAS Y DERECHOS ADMINISTRATIVOS - EP","CÓD",null,"DERECHOS ECONÓMICOS POR USO DE RECURSOS NATURALES- EP","CÓD",null,"DERECHOS ECONÓMICOS POR USO DE RECURSOS NATURALES- FE","CÓD",null,"TRANSFERENCIAS CORRIENTES- EP","CÓD",null,"TRANSFERENCIAS CORRIENTES- FE","CÓD",null,"CPC"]
["010101","SENADO DE LA REPUBLICA","CONGRESO DE LA REPÚBLICA",null,"CONTRIBUCIÓN ENTIDADES VIGILADAS CONTRALORIA GENERAL NACION",602,null,"Impuesto social a las armas y municiones",10,null,"Salud","01",null,"Salud","01",null,"Contribución - Comisión de Regulación de Comunicaciones (CRC)","01",null,"Contribución - Superintendencia de Sociedades","04",null,"Expedición de visas","01",null,"Derecho económico por uso del subsuelo","01",null,"Autorización de uso de zonas de fondeo - DIMAR ","06",null,"Indemnizaciones relacionadas con seguros no de vida","01",null,"Indemnizaciones relacionadas con seguros no de vida","01",null,"Agricultura, silvicultura y productos de la pesca"]
["010102","CAMARA DE REPRESENTANTES","CONGRESO DE LA REPÚBLICA",null,"CONTRIBUCIÓN ENTIDADES VIGILADAS SUPERINTENDENCIA SUBSIDIO FAMILIAR",603,null,"Impuesto de remate y adjudicaciones",11,null,"Pensión","02",null,"Pensión","02",null,"Contribución - Comisión de Regulación de Energía y Gas (CREG)","02",null,"Contribución - Superintendencia de Vigilancia y Seguridad Privada","05",null,"Expedición de pasaportes","02",null,"Concesiones mineras","02",null,null,null,null,"Sentencias y conciliaciones","02",null,"Sentencias y conciliaciones","02",null,"Minerales; electricidad, gas y agua"]
["020101","PRESIDENCIA DE LA REPUBLICA - GESTION GENERAL","PRESIDENCIA DE LA REPÚBLICA",null,"FINANCIACION SECTOR JUSTICIA",609,null,"Sobretasa nacional a la gasolina",12,null,"Contribuciones asignaciones de retiro militares y policía","03",null,null,null,null,"Contribución - Comisión de Regulación de Agua Potable y Saneamiento Básico (CRA)","03",null,"Contribución - Superintendencia de la Economía Solidaria","06",null,"Apostilla o legalización","03",null,"Contraprestaciones portuarias","03",null,null,null,null,"Devolución IVA - Instituciones de educación superior ","04",null,"Prescripción de depósitos judiciales","03",null,"Productos alimenticios, bebidas y tabaco; textiles, prendas de vestir y productos de cuero"]
["020900","AGENCIA PRESIDENCIAL DE COOPERACION INTERNACIONAL DE COLOMBIA, APC - COLOMBIA ","PRESIDENCIA DE LA REPÚBLICA",null,"FONDO DE DEFENSA NACIONAL","6010",null,"Sobretasa al ACPM",13,null,null,null,null,null,null,null,"Contribución - Superintendencia del Subsidio Familiar","07",null,"Contribución de vigilancia - Superintendencia de Industria y Comercio","07",null,"Protocolización de escrituras públicas","04",null,"Concesiones parques naturales","05",null,null,null,null,"Transferencias de otras unidades de gobierno","05",null,"Devolución IVA - Instituciones de educación superior","04",null,"Otros bienes transportables, (excepto productos metálicos, maquinaria y equipo)"]
["021100","UNIDAD NACIONAL PARA LA GESTION DEL RIESGO DE DESASTRES ","PRESIDENCIA DE LA REPÚBLICA",null,"FONDO ESTUPEFACIENTES - MINSALUD","6013",null,"Impuesto de salida",15,null,"CONTRIBUCIONES ASOCIADAS A NÓMINA - EP","CÓD",null,"CONTRIBUCIONES ASOCIADAS A NÓMINA -FE","CÓD",null,"Contribución - Fondo de Compensación Ambiental",13,null,"Contribución de seguimiento - Superintendencia de Industria y Comercio","09",null,"Expedición de certificaciones en el exterior","05",null,null,null,null,null,null,null,"Recursos por bienes mostrencos y vocaciones hereditarias","07",null,"Transferencias de otras unidades de gobierno","05",null,"Productos metálicos, maquinaria y equipo"]
["021200","AGENCIA PARA LA REINCORPORACION Y LA NORMALIZACION - ARN","PRESIDENCIA DE LA REPÚBLICA",null,"FONDOS INTERNOS MINISTERIO DEFENSA","6014",null,null,null,null,"ICBF","01",null,"Escuelas industriales e institutos técnicos","04",null,"Contribución - Fondo Apoyo Financiero Zonas No Interconectadas (FAZNI) ",14,null,"Contribución - Superintendencia Financiera de Colombia","10",null,"Certificación sobre la existencia legal de sociedades","06",null,null,null,null,null,null,null,"Compensación UPC – SSS","09",null,"Recursos de terceros en consignación ","06",null,"Construcción y servicios de la construcción"]
["021300","AGENCIA NACIONAL INMOBILIARIA VIRGILIO BARCO VARGAS","PRESIDENCIA DE LA REPÚBLICA",null,"FONDOS INTERNOS POLICIA NACIONAL","6015",null,null,null,null,"SENA","02",null,"Aportes de cesantías","05",null,"Contribución - Fondo Apoyo Financiero para la Energización de las Zonas Rurales Interconectadas (FAER)",15,null,"Contribución - Superintendencia de Servicios Públicos Domiciliarios","11",null,"Reconocimiento y autenticación de firmas ante cónsules colombianos","07",null,"CÁLCULO POR INGRESOS CORRIENTES",null,null,null,null,null,"Mercancías Aprehendidas, Decomisadas o Abandonadas","11",null,"Recursos por procesos de extinción de dominio","08",null,"Servicios de venta y de distribución; alojamiento; servicios de suministro de comidas y bebidas; servicios de transporte; y servicios de distribución de electricidad, gas y agua"]
["021401","AGENCIA DE RENOVACION DEL TERRITORIO ART - GESTION GENERAL","PRESIDENCIA DE LA REPÚBLICA",null,"FONDO ROTATORIO DE MINAS Y ENERGÍA","6017",null,null,null,null,"ESAP","03",null,null,null,null,"Contribución - Fondo de Energías No Convencionales y Gestión Eficiente de la Energía (FENOGE)",16,null,"Contribucción - Superintendencia de Puertos y Transporte",12,null,"Expedición de tarjetas de registro consular","08",null,null,null,null,null,null,null,null,null,null,"Compensación UPC – SSS","09",null,"Servicios financieros y servicios conexos, servicios inmobiliarios y servicios de leasing"]
["021402","DIRECCIÓN DE SUSTITUCIÓN DE CULTIVOS DE USO ILÍCITO","PRESIDENCIA DE LA REPÚBLICA",null,"ESCUELAS INDUSTRIALES E INSTITUTOS TECNICOS","6019",null,null,null,null,null,null," ",null,null,null,"Contribución - Fondo Especial de Energía Social (FOES)",17,null,"Contribucción pensionados militares y policia",23,null,"Trámite de nacionalidad colombiana por adopción","09",null,"CONTRIBUCIONES SOCIALES- EP",null,null,"TASAS Y DERECHOS ADMINISTRATIVOS - EP",null,null,"IMPUESTOS INDIRECTOS -FE",null,null,"Recursos FRISCO",10,null,"Servicios prestados a las empresas y servicios de producción"]
["030101","DEPARTAMENTO NACIONAL DE PLANEACION - GESTION GENERAL","PLANEACIÓN",null,"FONDO DE RECURSOS SOAT Y FONSAT (ANTES FOSYGA)","6021",null,null,null,null,"CONTRIBUCIONES ESPECIALES  - EP","CÓD",null,null,null,null,"Contribución - Fondo Especial Cuota de Fomento de Gas Natural",18,null,"Derecho económico por precios altos",33,null,"Trámite de renuncia a la nacionalidad colombiana","10",null,"1.02.1.01.01. Salud",null,null,"1.02.2.01. Expedición de visas",null,null,"1.01.2.10. Impuesto social a las armas y municiones",null,null,"Prescripción especial adquisitivo de dominio",12,null,"Servicios para la comunidad, sociales y personales"]
["030300","UNIDAD ADMINISTRATIVA ESPECIAL - AGENCIA NACIONAL DE CONTRATACION PUBLICA - COLOMBIA COMPRA EFICIENTE","PLANEACIÓN",null,"FONDO DE SOLIDARIDAD PENSIONAL","6022",null,null,null,null,"Recaudo Ley 55 de 1985 Superintendencia de Notariado y Registro","03",null,"CONTRIBUCIONES ESPECIALES -FE","CÓD",null,"Contribución - Fondo Especial para el programa de Normalización de Redes Eléctricas (Prone)",19,null,"Derecho económico por participación en la producción",34,null,"Expedición de certificados de antepasados de extranjeros nacionalizados como colombianos por adopción","11",null,"1.02.1.01.02. Pensión",null,null,"1.02.2.02. Expedición de pasaportes",null,null,"1.01.2.11. Impuesto de remate y adjudicaciones",null,null,"Recursos por acuerdos de compartición Ley 1743 de 2014",13]
["032400","SUPERINTENDENCIA DE SERVICIOS PÚBLICOS DOMICILIARIOS","PLANEACIÓN",null,"COMISION DE REGULACION DE TELECOMUNICACIONES","6023",null,"MULTAS Y SANCIONES","CÓD ",null,null,null,null,"Cuota de fiscalización y auditaje","01",null,"Contribución - Fondo de Solidaridad para Subsidios y Redistribución de Ingresos",20,null,"Contribución Nacional de Valorización",40,null,"Expedición de certificados de no objeción a la permanencia en el exterior de estudiantes colombianos","12",null,"1.02.1.01.03. Contribuciones asignaciones de retiro militares y policía",null,null,"1.02.2.03. Apostilla o legalización",null,null,"1.01.2.12. Sobretasa nacional a la gasolina",null,null,"Del Fondo para la Modernización, Descongestión y Bienestar de la Administración de la Justicia ",14]
["040101","DEPARTAMENTO ADMINISTRATIVO NACIONAL DE ESTADÍSTICA (DANE) - GESTIÓN GENERAL","INFORMACIÓN ESTADÍSTICA",null,"COMISION DE REGULACION DE ENERGIA Y GAS","6024",null,"Multas Superintendencias","01",null,null,null,null,"Aporte a la administración de justicia","02",null,"Contribución - Fondo Emprender",21,null,"Contribución Industria Militar – ICFE",45,null,"Expedición de cédulas de ciudadanía","13",null,null,null,null,"1.02.2.04. Protocolización de escrituras públicas",null,null,"1.01.2.13. Sobretasa al ACPM",null,null,"Distribucción Ley 55 de 1985 Superintendencia de Notariado y Registro ","15"]
["040200","FONDO ROTATORIO DEL DANE","INFORMACIÓN ESTADÍSTICA",null,"COMISION DE REGULACION DE AGUA POTABLE","6025",null,"Sanciones aduaneras","02",null,"CENSATÍAS","CÓD",null,null,null,null,"Contribución - Fondo Nacional de las Universidades Estatales de Colombia",22,null,"Monetización cuota de aprendizaje",48,null,"Expedición de tarjetas de identidad","14",null,"CONTRIBUCIONES ASOCIADAS A NÓMINA - EP",null,null,"1.02.2.05. Expedición de certificaciones en el exterior ",null,null,"1.01.2.15. Impuesto de salida"]
["040300","INSTITUTO GEOGRÁFICO AGUSTÍN CODAZZI - IGAC","INFORMACIÓN ESTADÍSTICA",null,"INSTITUTO DE ESTUDIOS DEL MINISTERIO PUBLICO","6031",null,"Sanciones disciplinarias ","03",null,"Cesantías definitivas ","01",null,null,null,null,"Cuota de compensación militar - Fondo de Defensa Nacional",24,null,"Contribucción servicios notariales ",51,null,"Expedición de certificaciones no sujetas a reserva legal","15",null,"1.02.1.02.01. ICBF",null,null,"1.02.2.06. Certificación sobre la existencia legal de sociedades",null,null,null,null,null,"TASAS Y DERECHOS ADMINISTRATIVOS - FE"]
["050101","DEPARTAMENTO DE LA FUNCIÓN PÚBLICA - GESTIÓN GENERAL","EMPLEO PÚBLICO",null,"FONDO SALUD FUERZAS MILITARES","6033",null,"Sanciones contractuales ","04",null,"Cesantías parciales ","02",null,null,null,null,"Aporte sobre pólizas de seguros - Fondo Nacional de Bomberos de Colombia",25,null,null,null,null,"Expedición de bases de datos sujeta a reserva legal","16",null,"1.02.1.02.02. SENA",null,null,"1.02.2.07. Reconocimiento y autenticación de firmas ante cónsules colombianos",null,null,"CONTRIBUCIONES ESPECIALES -FE",null,null,"1.02.2.15. Certificaciones y constancias "]
["050300","ESCUELA SUPERIOR DE ADMINISTRACIÓN PÚBLICA (ESAP)","EMPLEO PÚBLICO",null,"FONDO DE SALUD POLICIA NACIONAL","6034",null,"Sanciones administrativas","05",null,"Deuda Cesantías soldados profesionales afiliados Caja Promotora de Vivienda Militar y de Policía - CPVMP","03",null,null,null,null,"Arancel judicial - Ley 1394 de 2010",27,null,null,null,null,"Expedición de certificaciones excepcionales de nacionalidad","17",null,"1.02.1.02.03. ESAP",null,null,"1.02.2.08. Expedición de tarjetas de registro consular",null,null,"1.02.1.03.01. Cuota de fiscalización y auditaje",null,null,"1.02.2.39. Expedición de tarjetas profesionales "]
["110101","MINIRELACIONES EXTERIORES - GESTIÓN GENERAL","RELACIONES EXTERIORES",null,"FONDO COMPENSACION AMBIENTAL","6035",null,"Sanciones fiscales","06",null,"Deuda Cesantías Policía Nacional afiliados Caja Promotora de Vivienda Militar y de Policía - CPVMP","04",null,null,null,null,"Arancel judicial CSJ - Ley 1653 de 2013",28,null,null,null,null,"Expedición de certificados de Registro Civil","18",null,null,null,null,"1.02.2.09. Trámite de nacionalidad colombiana por adopción",null,null,"1.02.1.03.02. Aporte a la administración de justicia",null,null,"1.02.2.40. Derechos de registro "]
["110200","FONDO ROTATORIO DEL MINISTERIO DE RELACIONES EXTERIORES","RELACIONES EXTERIORES",null,"PENSIONES EPSA-CVC","6036",null,"Multas judiciales ","07",null,null,null,null,null,null,null,"Arancel judicial - Ley 1743 de 2014",29,null,null,null,null,"Impresión de publicaciones de la Organización Electoral","19",null,"CONTRIBUCIONES DIVERSAS - ESTAPÚBLICO",null,null,"1.02.2.10. Trámite de renuncia a la nacionalidad colombiana",null,null,null,null,null,"1.02.2.41. Autorización para el manejo de sustancias químicas controladas"]
["110400","UNIDAD ADMINISTRATIVA ESPECIAL MIGRACIÓN COLOMBIA","RELACIONES EXTERIORES",null,"FONDO SOLIDARIDAD PARA SUBSIDIOS Y REDISTRIBUCION INGRESOS","6039",null,"Sanciones por desestimiento ","08",null,null,null,null,null,null,null,"Contribución especial arbitral",30,null,null,null,null,"Venta de licencias de software","20",null,"1.02.1.04.04. Contribución - Superintendencia de Sociedades",null,null,"1.02.2.11. Expedición de certificados de antepasados de extranjeros nacionalizados como colombianos por adopción",null,null,null,null,null,"1.02.2.43. Permiso por tenencia y porte de armas "]
["120101","MINISTERIO DE JUSTICIA Y DEL DERECHO - GESTION GENERAL","JUSTICIA Y DEL DERECHO",null,"FONDO SEGURIDAD Y CONVIVENCIA CIUDADANA","6040",null,null,null,null,null,null,null,null,null,null,"Contribución especial para laudos arbitrales de contenido económico",31,null,null,null,null,"Expedición de cédula de extranjería","21",null,"1.02.1.04.05. Contribución - Superintendencia de Vigilancia y Seguridad Privada",null,null,"1.02.2.12. Expedición de  certificados de no objeción a la permanencia en el exterior de estudiantes colombianos",null,null,"CONTRIBUCIONES DIVERSAS - FE",null,null,"1.02.2.50. Tasa para la sostenibilidad del RUNT"]
["120400","SUPERINTENDENCIA DE NOTARIADO Y REGISTRO","JUSTICIA Y DEL DERECHO",null,"FONDO SUBSIDIO SOBRETASA GASOLINA LEY 488/98","6041",null,null,null,null,null,null,null,null,null,null,"Aporte afiliados al Sistema General de Pensiones - Subcuenta de Solidaridad",36,null,null,null,null,"Certificación de movimientos migratorios","22",null,"1.02.1.04.06. Contribución – Superintendencia de la Economía Solidaria",null,null,"1.02.2.13. Expedición de cédulas de ciudadanía",null,null,"1.02.1.04.01. Contribución - Comisión de Regulación de Comunicaciones (CRC) ",null,null,"1.02.2.52. Fiscalización y seguimiento a títulos mineros"]
["120800","INSTITUTO NACIONAL PENITENCIARIO Y CARCELARIO - INPEC","JUSTICIA Y DEL DERECHO",null,"FONDO PENSIONES SUPERINTENDENCIAS, CARBOCOL Y CAMINOS VECINALES","6042",null,null,null,null,null,null,null,null,null,null,"Aporte afiliados al Sistema General de Pensiones - Subcuenta de Subsistencia",37,null,null,null,null,"Permisos de ingreso y permanencia en el país","23",null,"1.02.1.04.08. Contribución de vigilancia - Superintendencia de Industria y Comercio",null,null,"1.02.2.14. Expedición de tarjetas de identidad",null,null,"1.02.1.04.02. Contribución - Comisión de Regulación de Energía y Gas (CREG)",null,null,"1.02.2.59. Expedición de licencias de fabricación de derivados de cannabis "]
["121000","UNIDAD ADMINISTRATIVA ESPECIAL AGENCIA NACIONAL DE DEFENSA JURÍDICA DEL ESTADO","JUSTICIA Y DEL DERECHO",null,"UNIDAD ADMINISTRATIVA ESPECIAL DE COMERCIO EXTERIOR","6043",null,null,null,null,null,null,null,null,null,null,"Aportes diferenciales - Fondo de Solidaridad Pensional",38,null,null,null,null,"Expedición de salvoconductos de permanencia y salida del país","24",null,"1.02.1.04.09. Contribución de seguimiento - Superintendencia de Industria y Comercio",null,null,"1.02.2.15. Expedición de certificaciones no sujetas a reserva legal",null,null,"1.02.1.04.03. Contribución - Comisión de Regulación de Agua Potable y Saneamiento Básico (CRA)",null,null,"1.02.2.60. Seguimiento a las licencias de fabricación de derivados de cannabis "]
["121100","UNIDAD DE SERVICIOS PENITENCIARIOS Y CARCELARIOS - USPEC","JUSTICIA Y DEL DERECHO",null,"FONDO SOBRETASA AL ACPM (LEY 488/98)","6046",null,null,null,null,null,null,null,null,null,null,"Aporte pensionados - Fondo de Solidaridad Pensional",39,null,null,null,null,"Expedición de información no sujeta a reserva legal","25",null,"1.02.1.04.10. Contribución - Superintendencia Financiera de Colombia",null,null,"1.02.2.16. Expedición de bases de datos sujeta a reserva legal",null,null,"1.02.1.04.07. Contribución - Superintendencia del Subsidio Familiar",null,null,"1.02.2.68. Derechos marítimos "]
["130101","MINISTERIO DE HACIENDA Y CRÉDITO PÚBLICO - GESTIÓN GENERAL","HACIENDA",null,"FONDO PARA DEFENSA DE DERECHOS E INTERESES COLECTIVOS","6049",null,null,null,null,null,null,null,null,null,null,"Contribución cultural a la boletería de los espectáculos públicos",41,null,null,null,null,"Expedición de la tarjeta de movilidad fronteriza","26",null,"1.02.1.04.11. Contribución - Superintendencia de Servicios Públicos Domiciliarios",null,null,"1.02.2.17. Expedición de certificaciones excepcionales de nacionalidad",null,null,"1.02.1.04.13. Contribución - Fondo de Compensación Ambiental",null,null,"1.02.2.69. Tasas Servicio de seguridad marítima "]
["130117","UNIDAD ADMINISTRATIVA ESPECIAL AGENCIA DEL INSPECTOR GENERAL DE TRIBUTOS, RENTAS Y CONTRIBUCIONES PARAFISCALES (ITRC)","HACIENDA",null,"FONDO DE INVESTIGACION EN SALUD (Ley643/01)","6050",null,null,null,null,null,null,null,null,null,null,"Recursos por la explotación de juegos de suerte y azar – Fondo de Investigación en Salud",42,null,null,null,null,"Inscripción al sistema de migración automática","27",null,"1.02.1.04.12. Contribución - Superintendencia de Puertos y Transporte",null,null,"1.02.2.18. Expedición de certificados de Registro Civil",null,null,"1.02.1.04.14. Contribución - Fondo Apoyo Financiero Zonas No Interconectadas (FAZNI) ",null,null,"1.02.2.70. Expedición de tarjetas de reservista y provisional"]
["130118","UNIDAD ADMINISTRATIVA ESPECIAL UNIDAD DE PROYECCIÓN NORMATIVA Y ESTUDIOS DE REGULACIÓN FINANCIERA (URF)","HACIENDA",null,"FONDO CONSERVACIÓN DE MUSEOS Y TEATROS","6051",null,null,null,null,null,null,null,null,null,null,"Contribución - Fondo Industria de la Construcción (FIC)",43,null,null,null,null,"Verificación migratoria en el sistema PLATINUM","28",null,"1.02.1.04.23. Contribución pensionados militares y policía",null,null,"1.02.2.19. Impresión de publicaciones de la Organización Electoral",null,null,"1.02.1.04.15. Contribución - Fondo Apoyo Financiero para la Energización de las Zonas Rurales Interconectadas (FAER)",null,null,"1.02.2.71. Expedición de cédulas militares y policiales "]
["130800","UNIDAD ADMINISTRATIVA ESPECIAL CONTADURÍA GENERAL DE LA NACIÓN","HACIENDA",null,"FONDO APOYO FINANCIERO ZONAS  NO INTERCONECTADAS (FAZNI)","6052",null,null,null,null,null,null,null,null,null,null,"Contribución SOAT - Fondo Nacional de Seguridad Vial",44,null,null,null,null,"Expedición de registros sanitarios","29",null,"1.02.1.04.33. Derecho económico por precios altos",null,null,"1.02.2.20. Venta de licencias de software",null,null,"1.02.1.04.16. Contribución - Fondo de Energías No Convencionales y Gestión Eficiente de la Energía (FENOGE)"]
["130900","SUPERINTENDENCIA DE LA ECONOMÍA SOLIDARIA","HACIENDA",null,"FONDO APOYO FINANCIERO PARA LA ENERGIZACIÓN DE LAS ZONAS RURALES INTERCONECTADAS (FAER)","6053",null,null,null,null,null,null,null,null,null,null,"Contribución - Fondo de Seguridad y Convivencia",46,null,null,null,null,"Renovación de la capacidad de laboratorios","30",null,"1.02.1.04.34. Derecho económico por participación en la producción",null,null,"1.02.2.21. Expedición de cédulas de extranjería",null,null,"1.02.1.04.17. Contribución - Fondo Especial de Energía Social (FOES)"]
["131000","UNIDAD ADMINISTRATIVA ESPECIAL DIRECCIÓN DE IMPUESTOS Y ADUANAS NACIONALES","HACIENDA",null,"FONDO RECURSOS MONITOREO Y VIGILANCIA EDUCACION SUPERIOR","6055",null,null,null,null,null,null,null,null,null,null,"Contribucción - Fondo de Curadores Urbanos ",49,null,null,null,null,"Realización de exámenes de laboratorio","31",null,"1.02.1.04.40. Contribución Nacional de Valorización",null,null,"1.02.2.22. Certificación de movimientos migratorios",null,null,"1.02.1.04.18. Contribución - Fondo Especial Cuota de Fomento de Gas Natural",null,null,"TRANSFERENCIAS CORRIENTES- FE"]
["131200","UNIDAD DE INFORMACIÓN Y ANÁLISIS FINANCIERO","HACIENDA",null,"FONDO FONPET - MAGISTERIO","6056",null,null,null,null,null,null,null,null,null,null,"Contribución - Fondo Notarias Decreto 1672 de 1997",50,null,null,null,null,"Expedición de certificados de registro sanitario","32",null,"1.02.1.04.45. Contribución Industria Militar - ICFE",null,null,"1.02.2.23. Permisos de ingreso y permanencia en el país",null,null,"1.02.1.04.19. Contribución - Fondo Especial para el programa de Normalización de Redes Eléctricas (Prone)",null,null,"1.02.6.01. Indemnizaciones relacionadas con seguros no de vida"]
["131300","SUPERINTENDENCIA FINANCIERA DE COLOMBIA","HACIENDA",null,"FONDO ESPECIAL DE ENERGÍA SOCIAL (FOES ART.118 DE LA LEY 812 DE 2003).","6057",null,null,null,null,null,null,null,null,null,null,"Contribución - Servicios notariales ",51,null,null,null,null,"Peajes","33",null,"1.02.1.04.48. Monetización cuota de aprendizaje ",null,null,"1.02.2.24. Expedición de salvoconductos de permanencia y salida del país",null,null,"1.02.1.04.20. Contribución – Fondo de Solidaridad para Subsidios y Redistribución de Ingresos",null,null,"1.02.6.03. Prescripción de depósitos judiciales"]
["131401","UNIDAD ADMINISTRATIVA ESPECIAL DE GESTIÓN  PENSIONAL Y CONTRIBUCIONES PARAFISCALES DE LA PROTECCIÓN SOCIAL (UGPPP) - GESTIÓN GENERAL","HACIENDA",null,"FONDO CUENTA DE CAPACITACIÓN Y PUBLICACIONES DE LA CONTRALORIA GENERAL REPUBLICA","6059",null,null,null,null,null,null,null,null,null,null,"De Indumil ",52,null,null,null,null,"Permiso para transporte de carga","34",null,"1.02.1.04.51. Contribucción servicios notariales",null,null,"1.02.2.25. Expedición de información no sujeta a reserva legal",null,null,"1.02.1.04.21. Contribución - Fondo Emprender",null,null,"1.02.6.04. Devolución IVA - Instituciones de educación superior"]
["131500","FONDO ADAPTACIÓN","HACIENDA",null,"FONDO DE PENSIONES FONDO ROTATORIO DE NOTARIADO Y REGISTRO","6060",null,null,null,null,null,null,null,null,null,null,null,null,null,null,null,null,"Autorización para el uso de materiales radiactivos y nucleares ","35",null,null,null,null,"1.02.2.26. Expedición de la tarjeta de movilidad fronteriza",null,null,"1.02.1.04.22. Contribución – Fondo Nacional de las Universidades Estatales de Colombia",null,null,"1.02.6.05. Transferencias de otras unidades de gobierno"]
["140100","SERVICIO DE LA DEUDA PÚBLICA NACIONAL","SERVICIO DE LA DEUDA PÚBLICA NACIONAL",null,"FONDO ESPECIAL COMISION NACIONAL DE BUSQUEDA (ART 18 LEY 971/05)","6061",null,null,null,null,null,null,null,null,null,null,null,null,null,null,null,null,"Evaluación de licencias y trámites ambientales","36",null,null,null,null,"1.02.2.27. Inscripción al sistema de migración automática",null,null,"1.02.1.04.24. Cuota de compensación militar - Fondo de Defensa Nacional",null,null,"1.02.6.06. Recursos de terceros en consignación"]
["150101","MINISTERIO DE DEFENSA NACIONAL - GESTIÓN GENERAL","DEFENSA Y POLICÍA",null,"FONDO ESPECIAL CUOTA DE FOMENTO DE GAS NATURAL","6062",null,null,null,null,null,null,null,null,null,null,null,null,null,null,null,null,"Seguimiento a licencias y trámites ambientales","37",null,null,null,null,"1.02.2.28. Verificación migratoria en el sistema PLATINUM",null,null,"1.02.1.04.25. Aporte sobre pólizas de seguros - Fondo Nacional de Bomberos de Colombia",null,null,"1.02.6.08. Recursos por procesos de extinción de dominio"]
["150102","MINISTERIO DE DEFENSA NACIONAL - COMANDO GENERAL","DEFENSA Y POLICÍA",null,"FONDO ESPECIAL PARA PROGRAMA DE NORMALIZACIÓN DE REDES ELECTRICAS","6063",null,null,null,null,null,null,null,null,null,null,null,null,null,null,null,null,"Tasa de inspección y vigilancia - Superintendencia Nacional de Salud","38",null,null,null,null,"1.02.2.29. Expedición de registros sanitarios",null,null,"1.02.1.04.27. Arancel judicial - Ley 1394 de 2010",null,null,"1.02.6.09. Compensación UPC – SSS"]
["150103","MINISTERIO DE DEFENSA NACIONAL - EJÉRCITO","DEFENSA Y POLICÍA",null,"FONDO ESPECIAL REGISTRO UNICO NACIONAL DE TRANSITO - RUNT","6066",null,null,null,null,null,null,null,null,null,null,null,null,null,null,null,null,"Expedición de tarjetas profesionales ","39",null,"MULTAS Y SANCIONES - ESTAPÚBLICO",null,null,"1.02.2.30. Renovación de la capacidad de laboratorios",null,null,"1.02.1.04.28. Arancel judicial CSJ - Ley 1653 de 2013",null,null,"1.02.6.10.Recursos FRISCO"]
["150104","MINISTERIO DE DEFENSA NACIONAL - ARMADA","DEFENSA Y POLICÍA",null,"FONDO DE MODERNIZACIÓN, DESCONGESTIÓN Y BIENESTAR DE LA ADMINISTRACIÓN DE   JUSTICIA","6067",null,null,null,null,null,null,null,null,null,null,null,null,null,null,null,null,"Derechos de registro ","40",null,"1.02.3.01.01. Multas Superintendencias ",null,null,"1.02.2.31. Realización de exámenes de laboratorio",null,null,"1.02.1.04.29. Arancel judicial - Ley 1743 de 2014",null,null,"1.02.6.12.Prescripción especial adquisitivo de dominio"]
["150105","MINISTERIO DE DEFENSA NACIONAL - FUERZA AÉREA","DEFENSA Y POLICÍA",null,"FONDO RENTAS MONOPOLIO PARA EL SECTOR SALUD - LEY 643 DE 2001","6068",null,null,null,null,null,null,null,null,null,null,null,null,null,null,null,null,"Permiso para el uso del espectro radioeléctrico","42",null,"1.02.3.01.02. Sanciones Aduaneras ",null,null,"1.02.2.32. Expedición de certificados de registro sanitario",null,null,"1.02.1.04.30. Contribución especial arbitral",null,null,"1.02.6.13.Recursos por acuerdos de compartición Ley 1743 de 2014"]
["150111","MINISTERIO DE DEFENSA NACIONAL - SALUD","DEFENSA Y POLICÍA",null,"FONDO ESPECIAL IMPUESTO SOBRE LA RENTA PARA LA EQUIDAD - CREE","6069",null,null,null,null,null,null,null,null,null,null,null,null,null,null,null,null,"Permiso por tenencia y porte de armas","43",null,"1.02.3.01.03. Sanciones disciplinarias",null,null,"1.02.2.33. Peajes",null,null,"1.02.1.04.31. Contribución especial para laudos arbitrales de contenido económico",null,null,"1.02.6.14.Del Fondo para la Modernización, Descongestión y Bienestar de la Administración de la Justicia "]
["150112","MINISTERIO DE DEFENSA NACIONAL - DIRECCIÓN GENERAL MARITIMA (DIMAR)","DEFENSA Y POLICÍA",null,"FONDO NACIONAL DE BOMBEROS DE COLOMBIA","6070",null,null,null,null,null,null,null,null,null,null,null,null,null,null,null,null,"Derecho de ingreso áreas protegidas","44",null,"1.02.3.01.04. Sanciones contractuales",null,null,"1.02.2.34. Permiso para transporte de carga",null,null,"1.02.1.04.36. Aporte afiliados al Sistema General de Pensiones - Subcuenta de Solidaridad",null,null,"1.02.6.15.Distribucción Ley 55 de 1985 Superintendencia de Notariado y Registro "]
["150113","MINISTERIO DE DEFENSA NACIONAL - DIRECCIÓN DE VETERANOS Y REHABILITACIÓN INCLUSIVA","DEFENSA Y POLICÍA",null,"FONDOS MINISTERIO JUSTICIA","6071",null,null,null,null,null,null,null,null,null,null,null,null,null,null,null,null,"Servicios de asistencia técnica en materia metrológica","45",null,"1.02.3.01.05. Sanciones administrativas",null,null,"1.02.2.35. Autorización para el uso de materiales radiactivos y nucleares",null,null,"1.02.1.04.37. Aporte afiliados al Sistema General de Pensiones - Subcuenta de Subsistencia"]
["150300","CAJA DE RETIRO DE LAS FUERZAS MILITARES","DEFENSA Y POLICÍA",null,"FONDO DESARROLLO PEQUEÑA Y MEDIANA MINERÍA (ART. 151 LEY 1530 DE 2012)","6073",null,null,null,null,null,null,null,null,null,null,null,null,null,null,null,null,"Capacitación en metrología","46",null,"1.02.3.01.06. Sanciones fiscales ",null,null,"1.02.2.36. Evaluación de licencias y trámites ambientales",null,null,"1.02.1.04.38. Aportes diferenciales - Fondo de Solidaridad Pensional"]
["150700","INSTITUTO CASAS FISCALES DEL EJÉRCITO","DEFENSA Y POLICÍA",null,"FONDO ESPECIAL DE PENSIONES TELECOM, INRAVISIÓN Y TELEASOCIADAS","6074",null,null,null,null,null,null,null,null,null,null,null,null,null,null,null,null,"Calibración y medición metrológica","47",null,"1.02.3.01.07. Multas judiciales ",null,null,"1.02.2.37. Seguimiento a licencias y trámites ambientales",null,null,"1.02.1.04.39. Aporte pensionados - Fondo de Solidaridad Pensional"]
["150800","DEFENSA CIVIL COLOMBIANA, GUILLERMO LEÓN VALENCIA","DEFENSA Y POLICÍA",null,"FONDO NACIONAL DE LAS UNIVERSIDADES ESTATALES DE COLOMBIA","6075",null,null,null,null,null,null,null,null,null,null,null,null,null,null,null,null,"Comparación interlaboratorios","48",null,"1.02.3.01.08. Sanciones por desestimiento",null,null,"1.02.2.38. Tasa de inspección y vigilancia – Superintendencia Nacional de Salud",null,null,"1.02.1.04.41. Contribución cultural a la boletería de los espectáculos públicos"]
["151000","CLUB MILITAR DE OFICIALES","DEFENSA Y POLICÍA",null,"FONDO DE ENERGÍAS NO CONVENCIONALES Y GESTIÓN EFICIENTE DE LA ENERGÍA","6077",null,null,null,null,null,null,null,null,null,null,null,null,null,null,null,null,"Comercialización de materiales de referencia","49",null,null,null,null,"1.02.2.39. Expedición de tarjetas profesionales",null,null,"1.02.1.04.42. Recursos por la explotación de juegos de suerte y azar – Fondo de Investigación en Salud"]
["151100","CAJA DE SUELDOS DE RETIRO DE LA POLICÍA NACIONAL","DEFENSA Y POLICÍA",null,"FONDO DE RESTITUCION DE TIERRAS DESPOJADAS","6078",null,null,null,null,null,null,null,null,null,null,null,null,null,null,null,null,"Explotación de las concesiones de televisión","51",null,"DERECHOS ECONÓMICOS POR USO DE RECURSOS NATURALES- EP",null,null,"1.02.2.40. Derechos de registro",null,null,"1.02.1.04.43. Contribución - Fondo Industria de la Construcción (FIC)"]
["151201","FONPOLICÍA - GESTIÓN GENERAL","DEFENSA Y POLICÍA",null,"FONDO DE LA DIRECCIÓN DE CONSULTA PREVIA",6079,null,null,null,null,null,null,null,null,null,null,null,null,null,null,null,null,"Derechos de aeródromo","53",null,"1.02.4.01. Derecho económico por uso del subsuelo",null,null,"1.02.2.42. Permiso para el uso del espectro radioeléctrico",null,null,"1.02.1.04.44. Contribución SOAT - Fondo Nacional de Seguridad Vial"]
["151600","SUPERINTENDENCIA DE VIGILANCIA Y SEGURIDAD PRIVADA","DEFENSA Y POLICÍA",null,"FONDO PARA EL FORTALECIMIENTO DE LA INSPECCIÓN, VIGILANCIA Y CONTROL DEL TRABAJO Y LA SEGURIDAD SOCIAL - FIVICOT",6080,null,null,null,null,null,null,null,null,null,null,null,null,null,null,null,null,"Tasas aeroportuarias","54",null,"1.02.4.02. Concesiones mineras",null,null,"1.02.2.43. Permiso por tenencia y porte de armas",null,null,"1.02.1.04.46. Contribución - Fondo de Seguridad y Convivencia"]
["151900","HOSPITAL MILITAR","DEFENSA Y POLICÍA",null,"FONDO DE MITIGACIÓN DE EMERGENCIAS - FOME",6081,null,null,null,null,null,null,null,null,null,null,null,null,null,null,null,null,"Permiso para la toma de fotografías y videos en parque naturales",55,null,"1.02.4.03. Contraprestaciones portuarias",null,null,"1.02.2.44. Derecho de ingreso áreas protegidas",null,null,"1.02.1.04.49 Contribución Fondo de Curadores Urbanos"]
["152000","AGENCIA LOGÍSTICA DE LAS FUERZAS MILITARES","DEFENSA Y POLICÍA",null,"FONDO DE ESTABILIZACIÓN DEL INGRESO FISCAL – FEIF",6082,null,null,null,null,null,null,null,null,null,null,null,null,null,null,null,null,"Tasa por el uso de agua",56,null,"1.02.4.05. Concesiones parques naturales",null,null,"1.02.2.45. Servicios de asistencia técnica en materia metrológica",null,null,"1.02.1.04.50 Contribución Fondo Notarias Decreto 1672 de 1997"]
["152100","UNIDAD ADMINISTRATIVA ESPECIAL DE LA JUSTICIA PENAL MILITAR Y POLICIAL","DEFENSA Y POLICÍA",null,"FONDO DE ESTABILIZACIÓN DE LOS PRECIOS DE LOS COMBUSTIBLES – FEPC",6083,null,null,null,null,null,null,null,null,null,null,null,null,null,null,null,null,"Evaluación de calidad de las estadísticas ",57,null,null,null,null,"1.02.2.46. Capacitación en metrología",null,null,"1.02.1.04.51 Contribución Servicios Notariales "]
["160101","POLICÍA NACIONAL - GESTIÓN GENERAL","DEFENSA Y POLICÍA",null,"FONDO PARA LA PROMOCIÓN DEL PATRIMONIO, LA CULTURA, LAS ARTES Y LA CREATIVIDAD -FONCULTURA- LEY 2070 DE 2020",6084,null,null,null,null,null,null,null,null,null,null,null,null,null,null,null,null,"Acreditación de laboratorios ambientales",61,null,null,null,null,"1.02.2.47. Calibración y medición metrológica",null,null,"1.02.1.04.52 De Indumil"]
["160102","POLICÍA NACIONAL - SALUD","DEFENSA Y POLICÍA",null,"FONDO DE REPARACIÓN DE VICTIMAS",321,null,null,null,null,null,null,null,null,null,null,null,null,null,null,null,null,"Derecho por el registro de marcas ",62,null,"TRANSFERENCIAS CORRIENTES- EP",null,null,"1.02.2.48. Comparación interlaboratorios"]
["160103","POLICIA NACIONAL - EDUCACION","DEFENSA Y POLICÍA",null,"FONDO EMPRENDER",322,null,null,null,null,null,null,null,null,null,null,null,null,null,null,null,null,"Expedición de antecedentes disciplinarios profesionales ","63",null,"1.02.6.01. Indemnizaciones relacionadas con seguros no de vida",null,null,"1.02.2.49. Comercialización de materiales de referencia"]
["170101","MINAGRICULTURA - GESTIÓN GENERAL","AGRICULTURA Y DESARROLLO RURAL",null,"FONDO NACIONAL DE SEGURIDAD VIAL",323,null,null,null,null,null,null,null,null,null,null,null,null,null,null,null,null,"Certificados catastrales ","65",null,"1.02.6.02. Sentencias y conciliaciones",null,null,"1.02.2.51. Explotación de las concesiones de televisión"]
["170106","UNIDAD DE PLANIFICACION DE TIERRAS RURALES, ADECUACION DE TIERRAS Y USOS AGROPECUARIOS (UPRA)","AGRICULTURA Y DESARROLLO RURAL",null,"FONDO FISCALIZACIÓN MINERA",324,null,null,null,null,null,null,null,null,null,null,null,null,null,null,null,null,"Tasa por el uso de la insfraestructura de transporte","66",null,"1.02.6.04 Devolución IVA - Instituciones de educación superior",null,null,"1.02.2.53. Derechos de aeródromo"]
["170200","INSTITUTO COLOMBIANO AGROPECUARIO (ICA)","AGRICULTURA Y DESARROLLO RURAL",null,"FONDO VIVIENDA - SENA",325,null,null,null,null,null,null,null,null,null,null,null,null,null,null,null,null,"Por uso de laboratorios y espacioes físicos ","67",null,"1.02.6.05. Transferencias de otras unidades de gobierno",null,null,"1.02.2.54. Tasas aeroportuarias "]
["171500","AUTORIDAD NACIONAL DE ACUICULTURA Y PESCA - AUNAP","AGRICULTURA Y DESARROLLO RURAL",null,"FONDO VIVIENDA - SUPERINTENDENCIA NOTARIADO Y REGISTRO",326,null,null,null,null,null,null,null,null,null,null,null,null,null,null,null,null,"Expedición de permisos para ejercer actividades pesqueras","72",null,"1.02.6.07. Recursos por bienes mostrencos y vocaciones hereditarias",null,null,"1.02.2.55. Permiso para la toma de fotografías y videos en parque naturales"]
["171600","UNIDAD ADMINISTRATIVA ESPECIAL DE GESTION DE RESTITUCION DE TIERRAS DESPOJADAS","AGRICULTURA Y DESARROLLO RURAL",null,"FONDO INDUSTRIA DE LA CONSTRUCCION FIC",327,null,null,null,null,null,null,null,null,null,null,null,null,null,null,null,null,"Expedición de patentes de pesca","73",null,"1.02.6.09. Compensación UPC – SSS",null,null,"1.02.2.56. Tasa por el uso de agua"]
["171700","AGENCIA NACIONAL DE TIERRAS - ANT","AGRICULTURA Y DESARROLLO RURAL",null,"FONDO NOTARIAS DECRETO 1672 DE 1997",328,null,null,null,null,null,null,null,null,null,null,null,null,null,null,null,null,"Contraprestación para la provisión de redes y servicios ","74",null,"1.02.6.11. Mercancías Aprehendidas, Decomisadas o Abandonadas ",null,null,"1.02.2.57. Evaluación de calidad de las estadísticas "]
["171800","AGENCIA DE DESARROLLO RURAL - ADR","AGRICULTURA Y DESARROLLO RURAL",null,"FONDOS INPEC",329,null,null,null,null,null,null,null,null,null,null,null,null,null,null,null,null,null,null,null,null,null,null,"1.02.2.61. Acreditación de laboratorios ambientales"]
["190101","MINISTERIO DE SALUD Y PROTECCION SOCIAL - GESTION GENERAL","SALUD Y PROTECCIÓN SOCIAL",null,"FONDO CONTRA LA EXPLOTACIÓN SEXUAL DE MENORES","3210",null,null,null,null,null,null,null,null,null,null,null,null,null,null,null,null,null,null,null,"CONTRIBUCIONES SOCIALES -FE",null,null,"1.02.2.62. Derecho por el registro de marcas "]
["190106","MINISTERIO  DE SALUD Y PROTECCIÓN SOCIAL - UNIDAD ADMINISTRATIVA ESPECIAL FONDO NACIONAL DE ESTUPEFACIENTES","SALUD Y PROTECCIÓN SOCIAL",null,"FONDO DE CURADORES URBANOS","3211",null,null,null,null,null,null,null,null,null,null,null,null,null,null,null,null,"TASAS Y DERECHOS ADMINISTRATIVOS - FE","CÓD",null,"1.02.1.01.01. Salud",null,null,"1.02.2.63. Expedición de antecedentes disciplinarios profesionales "]
["190300","INSTITUTO NACIONAL DE SALUD (INS)","SALUD Y PROTECCIÓN SOCIAL",null,"FONDO PARA LA ADMINISTRACIÓN DE BIENES DE LA FISCALIA","3212",null,null,null,null,null,null,null,null,null,null,null,null,null,null,null,null,"Certificaciones y constancias ",15,null,"1.02.1.01.02. Pensión",null,null,"1.02.2.65. Certificados catastrales "]
["191000","SUPERINTENDENCIA NACIONAL DE SALUD","SALUD Y PROTECCIÓN SOCIAL",null,"FONDO DE PRESTACIONES SOCIALES DEL MAGISTERIO",501,null,null,null,null,null,null,null,null,null,null,null,null,null,null,null,null,"Expedición de tarjetas profesionales ","39",null,null,null,null,"1.02.2.66. Tasa por el uso de la insfraestructura de transporte"]
["191200","INSTITUTO NACIONAL DE VIGILANCIA DE MEDICAMENTOS Y ALIMENTOS - INVIMA","SALUD Y PROTECCIÓN SOCIAL",null,"CONTRIBUCIÓN ESPECTÁCULOS PÚBLICOS (ART. 7 LEY 1493 DE 2011)",502,null,null,null,null,null,null,null,null,null,null,null,null,null,null,null,null,"Derechos de registro ","40",null,null,null,null,"1.02.2.67. Por uso de laboratorios y espacioes físicos "]
["191301","FONDO DE PREVISIÓN SOCIAL DEL CONGRESO - PENSIONES","SALUD Y PROTECCIÓN SOCIAL",null,null,null,null,null,null,null,null,null,null,null,null,null,null,null,null,null,null,null,"Autorización para el manejo de sustancias químicas controladas","41",null,"CONTRIBUCIONES ASOCIADAS A NÓMINA -FE",null,null,"1.02.2.72. Expedición de permisos para ejercer actividades pesqueras"]
["191302","FONDO DE PREVISIÓN SOCIAL DEL CONGRESO - CESANTÍAS Y VIVIENDA","SALUD Y PROTECCIÓN SOCIAL",null,null,null,null,null,null,null,null,null,null,null,null,null,null,null,null,null,null,null,"Permiso por tenencia y porte de armas ","43",null,"1.02.1.02.04. Escuelas industriales e institutos técnicos",null,null,"1.02.2.73. Expedición de patentes de pesca"]
["191401","FONDO PASIVO SOCIAL DE FERROCARRILES NACIONALES DE COLOMBIA - SALUD ","SALUD Y PROTECCIÓN SOCIAL",null,null,null,null,null,null,null,null,null,null,null,null,null,null,null,null,null,null,null,"Tasa para la sostenibilidad del RUNT","50",null,"1.02.1.02.05. Aportes de cesantías",null,null,"1.02.2.74. Contraprestación para la provisión de redes y servicios "]
["191402","FONDO PASIVO SOCIAL DE FERROCARRILES NACIONALES DE COLOMBIA - PENSIONES","SALUD Y PROTECCIÓN SOCIAL",null,null,null,null,null,null,null,null,null,null,null,null,null,null,null,null,null,null,null,"Fiscalización y seguimiento a títulos mineros","52"]
["210101","MINISTERIO DE MINAS Y ENERGIA - GESTION GENERAL ","MINAS Y ENERGÍA",null,null,null,null,null,null,null,null,null,null,null,null,null,null,null,null,null,null,null,"Expedición de licencias de fabricación de derivados de cannabis ","59"]
["210113","MINISTERIO DE MINAS Y ENERGIA - COMISION DE REGULACION DE ENERGIA Y GAS - CREG -","MINAS Y ENERGÍA",null,null,null,null,null,null,null,null,null,null,null,null,null,null,null,null,null,null,null,"Seguimiento a las licencias de fabricación de derivados de cannabis ","60"]
["210300","SERVICIO GEOLOGICO COLOMBIANO","MINAS Y ENERGÍA",null,null,null,null,null,null,null,null,null,null,null,null,null,null,null,null,null,null,null,"Derechos marítimos ","68"]
["210900","UNIDAD DE PLANEACION MINERO ENERGETICA - UPME","MINAS Y ENERGÍA",null,null,null,null,null,null,null,null,null,null,null,null,null,null,null,null,null,null,null,"Tasas Servicio de seguridad marítima ","69"]
["211000","INSTITUTO DE PLANIFICACION Y PROMOCION DE SOLUCIONES  ENERGETICAS PARA LAS ZONAS NO INTERCONECTADAS - IPSE","MINAS Y ENERGÍA",null,null,null,null,null,null,null,null,null,null,null,null,null,null,null,null,null,null,null,"Expedición de tarjetas de reservista y provisional","70"]
["211100","AGENCIA NACIONAL DE HIDROCARBUROS - ANH","MINAS Y ENERGÍA",null,null,null,null,null,null,null,null,null,null,null,null,null,null,null,null,null,null,null,"Expedición de cédulas militares y policiales ","71"]
["211200","AGENCIA NACIONAL DE MINERIA - ANM","MINAS Y ENERGÍA"]
["220101","MINISTERIO EDUCACION NACIONAL - GESTION GENERAL","EDUCACIÓN"]
["223400","ESCUELA TECNOLOGICA INSTITUTO TECNICO CENTRAL","EDUCACIÓN"]
["223800","INSTITUTO NACIONAL DE FORMACION TECNICA PROFESIONAL DE SAN ANDRES Y PROVIDENCIA","EDUCACIÓN"]
["223900","INSTITUTO NACIONAL DE FORMACION TECNICA PROFESIONAL DE SAN JUAN DEL CESAR","EDUCACIÓN"]
["224100","INSTITUTO TOLIMENSE DE FORMACION TECNICA PROFESIONAL","EDUCACIÓN"]
["224200","INSTITUTO TECNICO NACIONAL DE COMERCIO SIMON RODRIGUEZ DE CALI","EDUCACIÓN"]
["224600","UNIDAD ADMINISTRATIVA ESPECIAL DE ALIMENTACION ESCOLAR","EDUCACIÓN"]
["225701","UNIVERSIDADES PUBLICAS - UNIVERSIDAD NACIONAL DE COLOMBIA","EDUCACIÓN"]
["225702","UNIVERSIDADES PÚBLICAS - UNIVERSIDAD DE ANTIOQUIA","EDUCACIÓN"]
["225703","UNIVERSIDADES PÚBLICAS - UNIVERSIDAD DEL VALLE","EDUCACIÓN"]
["225704","UNIVERSIDADES PÚBLICAS - UNIVERSIDAD INDUSTRIAL DE SANTANDER","EDUCACIÓN"]
["225705","UNIVERSIDADES PUBLICAS - UNIVERSIDAD PEDAGOGICA Y TECNOLOGICA DE COLOMBIA","EDUCACIÓN"]
["225706","UNIVERSIDADES PÚBLICAS - UNIVERSIDAD DISTRITAL FRANCISCO JOSE DE CALDAS","EDUCACIÓN"]
["225707","UNIVERSIDADES PÚBLICAS - UNIVERSIDAD DE CARTAGENA","EDUCACIÓN"]
["225708","UNIVERSIDADES PÚBLICAS - UNIVERSIDAD DE NARIÑO","EDUCACIÓN"]
["225709","UNIVERSIDADES PUBLICAS - UNIVERSIDAD NACIONAL ABIERTA Y A DISTANCIA UNAD","EDUCACIÓN"]
["225710","UNIVERSIDADES PÚBLICAS - UNIVERSIDAD DEL MAGDALENA","EDUCACIÓN"]
["225711","UNIVERSIDADES PUBLICAS - UNIVERSIDAD DEL CAUCA","EDUCACIÓN"]
["225712","UNIVERSIDADES PUBLICAS - UNIVERSIDAD TECNOLOGICA DE PEREIRA","EDUCACIÓN"]
["225713","UNIVERSIDADES PÚBLICAS - UNIVERSIDAD DE PAMPLONA","EDUCACIÓN"]
["225714","UNIVERSIDADES PUBLICAS - UNIVERSIDAD SURCOLOMBIANA","EDUCACIÓN"]
["225715","UNIVERSIDADES PUBLICAS - UNIVERSIDAD PEDAGOGICA NACIONAL","EDUCACIÓN"]
["225716","UNIVERSIDADES PUBLICAS - UNIVERSIDAD DE CALDAS","EDUCACIÓN"]
["225717","UNIVERSIDADES PÚBLICAS - UNIVERSIDAD MILITAR NUEVA GRANADA","EDUCACIÓN"]
["225718","UNIVERSIDADES PÚBLICAS - UNIVERSIDAD DEL ATLÁNTICO","EDUCACIÓN"]
["225719","UNIVERSIDADES PÚBLICAS - UNIVERSIDAD DEL TOLIMA","EDUCACIÓN"]
["225720","UNIVERSIDADES PUBLICAS - UNIVERSIDAD DE CORDOBA","EDUCACIÓN"]
["225721","UNIVERSIDADES PÚBLICAS - UNIVERSIDAD DEL QUINDÍO","EDUCACIÓN"]
["225722","UNIVERSIDADES PUBLICAS - UNIVERSIDAD POPULAR DEL CESAR","EDUCACIÓN"]
["225723","UNIVERSIDADES PUBLICAS - UNIVERSIDAD DE LOS LLANOS","EDUCACIÓN"]
["225724","UNIVERSIDADES PÚBLICAS - UNIVERSIDAD FRANCISCO DE PAULA SANTANDER","EDUCACIÓN"]
["225725","UNIVERSIDADES PÚBLICAS - UNIVERSIDAD FRANCISCO DE PAULA SANTANDER SECCIONAL OCAÑA","EDUCACIÓN"]
["225726","UNIVERSIDADES PUBLICAS - UNIVERSIDAD DE LA AMAZONIA","EDUCACIÓN"]
["225727","UNIVERSIDADES PUBLICAS - UNIVERSIDAD COLEGIO MAYOR DE CUNDINAMARCA","EDUCACIÓN"]
["225728","UNIVERSIDADES PÚBLICAS - UNIVERSIDAD DE CUNDINAMARCA","EDUCACIÓN"]
["225729","UNIVERSIDADES PUBLICAS - UNIVERSIDAD TECNOLOGICA DEL CHOCO DIEGO LUIS CORDOBA","EDUCACIÓN"]
["225730","UNIVERSIDADES PÚBLICAS - UNIVERSIDAD DE SUCRE","EDUCACIÓN"]
["225731","UNIVERSIDADES PÚBLICAS - UNIVERSIDAD DE LA GUAJIRA","EDUCACIÓN"]
["225732","UNIVERSIDADES PUBLICAS - UNIVERSIDAD DEL PACIFICO","EDUCACIÓN"]
["225733","UNIVERSIDADES PÚBLICAS - UNIVERSIDAD INTERNACIONAL DEL TRÓPICO AMERICANO","EDUCACIÓN"]
["225734","UNIVERSIDADES PÚBLICAS - UNIVERSIDAD AUTÓNOMA INDÍGENA INTERCULTURAL UAIIN CRIC","EDUCACIÓN"]
["230101","MINISTERIO DE TECNOLOGÍAS DE LA INFORMACIÓN Y LAS COMUNICACIONES - GESTIÓN GENERAL","TECNOLOGÍAS DE LA INFORMACIÓN Y LAS COMUNICACIONES"]
["230600","FONDO UNICO DE TECNOLOGIAS DE LA INFORMACION Y LAS COMUNICACIONES","TECNOLOGÍAS DE LA INFORMACIÓN Y LAS COMUNICACIONES"]
["230800","UNIDAD ADMINISTRATIVA ESPECIAL COMISION DE REGULACION DE COMUNICACIONES","TECNOLOGÍAS DE LA INFORMACIÓN Y LAS COMUNICACIONES"]
["230900","AGENCIA NACIONAL DEL ESPECTRO - ANE","TECNOLOGÍAS DE LA INFORMACIÓN Y LAS COMUNICACIONES"]
["231100","COMPUTADORES PARA EDUCAR (CPE)","TECNOLOGÍAS DE LA INFORMACIÓN Y LAS COMUNICACIONES"]
["231200","CORPORACIÓN AGENCIA NACIONAL DE GOBIERNO DIGITAL - AND","TECNOLOGÍAS DE LA INFORMACIÓN Y LAS COMUNICACIONES"]
["240101","MINISTERIO DE TRANSPORTE - GESTION GENERAL","TRANSPORTE"]
["240200","INSTITUTO NACIONAL DE VIAS","TRANSPORTE"]
["241200","UNIDAD ADMINISTRATIVA ESPECIAL DE LA AERONAUTICA CIVIL","TRANSPORTE"]
["241300","AGENCIA NACIONAL DE INFRAESTRUCTURA","TRANSPORTE"]
["241400","UNIDAD DE PLANEACION DEL SECTOR DE INFRAESTRUCTURA DE TRANSPORTE","TRANSPORTE"]
["241500","COMISIÓN DE REGULACIÓN DE INFRAESTRUCTURA Y TRANSPORTE","TRANSPORTE"]
["241600","AGENCIA NACIONAL DE SEGURIDAD VIAL","TRANSPORTE"]
["241700","SUPERINTENDENCIA DE PUERTOS Y TRANSPORTE","TRANSPORTE"]
["250101","PROCURADURIA GENERAL DE LA NACION - GESTION GENERAL","ORGANISMOS DE CONTROL"]
["250105","MINISTERIO PUBLICO - INSTITUTO DE ESTUDIOS DEL MINISTERIO PUBLICO","ORGANISMOS DE CONTROL"]
["250200","DEFENSORIA DEL PUEBLO","ORGANISMOS DE CONTROL"]
["260101","CONTRALORIA GENERAL DE LA REPUBLICA - GESTION GENERAL","ORGANISMOS DE CONTROL"]
["260200","FONDO DE BIENESTAR SOCIAL DE LA CONTRALORÍA GENERAL DE LA REPÚBLICA","ORGANISMOS DE CONTROL"]
[270101,"RAMA JUDICIAL - GESTIÓN GENERAL","RAMA JUDICIAL"]
["270102","RAMA JUDICIAL - CONSEJO SUPERIOR DE LA JUDICATURA","RAMA JUDICIAL"]
["280101","REGISTRADURIA NACIONAL DEL ESTADO CIVIL - GESTION GENERAL","REGISTRADURÍA"]
["280200","FONDO ROTATORIO DE LA REGISTRADURIA","REGISTRADURÍA"]
["280300","FONDO SOCIAL DE VIVIENDA DE LA REGISTRADURÍA NACIONAL DEL ESTADO CIVIL","REGISTRADURÍA"]
["280400","CONSEJO NACIONAL ELECTORAL- CNE","REGISTRADURÍA"]
["290101","FISCALIA GENERAL DE LA NACION - GESTION GENERAL","FISCALÍA"]
["290200","INSTITUTO NACIONAL DE MEDICINA LEGAL Y CIENCIAS FORENSES","FISCALÍA"]
["290400","FONDO ESPECIAL PARA LA ADMINISTRACION DE BIENES DE LA FISCALIA GENERAL DE LA NACION","FISCALÍA"]
["320101","MINISTERIO DE AMBIENTE Y DESARROLLO SOSTENIBLE - GESTION GENERAL","AMBIENTE Y DESARROLLO SOSTENIBLE"]
["320102","PARQUES NACIONALES NATURALES DE COLOMBIA","AMBIENTE Y DESARROLLO SOSTENIBLE"]
["320104","AUTORIDAD NACIONAL DE LICENCIAS AMBIENTALES ANLA","AMBIENTE Y DESARROLLO SOSTENIBLE"]
["320200","INSTITUTO DE HIDROLOGIA, METEOROLOGIA Y ESTUDIOS AMBIENTALES - IDEAM","AMBIENTE Y DESARROLLO SOSTENIBLE"]
["320401","FONDO NACIONAL AMBIENTAL - GESTION GENERAL","AMBIENTE Y DESARROLLO SOSTENIBLE"]
["320800","CORPORACIÓN AUTÓNOMA REGIONAL DE LOS VALLES DEL SINÚ Y SAN JORGE (CVS)","AMBIENTE Y DESARROLLO SOSTENIBLE"]
["320900","CORPORACIÓN AUTÓNOMA REGIONAL DEL QUINDÍO (CRQ)","AMBIENTE Y DESARROLLO SOSTENIBLE"]
["321000","CORPORACIÓN PARA EL DESARROLLO SOSTENIBLE DEL URABÁ (CORPOURABÁ)","AMBIENTE Y DESARROLLO SOSTENIBLE"]
["321100","CORPORACIÓN AUTÓNOMA REGIONAL DE CALDAS (CORPOCALDAS)","AMBIENTE Y DESARROLLO SOSTENIBLE"]
["321200","CORPORACIÓN AUTÓNOMA REGIONAL PARA EL DESARROLLO SOSTENIBLE DEL CHOCO (CODECHOCO)","AMBIENTE Y DESARROLLO SOSTENIBLE"]
["321300","CORPORACIÓN AUTÓNOMA REGIONAL PARA LA DEFENSA DE LA MESETA DE BUCARAMANGA (CDMB)","AMBIENTE Y DESARROLLO SOSTENIBLE"]
["321400","CORPORACIÓN AUTÓNOMA REGIONAL DEL TOLIMA (CORTOLIMA)","AMBIENTE Y DESARROLLO SOSTENIBLE"]
["321500","CORPORACIÓN AUTÓNOMA REGIONAL DE RISARALDA (CARDER)","AMBIENTE Y DESARROLLO SOSTENIBLE"]
["321600","CORPORACIÓN AUTÓNOMA REGIONAL DE NARIÑO (CORPONARIÑO)","AMBIENTE Y DESARROLLO SOSTENIBLE"]
["321700","CORPORACIÓN AUTÓNOMA REGIONAL DE LA FRONTERA NORORIENTAL (CORPONOR)","AMBIENTE Y DESARROLLO SOSTENIBLE"]
["321800","CORPORACIÓN AUTÓNOMA REGIONAL DE LA GUAJIRA (CORPOGUAJIRA)","AMBIENTE Y DESARROLLO SOSTENIBLE"]
["321900","CORPORACIÓN AUTÓNOMA REGIONAL DEL CESAR (CORPOCESAR)","AMBIENTE Y DESARROLLO SOSTENIBLE"]
["322100","CORPORACIÓN AUTÓNOMA REGIONAL DEL CAUCA (CRC)","AMBIENTE Y DESARROLLO SOSTENIBLE"]
["322200","CORPORACIÓN AUTÓNOMA REGIONAL DEL MAGDALENA (CORPAMAG)","AMBIENTE Y DESARROLLO SOSTENIBLE"]
["322300","CORPORACIÓN PARA EL DESARROLLO SOSTENIBLE DEL SUR DE LA AMAZONIA (CORPOAMAZONIA)","AMBIENTE Y DESARROLLO SOSTENIBLE"]
["322400","CORPORACIÓN PARA EL DESARROLLO SOSTENIBLE DEL NORTE Y ORIENTE DE LA AMAZONIA (CDA)","AMBIENTE Y DESARROLLO SOSTENIBLE"]
["322600","CORPORACIÓN PARA EL DESARROLLO SOSTENIBLE DEL ARCHIPIÉLAGO DE SAN ANDRÉS, PROVIDENCIA Y SANTA CATALINA (CORALINA)","AMBIENTE Y DESARROLLO SOSTENIBLE"]
["322700","CORPORACIÓN PARA EL DESARROLLO SOSTENIBLE DEL ÁREA DE MANEJO ESPECIAL LA MACARENA (CORMACARENA)","AMBIENTE Y DESARROLLO SOSTENIBLE"]
["322800","CORPORACIÓN PARA EL DESARROLLO SOSTENIBLE DE LA MOJANA Y EL SAN JORGE (CORPOMOJANA)","AMBIENTE Y DESARROLLO SOSTENIBLE"]
["322900","CORPORACIÓN AUTÓNOMA REGIONAL DE LA ORINOQUIA (CORPORINOQUIA)","AMBIENTE Y DESARROLLO SOSTENIBLE"]
["323000","CORPORACIÓN AUTÓNOMA REGIONAL DE SUCRE (CARSUCRE)","AMBIENTE Y DESARROLLO SOSTENIBLE"]
["323100","CORPORACIÓN AUTÓNOMA REGIONAL DEL ALTO MAGDALENA (CAM)","AMBIENTE Y DESARROLLO SOSTENIBLE"]
["323200","CORPORACIÓN AUTÓNOMA REGIONAL DEL CENTRO DE ANTIOQUIA (CORANTIOQUIA)","AMBIENTE Y DESARROLLO SOSTENIBLE"]
["323300","CORPORACIÓN AUTÓNOMA REGIONAL DEL ATLÁNTICO (CRA)","AMBIENTE Y DESARROLLO SOSTENIBLE"]
["323400","CORPORACIÓN AUTÓNOMA REGIONAL DE SANTANDER (CAS)","AMBIENTE Y DESARROLLO SOSTENIBLE"]
["323500","CORPORACIÓN AUTÓNOMA REGIONAL DE BOYACÁ (CORPOBOYACÁ)","AMBIENTE Y DESARROLLO SOSTENIBLE"]
["323600","CORPORACIÓN AUTÓNOMA REGIONAL DE CHIVOR (CORPOCHIVOR)","AMBIENTE Y DESARROLLO SOSTENIBLE"]
["323700","CORPORACIÓN AUTÓNOMA REGIONAL DEL GUAVIO (CORPOGUAVIO)","AMBIENTE Y DESARROLLO SOSTENIBLE"]
["323800","CORPORACIÓN AUTÓNOMA REGIONAL DEL CANAL DEL DIQUE (CARDIQUE)","AMBIENTE Y DESARROLLO SOSTENIBLE"]
["323900","CORPORACIÓN AUTÓNOMA REGIONAL DEL SUR DE BOLIVAR (CSB)","AMBIENTE Y DESARROLLO SOSTENIBLE"]
["330101","MINISTERIO DE LAS CULTURAS, LAS ARTES Y LOS SABERES - GESTION GENERAL","CULTURA"]
["330400","ARCHIVO GENERAL DE LA NACION","CULTURA"]
["330500","INSTITUTO COLOMBIANO DE ANTROPOLOGIA E HISTORIA","CULTURA"]
["330700","INSTITUTO CARO Y CUERVO","CULTURA"]
["340101","AUDITORIA GENERAL DE LA REPUBLICA - GESTION GENERAL","ORGANISMOS DE CONTROL"]
["350101","MINCOMERCIO INDUSTRIA TURISMO - GESTION GENERAL","COMERCIO, INDUSTRIA Y TURISMO"]
["350102","MINCOMERCIO INDUSTRIA TURISMO - DIRECCION GENERAL DE COMERCIO EXTERIOR","COMERCIO, INDUSTRIA Y TURISMO"]
["350200","SUPERINTENDENCIA DE SOCIEDADES","COMERCIO, INDUSTRIA Y TURISMO"]
["350300","SUPERINTENDENCIA DE INDUSTRIA Y COMERCIO","COMERCIO, INDUSTRIA Y TURISMO"]
["350400","UNIDAD ADMINISTRATIVA ESPECIAL JUNTA CENTRAL CONTADORES","COMERCIO, INDUSTRIA Y TURISMO"]
["350500","INSTITUTO NACIONAL DE METROLOGIA - INM","COMERCIO, INDUSTRIA Y TURISMO"]
["360101","MINISTERIO DEL TRABAJO - GESTION GENERAL","TRABAJO"]
["360107","MINISTERIO DEL TRABAJO - SUPERINTENDENCIA DE SUBSIDIO FAMILIAR","TRABAJO"]
["360200","SERVICIO NACIONAL DE APRENDIZAJE (SENA)","TRABAJO"]
["361200","UNIDAD ADMINISTRATIVA ESPECIAL DE ORGANIZACIONES SOLIDARIAS","TRABAJO"]
["361300","UNIDAD ADMINISTRATIVA ESPECIAL DEL SERVICIO PÚBLICO DE EMPLEO","TRABAJO"]
["370101","MINISTERIO DEL INTERIOR - GESTION GENERAL","INTERIOR"]
["370102","DIRECCIÓN DE LA AUTORIDAD NACIONAL DE CONSULTA PREVIA","INTERIOR"]
["370300","DIRECCION NACIONAL DEL DERECHO DE AUTOR","INTERIOR"]
["370400","CORPORACION NACIONAL PARA LA RECONSTRUCCION DE LA CUENCA DEL RIO PAEZ Y ZONAS ALEDAÑAS NASA KI WE","INTERIOR"]
["370800","UNIDAD NACIONAL DE PROTECCIÓN - UNP","INTERIOR"]
["370900","DIRECCION NACIONAL DE BOMBEROS","INTERIOR"]
["380100","COMISIÓN NACIONAL DEL SERVICIO CIVIL","EMPLEO PÚBLICO"]
["390101","MINISTERIO DE CIENCIA, TECNOLOGIA E INNOVACION - GESTION GENERAL","CIENCIA, TECNOLOGÍA E INNOVACIÓN"]
["400101","MINISTERIO DE VIVIENDA, CIUDAD Y TERRITORIO - GESTION GENERAL","VIVIENDA, CIUDAD Y TERRITORIO"]
["400102","COMISION DE REGULACION DE AGUA POTABLE Y SANEAMIENTO BASICO (CRA)","VIVIENDA, CIUDAD Y TERRITORIO"]
["400200","FONDO NACIONAL DE VIVIENDA - FONVIVIENDA","VIVIENDA, CIUDAD Y TERRITORIO"]
["410101","DEPARTAMENTO ADMINISTRATIVO PARA LA PROSPERIDAD SOCIAL - GESTION GENERAL","INCLUSIÓN SOCIAL Y RECONCILIACIÓN"]
["410400","UNIDAD DE ATENCION Y REPARACION INTEGRAL A LAS VICTIMAS","INCLUSIÓN SOCIAL Y RECONCILIACIÓN"]
["410500","CENTRO DE MEMORIA HISTORICA","INCLUSIÓN SOCIAL Y RECONCILIACIÓN"]
["420101","DEPARTAMENTO ADMINISTRATIVO DIRECCION NACIONAL DE INTELIGENCIA - GESTION GENERAL","INTELIGENCIA"]
["430101","MINISTERIO DEL DEPORTE - GESTION GENERAL","DEPORTE Y RECREACIÓN"]
["440101","JURISDICCION ESPECIAL PARA LA PAZ - GESTION GENERAL","SISTEMA INTEGRAL DE VERDAD, JUSTICIA, REPARACIÓN Y NO REPETICIÓN"]
["440300","UNIDAD DE BUSQUEDA DE PERSONAS DADAS POR DESAPARECIDAS EN EL CONTEXTO Y EN RAZON DEL CONFLICTO ARMADO (UBPD)","SISTEMA INTEGRAL DE VERDAD, JUSTICIA, REPARACIÓN Y NO REPETICIÓN"]
["460101","MINISTERIO DE IGUALDAD Y EQUIDAD - GESTIÓN GENERAL","IGUALDAD Y EQUIDAD"]
["460200","INSTITUTO COLOMBIANO DE BIENESTAR FAMILIAR (ICBF)","IGUALDAD Y EQUIDAD"]
["460300","INSTITUTO NACIONAL PARA SORDOS (INSOR)","IGUALDAD Y EQUIDAD"]
["460400","INSTITUTO NACIONAL PARA CIEGOS (INCI) ","IGUALDAD Y EQUIDAD"]

{"sheet":"Programático","index":5,"n_rows":1021,"n_cols":35,"rows_kept":1021,"cut":false,"hidden":true,"merged":[[0,0,0,9],[0,11,0,16]]}
["FUNCIONAMIENTO",null,null,null,null,null,null,null,null,null,null,"INVERSIÓN"]
["Código sector","Sector","Código programa","Programa","Código Subprograma","Subprograma","Código producto Final ","Producto Final ","Código operación de funcionamiento","Operación de funcionamiento",null,"Código sector","Sector","Código programa","Programa","Código Subprograma","Subprograma",null,null,"Sector","Programa 01","Programa 02","Programa 03","Programa 04","Programa 05","Programa 06","Programa 07","Programa 08","Programa 09","Programa 10","Programa 11","Programa 12","Programa 13","Programa 14","Conteo"]
[17,"AGRICULTURA Y DESARROLLO RURAL",1702,"Inclusión Productiva de pequeños productores rurales ","1100","Intersubsectorial Agricultura","01","Servicio de fortalecimiento de las capacidades productivas de los pequeños agricultores","01","Direccionamiento estratégico del sector ",null,17,"AGRICULTURA Y DESARROLLO RURAL",1702,"Inclusión Productiva de pequeños productores rurales ","1100","Intersubsectorial Agricultura",null,null,"AGRICULTURA Y DESARROLLO RURAL","1702 Inclusión Productiva de pequeños productores rurales ","1703 Servicios financieros y gestión del riesgo para las actividades agropecuarias y rurales","1704 Ordenamiento social y uso productivo del territorio rural ","1705 Restitución de tierras a víctimas del conflicto armado","1706 Aprovechamiento de mercados externos","1707 Sanidad agropecuaria e inocuidad agroalimentaria ","1708 Ciencia, tecnología e innovación agropecuaria","1709 Infraestructura productiva y comercialización ","1799 fortalecimiento y apoyo a la gestión institucional del sector Agricultura y Desarrollo Rural","2501 Fortalecimiento del control y la vigilancia de la gestión fiscal y resarcimiento al daño del patrimonio público","3606 Protección Económica para la Vejez","1700 No asignable a programas",null,null,{"$f":"COUNTA(U3:AH3)","v":12}]
[17,"AGRICULTURA Y DESARROLLO RURAL",1702,"Inclusión Productiva de pequeños productores rurales ","1100","Intersubsectorial Agricultura","01","Servicio de fortalecimiento de las capacidades productivas de los pequeños agricultores","02","Gestión de políticas de apoyo productivo a los pequeños productores rurales",null,17,"AGRICULTURA Y DESARROLLO RURAL",1703,"Servicios financieros y gestión del riesgo para las actividades agropecuarias y rurales","1100","Intersubsectorial Agricultura",null,null,"AMBIENTE Y DESARROLLO SOSTENIBLE","3201 Fortalecimiento del desempeño ambiental de los sectores productivos","3202 Conservación de la biodiversidad y sus servicios ecosistémicos","3203 Gestión Integral del Recurso Hídrico","3204 Gestión de la información y el conocimiento ambiental","3205 Ordenamiento ambiental territorial","3206 Gestión del cambio climático para un desarrollo bajo en carbono y resiliente al clima","3207 Gestión integral de mares, costas y recursos acuáticos","3208 Educación Ambiental","3299 Fortalecimiento y apoyo a la gestión institucional del sector Ambiente y Desarrollo Sostenible","3606 Protección Económica para la Vejez","2501 Fortalecimiento del control y la vigilancia de la gestión fiscal y resarcimiento al daño del patrimonio público","3200 No asignable a programas",null,null,{"$f":"COUNTA(U4:AH4)","v":12}]
[17,"AGRICULTURA Y DESARROLLO RURAL",1702,"Inclusión Productiva de pequeños productores rurales ","1100","Intersubsectorial Agricultura","01","Servicio de fortalecimiento de las capacidades productivas de los pequeños agricultores","03","Gestión de asitencia técnica ",null,17,"AGRICULTURA Y DESARROLLO RURAL",1704,"Fortalecimiento de la gestión y dirección del sector Agricultura y Desarrollo Rural","1100","Intersubsectorial Agricultura",null,null,"CIENCIA, TECNOLOGÍA E INNOVACIÓN","3905 Fortalecimiento de la gobernanza e institucionalidad multinivel del sector de CTeI","3906 Fomento a vocaciones y formación, generación, uso y apropiación social del conocimiento de la Ciencia, Tecnología e Innovación","3999 Fortalecimiento y apoyo a la gestión institucional del sector Ciencia, Tecnología e Innovación","2501 Fortalecimiento del control y la vigilancia de la gestión fiscal y resarcimiento al daño del patrimonio público","3900 No asignable a programas",null,null,null,null,null,null,null,null,null,5]
[17,"AGRICULTURA Y DESARROLLO RURAL",1702,"Inclusión Productiva de pequeños productores rurales ","1100","Intersubsectorial Agricultura","01","Servicio de fortalecimiento de las capacidades productivas de los pequeños agricultores","04","Gestión de acceso a activos productivos",null,17,"AGRICULTURA Y DESARROLLO RURAL",1705,"Restitución de tierras a víctimas del conflicto armado","1100","Intersubsectorial Agricultura",null,null,"COMERCIO, INDUSTRIA Y TURISMO","3501 Internacionalización de la economía ","3502 Productividad y competitividad de las empresas colombianas ","3503 Ambiente regulatorio y económico para la competencia y la actividad empresarial","3504 Competitividad, sostenibilidad y promoción del turismo colombiano ","3599 Fortalecimiento y apoyo a la gestión institucional del sector Comercio, Industria y Turismo","3606 Protección Económica para la Vejez","2501 Fortalecimiento del control y la vigilancia de la gestión fiscal y resarcimiento al daño del patrimonio público","3500 No asignable a programas",null,null,null,null,null,null,8]
[17,"AGRICULTURA Y DESARROLLO RURAL",1702,"Inclusión Productiva de pequeños productores rurales ","1100","Intersubsectorial Agricultura","01","Servicio de fortalecimiento de las capacidades productivas de los pequeños agricultores","05","Promoción y fomento de proyectos de pequeños productores",null,17,"AGRICULTURA Y DESARROLLO RURAL",1706,"Aprovechamiento de mercados externos","1100","Intersubsectorial Agricultura",null,null,"CONGRESO DE LA REPÚBLICA","0101 Mejoramiento de la eficiencia y la transparencia legislativa","0199 Fortalecimiento y apoyo a la gestión institucional del sector Congreso de la República ","2501 Fortalecimiento del control y la vigilancia de la gestión fiscal y resarcimiento al daño del patrimonio público","0100 No asignable a programas",null,null,null,null,null,null,null,null,null,null,4]
[17,"AGRICULTURA Y DESARROLLO RURAL",1703,"Servicios financieros y gestión del riesgo para las actividades agropecuarias y rurales","1100","Intersubsectorial Agricultura","01","servicio de inclusión financiera para los productores rurales ","01","Direccionamiento estratégico del sector ",null,17,"AGRICULTURA Y DESARROLLO RURAL",1707,"Sanidad agropecuaria e inocuidad agroalimentaria ","1100","Intersubsectorial Agricultura",null,null,"CULTURA","3301 Promoción y acceso efectivo a procesos culturales y artísticos","3302 Gestión, protección y salvaguardia del patrimonio cultural colombiano","3399 Fortalecimiento y apoyo a la gestión institucional del sector Cultura","2202 Calidad y fomento de la educación superior","2501 Fortalecimiento del control y la vigilancia de la gestión fiscal y resarcimiento al daño del patrimonio público","3300 No asignable a programas",null,null,null,null,null,null,null,null,6]
[17,"AGRICULTURA Y DESARROLLO RURAL",1703,"Servicios financieros y gestión del riesgo para las actividades agropecuarias y rurales","1100","Intersubsectorial Agricultura","01","servicio de inclusión financiera para los productores rurales ","02","Gestión de la política de inclusión financiera para los productores rurales",null,17,"AGRICULTURA Y DESARROLLO RURAL",1708,"Ciencia, tecnología e innovación agropecuaria","1100","Intersubsectorial Agricultura",null,null,"DEFENSA Y POLICÍA","1501 Capacidades de la Policía Nacional en seguridad pública, prevención, convivencia y seguridad ciudadana","1502 Capacidades de las Fuerzas Militares en \nseguridad pública y defensa en el territorio  nacional","1504 Desarrollo marítimo, fluvial y costero desde el sector defensa","1505 Generación de bienestar para la Fuerza Pública y sus familias","1506 Gestión del riesgo de desastres desde el sector Defensa y Seguridad","1507 Grupo Social y Empresarial de la Defensa (GSED) competitivo","1599 Fortalecimiento y apoyo a la gestión institucional del sector Defensa y Policía","1903 Inspección, vigilancia y control","2202 Calidad y fomento de la educación superior","2501 Fortalecimiento del control y la vigilancia de la gestión fiscal y resarcimiento al daño del patrimonio público","3606 Protección Económica para la Vejez","3705 Protección de personas, grupos y comunidades en riesgo extraordinario y extremo Unidad Nacional de Protección (UNP)","1207 Fortalecimiento de la política criminal del Estado colombiano","1500 No asignable a programas",14]
[17,"AGRICULTURA Y DESARROLLO RURAL",1703,"Servicios financieros y gestión del riesgo para las actividades agropecuarias y rurales","1100","Intersubsectorial Agricultura","01","servicio de inclusión financiera para los productores rurales ","03","Gestión de cofinanciación para proyectos productivos ",null,17,"AGRICULTURA Y DESARROLLO RURAL",1709,"Infraestructura productiva y comercialización ","1100","Intersubsectorial Agricultura",null,null,"DEPORTE Y RECREACIÓN","4301 Fomento a la recreación, la actividad física y el deporte","4302 Formación y preparación de deportistas","4399 Fortalecimiento y apoyo a la gestión institucional del sector Deporte y Recreación","2202 Calidad y fomento de la educación superior","2501 Fortalecimiento del control y la vigilancia de la gestión fiscal y resarcimiento al daño del patrimonio público","3606 Protección Económica para la Vejez","4300 No asignable a programas",null,null,null,null,null,null,null,7]
[17,"AGRICULTURA Y DESARROLLO RURAL",1703,"Servicios financieros y gestión del riesgo para las actividades agropecuarias y rurales","1100","Intersubsectorial Agricultura","01","servicio de inclusión financiera para los productores rurales ","04","Seguimiento y control ",null,17,"AGRICULTURA Y DESARROLLO RURAL",1710,"Acompañamiento a población rural y población rural vulnerable ","1100","Intersubsectorial Agricultura",null,null,"EDUCACIÓN","2201 Calidad, cobertura y fortalecimiento de la educación inicial, preescolar, básica y media","2202 Calidad y fomento de la educación superior","2299 Fortalecimiento y apoyo a la gestión institucional del sector Educación","2501 Fortalecimiento del control y la vigilancia de la gestión fiscal y resarcimiento al daño del patrimonio público","3606 Protección Económica para la Vejez","4601 Cierre de brechas para el goce efectivo de derechos fundamentales de la población en condición de discapacidad","1906 Aseguramiento y prestación integral de servicios de salud","2200 No asignable a programas",null,null,null,null,null,null,8]
[17,"AGRICULTURA Y DESARROLLO RURAL",1704,"Fortalecimiento de la gestión y dirección del sector Agricultura y Desarrollo Rural","1100","Intersubsectorial Agricultura","01","Servicio de ordenamiento social y productivo territorial ","01","Direccionamiento estratégico del sector ",null,17,"AGRICULTURA Y DESARROLLO RURAL",1799,"fortalecimiento y apoyo a la gestión institucional del sector Agricultura y Desarrollo Rural","1100","Intersubsectorial Agricultura",null,null,"EMPLEO PÚBLICO","0503 Mejoramiento de la calidad educativa en la gestión pública","0504 Administración y vigilancia de las carreras administrativas de los servidores públicos","0505 Fortalecimiento de la gestión pública en las entidades nacionales y territoriales","0599 Fortalecimiento y apoyo a la gestión institucional del sector Empleo","2202 Calidad y fomento de la educación superior","2501 Fortalecimiento del control y la vigilancia de la gestión fiscal y resarcimiento al daño del patrimonio público","3606 Protección Económica para la Vejez",null,null,null,null,null,null,null,7]
[17,"AGRICULTURA Y DESARROLLO RURAL",1704,"Fortalecimiento de la gestión y dirección del sector Agricultura y Desarrollo Rural","1100","Intersubsectorial Agricultura","01","Servicio de ordenamiento social y productivo territorial ","02","Diseño e implementación de instrumentos de ordenamiento territorial ",null,17,"AGRICULTURA Y DESARROLLO RURAL",1700,"No asignable a programas ","1100","Intersubsectorial Agricultura",null,null,"FISCALÍA","2901 Efectividad de la investigación penal y técnico científica","2999 Fortalecimiento y apoyo a la gestión institucional del sector Fiscalía","2501 Fortalecimiento del control y la vigilancia de la gestión fiscal y resarcimiento al daño del patrimonio público","2900 No asignable a programas","3606 Protección Económica para la Vejez","3705 Protección de personas, grupos y comunidades en riesgo extraordinario y extremo Unidad Nacional de Protección (UNP)",null,null,null,null,null,null,null,null,6]
[17,"AGRICULTURA Y DESARROLLO RURAL",1704,"Fortalecimiento de la gestión y dirección del sector Agricultura y Desarrollo Rural","1100","Intersubsectorial Agricultura","01","Servicio de ordenamiento social y productivo territorial ","03","Gestión del ordenamiento territorial ",null,32,"AMBIENTE Y DESARROLLO SOSTENIBLE",3201,"Fortalecimiento del desempeño ambiental de los sectores productivos",900,"Intersubsectorial Ambiente",null,null,"HACIENDA","1301 Política macroeconómica y fiscal","1302 Gestión de recursos públicos","1303 Reducción de la vulnerabilidad fiscal ante desastres y riesgos climáticos","1304 Inspección, control y vigilancia financiera, solidaria y de recursos públicos","1305 Fortalecimiento de recaudo y tributación","1399 Fortalecimiento y apoyo a la gestión institucional del sector Hacienda","2408 Prestación de servicios de transporte público de pasajeros","2202 Calidad y fomento de la educación superior","2501 Fortalecimiento del control y la vigilancia de la gestión fiscal y resarcimiento al daño del patrimonio público","3606 Protección Económica para la Vejez","1300 No asignable a programas",null,null,null,11]
[17,"AGRICULTURA Y DESARROLLO RURAL",1704,"Fortalecimiento de la gestión y dirección del sector Agricultura y Desarrollo Rural","1100","Intersubsectorial Agricultura","01","Servicio de ordenamiento social y productivo territorial ","04","Gestión del uso eficiente del suelo y adecuación de tierras",null,32,"AMBIENTE Y DESARROLLO SOSTENIBLE",3202,"Conservación de la biodiversidad y sus servicios ecosistémicos",900,"Intersubsectorial Ambiente",null,null,"INCLUSIÓN SOCIAL Y RECONCILIACIÓN","4101 Atención, asistencia y reparación integral a las víctimas","4103 Inclusión social y productiva para la población en situación de vulnerabilidad","4199 Fortalecimiento y apoyo a la gestión institucional del sector Inclusión Social y Reconciliación","2501 Fortalecimiento del control y la vigilancia de la gestión fiscal y resarcimiento al daño del patrimonio público","3606 Protección Económica para la Vejez","4100 No asignable a programas",null,null,null,null,null,null,null,null,6]
[17,"AGRICULTURA Y DESARROLLO RURAL",1704,"Fortalecimiento de la gestión y dirección del sector Agricultura y Desarrollo Rural","1100","Intersubsectorial Agricultura","01","Servicio de ordenamiento social y productivo territorial ","05","Gestión de formalización de tierras",null,32,"AMBIENTE Y DESARROLLO SOSTENIBLE",3203,"Gestión Integral del Recurso Hídrico",900,"Intersubsectorial Ambiente",null,null,"INFORMACIÓN ESTADÍSTICA","0401 Levantamiento y actualización de información estadística de calidad","0406 Generación de la información geográfica del territorio nacional","0499 Fortalecimiento y apoyo a la gestión institucional del sector Información Estadística","2501 Fortalecimiento del control y la vigilancia de la gestión fiscal y resarcimiento al daño del patrimonio público","3606 Protección Económica para la Vejez","0400 No asignable a programas",null,null,null,null,null,null,null,null,6]
[17,"AGRICULTURA Y DESARROLLO RURAL",1704,"Fortalecimiento de la gestión y dirección del sector Agricultura y Desarrollo Rural","1100","Intersubsectorial Agricultura","01","Servicio de ordenamiento social y productivo territorial ","06","Gestión de acceso y administración de tierras",null,32,"AMBIENTE Y DESARROLLO SOSTENIBLE",3204,"Gestión de la información y el conocimiento ambiental",900,"Intersubsectorial Ambiente",null,null,"INTELIGENCIA","4201 Desarrollo de inteligencia estratégica y contrainteligencia de Estado","4299 Fortalecimiento y apoyo a la gestión institucional del sector Inteligencia Estratégica y Contrainteligencia","2501 Fortalecimiento del control y la vigilancia de la gestión fiscal y resarcimiento al daño del patrimonio público","4200 No asignable a programas",null,null,null,null,null,null,null,null,null,null,4]
[17,"AGRICULTURA Y DESARROLLO RURAL",1704,"Fortalecimiento de la gestión y dirección del sector Agricultura y Desarrollo Rural","1100","Intersubsectorial Agricultura","01","Servicio de ordenamiento social y productivo territorial ","07","Gestión de acceso y administración de tierras con enfoque étnico",null,32,"AMBIENTE Y DESARROLLO SOSTENIBLE",3205,"Ordenamiento ambiental territorial",900,"Intersubsectorial Ambiente",null,null,"INTERIOR","3701 Fortalecimiento institucional a los procesos organizativos de concertación; garantía, prevención y respeto de los derechos humanos como fundamentos para la paz","3702 Fortalecimiento a la gobernabilidad territorial para la seguridad, convivencia ciudadana, paz y postconflicto.","3703 Política pública de víctimas del conflicto armado y postconflicto","3704 Participación ciudadana, política y diversidad de creencias","3705 Protección de personas, grupos y comunidades en riesgo extraordinario y extremo Unidad Nacional de Protección (UNP)","3706 Protección, promoción y difusión del derecho de autor y los derechos conexos","3707 Gestión del riesgo de desastres naturales y antrópicos en la zona de influencia del volcán Nevado del Huila.","3708 Fortalecimiento institucional y operativo de los Bomberos de Colombia","3799 Fortalecimiento y apoyo a la gestión institucional del sector interior","2501 Fortalecimiento del control y la vigilancia de la gestión fiscal y resarcimiento al daño del patrimonio público","3604 Derechos fundamentales del trabajo y fortalecimiento del diálogo social","3700 No asignable a programas",null,null,12]
[17,"AGRICULTURA Y DESARROLLO RURAL",1704,"Fortalecimiento de la gestión y dirección del sector Agricultura y Desarrollo Rural","1100","Intersubsectorial Agricultura","01","Servicio de ordenamiento social y productivo territorial ","08","Ejecución de la política de ordenamiento social y productivo territorial ",null,32,"AMBIENTE Y DESARROLLO SOSTENIBLE",3206,"Gestión del cambio climático para un desarrollo bajo en carbono y resiliente al clima",900,"Intersubsectorial Ambiente",null,null,"SISTEMA INTEGRAL DE VERDAD, JUSTICIA, REPARACIÓN Y NO REPETICIÓN","4401 Jurisdicción Especial para la Paz","4403 Búsqueda humanitaria de personas dadas por desaparecidas en el contexto y en razón del conflicto armado en Colombia","4499 Fortalecimiento y apoyo a la gestión institucional del sector Justicia Especial para la Paz","2501 Fortalecimiento del control y la vigilancia de la gestión fiscal y resarcimiento al daño del patrimonio público","4400 No asignable a programas",null,null,null,null,null,null,null,null,null,5]
[17,"AGRICULTURA Y DESARROLLO RURAL",1705,"Restitución de tierras a víctimas del conflicto armado","1100","Intersubsectorial Agricultura","01","Servicio de restitución de tierras y compensación a víctimas del conflicto armado ","01","Direccionamiento estratégico del sector ",null,32,"AMBIENTE Y DESARROLLO SOSTENIBLE",3207,"Gestión integral de mares, costas y recursos acuáticos",900,"Intersubsectorial Ambiente",null,null,"JUSTICIA Y DEL DERECHO","1201 Fortalecimiento del principio de seguridad jurídica, divulgación y depuración del ordenamiento jurídico","1202 Promoción al acceso a la justicia","1203 Promoción de los métodos de resolución de conflictos","1204 Justicia transicional","1205 Defensa jurídica del Estado","1206 Sistema penitenciario y carcelario en el marco de los derechos humanos","1207 Fortalecimiento de la política criminal del Estado colombiano","1208 Formulación y coordinación de la política integral frente a las drogas y actividades relacionadas","1209 Modernización de la información inmobiliaria","1299 Fortalecimiento y apoyo a la gestión institucional del sector Justicia y del Derecho","2501 Fortalecimiento del control y la vigilancia de la gestión fiscal y resarcimiento al daño del patrimonio público","3601 Protección Social","1200 No asignable a programas",null,13]
[17,"AGRICULTURA Y DESARROLLO RURAL",1705,"Restitución de tierras a víctimas del conflicto armado","1100","Intersubsectorial Agricultura","01","Servicio de restitución de tierras y compensación a víctimas del conflicto armado ","02","Diseño e implementación de instrumentos de restitución de tierras despojadas",null,32,"AMBIENTE Y DESARROLLO SOSTENIBLE",3208,"Educación Ambiental",900,"Intersubsectorial Ambiente",null,null,"MINAS Y ENERGÍA","2101 Acceso al servicio público domiciliario de gas combustible","2102 Consolidación productiva del sector de energía eléctrica","2103 Consolidación productiva del sector hidrocarburos","2104 Consolidación productiva del sector minero","2105  Desarrollo ambiental sostenible del sector minero energético","2106 Gestión de la información en el sector minero energético","2199 Fortalecimiento y apoyo a la gestión institucional del sector Minas y Energía","2501 Fortalecimiento del control y la vigilancia de la gestión fiscal y resarcimiento al daño del patrimonio público","3606 Protección Económica para la Vejez","0399 Fortalecimiento y apoyo a la gestión institucional del sector Planeación","1302 Gestión de recursos públicos","2100 No asignable a programas",null,null,12]
[17,"AGRICULTURA Y DESARROLLO RURAL",1705,"Restitución de tierras a víctimas del conflicto armado","1100","Intersubsectorial Agricultura","01","Servicio de restitución de tierras y compensación a víctimas del conflicto armado ","03","Acompañamiento psicosocial a víctimas ",null,32,"AMBIENTE Y DESARROLLO SOSTENIBLE",3299,"Fortalecimiento y apoyo a la gestión institucional del sectorAmbiente y Desarrollo Sostenible",900,"Intersubsectorial Ambiente",null,null,"ORGANISMOS DE CONTROL","2501 Fortalecimiento del control y la vigilancia de la gestión fiscal y resarcimiento al daño del patrimonio público","2502 Promoción, protección y defensa de los Derechos Humanos y el Derecho Internacional Humanitario","2504 Vigilancia de la gestión administrativa de los funcionarios del Estado","2505 Bienestar de los servidores de la Contraloría General de la República","2599 Fortalecimiento y apoyo a la gestión institucional del sector Organismos de control","3606 Protección Económica para la Vejez","2500 No asignable a programas",null,null,null,null,null,null,null,7]
[17,"AGRICULTURA Y DESARROLLO RURAL",1705,"Restitución de tierras a víctimas del conflicto armado","1100","Intersubsectorial Agricultura","01","Servicio de restitución de tierras y compensación a víctimas del conflicto armado ","04","Gestión jurídica ",null,32,"AMBIENTE Y DESARROLLO SOSTENIBLE",3200,"No asignable a programas",900,"Intersubsectorial Ambiente",null,null,"PLANEACIÓN","0301 Mejoramiento de la planeación territorial, sectorial y de inversión pública","0303 Promoción de la prestación eficiente de los servicios públicos domiciliarios","0304 Fortalecimiento del Sistema de Compra Pública","0399 Fortalecimiento y apoyo a la gestión institucional del sector Planeación","2501 Fortalecimiento del control y la vigilancia de la gestión fiscal y resarcimiento al daño del patrimonio público","3606 Protección Económica para la Vejez","0300 No asignable a programas",null,null,null,null,null,null,null,7]
[17,"AGRICULTURA Y DESARROLLO RURAL",1705,"Restitución de tierras a víctimas del conflicto armado","1100","Intersubsectorial Agricultura","01","Servicio de restitución de tierras y compensación a víctimas del conflicto armado ","05","Identificación y caracterización de terrenos ",null,39,"CIENCIA, TECNOLOGÍA E INNOVACIÓN",3999,"Fortalecimiento y apoyo a la gestión institucional del sector Ciencia y Tecnología",1000,"Intersubsectorial Gobierno",null,null,"PRESIDENCIA DE LA REPÚBLICA","0204 Impulsar el desarrollo integral de las poblaciones con enfoque diferencial desde el sector Presidencia","0207 Prevención y mitigación del riesgo de desastres desde el sector Presidencia","0208 Gestión de la cooperación internacional del sector Presidencia","0209 Fortalecimiento de la infraestructura física de las entidades del Estado del nivel nacional desde el Sector Presidencia","0210 Mecanismos de transición hacia la paz a nivel nacional y territorial desde el sector Presidencia","0211 Reintegración de personas y grupos alzados en armas desde el Sector Presidencia","0212 Renovación territorial para el desarrollo integral de las zonas rurales afectadas por el conflicto armado. ","0214 Fortalecimiento de las capacidades de articulación estratégica, modernización, eficiencia administrativa, transparencia y acceso a la información desde el sector Presidencia","0299 Fortalecimiento y apoyo a la gestión institucional del sector Presidencia","2202 Calidad y fomento de la educación superior","2501 Fortalecimiento del control y la vigilancia de la gestión fiscal y resarcimiento al daño del patrimonio público","0200 No asignable a programas",null,null,12]
[17,"AGRICULTURA Y DESARROLLO RURAL",1705,"Restitución de tierras a víctimas del conflicto armado","1100","Intersubsectorial Agricultura","01","Servicio de restitución de tierras y compensación a víctimas del conflicto armado ","06","Acompañamiento a población víctima con enfoque étnico",null,39,"CIENCIA, TECNOLOGÍA E INNOVACIÓN",3900,"No asignable a programas",1000,"Intersubsectorial Gobierno",null,null,"RAMA JUDICIAL","2701 Mejoramiento y ejecución de las competencias de la administración de la justicia","2799 Fortalecimiento y apoyo a la gestión institucional del sector Rama Judicial ","2501 Fortalecimiento del control y la vigilancia de la gestión fiscal y resarcimiento al daño del patrimonio público","3606 Protección Económica para la Vejez","2700 No asignable a programas",null,null,null,null,null,null,null,null,null,5]
[17,"AGRICULTURA Y DESARROLLO RURAL",1705,"Restitución de tierras a víctimas del conflicto armado","1100","Intersubsectorial Agricultura","01","Servicio de restitución de tierras y compensación a víctimas del conflicto armado ","07","Ejecución de la política de restitución de tierras",null,35,"COMERCIO, INDUSTRIA Y TURISMO",3501,"Internacionalización de la economía ","0200","Intersubsectorial Industria y Comercio",null,null,"REGISTRADURÍA","2801 Procesos democráticos y asuntos electorales","2802 Identificación y registro del estado civil de la población","2899 Fortalecimiento y apoyo a la gestión institucional del sector Registraduría","3606 Protección Económica para la Vejez","2501 Fortalecimiento del control y la vigilancia de la gestión fiscal y resarcimiento al daño del patrimonio público","2800 No asignable a programas ",null,null,null,null,null,null,null,null,6]
[17,"AGRICULTURA Y DESARROLLO RURAL",1706,"Aprovechamiento de mercados externos","1100","Intersubsectorial Agricultura","01","servicio de Inclusión del sector agricola en el mercado internacional ","01","Direccionamiento estratégico del sector ",null,35,"COMERCIO, INDUSTRIA Y TURISMO",3502,"Productividad y competitividad de las empresas colombianas ","0200","Intersubsectorial Industria y Comercio",null,null,"RELACIONES EXTERIORES","1101 Fortalecimiento y diversificación de relaciones bilaterales ","1102 Posicionamiento en instancias globales, multilaterales, regionales y subregionales ","1103 Política migratoria y servicio al ciudadano ","1104 Soberanía territorial y desarrollo fronterizo ","1105 Cooperación internacional del sector relaciones exteriores ","1199 Fortalecimiento y apoyo a la gestión institucional del sector Relaciones Exteriores","2501 Fortalecimiento del control y la vigilancia de la gestión fiscal y resarcimiento al daño del patrimonio público","1100 No asignable a programas",null,null,null,null,null,null,8]
[17,"AGRICULTURA Y DESARROLLO RURAL",1706,"Aprovechamiento de mercados externos","1100","Intersubsectorial Agricultura","01","servicio de Inclusión del sector agricola en el mercado internacional ","02","Gestión de la política de comercio exterior para productos agropecuarios",null,35,"COMERCIO, INDUSTRIA Y TURISMO",3503,"Ambiente regulatorio y económico para la competencia y la actividad empresarial","0200","Intersubsectorial Industria y Comercio",null,null,"SALUD Y PROTECCIÓN SOCIAL","1903 Inspección, vigilancia y control","1905 Salud pública","1906 Aseguramiento y prestación integral de servicios de salud","1999 Fortalecimiento y apoyo a la gestión institucional del sector Salud y Protección Social","2501 Fortalecimiento del control y la vigilancia de la gestión fiscal y resarcimiento al daño del patrimonio público","3601 Protección Social","3606 Protección Económica para la Vejez","1304 Inspección, control y vigilancia financiera, solidaria y de recursos públicos","1900 No asignable a programas",null,null,null,null,null,9]
[17,"AGRICULTURA Y DESARROLLO RURAL",1707,"Sanidad agropecuaria e inocuidad agroalimentaria ","1100","Intersubsectorial Agricultura","01","Servicio de implementación y control de medidas sanitarias para el sector agro","01","Direccionamiento estratégico del sector ",null,35,"COMERCIO, INDUSTRIA Y TURISMO",3504,"Competitividad, sostenibilidad y promoción del turismo colombiano ","0200","Intersubsectorial Industria y Comercio",null,null,"TECNOLOGÍAS DE LA INFORMACIÓN Y LAS COMUNICACIONES","2301 Facilitar el acceso y uso de las Tecnologías de la Información y las Comunicaciones en todo el territorio nacional","2302 Fomento del desarrollo de aplicaciones, software y contenidos para impulsar la apropiación de las Tecnologías de la Información y las Comunicaciones (TIC)","2399 Fortalecimiento y apoyo a la gestión institucional del sector Tecnologías de la Información y las Comunicaciones","2501 Fortalecimiento del control y la vigilancia de la gestión fiscal y resarcimiento al daño del patrimonio público","3606 Protección Económica para la Vejez","2300 No asignable a programas",null,null,null,null,null,null,null,null,6]
[17,"AGRICULTURA Y DESARROLLO RURAL",1707,"Sanidad agropecuaria e inocuidad agroalimentaria ","1100","Intersubsectorial Agricultura","01","Servicio de implementación y control de medidas sanitarias para el sector agro","02","Control zoosanitario y fitosanitario para el comercio internacional ",null,35,"COMERCIO, INDUSTRIA Y TURISMO",3599,"Fortalecimiento y apoyo a la gestión institucional del sector Comercio, Industria y Turismo","0200","Intersubsectorial Industria y Comercio",null,null,"TRABAJO","3601 Protección social","3602 Generación y formalización del empleo","3603 Formación para el Trabajo","3604 Derechos fundamentales del trabajo y fortalecimiento del diálogo social","3605 Fomento de la investigación, desarrollo tecnológico e innovación del sector trabajo","3699 Fortalecimiento y apoyo a la gestión institucional del sector Trabajo","3701 Fortalecimiento institucional a los procesos organizativos de concertación; garantía, prevención y respeto de los derechos humanos como fundamentos para la paz","4101 Atención, asistencia  y reparación integral a las víctimas","2501 Fortalecimiento del control y la vigilancia de la gestión fiscal y resarcimiento al daño del patrimonio público","3600 No asignable a programas",null,null,null,null,10]
[17,"AGRICULTURA Y DESARROLLO RURAL",1707,"Sanidad agropecuaria e inocuidad agroalimentaria ","1100","Intersubsectorial Agricultura","01","Servicio de implementación y control de medidas sanitarias para el sector agro","03","Control y erradicación de enfermedades animales",null,35,"COMERCIO, INDUSTRIA Y TURISMO",3500,"No asignable a programas","0200","Intersubsectorial Industria y Comercio",null,null,"TRANSPORTE","2401 Infraestructura red vial primaria","2402 Infraestructura red vial regional","2403 Infraestructura y servicios de transporte aéreo","2404 Infraestructura de transporte férreo","2405 Infraestructura de transporte marítimo","2406 Infraestructura de transporte fluvial","2407 Infraestructura y servicios de logística de transporte","2408 Prestación de servicios de transporte público de pasajeros","2409 Seguridad de transporte","2410 Política, regulación y supervisión de la infraestructura y servicios de transporte","2499 Fortalecimiento y apoyo a la gestión institucional del sector Transporte","2501 Fortalecimiento del control y la vigilancia de la gestión fiscal y resarcimiento al daño del patrimonio público","3606 Protección Económica para la Vejez","2400 No asignable a programas",14]
[17,"AGRICULTURA Y DESARROLLO RURAL",1707,"Sanidad agropecuaria e inocuidad agroalimentaria ","1100","Intersubsectorial Agricultura","01","Servicio de implementación y control de medidas sanitarias para el sector agro","04","Gestión y protección del estatus sanitario",null,"01","CONGRESO DE LA REPÚBLICA","0101","Mejoramiento de la eficiencia y la transparencia legislativa",1000,"Intersubsectorial gobierno ",null,null,"VIVIENDA, CIUDAD Y TERRITORIO","4001 Acceso a soluciones de vivienda","4002 Ordenamiento territorial y desarrollo urbano","4003 Acceso de la población a los servicios de agua potable y saneamiento básico","4099 Fortalecimiento y apoyo a la gestión institucional del sector Vivienda, Ciudad y Territorio","0399 Fortalecimiento y apoyo a la gestión institucional del sector Planeación","2501 Fortalecimiento del control y la vigilancia de la gestión fiscal y resarcimiento al daño del patrimonio público","3606 Protección Económica para la Vejez","4000 No asignable a programas",null,null,null,null,null,null,8]
[17,"AGRICULTURA Y DESARROLLO RURAL",1707,"Sanidad agropecuaria e inocuidad agroalimentaria ","1100","Intersubsectorial Agricultura","01","Servicio de implementación y control de medidas sanitarias para el sector agro","05","Gestión de servicios de análisis e investigación sanitaria y fitosanitaria ",null,"01","CONGRESO DE LA REPÚBLICA","0199","Fortalecimiento y apoyo a la gestión institucional del sector Congreso de la República ",1000,"Intersubsectorial gobierno ",null,null,"IGUALDAD Y EQUIDAD","4601 Cierre de brechas para el goce efectivo  de derechos fundamentales de la población  en condición de discapacidad - Sector  igualdad y equidad","4602 Desarrollo integral de la primera infancia a la juventud, y fortalecimiento de las capacidades de las familias de niñas, niños y adolescentes - Sector igualdad y equidad","4603 Cierre de brechas de desigualdad e inequidad para el goce efectivo de derechos fundamentales de los sujetos de especial protección constitucional","4699 Fortalecimiento y apoyo a la gestión institucional del sector Igualdad y Equidad","2501 Fortalecimiento del control y la vigilancia de la gestión fiscal y resarcimiento al daño del patrimonio público","3606 Protección Económica para la Vejez","4600 No asignable a programas",null,null,null,null,null,null,null,7]
[17,"AGRICULTURA Y DESARROLLO RURAL",1707,"Sanidad agropecuaria e inocuidad agroalimentaria ","1100","Intersubsectorial Agricultura","01","Servicio de implementación y control de medidas sanitarias para el sector agro","06","Control y seguimiento a la actividad pesquera y acuícola ",null,"01","CONGRESO DE LA REPÚBLICA","0100","No asignable a programas",1000,"Intersubsectorial gobierno "]
[17,"AGRICULTURA Y DESARROLLO RURAL",1707,"Sanidad agropecuaria e inocuidad agroalimentaria ","1100","Intersubsectorial Agricultura","01","Servicio de implementación y control de medidas sanitarias para el sector agro","07","Gestión y control de la gestión sanitaria de la actividad pesquera y acuícola",null,33,"CULTURA",3301,"Promoción y acceso efectivo a procesos culturales y artísticos",1603,"Arte y cultura"]
[17,"AGRICULTURA Y DESARROLLO RURAL",1707,"Sanidad agropecuaria e inocuidad agroalimentaria ","1100","Intersubsectorial Agricultura","01","Servicio de implementación y control de medidas sanitarias para el sector agro","08","Inspección y vilancia ",null,33,"CULTURA",3302,"Gestión, protección y salvaguardia del patrimonio cultural colombiano",1603,"Arte y cultura"]
[17,"AGRICULTURA Y DESARROLLO RURAL",1707,"Sanidad agropecuaria e inocuidad agroalimentaria ","1100","Intersubsectorial Agricultura","02","Servicio de fomento y fotalecimiento de la actividad acuicola y pesquera ","01","Gestión de la política de fomento a la producción acuicola y pesquera",null,33,"CULTURA",3399,"Fortalecimiento y apoyo a la gestión institucional del sector Cultura",1603,"Arte y cultura"]
[17,"AGRICULTURA Y DESARROLLO RURAL",1707,"Sanidad agropecuaria e inocuidad agroalimentaria ","1100","Intersubsectorial Agricultura","02","Servicio de fomento y fotalecimiento de la actividad acuicola y pesquera ","02","Regulación y control a la actividad acuícola y pesquera ",null,33,"CULTURA",3300,"No asignable a programas",1603,"Arte y cultura"]
[17,"AGRICULTURA Y DESARROLLO RURAL",1707,"Sanidad agropecuaria e inocuidad agroalimentaria ","1100","Intersubsectorial Agricultura","02","Servicio de fomento y fotalecimiento de la actividad acuicola y pesquera ","03","Inspección y vilancia ",null,15,"DEFENSA Y POLICÍA",1501,"Capacidades de la Policía Nacional en seguridad pública, prevención, convivencia y seguridad ciudadana","0100","Intersubsectorial Defensa y Seguridad"]
[17,"AGRICULTURA Y DESARROLLO RURAL",1707,"Sanidad agropecuaria e inocuidad agroalimentaria ","1100","Intersubsectorial Agricultura","03","Servicio de definición de política de sanidad agropecuaria e inocuidad agroalimentaria","01","Diseño y desarrollo de medidas sanitarias y fitosanitarias ",null,15,"DEFENSA Y POLICÍA",1502,"Capacidades de la Policía Nacional en seguridad pública, prevención, convivencia y seguridad ciudadana","0100","Intersubsectorial Defensa y Seguridad"]
[17,"AGRICULTURA Y DESARROLLO RURAL",1708,"Ciencia, tecnología e innovación agropecuaria","1100","Intersubsectorial Agricultura","01","Servicio de gestión y promoción del fotalecimiento en tecnología e innovación ","01","Direccionamiento estratégico del sector ",null,15,"DEFENSA Y POLICÍA",1504,"Desarrollo marítimo, fluvial y costero desde el sector defensa","0100","Intersubsectorial Defensa y Seguridad"]
[17,"AGRICULTURA Y DESARROLLO RURAL",1708,"Ciencia, tecnología e innovación agropecuaria","1100","Intersubsectorial Agricultura","01","Servicio de gestión y promoción del fotalecimiento en tecnología e innovación ","02","Gestión de la política para el desarrollo tecnólogico e innovación productiva rural ",null,15,"DEFENSA Y POLICÍA",1505,"Generación de bienestar para la Fuerza Pública y sus familias","0100","Intersubsectorial Defensa y Seguridad"]
[17,"AGRICULTURA Y DESARROLLO RURAL",1709,"Infraestructura productiva y comercialización ","1100","Intersubsectorial Agricultura","01","Servicio de fortalecimiento de la gestión productiva y comercialización del sector Agropecuario ","01","Direccionamiento estratégico del sector ",null,15,"DEFENSA Y POLICÍA",1506,"Gestión del riesgo de desastres desde el sector Defensa y Seguridad","0100","Intersubsectorial Defensa y Seguridad"]
[17,"AGRICULTURA Y DESARROLLO RURAL",1709,"Infraestructura productiva y comercialización ","1100","Intersubsectorial Agricultura","01","Servicio de fortalecimiento de la gestión productiva y comercialización del sector Agropecuario ","02","Gestión de la política de fortalecimiento productivo y comercialización del sector agropecuario ",null,15,"DEFENSA Y POLICÍA",1508,"Inspección, Vigilancia y Control de la prestación del servicio de vigilancia y seguridad privada","0100","Intersubsectorial Defensa y Seguridad"]
[17,"AGRICULTURA Y DESARROLLO RURAL",1709,"Infraestructura productiva y comercialización ","1100","Intersubsectorial Agricultura","01","Servicio de fortalecimiento de la gestión productiva y comercialización del sector Agropecuario ","03","Gestión de investigación y desarrollo para el sector ",null,15,"DEFENSA Y POLICÍA",1599,"Fortalecimiento y apoyo a la gestión institucional del sector Defensa y Policía","0100","Intersubsectorial Defensa y Seguridad"]
[17,"AGRICULTURA Y DESARROLLO RURAL",1709,"Infraestructura productiva y comercialización ","1100","Intersubsectorial Agricultura","01","Servicio de fortalecimiento de la gestión productiva y comercialización del sector Agropecuario ","04","Gestión y administración de los esquemas de adecuación de tierras",null,15,"DEFENSA Y POLICÍA",1500,"No asignable a programas","0100","Intersubsectorial Defensa y Seguridad"]
[17,"AGRICULTURA Y DESARROLLO RURAL",1709,"Infraestructura productiva y comercialización ","1100","Intersubsectorial Agricultura","01","Servicio de fortalecimiento de la gestión productiva y comercialización del sector Agropecuario ","05","Fortalecimiento de las capacidades comerciales del sector",null,43,"DEPORTE Y RECREACIÓN",4301,"Fomento a la recreación, la actividad física y el deporte",1604,"Recreación y deporte"]
[17,"AGRICULTURA Y DESARROLLO RURAL",1710,"Acompañamiento a población rural y población rural vulnerable ","1100","Intersubsectorial Agricultura","01","servicio de gestión para  garantizar la provision de bienes y servicios públicos a poblaciones rurales","01","Direccionamiento estratégico del sector ",null,43,"DEPORTE Y RECREACIÓN",4302,"Formación y preparación de deportistas",1604,"Recreación y deporte"]
[17,"AGRICULTURA Y DESARROLLO RURAL",1710,"Acompañamiento a población rural y población rural vulnerable ","1100","Intersubsectorial Agricultura","01","servicio de gestión para  garantizar la provision de bienes y servicios públicos a poblaciones rurales","02","Gestión de políticas para atender a la población rural ",null,43,"DEPORTE Y RECREACIÓN",4399,"Fortalecimiento y apoyo a la gestión institucional del sector Recreación y Deporte",1604,"Recreación y deporte"]
[17,"AGRICULTURA Y DESARROLLO RURAL",1799,"fortalecimiento y apoyo a la gestión institucional del sector Agricultura y Desarrollo Rural","1100","Intersubsectorial Agricultura","01","Servicio de fortalecimiento y apoyo a la gestión institucional del sector Agricultura y Desarrollo Rural","01","Direccionamiento estratégico del sector ",null,43,"DEPORTE Y RECREACIÓN",4300,"No programático",1604,"Recreación y deporte"]
[17,"AGRICULTURA Y DESARROLLO RURAL",1799,"fortalecimiento y apoyo a la gestión institucional del sector Agricultura y Desarrollo Rural","1100","Intersubsectorial Agricultura","01","Servicio de fortalecimiento y apoyo a la gestión institucional del sector Agricultura y Desarrollo Rural","02","Gestión jurídica",null,22,"EDUCACIÓN",2201,"Calidad, cobertura y fortalecimiento de la educación inicial, prescolar, básica y media","0700","Intersubsectorial Educación"]
[17,"AGRICULTURA Y DESARROLLO RURAL",1799,"fortalecimiento y apoyo a la gestión institucional del sector Agricultura y Desarrollo Rural","1100","Intersubsectorial Agricultura","01","Servicio de fortalecimiento y apoyo a la gestión institucional del sector Agricultura y Desarrollo Rural","03","Seguimiento y control ",null,22,"EDUCACIÓN",2202,"Calidad y fomento de la educación superior","0700","Intersubsectorial Educación"]
[17,"AGRICULTURA Y DESARROLLO RURAL",1799,"fortalecimiento y apoyo a la gestión institucional del sector Agricultura y Desarrollo Rural","1100","Intersubsectorial Agricultura","01","Servicio de fortalecimiento y apoyo a la gestión institucional del sector Agricultura y Desarrollo Rural","04","Gestión de las TIC ",null,22,"EDUCACIÓN",2203,"Cierre de brechas para el goce efectivo de derechos fundamentales de la población en condición de discapacidad","0700","Intersubsectorial Educación"]
[17,"AGRICULTURA Y DESARROLLO RURAL",1799,"fortalecimiento y apoyo a la gestión institucional del sector Agricultura y Desarrollo Rural","1100","Intersubsectorial Agricultura","01","Servicio de fortalecimiento y apoyo a la gestión institucional del sector Agricultura y Desarrollo Rural","05","Gestión administrativa",null,22,"EDUCACIÓN",2299,"Fortalecimiento y apoyo a la gestión institucional del sector Educación","0700","Intersubsectorial Educación"]
[17,"AGRICULTURA Y DESARROLLO RURAL",1799,"fortalecimiento y apoyo a la gestión institucional del sector Agricultura y Desarrollo Rural","1100","Intersubsectorial Agricultura","01","Servicio de fortalecimiento y apoyo a la gestión institucional del sector Agricultura y Desarrollo Rural","06","Gestión financiera ",null,22,"EDUCACIÓN",2200,"No asignable a programas","0700","Intersubsectorial Educación"]
[17,"AGRICULTURA Y DESARROLLO RURAL",1799,"fortalecimiento y apoyo a la gestión institucional del sector Agricultura y Desarrollo Rural","1100","Intersubsectorial Agricultura","01","Servicio de fortalecimiento y apoyo a la gestión institucional del sector Agricultura y Desarrollo Rural","07","Gestión administrativa y financiera ",null,"05","EMPLEO PÚBLICO","0503","Mejoramiento de la calidad educativa en la gestión pública",1000,"Intersubsectorial Gobierno"]
[17,"AGRICULTURA Y DESARROLLO RURAL",1799,"fortalecimiento y apoyo a la gestión institucional del sector Agricultura y Desarrollo Rural","1100","Intersubsectorial Agricultura","01","Servicio de fortalecimiento y apoyo a la gestión institucional del sector Agricultura y Desarrollo Rural","08","Gestión de comunicaciones",null,"05","EMPLEO PÚBLICO","0504","Administración y vigilancia de las carreras administrativas de los servidores públicos",1000,"Intersubsectorial Gobierno"]
[17,"AGRICULTURA Y DESARROLLO RURAL",1799,"fortalecimiento y apoyo a la gestión institucional del sector Agricultura y Desarrollo Rural","1100","Intersubsectorial Agricultura","01","Servicio de fortalecimiento y apoyo a la gestión institucional del sector Agricultura y Desarrollo Rural","09","Gestión jurídica ",null,"05","EMPLEO PÚBLICO","0505","Fortalecimiento de la gestión pública en las entidades nacionales y territoriales",1000,"Intersubsectorial Gobierno"]
[17,"AGRICULTURA Y DESARROLLO RURAL",1799,"fortalecimiento y apoyo a la gestión institucional del sector Agricultura y Desarrollo Rural","1100","Intersubsectorial Agricultura","01","Servicio de fortalecimiento y apoyo a la gestión institucional del sector Agricultura y Desarrollo Rural","10","Ejecución de la política de desarrollo rural ",null,"05","EMPLEO PÚBLICO","0599","Fortalecimiento y apoyo a la gestión institucional del sector Empleo",1000,"Intersubsectorial Gobierno"]
[17,"AGRICULTURA Y DESARROLLO RURAL",1799,"fortalecimiento y apoyo a la gestión institucional del sector Agricultura y Desarrollo Rural","1100","Intersubsectorial Agricultura","01","Servicio de fortalecimiento y apoyo a la gestión institucional del sector Agricultura y Desarrollo Rural","11","Gestión y desarrollo del talento humano ",null,"05","EMPLEO PÚBLICO","0500","No asignable a programas",1000,"Intersubsectorial Gobierno"]
[17,"AGRICULTURA Y DESARROLLO RURAL",1700,"No asignable a programas ","1100","Intersubsectorial Agricultura","01","Sin producto","01","Transferiencias corrientes",null,29,"FISCALÍA",2901,"Efectividad de la investigación penal y técnico científica",1000,"Intersubsectorial Gobierno"]
[32,"AMBIENTE Y DESARROLLO SOSTENIBLE",3201,"Fortalecimiento del desempeño ambiental de los sectores productivos",900,"Intersubsectorial Ambiente","01","Servicio de promoción de la gestión sectorial sostenible","01","Fomento de negocios verdes y producción limpia",null,29,"FISCALÍA",2999,"Fortalecimiento y apoyo a la gestión institucional del sector Fiscalía",1000,"Intersubsectorial Gobierno"]
[32,"AMBIENTE Y DESARROLLO SOSTENIBLE",3201,"Fortalecimiento del desempeño ambiental de los sectores productivos",900,"Intersubsectorial Ambiente","01","Servicio de promoción de la gestión sectorial sostenible","02","Gestión de normas y regulación ambiental sectorial",null,29,"FISCALÍA",2900,"No asignable a programas",1000,"Intersubsectorial Gobierno"]
[32,"AMBIENTE Y DESARROLLO SOSTENIBLE",3201,"Fortalecimiento del desempeño ambiental de los sectores productivos",900,"Intersubsectorial Ambiente","01","Servicio de promoción de la gestión sectorial sostenible","03","Financiación de inversión ambiental sectorial",null,13,"HACIENDA",1301,"Política macroeconómica fiscal",1000,"Intersubsectorial Gobierno"]
[32,"AMBIENTE Y DESARROLLO SOSTENIBLE",3201,"Fortalecimiento del desempeño ambiental de los sectores productivos",900,"Intersubsectorial Ambiente","01","Servicio de promoción de la gestión sectorial sostenible","04","Gestión integral de residuos y sustancias químicas",null,13,"HACIENDA",1302,"Gestión de recursos públicos",1000,"Intersubsectorial Gobierno"]
[32,"AMBIENTE Y DESARROLLO SOSTENIBLE",3201,"Fortalecimiento del desempeño ambiental de los sectores productivos",900,"Intersubsectorial Ambiente","01","Servicio de promoción de la gestión sectorial sostenible","05","Gestión ambiental urbana",null,13,"HACIENDA",1303,"Reducción de la vulnerabilidad fiscal ante desastres y riesgos climáticos",1000,"Intersubsectorial Gobierno"]
[32,"AMBIENTE Y DESARROLLO SOSTENIBLE",3201,"Fortalecimiento del desempeño ambiental de los sectores productivos",900,"Intersubsectorial Ambiente","01","Servicio de promoción de la gestión sectorial sostenible","06","Licenciamiento y control ambiental",null,13,"HACIENDA",1304,"Inspección, control y vigilancia financiera, solidaria y de recursos públicos",1000,"Intersubsectorial Gobierno"]
[32,"AMBIENTE Y DESARROLLO SOSTENIBLE",3202,"Conservación de la biodiversidad y sus servicios ecosistémicos",900,"Intersubsectorial Ambiente","01","Servicio de promoción del uso sostenible y conservación de la biodiversidad","01","Financiación de inversión Sistema de Parques Nacionales",null,13,"HACIENDA",1305,"Fortalecimiento de recaudo y tributación",1000,"Intersubsectorial Gobierno"]
[32,"AMBIENTE Y DESARROLLO SOSTENIBLE",3202,"Conservación de la biodiversidad y sus servicios ecosistémicos",900,"Intersubsectorial Ambiente","01","Servicio de promoción del uso sostenible y conservación de la biodiversidad","02","Gestión de biotecnología y bioprospección",null,13,"HACIENDA",1399,"Fortalecimiento y apoyo a la gestión institucional del sector Hacienda",1000,"Intersubsectorial Gobierno"]
[32,"AMBIENTE Y DESARROLLO SOSTENIBLE",3202,"Conservación de la biodiversidad y sus servicios ecosistémicos",900,"Intersubsectorial Ambiente","01","Servicio de promoción del uso sostenible y conservación de la biodiversidad","03","Gestión integral y regulación de bosques, reservas forestales y zonas amortiguadoras del SPNN",null,13,"HACIENDA",1300,"No asignable a programas",1000,"Intersubsectorial Gobierno"]
[32,"AMBIENTE Y DESARROLLO SOSTENIBLE",3202,"Conservación de la biodiversidad y sus servicios ecosistémicos",900,"Intersubsectorial Ambiente","01","Servicio de promoción del uso sostenible y conservación de la biodiversidad","04","Gestión y manejo de áreas protegidas",null,41,"INCLUSIÓN SOCIAL Y RECONCILIACIÓN",4101,"Atención, asistencia y reparación integral a las víctimas",1500,"Intersubsectorial Desarrollo Social"]
[32,"AMBIENTE Y DESARROLLO SOSTENIBLE",3203,"Gestión Integral del Recurso Hídrico",900,"Intersubsectorial Ambiente","01","Servicio de planificación y administración del recurso hídrico","01","Financiación de inversión GIRH",null,41,"INCLUSIÓN SOCIAL Y RECONCILIACIÓN",4102,"Desarrollo integral de la primera infancia a la juventud y fortalecimiento familiar",1500,"Intersubsectorial Desarrollo Social"]
[32,"AMBIENTE Y DESARROLLO SOSTENIBLE",3203,"Gestión Integral del Recurso Hídrico",900,"Intersubsectorial Ambiente","01","Servicio de planificación y administración del recurso hídrico","02","Planificación de cuencas hidrográficas y acuíferos",null,41,"INCLUSIÓN SOCIAL Y RECONCILIACIÓN",4103,"Inclusión social y productiva para la población en situación de vulnerabilidad",1500,"Intersubsectorial Desarrollo Social"]
[32,"AMBIENTE Y DESARROLLO SOSTENIBLE",3203,"Gestión Integral del Recurso Hídrico",900,"Intersubsectorial Ambiente","01","Servicio de planificación y administración del recurso hídrico","03","Promoción de la gobernanza del agua",null,41,"INCLUSIÓN SOCIAL Y RECONCILIACIÓN","410X","Protección de derechos de niños, niñas, adolescentes y jóvenes",1500,"Intersubsectorial Desarrollo Social"]
[32,"AMBIENTE Y DESARROLLO SOSTENIBLE",3203,"Gestión Integral del Recurso Hídrico",900,"Intersubsectorial Ambiente","01","Servicio de planificación y administración del recurso hídrico","04","Regulación, manejo y control del recurso hídrico",null,41,"INCLUSIÓN SOCIAL Y RECONCILIACIÓN",4199,"Fortalecimiento y apoyo a la gestión institucional del sector Inclusión social y Reconciliación",1500,"Intersubsectorial Desarrollo Social"]
[32,"AMBIENTE Y DESARROLLO SOSTENIBLE",3204,"Gestión de la información y el conocimiento ambiental",900,"Intersubsectorial Ambiente","01","Servicio de sistematización de información y conocimiento ambiental para la toma de decisiones ","01","Orientación estratégica del Sistema de Información Ambiental de Colombia",null,"04","INFORMACIÓN ESTADÍSTICA","0401","Levantamiento y actualización de información estadística de calidad",1003,"Planificación Estadística"]
[32,"AMBIENTE Y DESARROLLO SOSTENIBLE",3204,"Gestión de la información y el conocimiento ambiental",900,"Intersubsectorial Ambiente","01","Servicio de sistematización de información y conocimiento ambiental para la toma de decisiones ","02","Gestión de información y conocimiento meteorológico",null,"04","INFORMACIÓN ESTADÍSTICA","0406","Generación de la información geográfica del territorio nacional",1003,"Planificación Estadística"]
[32,"AMBIENTE Y DESARROLLO SOSTENIBLE",3204,"Gestión de la información y el conocimiento ambiental",900,"Intersubsectorial Ambiente","01","Servicio de sistematización de información y conocimiento ambiental para la toma de decisiones ","03","Gestión de información y conocimiento hidrológico",null,"04","INFORMACIÓN ESTADÍSTICA","0499","Fortalecimiento y apoyo a la gestión institucional del sector Información Estadística",1003,"Planificación Estadística"]
[32,"AMBIENTE Y DESARROLLO SOSTENIBLE",3204,"Gestión de la información y el conocimiento ambiental",900,"Intersubsectorial Ambiente","01","Servicio de sistematización de información y conocimiento ambiental para la toma de decisiones ","04","Gestión de información de ecosistemas",null,"04","INFORMACIÓN ESTADÍSTICA","0400","No asignable a programas",1003,"Planificación Estadística"]
[32,"AMBIENTE Y DESARROLLO SOSTENIBLE",3204,"Gestión de la información y el conocimiento ambiental",900,"Intersubsectorial Ambiente","01","Servicio de sistematización de información y conocimiento ambiental para la toma de decisiones ","05","Estudios ambientales",null,42,"INTELIGENCIA",4201,"Desarrollo de inteligencia estratégica y contrainteligencia de Estado","0100","Intersubsectorial Defensa y Seguridad"]
[32,"AMBIENTE Y DESARROLLO SOSTENIBLE",3205,"Ordenamiento ambiental territorial",900,"Intersubsectorial Ambiente","01","Servicio de ordenamiento ambiental en la planificación del territorio","01","Coordinación del SINA e inspección y vigilancia a las CAR en cumplimiento de la política ambiental en el territorio",null,42,"INTELIGENCIA",4299,"Fortalecimiento y apoyo a la gestión institucional del sector Inteligencia","0100","Intersubsectorial Defensa y Seguridad"]
[32,"AMBIENTE Y DESARROLLO SOSTENIBLE",3205,"Ordenamiento ambiental territorial",900,"Intersubsectorial Ambiente","01","Servicio de ordenamiento ambiental en la planificación del territorio","02","Gestión de información ambiental geográfica para apoyar el ordenamiento ambiental",null,42,"INTELIGENCIA",4200,"No asignable a programas","0100","Intersubsectorial Defensa y Seguridad"]
[32,"AMBIENTE Y DESARROLLO SOSTENIBLE",3205,"Ordenamiento ambiental territorial",900,"Intersubsectorial Ambiente","01","Servicio de ordenamiento ambiental en la planificación del territorio","03","Orientación y asistencia técnica a ET en la inclusión de determinantes ambientales y gestión del riesgo en el ordenamiento del territorio",null,37,"INTERIOR",3701,"Fortalecimiento institucional a los procesos organizativos de concertación; garantía, prevención y respeto de los derechos humanos como fundamentos para la paz",1000,"Intersubsectorial Gobierno"]
[32,"AMBIENTE Y DESARROLLO SOSTENIBLE",3206,"Gestión del cambio climático para un desarrollo bajo en carbono y resiliente al clima",900,"Intersubsectorial Ambiente","01","Servicio de diseño e implementación de instrumentos de gestión del cambio climático","01","Gestión de instrumentos de política, lineamientos y asistencia técnica a ET y autoridades ambientales en adaptación al cambio climático",null,37,"INTERIOR",3702,"Fortalecimiento a la gobernabilidad territorial para la seguridad, convivencia ciudadana, paz y postconflicto.",1000,"Intersubsectorial Gobierno"]
[32,"AMBIENTE Y DESARROLLO SOSTENIBLE",3206,"Gestión del cambio climático para un desarrollo bajo en carbono y resiliente al clima",900,"Intersubsectorial Ambiente","01","Servicio de diseño e implementación de instrumentos de gestión del cambio climático","02","Gestión de instrumentos de política, lineamientos y asistencia técnica a ET y autoridades ambientales en mitigación del cambio climático",null,37,"INTERIOR",3704,"Gobernabilidad y participación ciudadana",1000,"Intersubsectorial Gobierno"]
[32,"AMBIENTE Y DESARROLLO SOSTENIBLE",3206,"Gestión del cambio climático para un desarrollo bajo en carbono y resiliente al clima",900,"Intersubsectorial Ambiente","01","Servicio de diseño e implementación de instrumentos de gestión del cambio climático","03","Gestión del riesgo para reducir la vulnerabilidad frente al cambio climático",null,37,"INTERIOR",3705,"Protección de personas, grupos y comunidades en riesgo extraordinario y extremo Unidad Nacional de Protección (UNP)",1000,"Intersubsectorial Gobierno"]
[32,"AMBIENTE Y DESARROLLO SOSTENIBLE",3206,"Gestión del cambio climático para un desarrollo bajo en carbono y resiliente al clima",900,"Intersubsectorial Ambiente","01","Servicio de diseño e implementación de instrumentos de gestión del cambio climático","04","Gestión territorial del cambio climático",null,37,"INTERIOR",3706,"Protección, promoción y difusión del derecho de autor y los derechos conexos",1000,"Intersubsectorial Gobierno"]
[32,"AMBIENTE Y DESARROLLO SOSTENIBLE",3207,"Gestión integral de mares, costas y recursos acuáticos",900,"Intersubsectorial Ambiente","01","Servicio de apoyo en la implementación de instrumentos para la gestión sostenible de las unidades ambientales costeras","01","Apoyo a la gestión del riesgo y mejoramiento de la calidad ambiental en las zonas marino-costeras",null,37,"INTERIOR",3707,"Gestión del riesgo de desastres naturales y antrópicos en la zona de influencia del volcán Nevado del Huila.",1000,"Intersubsectorial Gobierno"]
[32,"AMBIENTE Y DESARROLLO SOSTENIBLE",3207,"Gestión integral de mares, costas y recursos acuáticos",900,"Intersubsectorial Ambiente","01","Servicio de apoyo en la implementación de instrumentos para la gestión sostenible de las unidades ambientales costeras","02","Gestión técnica de apoyo a autoridades ambientales y territoriales en la adopción de los planes de ordenación y manejo integrado de las unidades ambientales costeras",null,37,"INTERIOR",3799,"Fortalecimiento y apoyo a la gestión institucional del sector interior ",1000,"Intersubsectorial Gobierno"]
[32,"AMBIENTE Y DESARROLLO SOSTENIBLE",3208,"Educación Ambiental",900,"Intersubsectorial Ambiente","01","Servicio de promoción de la educación ambiental","01","Diseño y promoción de estrategias y mecanismos de sensibilización y cultura ambiental",null,37,"INTERIOR",3700,"No asignable a programas",1000,"Intersubsectorial Gobierno"]
[32,"AMBIENTE Y DESARROLLO SOSTENIBLE",3208,"Educación Ambiental",900,"Intersubsectorial Ambiente","01","Servicio de promoción de la educación ambiental","02","Desarrollo y promoción de planes y programas docentes y pensum nacional en educación ambiental",null,44,"SISTEMA INTEGRAL DE VERDAD, JUSTICIA, REPARACIÓN Y NO REPETICIÓN",4401,"Jurisdicción Especial para la Paz",1000,"Intersubsectorial Gobierno"]
[32,"AMBIENTE Y DESARROLLO SOSTENIBLE",3208,"Educación Ambiental",900,"Intersubsectorial Ambiente","01","Servicio de promoción de la educación ambiental","03","Desarrollo y promoción de mecanismos de participación, empoderamiento ambiental ciudadano y protección del conocimiento tradicional",null,44,"SISTEMA INTEGRAL DE VERDAD, JUSTICIA, REPARACIÓN Y NO REPETICIÓN",4403,"Unidad de Búsqueda de Personas dadas por Desaparecidas en el contexto y en razón del Conflicto Armado (UBPD)",1000,"Intersubsectorial Gobierno"]
[32,"AMBIENTE Y DESARROLLO SOSTENIBLE",3208,"Educación Ambiental",900,"Intersubsectorial Ambiente","01","Servicio de promoción de la educación ambiental","04","Gestión Territorial de la Educación Ambiental",null,44,"SISTEMA INTEGRAL DE VERDAD, JUSTICIA, REPARACIÓN Y NO REPETICIÓN",4499,"Fortalecimiento y apoyo a la gestión institucional del sector Justicia Especial para la Paz",1000,"Intersubsectorial Gobierno"]
[32,"AMBIENTE Y DESARROLLO SOSTENIBLE",3299,"Fortalecimiento y apoyo a la gestión institucional del sectorAmbiente y Desarrollo Sostenible",900,"Intersubsectorial Ambiente","01","Servicio de fortalecimiento y apoyo a la gestión institucional del sector Ambiente y Desarrollo Sostenible","01","Direccionamiento estratégico del Sector",null,44,"SISTEMA INTEGRAL DE VERDAD, JUSTICIA, REPARACIÓN Y NO REPETICIÓN",4400,"No asignable a programas",1000,"Intersubsectorial Gobierno"]
[32,"AMBIENTE Y DESARROLLO SOSTENIBLE",3299,"Fortalecimiento y apoyo a la gestión institucional del sectorAmbiente y Desarrollo Sostenible",900,"Intersubsectorial Ambiente","01","Servicio de fortalecimiento y apoyo a la gestión institucional del sector Ambiente y Desarrollo Sostenible","02","Gestión jurídica",null,12,"JUSTICIA Y DEL DERECHO",1201,"Fortalecimiento del principio de seguridad jurídica, divulgación y depuración del ordenamiento jurídico","0800","Intersubsectorial Justicia"]
[32,"AMBIENTE Y DESARROLLO SOSTENIBLE",3299,"Fortalecimiento y apoyo a la gestión institucional del sectorAmbiente y Desarrollo Sostenible",900,"Intersubsectorial Ambiente","01","Servicio de fortalecimiento y apoyo a la gestión institucional del sector Ambiente y Desarrollo Sostenible","03","Gestión de comunicaciones ",null,12,"JUSTICIA Y DEL DERECHO",1202,"Promoción al acceso a la justicia","0800","Intersubsectorial Justicia"]
[32,"AMBIENTE Y DESARROLLO SOSTENIBLE",3299,"Fortalecimiento y apoyo a la gestión institucional del sectorAmbiente y Desarrollo Sostenible",900,"Intersubsectorial Ambiente","01","Servicio de fortalecimiento y apoyo a la gestión institucional del sector Ambiente y Desarrollo Sostenible","04","Seguimiento y evaluación ",null,12,"JUSTICIA Y DEL DERECHO",1203,"Promoción de los métodos de resolución de conflictos","0800","Intersubsectorial Justicia"]
[32,"AMBIENTE Y DESARROLLO SOSTENIBLE",3299,"Fortalecimiento y apoyo a la gestión institucional del sectorAmbiente y Desarrollo Sostenible",900,"Intersubsectorial Ambiente","01","Servicio de fortalecimiento y apoyo a la gestión institucional del sector Ambiente y Desarrollo Sostenible","05","Gestión y desarrollo del talento humano",null,12,"JUSTICIA Y DEL DERECHO",1204,"Justicia transicional","0800","Intersubsectorial Justicia"]
[32,"AMBIENTE Y DESARROLLO SOSTENIBLE",3299,"Fortalecimiento y apoyo a la gestión institucional del sectorAmbiente y Desarrollo Sostenible",900,"Intersubsectorial Ambiente","01","Servicio de fortalecimiento y apoyo a la gestión institucional del sector Ambiente y Desarrollo Sostenible","06","Gestión Administrativa",null,12,"JUSTICIA Y DEL DERECHO",1205,"Defensa jurídica del Estado","0800","Intersubsectorial Justicia"]
[32,"AMBIENTE Y DESARROLLO SOSTENIBLE",3299,"Fortalecimiento y apoyo a la gestión institucional del sectorAmbiente y Desarrollo Sostenible",900,"Intersubsectorial Ambiente","01","Servicio de fortalecimiento y apoyo a la gestión institucional del sector Ambiente y Desarrollo Sostenible","07","Gestión de TIC",null,12,"JUSTICIA Y DEL DERECHO",1206,"Sistema penitenciario y carcelario en el marco de los derechos humanos","0800","Intersubsectorial Justicia"]
[32,"AMBIENTE Y DESARROLLO SOSTENIBLE",3299,"Fortalecimiento y apoyo a la gestión institucional del sectorAmbiente y Desarrollo Sostenible",900,"Intersubsectorial Ambiente","01","Servicio de fortalecimiento y apoyo a la gestión institucional del sector Ambiente y Desarrollo Sostenible","08","Gestión Contractual",null,12,"JUSTICIA Y DEL DERECHO",1207,"Fortalecimiento de la política criminal del Estado colombiano","0800","Intersubsectorial Justicia"]
[32,"AMBIENTE Y DESARROLLO SOSTENIBLE",3299,"Fortalecimiento y apoyo a la gestión institucional del sectorAmbiente y Desarrollo Sostenible",900,"Intersubsectorial Ambiente","01","Servicio de fortalecimiento y apoyo a la gestión institucional del sector Ambiente y Desarrollo Sostenible","09","Gestión financiera ",null,12,"JUSTICIA Y DEL DERECHO",1208,"Formulación y coordinación de la política integral frente a las drogas y actividades relacionadas","0800","Intersubsectorial Justicia"]
[32,"AMBIENTE Y DESARROLLO SOSTENIBLE",3299,"Fortalecimiento y apoyo a la gestión institucional del sectorAmbiente y Desarrollo Sostenible",900,"Intersubsectorial Ambiente","01","Servicio de fortalecimiento y apoyo a la gestión institucional del sector Ambiente y Desarrollo Sostenible","10","Gestión documental ",null,12,"JUSTICIA Y DEL DERECHO",1209,"Modernización de la información inmobiliaria","0800","Intersubsectorial Justicia"]
[32,"AMBIENTE Y DESARROLLO SOSTENIBLE",3299,"Fortalecimiento y apoyo a la gestión institucional del sectorAmbiente y Desarrollo Sostenible",900,"Intersubsectorial Ambiente","01","Servicio de fortalecimiento y apoyo a la gestión institucional del sector Ambiente y Desarrollo Sostenible","11","Gestión de atención al ciudadano",null,12,"JUSTICIA Y DEL DERECHO",1299,"Fortalecimiento y apoyo a la gestión institucional del sector Justicia y del Derecho","0800","Intersubsectorial Justicia"]
[32,"AMBIENTE Y DESARROLLO SOSTENIBLE",3299,"Fortalecimiento y apoyo a la gestión institucional del sectorAmbiente y Desarrollo Sostenible",900,"Intersubsectorial Ambiente","01","Servicio de fortalecimiento y apoyo a la gestión institucional del sector Ambiente y Desarrollo Sostenible","12","Gestión de Control Interno",null,12,"JUSTICIA Y DEL DERECHO",1200,"No asignable a programas","0800","Intersubsectorial Justicia"]
[32,"AMBIENTE Y DESARROLLO SOSTENIBLE",3299,"Fortalecimiento y apoyo a la gestión institucional del sectorAmbiente y Desarrollo Sostenible",900,"Intersubsectorial Ambiente","01","Servicio de fortalecimiento y apoyo a la gestión institucional del sector Ambiente y Desarrollo Sostenible","13","Gestión de Control Interno Disciplinario",null,21,"MINAS Y ENERGÍA",2101,"Acceso al servicio público domiciliario de gas combustible",1900,"Intersubsectorial Minas y Energía"]
[32,"AMBIENTE Y DESARROLLO SOSTENIBLE",3200,"No asignable a programas",900,"Intersubsectorial Ambiente","01","Sin producto","01","Transferencias",null,21,"MINAS Y ENERGÍA",2102,"Consolidación productiva del sector de energía eléctrica",1900,"Intersubsectorial Minas y Energía"]
[39,"CIENCIA, TECNOLOGÍA E INNOVACIÓN",3999,"Fortalecimiento y apoyo a la gestión institucional del sector Ciencia y Tecnología",1000,"Intersubsectorial Gobierno","01","Servicio de fortalecimiento y apoyo a la gestión institucional del sector Ciencia y Tecnología","01","Desarrollo de vocación científica y formación de capital humano",null,21,"MINAS Y ENERGÍA",2103,"Consolidación productiva del sector de hidrocarburos",1900,"Intersubsectorial Minas y Energía"]
[39,"CIENCIA, TECNOLOGÍA E INNOVACIÓN",3999,"Fortalecimiento y apoyo a la gestión institucional del sector Ciencia y Tecnología",1000,"Intersubsectorial Gobierno","01","Servicio de fortalecimiento y apoyo a la gestión institucional del sector Ciencia y Tecnología","02","Desarrollo Tecnológico e Innovación",null,21,"MINAS Y ENERGÍA",2104,"Consolidación productiva del sector minero",1900,"Intersubsectorial Minas y Energía"]
[39,"CIENCIA, TECNOLOGÍA E INNOVACIÓN",3999,"Fortalecimiento y apoyo a la gestión institucional del sector Ciencia y Tecnología",1000,"Intersubsectorial Gobierno","01","Servicio de fortalecimiento y apoyo a la gestión institucional del sector Ciencia y Tecnología","03","Direccionamiento estratégico",null,21,"MINAS Y ENERGÍA",2105," Desarrollo ambiental sostenible del sector minero energético",1900,"Intersubsectorial Minas y Energía"]
[39,"CIENCIA, TECNOLOGÍA E INNOVACIÓN",3999,"Fortalecimiento y apoyo a la gestión institucional del sector Ciencia y Tecnología",1000,"Intersubsectorial Gobierno","01","Servicio de fortalecimiento y apoyo a la gestión institucional del sector Ciencia y Tecnología","04","Fomento de la investigación",null,21,"MINAS Y ENERGÍA",2106,"Gestión de la información en el sector minero energético",1900,"Intersubsectorial Minas y Energía"]
[39,"CIENCIA, TECNOLOGÍA E INNOVACIÓN",3999,"Fortalecimiento y apoyo a la gestión institucional del sector Ciencia y Tecnología",1000,"Intersubsectorial Gobierno","01","Servicio de fortalecimiento y apoyo a la gestión institucional del sector Ciencia y Tecnología","05","Generación de capacidades regionales y transferencia de conocimiento",null,21,"MINAS Y ENERGÍA",2199,"Fortalecimiento y apoyo a la gestión institucional del sector Minas y Energía",1900,"Intersubsectorial Minas y Energía"]
[39,"CIENCIA, TECNOLOGÍA E INNOVACIÓN",3999,"Fortalecimiento y apoyo a la gestión institucional del sector Ciencia y Tecnología",1000,"Intersubsectorial Gobierno","01","Servicio de fortalecimiento y apoyo a la gestión institucional del sector Ciencia y Tecnología","06","Gestión de comunicaciones",null,21,"MINAS Y ENERGÍA",2100,"No asignable a programas",1900,"Intersubsectorial Minas y Energía"]
[39,"CIENCIA, TECNOLOGÍA E INNOVACIÓN",3999,"Fortalecimiento y apoyo a la gestión institucional del sector Ciencia y Tecnología",1000,"Intersubsectorial Gobierno","01","Servicio de fortalecimiento y apoyo a la gestión institucional del sector Ciencia y Tecnología","07","Gestión TICs",null,25,"ORGANISMOS DE CONTROL",2502,"Promoción, protección y defensa de los Derechos Humanos y el Derecho Internacional Humanitario",1000,"Intersubsectorial Gobierno"]
[39,"CIENCIA, TECNOLOGÍA E INNOVACIÓN",3999,"Fortalecimiento y apoyo a la gestión institucional del sector Ciencia y Tecnología",1000,"Intersubsectorial Gobierno","01","Servicio de fortalecimiento y apoyo a la gestión institucional del sector Ciencia y Tecnología","08","Gestión administrativa",null,25,"ORGANISMOS DE CONTROL",2504,"Vigilancia de la gestión administrativa de los funcionarios del Estado",1000,"Intersubsectorial Gobierno"]
[39,"CIENCIA, TECNOLOGÍA E INNOVACIÓN",3999,"Fortalecimiento y apoyo a la gestión institucional del sector Ciencia y Tecnología",1000,"Intersubsectorial Gobierno","01","Servicio de fortalecimiento y apoyo a la gestión institucional del sector Ciencia y Tecnología","09","Gestión contractual",null,25,"ORGANISMOS DE CONTROL",2599,"Fortalecimiento y apoyo a la gestión institucional del sector organismos de control",1000,"Intersubsectorial Gobierno"]
[39,"CIENCIA, TECNOLOGÍA E INNOVACIÓN",3999,"Fortalecimiento y apoyo a la gestión institucional del sector Ciencia y Tecnología",1000,"Intersubsectorial Gobierno","01","Servicio de fortalecimiento y apoyo a la gestión institucional del sector Ciencia y Tecnología","10","Gestión de recursos para la Ciencia, la Tecnología y la Innovación (CTel)",null,25,"ORGANISMOS DE CONTROL",2501,"Fortalecimiento del control y la vigilancia de la gestión fiscal y resarcimiento al daño del patrimonio público",1000,"Intersubsectorial Gobierno"]
[39,"CIENCIA, TECNOLOGÍA E INNOVACIÓN",3999,"Fortalecimiento y apoyo a la gestión institucional del sector Ciencia y Tecnología",1000,"Intersubsectorial Gobierno","01","Servicio de fortalecimiento y apoyo a la gestión institucional del sector Ciencia y Tecnología","11","Gestión financiera",null,25,"ORGANISMOS DE CONTROL",2505,"Bienestar de los servidores de la Contraloría General de la República",1000,"Intersubsectorial Gobierno"]
[39,"CIENCIA, TECNOLOGÍA E INNOVACIÓN",3999,"Fortalecimiento y apoyo a la gestión institucional del sector Ciencia y Tecnología",1000,"Intersubsectorial Gobierno","01","Servicio de fortalecimiento y apoyo a la gestión institucional del sector Ciencia y Tecnología","12","Gestión jurídica",null,"03","PLANEACIÓN","0301","Mejoramiento de la planeación territorial, sectorial y de inversión pública",1000,"Intersubsectorial gobierno"]
[39,"CIENCIA, TECNOLOGÍA E INNOVACIÓN",3999,"Fortalecimiento y apoyo a la gestión institucional del sector Ciencia y Tecnología",1000,"Intersubsectorial Gobierno","01","Servicio de fortalecimiento y apoyo a la gestión institucional del sector Ciencia y Tecnología","13","Gestión y desarrollo del talento humano",null,"03","PLANEACIÓN","0303","Promoción de la prestación eficiente de los servicios públicos domiciliarios",1000,"Intersubsectorial gobierno"]
[39,"CIENCIA, TECNOLOGÍA E INNOVACIÓN",3999,"Fortalecimiento y apoyo a la gestión institucional del sector Ciencia y Tecnología",1000,"Intersubsectorial Gobierno","01","Servicio de fortalecimiento y apoyo a la gestión institucional del sector Ciencia y Tecnología","14","Seguimiento y evaluación",null,"03","PLANEACIÓN","0304","Fortalecimiento del Sistema de Compra Pública",1000,"Intersubsectorial gobierno"]
[39,"CIENCIA, TECNOLOGÍA E INNOVACIÓN",3900,"No asignable a programas",1000,"Intersubsectorial Gobierno","01","Sin producto","01","Transferencias corrientes",null,"03","PLANEACIÓN","0399","Fortalecimiento y apoyo a la gestión institucional del sector Planeación",1000,"Intersubsectorial gobierno"]
[35,"COMERCIO, INDUSTRIA Y TURISMO",3501,"Internacionalización de la economía ","0200","Intersubsectorial Industria y Comercio","01","Servicio de gestión de la política de comercio exterior ","01","Direccionamiento estratégico de la política de comercio exterior",null,"03","PLANEACIÓN","0300","No asignable a programas",1000,"Intersubsectorial gobierno "]
[35,"COMERCIO, INDUSTRIA Y TURISMO",3501,"Internacionalización de la economía ","0200","Intersubsectorial Industria y Comercio","01","Servicio de gestión de la política de comercio exterior ","02","Gestión de relaciones comerciales e inversión extranjera ",null,"02","PRESIDENCIA DE LA REPÚBLICA","0204","Impulsar la competitividad de las regiones y el desarrollo integral las poblaciones con enfoque diferencial desde el sector Presidencia. ",1000,"Intersubsectorial gobierno"]
[35,"COMERCIO, INDUSTRIA Y TURISMO",3502,"Productividad y competitividad de las empresas colombianas ","0200","Intersubsectorial Industria y Comercio","01","Servicio de gestión de la política de competitividad empresarial","01","Direccionamiento estratégico de la política de desarrollo empresarial",null,"02","PRESIDENCIA DE LA REPÚBLICA","0207","Prevención y mitigación del riesgo de desastres desde el sector Presidencia",1000,"Intersubsectorial gobierno"]
[35,"COMERCIO, INDUSTRIA Y TURISMO",3502,"Productividad y competitividad de las empresas colombianas ","0200","Intersubsectorial Industria y Comercio","01","Servicio de gestión de la política de competitividad empresarial","02","Gestión de la calidad de la metrología física a nivel nacional ",null,"02","PRESIDENCIA DE LA REPÚBLICA","0208","Gestión de la cooperación internacional del sector Presidencia",1000,"Intersubsectorial gobierno"]
[35,"COMERCIO, INDUSTRIA Y TURISMO",3502,"Productividad y competitividad de las empresas colombianas ","0200","Intersubsectorial Industria y Comercio","01","Servicio de gestión de la política de competitividad empresarial","03","Gestión de la calidad de la metrología química y biología a nivel nacional ",null,"02","PRESIDENCIA DE LA REPÚBLICA","0209","Fortalecimiento de la infraestructura física de las entidades del Estado del nivel nacional desde el Sector Presidencia",1000,"Intersubsectorial gobierno"]
[35,"COMERCIO, INDUSTRIA Y TURISMO",3502,"Productividad y competitividad de las empresas colombianas ","0200","Intersubsectorial Industria y Comercio","01","Servicio de gestión de la política de competitividad empresarial","04","Gestión de la prestación de servicios metrológicos",null,"02","PRESIDENCIA DE LA REPÚBLICA","0210","Mecanismos de transición hacia la paz a nivel nacional y territorial desde el sector Presidencia",1000,"Intersubsectorial gobierno"]
[35,"COMERCIO, INDUSTRIA Y TURISMO",3502,"Productividad y competitividad de las empresas colombianas ","0200","Intersubsectorial Industria y Comercio","01","Servicio de gestión de la política de competitividad empresarial","05","Gestión del fortalecimiento de la competitividad empresarial",null,"02","PRESIDENCIA DE LA REPÚBLICA","0211","Reintegración de personas y grupos alzados en armas desde el Sector Presidencia",1000,"Intersubsectorial gobierno"]
[35,"COMERCIO, INDUSTRIA Y TURISMO",3503,"Ambiente regulatorio y económico para la competencia y la actividad empresarial","0200","Intersubsectorial Industria y Comercio","01","Servicio de Inspección, vigilancia y control de las sociedades","01","Conciliación y arbitraje ",null,"02","PRESIDENCIA DE LA REPÚBLICA","0212","Renovación territorial para el desarrollo integral de las zonas rurales afectadas por el conflicto armado. ",1000,"Intersubsectorial gobierno"]
[35,"COMERCIO, INDUSTRIA Y TURISMO",3503,"Ambiente regulatorio y económico para la competencia y la actividad empresarial","0200","Intersubsectorial Industria y Comercio","01","Servicio de Inspección, vigilancia y control de las sociedades","02","Direccionamiento estratégico",null,"02","PRESIDENCIA DE LA REPÚBLICA","0214","Fortalecimiento de las capacidades de articulación estratégica, modernización, eficiencia administrativa, transparencia y acceso a la información desde el sector Presidencia",1000,"Intersubsectorial gobierno"]
[35,"COMERCIO, INDUSTRIA Y TURISMO",3503,"Ambiente regulatorio y económico para la competencia y la actividad empresarial","0200","Intersubsectorial Industria y Comercio","01","Servicio de Inspección, vigilancia y control de las sociedades","03","Gestión de análisis económicos y de riesgos",null,"02","PRESIDENCIA DE LA REPÚBLICA","0299","Fortalecimiento y apoyo a la gestión institucional del sector Presidencia",1000,"Intersubsectorial gobierno"]
[35,"COMERCIO, INDUSTRIA Y TURISMO",3503,"Ambiente regulatorio y económico para la competencia y la actividad empresarial","0200","Intersubsectorial Industria y Comercio","01","Servicio de Inspección, vigilancia y control de las sociedades","04","Gestión de información empresarial",null,"02","PRESIDENCIA DE LA REPÚBLICA","0200","No asignable a programas",1000,"Intersubsectorial gobierno "]
[35,"COMERCIO, INDUSTRIA Y TURISMO",3503,"Ambiente regulatorio y económico para la competencia y la actividad empresarial","0200","Intersubsectorial Industria y Comercio","01","Servicio de Inspección, vigilancia y control de las sociedades","05","Gestión de investigaciones y sanciones administrativas ",null,27,"RAMA JUDICIAL",2701,"Mejoramiento y ejecución de las competencias de la administración de la justicia","0800","Intersubsectorial Justicia"]
[35,"COMERCIO, INDUSTRIA Y TURISMO",3503,"Ambiente regulatorio y económico para la competencia y la actividad empresarial","0200","Intersubsectorial Industria y Comercio","01","Servicio de Inspección, vigilancia y control de las sociedades","06","Gestión de liquidación judicial ",null,27,"RAMA JUDICIAL",2799,"Fortalecimiento y apoyo a la gestión institucional del sector Rama Judicial","0800","Intersubsectorial Justicia"]
[35,"COMERCIO, INDUSTRIA Y TURISMO",3503,"Ambiente regulatorio y económico para la competencia y la actividad empresarial","0200","Intersubsectorial Industria y Comercio","01","Servicio de Inspección, vigilancia y control de las sociedades","07","Gestión de recuperación empresarial ",null,27,"RAMA JUDICIAL",2700,"No asignable a programas","0800","Intersubsectorial Justicia"]
[35,"COMERCIO, INDUSTRIA Y TURISMO",3503,"Ambiente regulatorio y económico para la competencia y la actividad empresarial","0200","Intersubsectorial Industria y Comercio","01","Servicio de Inspección, vigilancia y control de las sociedades","08","Supervisión, vigilancia a entes especiales",null,28,"REGISTRADURÍA",2801,"Procesos democráticos y asuntos electorales",1000,"Intersubsectorial Gobierno"]
[35,"COMERCIO, INDUSTRIA Y TURISMO",3503,"Ambiente regulatorio y económico para la competencia y la actividad empresarial","0200","Intersubsectorial Industria y Comercio","01","Servicio de Inspección, vigilancia y control de las sociedades","09","Supervisión, vigilancia a las empresas",null,28,"REGISTRADURÍA",2802,"Identificación y registro del estado civil de la población",1000,"Intersubsectorial Gobierno"]
[35,"COMERCIO, INDUSTRIA Y TURISMO",3503,"Ambiente regulatorio y económico para la competencia y la actividad empresarial","0200","Intersubsectorial Industria y Comercio","01","Servicio de Inspección, vigilancia y control de las sociedades","10","Supervisión, vigilancia y sanción a las cámaras de comercio",null,28,"REGISTRADURÍA",2899,"Fortalecimiento y apoyo a la gestión institucional del sector Registraduría",1000,"Intersubsectorial Gobierno"]
[35,"COMERCIO, INDUSTRIA Y TURISMO",3503,"Ambiente regulatorio y económico para la competencia y la actividad empresarial","0200","Intersubsectorial Industria y Comercio","02","Servicio de Promoción y protección de la competencia ","01","Direccionamiento estratégico",null,28,"REGISTRADURÍA",2800,"No asignable a programas ",1000,"Intersubsectorial Gobierno"]
[35,"COMERCIO, INDUSTRIA Y TURISMO",3503,"Ambiente regulatorio y económico para la competencia y la actividad empresarial","0200","Intersubsectorial Industria y Comercio","02","Servicio de Promoción y protección de la competencia ","02","Gestión de inspección y vigilancia ",null,11,"RELACIONES EXTERIORES",1101,"Fortalecimiento y diversificación de relaciones bilaterales ",1002,"Relaciones exteriores"]
[35,"COMERCIO, INDUSTRIA Y TURISMO",3503,"Ambiente regulatorio y económico para la competencia y la actividad empresarial","0200","Intersubsectorial Industria y Comercio","02","Servicio de Promoción y protección de la competencia ","03","Gestión regulatoria del sector comercio, industria y turismo",null,11,"RELACIONES EXTERIORES",1102,"Posicionamiento en instancias globales, multilaterales, regionales y subregionales ",1002,"Relaciones exteriores"]
[35,"COMERCIO, INDUSTRIA Y TURISMO",3503,"Ambiente regulatorio y económico para la competencia y la actividad empresarial","0200","Intersubsectorial Industria y Comercio","03","Servicio de protección a la propiedad industrial","01","Direccionamiento estratégico",null,11,"RELACIONES EXTERIORES",1103,"Política migratoria y servicio al ciudadano ",1002,"Relaciones exteriores"]
[35,"COMERCIO, INDUSTRIA Y TURISMO",3503,"Ambiente regulatorio y económico para la competencia y la actividad empresarial","0200","Intersubsectorial Industria y Comercio","03","Servicio de protección a la propiedad industrial","02","Gestión de marcas y lemas comerciales",null,11,"RELACIONES EXTERIORES",1104,"Soberanía territorial y desarrollo fronterizo ",1002,"Relaciones exteriores"]
[35,"COMERCIO, INDUSTRIA Y TURISMO",3503,"Ambiente regulatorio y económico para la competencia y la actividad empresarial","0200","Intersubsectorial Industria y Comercio","03","Servicio de protección a la propiedad industrial","03","Gestión de patentes ",null,11,"RELACIONES EXTERIORES",1199,"Fortalecimiento y apoyo a la gestión institucional del sector relaciones exteriores",1002,"Relaciones exteriores"]
[35,"COMERCIO, INDUSTRIA Y TURISMO",3503,"Ambiente regulatorio y económico para la competencia y la actividad empresarial","0200","Intersubsectorial Industria y Comercio","04","Servicio de Protección al consumidor ","01","Direccionamiento estratégico",null,11,"RELACIONES EXTERIORES",1100,"No asignable a programas",1002,"Relaciones exteriores"]
[35,"COMERCIO, INDUSTRIA Y TURISMO",3503,"Ambiente regulatorio y económico para la competencia y la actividad empresarial","0200","Intersubsectorial Industria y Comercio","04","Servicio de Protección al consumidor ","02","Gestión de investigaciones y sanciones administrativas ",null,19,"SALUD Y PROTECCIÓN SOCIAL",1901,"Salud Pública y prestación de servicios","0300","Intersubsectorial Salud"]
[35,"COMERCIO, INDUSTRIA Y TURISMO",3503,"Ambiente regulatorio y económico para la competencia y la actividad empresarial","0200","Intersubsectorial Industria y Comercio","04","Servicio de Protección al consumidor ","03","Gestión de la calidad de la prestación del servicio turístico y protección al consumidor ",null,19,"SALUD Y PROTECCIÓN SOCIAL",1902,"Aseguramiento y administración del Sistema General de la Seguridad Social en Salud - SGSSS","0300","Intersubsectorial Salud"]
[35,"COMERCIO, INDUSTRIA Y TURISMO",3503,"Ambiente regulatorio y económico para la competencia y la actividad empresarial","0200","Intersubsectorial Industria y Comercio","05","Servicio de Protección de datos personales","01","Direccionamiento estratégico",null,19,"SALUD Y PROTECCIÓN SOCIAL",1903,"Inspección, vigilancia y control del Sistema de Seguridad Social en Salud","0300","Intersubsectorial Salud"]
[35,"COMERCIO, INDUSTRIA Y TURISMO",3503,"Ambiente regulatorio y económico para la competencia y la actividad empresarial","0200","Intersubsectorial Industria y Comercio","05","Servicio de Protección de datos personales","02","Gestión de investigaciones y sanciones administrativas ",null,19,"SALUD Y PROTECCIÓN SOCIAL",1907,"Administración de pensiones de entidades del sector salud","0300","Intersubsectorial Salud"]
[35,"COMERCIO, INDUSTRIA Y TURISMO",3503,"Ambiente regulatorio y económico para la competencia y la actividad empresarial","0200","Intersubsectorial Industria y Comercio","05","Servicio de Protección de datos personales","03","Gestión del registro nacional de bases de datos",null,19,"SALUD Y PROTECCIÓN SOCIAL",1999,"Fortalecimiento y apoyo a la gestión institucional del sector salud","0300","Intersubsectorial Salud"]
[35,"COMERCIO, INDUSTRIA Y TURISMO",3503,"Ambiente regulatorio y económico para la competencia y la actividad empresarial","0200","Intersubsectorial Industria y Comercio","06","Servicio de vigilancia al cumplimiento de los reglamentos técnicos y del sistema metrológico","01","Direccionamiento estratégico",null,19,"SALUD Y PROTECCIÓN SOCIAL",1900,"No programático","0300","Intersubsectorial Salud"]
[35,"COMERCIO, INDUSTRIA Y TURISMO",3503,"Ambiente regulatorio y económico para la competencia y la actividad empresarial","0200","Intersubsectorial Industria y Comercio","06","Servicio de vigilancia al cumplimiento de los reglamentos técnicos y del sistema metrológico","02","Gestión de investigaciones y sanciones administrativas ",null,23,"TECNOLOGÍAS DE LA INFORMACIÓN Y LAS COMUNICACIONES",2301,"Facilitar el acceso y uso de las Tecnologías de la Información y las Comunicaciones en todo el territorio nacional","0400","Intersubsectorial Comunicaciones"]
[35,"COMERCIO, INDUSTRIA Y TURISMO",3503,"Ambiente regulatorio y económico para la competencia y la actividad empresarial","0200","Intersubsectorial Industria y Comercio","07","Servicio de vigilancia y control al ejercicio de la contaduría pública","01","Direccionamiento estratégico",null,23,"TECNOLOGÍAS DE LA INFORMACIÓN Y LAS COMUNICACIONES",2302,"Fomento del desarrollo de aplicaciones, software y contenidos para impulsar la apropiación de las Tecnologías de la Información y las Comunicaciones (TIC)","0400","Intersubsectorial Comunicaciones"]
[35,"COMERCIO, INDUSTRIA Y TURISMO",3503,"Ambiente regulatorio y económico para la competencia y la actividad empresarial","0200","Intersubsectorial Industria y Comercio","07","Servicio de vigilancia y control al ejercicio de la contaduría pública","02","Gestión Administrativa",null,23,"TECNOLOGÍAS DE LA INFORMACIÓN Y LAS COMUNICACIONES",2399,"Fortalecimiento y apoyo a la gestión institucional del sector Tecnologías de la Información y las Comunicaciones","0400","Intersubsectorial Comunicaciones"]
[35,"COMERCIO, INDUSTRIA Y TURISMO",3503,"Ambiente regulatorio y económico para la competencia y la actividad empresarial","0200","Intersubsectorial Industria y Comercio","07","Servicio de vigilancia y control al ejercicio de la contaduría pública","03","Gestión de investigaciones y sanciones administrativas ",null,23,"TECNOLOGÍAS DE LA INFORMACIÓN Y LAS COMUNICACIONES",2300,"No asignable a programas","0400","Intersubsectorial Comunicaciones"]
[35,"COMERCIO, INDUSTRIA Y TURISMO",3503,"Ambiente regulatorio y económico para la competencia y la actividad empresarial","0200","Intersubsectorial Industria y Comercio","07","Servicio de vigilancia y control al ejercicio de la contaduría pública","04","Seguimiento y evaluación ",null,36,"TRABAJO",3601,"Protección Social",1300,"Intersubsectorial Trabajo y Bienestar Social"]
[35,"COMERCIO, INDUSTRIA Y TURISMO",3504,"Competitividad, sostenibilidad y promoción del turismo colombiano ","0200","Intersubsectorial Industria y Comercio","01","Servicio de gestión de la promoción y competitividad del sector turismo ","01","Direccionamiento estratégico de la política turística",null,36,"TRABAJO",3602,"Generación y formalización del empleo",1300,"Intersubsectorial Trabajo y Bienestar Social"]
[35,"COMERCIO, INDUSTRIA Y TURISMO",3504,"Competitividad, sostenibilidad y promoción del turismo colombiano ","0200","Intersubsectorial Industria y Comercio","01","Servicio de gestión de la promoción y competitividad del sector turismo ","02","Gestión de la competitividad y promoción del sector turismo",null,36,"TRABAJO",3603,"Formación para el Trabajo",1300,"Intersubsectorial Trabajo y Bienestar Social"]
[35,"COMERCIO, INDUSTRIA Y TURISMO",3599,"Fortalecimiento y apoyo a la gestión institucional del sector Comercio, Industria y Turismo","0200","Intersubsectorial Industria y Comercio","01","Servicio de fortalecimiento y apoyo a la gestión institucional del sector  Comercio, Industria y Turismo","01","Direccionamiento estratégico",null,36,"TRABAJO",3604,"Derechos fundamentales del trabajo y fortalecimiento del diálogo social",1300,"Intersubsectorial Trabajo y Bienestar Social"]
[35,"COMERCIO, INDUSTRIA Y TURISMO",3599,"Fortalecimiento y apoyo a la gestión institucional del sector Comercio, Industria y Turismo","0200","Intersubsectorial Industria y Comercio","01","Servicio de fortalecimiento y apoyo a la gestión institucional del sector  Comercio, Industria y Turismo","02","Direccionamiento estratégico del sector",null,36,"TRABAJO",3605,"Fomento de la investigación, desarrollo tecnológico e innovación del sector trabajo",1300,"Intersubsectorial Trabajo y Bienestar Social"]
[35,"COMERCIO, INDUSTRIA Y TURISMO",3599,"Fortalecimiento y apoyo a la gestión institucional del sector Comercio, Industria y Turismo","0200","Intersubsectorial Industria y Comercio","01","Servicio de fortalecimiento y apoyo a la gestión institucional del sector  Comercio, Industria y Turismo","03","Gestión Administrativa",null,36,"TRABAJO",3699,"Fortalecimiento y apoyo a la gestión institucional del sector Trabajo",1300,"Intersubsectorial Trabajo y Bienestar Social"]
[35,"COMERCIO, INDUSTRIA Y TURISMO",3599,"Fortalecimiento y apoyo a la gestión institucional del sector Comercio, Industria y Turismo","0200","Intersubsectorial Industria y Comercio","01","Servicio de fortalecimiento y apoyo a la gestión institucional del sector  Comercio, Industria y Turismo","04","Gestión de comunicaciones y atención al ciudadano ",null,36,"TRABAJO",3600,"No asignable a programas",1300,"Intersubsectorial Trabajo y Bienestar Social"]
[35,"COMERCIO, INDUSTRIA Y TURISMO",3599,"Fortalecimiento y apoyo a la gestión institucional del sector Comercio, Industria y Turismo","0200","Intersubsectorial Industria y Comercio","01","Servicio de fortalecimiento y apoyo a la gestión institucional del sector  Comercio, Industria y Turismo","05","Gestión de TIC",null,24,"TRANSPORTE",2401,"Infraestructura red vial primaria","0600","Intersubsectorial Transporte"]
[35,"COMERCIO, INDUSTRIA Y TURISMO",3599,"Fortalecimiento y apoyo a la gestión institucional del sector Comercio, Industria y Turismo","0200","Intersubsectorial Industria y Comercio","01","Servicio de fortalecimiento y apoyo a la gestión institucional del sector  Comercio, Industria y Turismo","06","Gestión financiera ",null,24,"TRANSPORTE",2402,"Infraestructura red vial regional","0600","Intersubsectorial Transporte"]
[35,"COMERCIO, INDUSTRIA Y TURISMO",3599,"Fortalecimiento y apoyo a la gestión institucional del sector Comercio, Industria y Turismo","0200","Intersubsectorial Industria y Comercio","01","Servicio de fortalecimiento y apoyo a la gestión institucional del sector  Comercio, Industria y Turismo","07","Gestión jurídica",null,24,"TRANSPORTE",2403,"Infraestructura y servicios de transporte aéreo","0600","Intersubsectorial Transporte"]
[35,"COMERCIO, INDUSTRIA Y TURISMO",3599,"Fortalecimiento y apoyo a la gestión institucional del sector Comercio, Industria y Turismo","0200","Intersubsectorial Industria y Comercio","01","Servicio de fortalecimiento y apoyo a la gestión institucional del sector  Comercio, Industria y Turismo","08","Gestión y desarrollo del talento humano ",null,24,"TRANSPORTE",2404,"Infraestructura de transporte férreo","0600","Intersubsectorial Transporte"]
[35,"COMERCIO, INDUSTRIA Y TURISMO",3599,"Fortalecimiento y apoyo a la gestión institucional del sector Comercio, Industria y Turismo","0200","Intersubsectorial Industria y Comercio","01","Servicio de fortalecimiento y apoyo a la gestión institucional del sector  Comercio, Industria y Turismo","09","Seguimiento y evaluación ",null,24,"TRANSPORTE",2405,"Infraestructura de transporte marítimo","0600","Intersubsectorial Transporte"]
[35,"COMERCIO, INDUSTRIA Y TURISMO",3500,"No asignable a programas","0200","Intersubsectorial Industria y Comercio","01","Sin producto","01","Transferencias corrientes",null,24,"TRANSPORTE",2406,"Infraestructura de transporte fluvial","0600","Intersubsectorial Transporte"]
["01","CONGRESO DE LA REPÚBLICA","0101","Mejoramiento de la eficiencia y la transparencia legislativa",1000,"Intersubsectorial gobierno ","01","Servicio de expedición, modificación y derogación de leyes nacionales ","01","Gestión legislativa ",null,24,"TRANSPORTE",2407,"Infraestructura y servicios de logística de transporte","0600","Intersubsectorial Transporte"]
["01","CONGRESO DE LA REPÚBLICA","0101","Mejoramiento de la eficiencia y la transparencia legislativa",1000,"Intersubsectorial gobierno ","01","Servicio de expedición, modificación y derogación de leyes nacionales ","02","Soporte técnico para la gestión legislativa ",null,24,"TRANSPORTE",2408,"Prestación de servicios de transporte público de pasajeros","0600","Intersubsectorial Transporte"]
["01","CONGRESO DE LA REPÚBLICA","0101","Mejoramiento de la eficiencia y la transparencia legislativa",1000,"Intersubsectorial gobierno ","01","Servicio de expedición, modificación y derogación de leyes nacionales ","03","Gestión documental ",null,24,"TRANSPORTE",2409,"Seguridad de transporte","0600","Intersubsectorial Transporte"]
["01","CONGRESO DE LA REPÚBLICA","0199","Fortalecimiento y apoyo a la gestión institucional del sector Congreso de la República ",1000,"Intersubsectorial gobierno ","01","Servicio de fortalecimiento y apoyo a la gestión institucional del sector Congreso de la República","01","Direccionamiento estratégico ",null,24,"TRANSPORTE",2410,"Política, regulación y supervisión de la infraestructura y servicios de transporte","0600","Intersubsectorial Transporte"]
["01","CONGRESO DE LA REPÚBLICA","0199","Fortalecimiento y apoyo a la gestión institucional del sector Congreso de la República ",1000,"Intersubsectorial gobierno ","01","Servicio de fortalecimiento y apoyo a la gestión institucional del sector Congreso de la República","02","Gestión de comunicaciones",null,24,"TRANSPORTE",2499,"Fortalecimiento y apoyo a la gestión institucional del sector Transporte","0600","Intersubsectorial Transporte"]
["01","CONGRESO DE LA REPÚBLICA","0199","Fortalecimiento y apoyo a la gestión institucional del sector Congreso de la República ",1000,"Intersubsectorial gobierno ","01","Servicio de fortalecimiento y apoyo a la gestión institucional del sector Congreso de la República","03","Gestión de protocolo",null,24,"TRANSPORTE",2400,"No asignable a programas","0600","Intersubsectorial Transporte"]
["01","CONGRESO DE LA REPÚBLICA","0199","Fortalecimiento y apoyo a la gestión institucional del sector Congreso de la República ",1000,"Intersubsectorial gobierno ","01","Servicio de fortalecimiento y apoyo a la gestión institucional del sector Congreso de la República","04","Gestión administrativa",null,40,"VIVIENDA, CIUDAD Y TERRITORIO",4001,"Acceso a soluciones de vivienda",1400,"Intersubsectorial Vivienda y Desarrollo territorial"]
["01","CONGRESO DE LA REPÚBLICA","0199","Fortalecimiento y apoyo a la gestión institucional del sector Congreso de la República ",1000,"Intersubsectorial gobierno ","01","Servicio de fortalecimiento y apoyo a la gestión institucional del sector Congreso de la República","05","Gestión jurídica",null,40,"VIVIENDA, CIUDAD Y TERRITORIO",4002,"Ordenamiento territorial y desarrollo urbano",1400,"Intersubsectorial Vivienda y Desarrollo territorial"]
["01","CONGRESO DE LA REPÚBLICA","0199","Fortalecimiento y apoyo a la gestión institucional del sector Congreso de la República ",1000,"Intersubsectorial gobierno ","01","Servicio de fortalecimiento y apoyo a la gestión institucional del sector Congreso de la República","06","Direccionamiento estratégico y gestión de las TIC ",null,40,"VIVIENDA, CIUDAD Y TERRITORIO",4003,"Acceso de la población a los servicios de agua potable y saneamiento básico",1400,"Intersubsectorial Vivienda y Desarrollo territorial"]
["01","CONGRESO DE LA REPÚBLICA","0199","Fortalecimiento y apoyo a la gestión institucional del sector Congreso de la República ",1000,"Intersubsectorial gobierno ","01","Servicio de fortalecimiento y apoyo a la gestión institucional del sector Congreso de la República","07","Gestión y desarrollo del recurso humano ",null,40,"VIVIENDA, CIUDAD Y TERRITORIO",4099,"Fortalecimiento y apoyo a la gestión institucional del sector Vivienda, Ciudad y Territorio",1400,"Intersubsectorial Vivienda y Desarrollo territorial"]
["01","CONGRESO DE LA REPÚBLICA","0199","Fortalecimiento y apoyo a la gestión institucional del sector Congreso de la República ",1000,"Intersubsectorial gobierno ","01","Servicio de fortalecimiento y apoyo a la gestión institucional del sector Congreso de la República","08","Gestión financiera ",null,40,"VIVIENDA, CIUDAD Y TERRITORIO",4000,"No asignable a programas",1400,"Intersubsectorial Vivienda y Desarrollo territorial"]
["01","CONGRESO DE LA REPÚBLICA","0199","Fortalecimiento y apoyo a la gestión institucional del sector Congreso de la República ",1000,"Intersubsectorial gobierno ","01","Servicio de fortalecimiento y apoyo a la gestión institucional del sector Congreso de la República","09","Gestión de bienes y servicios"]
["01","CONGRESO DE LA REPÚBLICA","0100","No asignable a programas",1000,"Intersubsectorial gobierno ","01","Sin producto","01","Transferencias Corrientes"]
[33,"CULTURA",3301,"Promoción y acceso efectivo a procesos culturales y artísticos",1603,"Arte y cultura","01","Servicio de promoción y acceso a procesos culturales y artísticos","01","Desarrollar estrategias de desarrollo y emprendimiento cultural"]
[33,"CULTURA",3301,"Promoción y acceso efectivo a procesos culturales y artísticos",1603,"Arte y cultura","01","Servicio de promoción y acceso a procesos culturales y artísticos","02","Gestionar el desarrollo de la museología y la museografía"]
[33,"CULTURA",3301,"Promoción y acceso efectivo a procesos culturales y artísticos",1603,"Arte y cultura","01","Servicio de promoción y acceso a procesos culturales y artísticos","03","Promoción y acceso a las artes"]
[33,"CULTURA",3301,"Promoción y acceso efectivo a procesos culturales y artísticos",1603,"Arte y cultura","01","Servicio de promoción y acceso a procesos culturales y artísticos","04","Promoción y acceso a las audiovisuales, cine y medios interactivos"]
[33,"CULTURA",3301,"Promoción y acceso efectivo a procesos culturales y artísticos",1603,"Arte y cultura","01","Servicio de promoción y acceso a procesos culturales y artísticos","05","Promoción y acceso al patrimonio bibliográfico y documental"]
[33,"CULTURA",3301,"Promoción y acceso efectivo a procesos culturales y artísticos",1603,"Arte y cultura","01","Servicio de promoción y acceso a procesos culturales y artísticos","06","Promoción y accesos a la actividad artística y cultural"]
[33,"CULTURA",3302,"Gestión, protección y salvaguardia del patrimonio cultural colombiano",1603,"Arte y cultura","01","Servicio de protección y salvaguarda del patrimonio cultural","01","Gestión académica para la salvaguarda del patrimonio lingüístico"]
[33,"CULTURA",3302,"Gestión, protección y salvaguardia del patrimonio cultural colombiano",1603,"Arte y cultura","01","Servicio de protección y salvaguarda del patrimonio cultural","02","Gestión archivística"]
[33,"CULTURA",3302,"Gestión, protección y salvaguardia del patrimonio cultural colombiano",1603,"Arte y cultura","01","Servicio de protección y salvaguarda del patrimonio cultural","03","Gestión de patrimonio y memoria"]
[33,"CULTURA",3302,"Gestión, protección y salvaguardia del patrimonio cultural colombiano",1603,"Arte y cultura","01","Servicio de protección y salvaguarda del patrimonio cultural","04","Gestión del emprendimiento asociado al patrimonio cultural"]
[33,"CULTURA",3302,"Gestión, protección y salvaguardia del patrimonio cultural colombiano",1603,"Arte y cultura","01","Servicio de protección y salvaguarda del patrimonio cultural","05","Gestión del patrimonio documental"]
[33,"CULTURA",3302,"Gestión, protección y salvaguardia del patrimonio cultural colombiano",1603,"Arte y cultura","01","Servicio de protección y salvaguarda del patrimonio cultural","06","Inspección y vigilancia archivística"]
[33,"CULTURA",3302,"Gestión, protección y salvaguardia del patrimonio cultural colombiano",1603,"Arte y cultura","01","Servicio de protección y salvaguarda del patrimonio cultural","07","Investigación y producción científica en antropología e historia"]
[33,"CULTURA",3399,"Fortalecimiento y apoyo a la gestión institucional del sector Cultura",1603,"Arte y cultura","01","Servicio de fortalecimiento y apoyo a la gestión institucional del sector Cultura","01","Direccionamiento estratégico"]
[33,"CULTURA",3399,"Fortalecimiento y apoyo a la gestión institucional del sector Cultura",1603,"Arte y cultura","01","Servicio de fortalecimiento y apoyo a la gestión institucional del sector Cultura","02","Fomento de la cultura y el patrimonio en las regiones"]
[33,"CULTURA",3399,"Fortalecimiento y apoyo a la gestión institucional del sector Cultura",1603,"Arte y cultura","01","Servicio de fortalecimiento y apoyo a la gestión institucional del sector Cultura","03","Gestión administrativa"]
[33,"CULTURA",3399,"Fortalecimiento y apoyo a la gestión institucional del sector Cultura",1603,"Arte y cultura","01","Servicio de fortalecimiento y apoyo a la gestión institucional del sector Cultura","04","Gestión contractual"]
[33,"CULTURA",3399,"Fortalecimiento y apoyo a la gestión institucional del sector Cultura",1603,"Arte y cultura","01","Servicio de fortalecimiento y apoyo a la gestión institucional del sector Cultura","05","Gestión de almacén"]
[33,"CULTURA",3399,"Fortalecimiento y apoyo a la gestión institucional del sector Cultura",1603,"Arte y cultura","01","Servicio de fortalecimiento y apoyo a la gestión institucional del sector Cultura","06","Gestión de asuntos internacionales y de cooperación"]
[33,"CULTURA",3399,"Fortalecimiento y apoyo a la gestión institucional del sector Cultura",1603,"Arte y cultura","01","Servicio de fortalecimiento y apoyo a la gestión institucional del sector Cultura","07","Gestión de atención al ciudadano"]
[33,"CULTURA",3399,"Fortalecimiento y apoyo a la gestión institucional del sector Cultura",1603,"Arte y cultura","01","Servicio de fortalecimiento y apoyo a la gestión institucional del sector Cultura","08","Gestión de comunicaciones"]
[33,"CULTURA",3399,"Fortalecimiento y apoyo a la gestión institucional del sector Cultura",1603,"Arte y cultura","01","Servicio de fortalecimiento y apoyo a la gestión institucional del sector Cultura","09","Gestión de especifidades culturales en las poblaciones"]
[33,"CULTURA",3399,"Fortalecimiento y apoyo a la gestión institucional del sector Cultura",1603,"Arte y cultura","01","Servicio de fortalecimiento y apoyo a la gestión institucional del sector Cultura","10","Gestión de infraestructura cultural"]
[33,"CULTURA",3399,"Fortalecimiento y apoyo a la gestión institucional del sector Cultura",1603,"Arte y cultura","01","Servicio de fortalecimiento y apoyo a la gestión institucional del sector Cultura","11","Gestión documental"]
[33,"CULTURA",3399,"Fortalecimiento y apoyo a la gestión institucional del sector Cultura",1603,"Arte y cultura","01","Servicio de fortalecimiento y apoyo a la gestión institucional del sector Cultura","12","Gestión financiera"]
[33,"CULTURA",3399,"Fortalecimiento y apoyo a la gestión institucional del sector Cultura",1603,"Arte y cultura","01","Servicio de fortalecimiento y apoyo a la gestión institucional del sector Cultura","13","Gestión jurídica"]
[33,"CULTURA",3399,"Fortalecimiento y apoyo a la gestión institucional del sector Cultura",1603,"Arte y cultura","01","Servicio de fortalecimiento y apoyo a la gestión institucional del sector Cultura","14","Gestión TIC"]
[33,"CULTURA",3399,"Fortalecimiento y apoyo a la gestión institucional del sector Cultura",1603,"Arte y cultura","01","Servicio de fortalecimiento y apoyo a la gestión institucional del sector Cultura","15","Gestión y desarrollo del talento humano"]
[33,"CULTURA",3399,"Fortalecimiento y apoyo a la gestión institucional del sector Cultura",1603,"Arte y cultura","01","Servicio de fortalecimiento y apoyo a la gestión institucional del sector Cultura","16","Seguimiento y Evaluación"]
[33,"CULTURA",3300,"No asignable a programas",1603,"Arte y cultura","01","Sin producto","01","Transferecnias corrientes"]
[15,"DEFENSA Y POLICÍA",1501,"Capacidades de la Policía Nacional en seguridad pública, prevención, convivencia y seguridad ciudadana","0100","Intersubsectorial Defensa y Seguridad","01","Servicio de polícia y seguridad ciudadana","01","Inteligencia policial"]
[15,"DEFENSA Y POLICÍA",1501,"Capacidades de la Policía Nacional en seguridad pública, prevención, convivencia y seguridad ciudadana","0100","Intersubsectorial Defensa y Seguridad","01","Servicio de polícia y seguridad ciudadana","02","Investigación criminal"]
[15,"DEFENSA Y POLICÍA",1501,"Capacidades de la Policía Nacional en seguridad pública, prevención, convivencia y seguridad ciudadana","0100","Intersubsectorial Defensa y Seguridad","01","Servicio de polícia y seguridad ciudadana","03","Prevención y protección"]
[15,"DEFENSA Y POLICÍA",1501,"Capacidades de la Policía Nacional en seguridad pública, prevención, convivencia y seguridad ciudadana","0100","Intersubsectorial Defensa y Seguridad","01","Servicio de polícia y seguridad ciudadana","04","Promoción de Derechos Humanos"]
[15,"DEFENSA Y POLICÍA",1501,"Capacidades de la Policía Nacional en seguridad pública, prevención, convivencia y seguridad ciudadana","0100","Intersubsectorial Defensa y Seguridad","01","Servicio de polícia y seguridad ciudadana","05","Seguridad vial y movilidad"]
[15,"DEFENSA Y POLICÍA",1501,"Capacidades de la Policía Nacional en seguridad pública, prevención, convivencia y seguridad ciudadana","0100","Intersubsectorial Defensa y Seguridad","01","Servicio de polícia y seguridad ciudadana","06","Vigilancia y protección del medio ambiente y los recursos naturales"]
[15,"DEFENSA Y POLICÍA",1502,"Capacidades de la Policía Nacional en seguridad pública, prevención, convivencia y seguridad ciudadana","0100","Intersubsectorial Defensa y Seguridad","01","Servicio de Defensa y Seguridad Nacional","01","Formación, capacitación, doctrina y entrenamiento"]
[15,"DEFENSA Y POLICÍA",1502,"Capacidades de la Policía Nacional en seguridad pública, prevención, convivencia y seguridad ciudadana","0100","Intersubsectorial Defensa y Seguridad","01","Servicio de Defensa y Seguridad Nacional","02","Gestión de operaciones aéreas"]
[15,"DEFENSA Y POLICÍA",1502,"Capacidades de la Policía Nacional en seguridad pública, prevención, convivencia y seguridad ciudadana","0100","Intersubsectorial Defensa y Seguridad","01","Servicio de Defensa y Seguridad Nacional","03","Gestión de operaciones conjuntas"]
[15,"DEFENSA Y POLICÍA",1502,"Capacidades de la Policía Nacional en seguridad pública, prevención, convivencia y seguridad ciudadana","0100","Intersubsectorial Defensa y Seguridad","01","Servicio de Defensa y Seguridad Nacional","04","Gestión de Operaciones Ejército"]
[15,"DEFENSA Y POLICÍA",1502,"Capacidades de la Policía Nacional en seguridad pública, prevención, convivencia y seguridad ciudadana","0100","Intersubsectorial Defensa y Seguridad","01","Servicio de Defensa y Seguridad Nacional","05","Gestión de operaciones navales"]
[15,"DEFENSA Y POLICÍA",1502,"Capacidades de la Policía Nacional en seguridad pública, prevención, convivencia y seguridad ciudadana","0100","Intersubsectorial Defensa y Seguridad","01","Servicio de Defensa y Seguridad Nacional","06","Protección y Promoción de Derechos Humanos y Derecho Internacional Humanitario"]
[15,"DEFENSA Y POLICÍA",1502,"Capacidades de la Policía Nacional en seguridad pública, prevención, convivencia y seguridad ciudadana","0100","Intersubsectorial Defensa y Seguridad","01","Servicio de Defensa y Seguridad Nacional","07","Soporte logístico y de abastecimiento"]
[15,"DEFENSA Y POLICÍA",1502,"Capacidades de la Policía Nacional en seguridad pública, prevención, convivencia y seguridad ciudadana","0100","Intersubsectorial Defensa y Seguridad","01","Servicio de Defensa y Seguridad Nacional","08","Administración de justicia penal militar y policial"]
[15,"DEFENSA Y POLICÍA",1502,"Capacidades de la Policía Nacional en seguridad pública, prevención, convivencia y seguridad ciudadana","0100","Intersubsectorial Defensa y Seguridad","01","Servicio de Defensa y Seguridad Nacional","09","Capacitación en administración de justicia penal militar y policial"]
[15,"DEFENSA Y POLICÍA",1502,"Capacidades de la Policía Nacional en seguridad pública, prevención, convivencia y seguridad ciudadana","0100","Intersubsectorial Defensa y Seguridad","01","Servicio de Defensa y Seguridad Nacional","10","Direccionamiento estratégico de la defensa y seguridad nacional"]
[15,"DEFENSA Y POLICÍA",1504,"Desarrollo marítimo, fluvial y costero desde el sector defensa","0100","Intersubsectorial Defensa y Seguridad","01","Servicio de Seguridad de las actividades Marítimas","01","Seguridad y protección marítima, fluvial y portuaria"]
[15,"DEFENSA Y POLICÍA",1504,"Desarrollo marítimo, fluvial y costero desde el sector defensa","0100","Intersubsectorial Defensa y Seguridad","01","Servicio de Seguridad de las actividades Marítimas","02","Direccionamiento y control de la marina mercante"]
[15,"DEFENSA Y POLICÍA",1504,"Desarrollo marítimo, fluvial y costero desde el sector defensa","0100","Intersubsectorial Defensa y Seguridad","02","Servicio de Seguridad en la Navegación ","03","Gestión de información e investigación en materia hidrográfica, oceanográfica y meteorológica"]
[15,"DEFENSA Y POLICÍA",1504,"Desarrollo marítimo, fluvial y costero desde el sector defensa","0100","Intersubsectorial Defensa y Seguridad","02","Servicio de Seguridad en la Navegación ","04","Gestión del Tráfico Marítimo y Fluvial"]
[15,"DEFENSA Y POLICÍA",1504,"Desarrollo marítimo, fluvial y costero desde el sector defensa","0100","Intersubsectorial Defensa y Seguridad","02","Servicio de Seguridad en la Navegación ","05","Ordenamiento Territorial de litorales y áreas marinas"]
[15,"DEFENSA Y POLICÍA",1504,"Desarrollo marítimo, fluvial y costero desde el sector defensa","0100","Intersubsectorial Defensa y Seguridad","02","Servicio de Seguridad en la Navegación ","06","Señalización Marítima"]
[15,"DEFENSA Y POLICÍA",1505,"Generación de bienestar para la Fuerza Pública y sus familias","0100","Intersubsectorial Defensa y Seguridad","01","Servicio de Atención y aseguramiento en Salud para miembros de la Fuerza Pública y sus familias","01","Investigación en salud"]
[15,"DEFENSA Y POLICÍA",1505,"Generación de bienestar para la Fuerza Pública y sus familias","0100","Intersubsectorial Defensa y Seguridad","01","Servicio de Atención y aseguramiento en Salud para miembros de la Fuerza Pública y sus familias","02","Atención en salud para los miembros de la Fuerza Pública y sus familias"]
[15,"DEFENSA Y POLICÍA",1505,"Generación de bienestar para la Fuerza Pública y sus familias","0100","Intersubsectorial Defensa y Seguridad","01","Servicio de Atención y aseguramiento en Salud para miembros de la Fuerza Pública y sus familias","03","Afiliación a servicios de salud"]
[15,"DEFENSA Y POLICÍA",1505,"Generación de bienestar para la Fuerza Pública y sus familias","0100","Intersubsectorial Defensa y Seguridad","01","Servicio de Atención y aseguramiento en Salud para miembros de la Fuerza Pública y sus familias","04","Gestión del Riesgo en Salud"]
[15,"DEFENSA Y POLICÍA",1505,"Generación de bienestar para la Fuerza Pública y sus familias","0100","Intersubsectorial Defensa y Seguridad","02","Servicio de Recreación y cultura para miembros de la Fuerza Pública y sus familias","01","Recreación y cultura"]
[15,"DEFENSA Y POLICÍA",1505,"Generación de bienestar para la Fuerza Pública y sus familias","0100","Intersubsectorial Defensa y Seguridad","03","Servicio de Rehabilitación inclusiva","01","Gestión de la Rehabilitación Inclusiva"]
[15,"DEFENSA Y POLICÍA",1505,"Generación de bienestar para la Fuerza Pública y sus familias","0100","Intersubsectorial Defensa y Seguridad","04","Servicio de Administración de Prestaciones Sociales para Veteranos","01","Gestión de Prestaciones Sociales"]
[15,"DEFENSA Y POLICÍA",1505,"Generación de bienestar para la Fuerza Pública y sus familias","0100","Intersubsectorial Defensa y Seguridad","04","Servicio de Administración de Prestaciones Sociales para Veteranos","01","Gestión de bienestar para Veteranos"]
[15,"DEFENSA Y POLICÍA",1505,"Generación de bienestar para la Fuerza Pública y sus familias","0100","Intersubsectorial Defensa y Seguridad","05","Suministro de vivienda fiscales para miembros del Ejército Nacional","01","Formulación y estructuración de proyectos de vivienda"]
[15,"DEFENSA Y POLICÍA",1505,"Generación de bienestar para la Fuerza Pública y sus familias","0100","Intersubsectorial Defensa y Seguridad","05","Suministro de vivienda fiscales para miembros del Ejército Nacional","02","Mantenimiento de viviendas"]
[15,"DEFENSA Y POLICÍA",1505,"Generación de bienestar para la Fuerza Pública y sus familias","0100","Intersubsectorial Defensa y Seguridad","05","Suministro de vivienda fiscales para miembros del Ejército Nacional","03","Administración de viviendas fiscales"]
[15,"DEFENSA Y POLICÍA",1505,"Generación de bienestar para la Fuerza Pública y sus familias","0100","Intersubsectorial Defensa y Seguridad","06","Servicio de Administración de Prestaciones Sociales para miembros de la Fuerza Pública","01","Gestión de Prestaciones Sociales"]
[15,"DEFENSA Y POLICÍA",1505,"Generación de bienestar para la Fuerza Pública y sus familias","0100","Intersubsectorial Defensa y Seguridad","07","Servicio de Dotación a Miembros de la Policía Nacional","01","Gestión de la Dotación para miembros de la Policía Nacional"]
[15,"DEFENSA Y POLICÍA",1505,"Generación de bienestar para la Fuerza Pública y sus familias","0100","Intersubsectorial Defensa y Seguridad","08","Servicio de Apoyo Financiero a Miembros de la Policía Nacional","01","Gestión de Créditos a miembros de la Policía Nacional"]
[15,"DEFENSA Y POLICÍA",1506,"Gestión del riesgo de desastres desde el sector Defensa y Seguridad","0100","Intersubsectorial Defensa y Seguridad","01","Servicio de gestión del riesgo de desastres desde el sector Defensa","01","Prevención y Acción Integral"]
[15,"DEFENSA Y POLICÍA",1506,"Gestión del riesgo de desastres desde el sector Defensa y Seguridad","0100","Intersubsectorial Defensa y Seguridad","01","Servicio de gestión del riesgo de desastres desde el sector Defensa","02","Capacitación y entrenamiento para el manejo de desastres"]
[15,"DEFENSA Y POLICÍA",1506,"Gestión del riesgo de desastres desde el sector Defensa y Seguridad","0100","Intersubsectorial Defensa y Seguridad","01","Servicio de gestión del riesgo de desastres desde el sector Defensa","03","Gestión de atención, manejo y recuperación de desastres"]
[15,"DEFENSA Y POLICÍA",1508,"Inspección, Vigilancia y Control de la prestación del servicio de vigilancia y seguridad privada","0100","Intersubsectorial Defensa y Seguridad","01","Servicios de Inspección, Vigilancia y Control de la Vigilancia y Seguridad Privada","01","Gestión de medidas de control"]
[15,"DEFENSA Y POLICÍA",1508,"Inspección, Vigilancia y Control de la prestación del servicio de vigilancia y seguridad privada","0100","Intersubsectorial Defensa y Seguridad","01","Servicios de Inspección, Vigilancia y Control de la Vigilancia y Seguridad Privada","02","Inspección y Vigilancia"]
[15,"DEFENSA Y POLICÍA",1599,"Fortalecimiento y apoyo a la gestión institucional del sector Defensa y Policía","0100","Intersubsectorial Defensa y Seguridad","01","Servicio de fortalecimiento y apoyo a la gestión institucional del sector Defensa y Policía","01","Direccionamiento estratégico"]
[15,"DEFENSA Y POLICÍA",1599,"Fortalecimiento y apoyo a la gestión institucional del sector Defensa y Policía","0100","Intersubsectorial Defensa y Seguridad","01","Servicio de fortalecimiento y apoyo a la gestión institucional del sector Defensa y Policía","02","Gestión jurídica"]
[15,"DEFENSA Y POLICÍA",1599,"Fortalecimiento y apoyo a la gestión institucional del sector Defensa y Policía","0100","Intersubsectorial Defensa y Seguridad","01","Servicio de fortalecimiento y apoyo a la gestión institucional del sector Defensa y Policía","03","Seguimiento, control y evaluación"]
[15,"DEFENSA Y POLICÍA",1599,"Fortalecimiento y apoyo a la gestión institucional del sector Defensa y Policía","0100","Intersubsectorial Defensa y Seguridad","01","Servicio de fortalecimiento y apoyo a la gestión institucional del sector Defensa y Policía","04","Gestión de cooperación y asuntos internacional"]
[15,"DEFENSA Y POLICÍA",1599,"Fortalecimiento y apoyo a la gestión institucional del sector Defensa y Policía","0100","Intersubsectorial Defensa y Seguridad","01","Servicio de fortalecimiento y apoyo a la gestión institucional del sector Defensa y Policía","05","Gestión de comunicaciones y atención al ciudadano"]
[15,"DEFENSA Y POLICÍA",1599,"Fortalecimiento y apoyo a la gestión institucional del sector Defensa y Policía","0100","Intersubsectorial Defensa y Seguridad","01","Servicio de fortalecimiento y apoyo a la gestión institucional del sector Defensa y Policía","06","Gestión contractual"]
[15,"DEFENSA Y POLICÍA",1599,"Fortalecimiento y apoyo a la gestión institucional del sector Defensa y Policía","0100","Intersubsectorial Defensa y Seguridad","01","Servicio de fortalecimiento y apoyo a la gestión institucional del sector Defensa y Policía","07","Gestión administrativa"]
[15,"DEFENSA Y POLICÍA",1599,"Fortalecimiento y apoyo a la gestión institucional del sector Defensa y Policía","0100","Intersubsectorial Defensa y Seguridad","01","Servicio de fortalecimiento y apoyo a la gestión institucional del sector Defensa y Policía","08","Gestión financiera"]
[15,"DEFENSA Y POLICÍA",1599,"Fortalecimiento y apoyo a la gestión institucional del sector Defensa y Policía","0100","Intersubsectorial Defensa y Seguridad","01","Servicio de fortalecimiento y apoyo a la gestión institucional del sector Defensa y Policía","09","Gestión de talento Humano"]
[15,"DEFENSA Y POLICÍA",1500,"No asignable a programas","0100","Intersubsectorial Defensa y Seguridad","01","Sin producto","01","Transferencias corrientes"]
[43,"DEPORTE Y RECREACIÓN",4301,"Fomento a la recreación, la actividad física y el deporte",1604,"Recreación y deporte","01","Servicio de promoción de la actividad física, la recreación y el deporte","01","Promoción y fomento del deporte social comunitario"]
[43,"DEPORTE Y RECREACIÓN",4301,"Fomento a la recreación, la actividad física y el deporte",1604,"Recreación y deporte","01","Servicio de promoción de la actividad física, la recreación y el deporte","02","Promoción y fomento de la recreación"]
[43,"DEPORTE Y RECREACIÓN",4301,"Fomento a la recreación, la actividad física y el deporte",1604,"Recreación y deporte","01","Servicio de promoción de la actividad física, la recreación y el deporte","03","Promoción y fomento de la actividad física"]
[43,"DEPORTE Y RECREACIÓN",4301,"Fomento a la recreación, la actividad física y el deporte",1604,"Recreación y deporte","01","Servicio de promoción de la actividad física, la recreación y el deporte","04","Promoción y fomento del deporte escolar"]
[43,"DEPORTE Y RECREACIÓN",4301,"Fomento a la recreación, la actividad física y el deporte",1604,"Recreación y deporte","01","Servicio de promoción de la actividad física, la recreación y el deporte","05","Direccionamiento estratégico de la recreación, la actividad física y el deporte"]
[43,"DEPORTE Y RECREACIÓN",4301,"Fomento a la recreación, la actividad física y el deporte",1604,"Recreación y deporte","01","Servicio de promoción de la actividad física, la recreación y el deporte","06","Gestión de incentivos financieros para deportistas escolares y comunitarios"]
[43,"DEPORTE Y RECREACIÓN",4301,"Fomento a la recreación, la actividad física y el deporte",1604,"Recreación y deporte","01","Servicio de promoción de la actividad física, la recreación y el deporte","01","Apoyo a los entes territoriales en la gestión de proyectos, obras y dotación de infraestructura de recreación y deporte"]
[43,"DEPORTE Y RECREACIÓN",4302,"Formación y preparación de deportistas",1604,"Recreación y deporte","01","Servicio de desarrollo y participación en eventos deportivos","02","Apoyo a los entes territoriales en la gestión de proyectos, obras y dotación de infraestructura de deporte competitivo y de alto rendimiento"]
[43,"DEPORTE Y RECREACIÓN",4302,"Formación y preparación de deportistas",1604,"Recreación y deporte","01","Servicio de desarrollo y participación en eventos deportivos","03","Direccionamiento estratégico de eventos deportivos competitivos y de alto rendimiento"]
[43,"DEPORTE Y RECREACIÓN",4302,"Formación y preparación de deportistas",1604,"Recreación y deporte","01","Servicio de desarrollo y participación en eventos deportivos","04","Direccionamiento estratégico de la gestión de escenarios deportivos y de alto rendimiento"]
[43,"DEPORTE Y RECREACIÓN",4302,"Formación y preparación de deportistas",1604,"Recreación y deporte","01","Servicio de desarrollo y participación en eventos deportivos","05","Gestión de preparación y acompañamiento en eventos deportivos competitivos y de alto rendimiento"]
[43,"DEPORTE Y RECREACIÓN",4302,"Formación y preparación de deportistas",1604,"Recreación y deporte","01","Servicio de desarrollo y participación en eventos deportivos","06","Gestión de preparación y acompañamiento en eventos deportivos competitivos y de alto rendimiento del ciclo paralímpico"]
[43,"DEPORTE Y RECREACIÓN",4302,"Formación y preparación de deportistas",1604,"Recreación y deporte","01","Servicio de desarrollo y participación en eventos deportivos","07","Gestión de apoyo al Programa Nacional Antidopaje"]
[43,"DEPORTE Y RECREACIÓN",4302,"Formación y preparación de deportistas",1604,"Recreación y deporte","01","Servicio de desarrollo y participación en eventos deportivos","08","Gestión de apoyo y fortalecimiento de los eventos deportivos competitivos y de alto rendimiento"]
[43,"DEPORTE Y RECREACIÓN",4302,"Formación y preparación de deportistas",1604,"Recreación y deporte","01","Servicio de desarrollo y participación en eventos deportivos","09","Gestión operativa del Centro de Alto Rendimiento"]
[43,"DEPORTE Y RECREACIÓN",4302,"Formación y preparación de deportistas",1604,"Recreación y deporte","01","Servicio de desarrollo y participación en eventos deportivos","10","Gestión operativa del Laboratorio de Control al Dopaje"]
[43,"DEPORTE Y RECREACIÓN",4302,"Formación y preparación de deportistas",1604,"Recreación y deporte","01","Servicio de desarrollo y participación en eventos deportivos","11","Implementación de ciencias del deporte en la preparación de deportistas"]
[43,"DEPORTE Y RECREACIÓN",4302,"Formación y preparación de deportistas",1604,"Recreación y deporte","02","Servicio de formación de deportistas y talento humano del sector","01","Direccionamiento estratégico de la formación en el deporte competitivo y de alto rendimiento"]
[43,"DEPORTE Y RECREACIÓN",4302,"Formación y preparación de deportistas",1604,"Recreación y deporte","02","Servicio de formación de deportistas y talento humano del sector","02","Gestión de acompañamiento y promoción al desarrollo del proyecto de vida de los deportistas"]
[43,"DEPORTE Y RECREACIÓN",4302,"Formación y preparación de deportistas",1604,"Recreación y deporte","02","Servicio de formación de deportistas y talento humano del sector","03","Gestión de apoyo en bienestar a los deportistas de alto rendimiento"]
[43,"DEPORTE Y RECREACIÓN",4302,"Formación y preparación de deportistas",1604,"Recreación y deporte","02","Servicio de formación de deportistas y talento humano del sector","04","Gestión formativa de los deportistas en el país"]
[43,"DEPORTE Y RECREACIÓN",4302,"Formación y preparación de deportistas",1604,"Recreación y deporte","02","Servicio de formación de deportistas y talento humano del sector","05","Gestión formativa de los deportistas en el sistema paralímpico del país"]
[43,"DEPORTE Y RECREACIÓN",4302,"Formación y preparación de deportistas",1604,"Recreación y deporte","02","Servicio de formación de deportistas y talento humano del sector","06","Gestión formativa del talento humano vinculado al deporte competitivo y de alto rendimiento"]
[43,"DEPORTE Y RECREACIÓN",4302,"Formación y preparación de deportistas",1604,"Recreación y deporte","02","Servicio de formación de deportistas y talento humano del sector","07","Gestión formativa del talento humano vinculado al deporte competitivo y de alto rendimiento del sistema paralímpico en el país"]
[43,"DEPORTE Y RECREACIÓN",4399,"Fortalecimiento y apoyo a la gestión institucional del sector Recreación y Deporte",1604,"Recreación y deporte","01","Servicio de fortalecimiento y apoyo a la gestión institucional del sector Recreación y Deporte","01","Direccionamiento Estratégico del Sector"]
[43,"DEPORTE Y RECREACIÓN",4399,"Fortalecimiento y apoyo a la gestión institucional del sector Recreación y Deporte",1604,"Recreación y deporte","01","Servicio de fortalecimiento y apoyo a la gestión institucional del sector Recreación y Deporte","02","Generación de capacidades"]
[43,"DEPORTE Y RECREACIÓN",4399,"Fortalecimiento y apoyo a la gestión institucional del sector Recreación y Deporte",1604,"Recreación y deporte","01","Servicio de fortalecimiento y apoyo a la gestión institucional del sector Recreación y Deporte","03","Gestión Administrativa"]
[43,"DEPORTE Y RECREACIÓN",4399,"Fortalecimiento y apoyo a la gestión institucional del sector Recreación y Deporte",1604,"Recreación y deporte","01","Servicio de fortalecimiento y apoyo a la gestión institucional del sector Recreación y Deporte","04","Gestión contractual"]
[43,"DEPORTE Y RECREACIÓN",4399,"Fortalecimiento y apoyo a la gestión institucional del sector Recreación y Deporte",1604,"Recreación y deporte","01","Servicio de fortalecimiento y apoyo a la gestión institucional del sector Recreación y Deporte","05","Gestión de atención al ciudadano "]
[43,"DEPORTE Y RECREACIÓN",4399,"Fortalecimiento y apoyo a la gestión institucional del sector Recreación y Deporte",1604,"Recreación y deporte","01","Servicio de fortalecimiento y apoyo a la gestión institucional del sector Recreación y Deporte","06","Gestión de bienes "]
[43,"DEPORTE Y RECREACIÓN",4399,"Fortalecimiento y apoyo a la gestión institucional del sector Recreación y Deporte",1604,"Recreación y deporte","01","Servicio de fortalecimiento y apoyo a la gestión institucional del sector Recreación y Deporte","07","Gestión de Comunicaciones "]
[43,"DEPORTE Y RECREACIÓN",4399,"Fortalecimiento y apoyo a la gestión institucional del sector Recreación y Deporte",1604,"Recreación y deporte","01","Servicio de fortalecimiento y apoyo a la gestión institucional del sector Recreación y Deporte","08","Gestión de Inspección, Vigilancia y Control"]
[43,"DEPORTE Y RECREACIÓN",4399,"Fortalecimiento y apoyo a la gestión institucional del sector Recreación y Deporte",1604,"Recreación y deporte","01","Servicio de fortalecimiento y apoyo a la gestión institucional del sector Recreación y Deporte","09","Gestión de TIC"]
[43,"DEPORTE Y RECREACIÓN",4399,"Fortalecimiento y apoyo a la gestión institucional del sector Recreación y Deporte",1604,"Recreación y deporte","01","Servicio de fortalecimiento y apoyo a la gestión institucional del sector Recreación y Deporte","10","Gestión documental "]
[43,"DEPORTE Y RECREACIÓN",4399,"Fortalecimiento y apoyo a la gestión institucional del sector Recreación y Deporte",1604,"Recreación y deporte","01","Servicio de fortalecimiento y apoyo a la gestión institucional del sector Recreación y Deporte","11","Gestión financiera "]
[43,"DEPORTE Y RECREACIÓN",4399,"Fortalecimiento y apoyo a la gestión institucional del sector Recreación y Deporte",1604,"Recreación y deporte","01","Servicio de fortalecimiento y apoyo a la gestión institucional del sector Recreación y Deporte","12","Gestión jurídica"]
[43,"DEPORTE Y RECREACIÓN",4399,"Fortalecimiento y apoyo a la gestión institucional del sector Recreación y Deporte",1604,"Recreación y deporte","01","Servicio de fortalecimiento y apoyo a la gestión institucional del sector Recreación y Deporte","13","Gestión y desarrollo del talento humano"]
[43,"DEPORTE Y RECREACIÓN",4399,"Fortalecimiento y apoyo a la gestión institucional del sector Recreación y Deporte",1604,"Recreación y deporte","01","Servicio de fortalecimiento y apoyo a la gestión institucional del sector Recreación y Deporte","14","Seguimiento y evaluación "]
[43,"DEPORTE Y RECREACIÓN",4300,"No programático",1604,"Recreación y deporte","01","Sin producto","01","Transferencias Corrientes"]
[22,"EDUCACIÓN",2201,"Calidad, cobertura y fortalecimiento de la educación inicial, prescolar, básica y media","0700","Intersubsectorial Educación","01","Servicio de educación inicial, preescolar básica y media","01","Direccionamiento estratégico en educación inicial, prescolar, básica y media"]
[22,"EDUCACIÓN",2201,"Calidad, cobertura y fortalecimiento de la educación inicial, prescolar, básica y media","0700","Intersubsectorial Educación","01","Servicio de educación inicial, preescolar básica y media","02","Fomento de la calidad en la educación inicial, preescolar básica y media"]
[22,"EDUCACIÓN",2201,"Calidad, cobertura y fortalecimiento de la educación inicial, prescolar, básica y media","0700","Intersubsectorial Educación","01","Servicio de educación inicial, preescolar básica y media","03","Fortalecimiento de la articulación y gestión territorial, en educación inicial, preescolar, básica y media"]
[22,"EDUCACIÓN",2201,"Calidad, cobertura y fortalecimiento de la educación inicial, prescolar, básica y media","0700","Intersubsectorial Educación","01","Servicio de educación inicial, preescolar básica y media","04","Gestión de cobertura y equidad, para el acceso y permanencia de la educación inicial, preescolar, básica y media"]
[22,"EDUCACIÓN",2201,"Calidad, cobertura y fortalecimiento de la educación inicial, prescolar, básica y media","0700","Intersubsectorial Educación","01","Servicio de educación inicial, preescolar básica y media","05","Innovación educativa"]
[22,"EDUCACIÓN",2202,"Calidad y fomento de la educación superior","0700","Intersubsectorial Educación","01","Servicio de educación superior","01","Direccionamiento estratégico en educación superior"]
[22,"EDUCACIÓN",2202,"Calidad y fomento de la educación superior","0700","Intersubsectorial Educación","01","Servicio de educación superior","02","Fomento de la calidad en la educación superior"]
[22,"EDUCACIÓN",2202,"Calidad y fomento de la educación superior","0700","Intersubsectorial Educación","01","Servicio de educación superior","03","Fomento de la educación superior"]
[22,"EDUCACIÓN",2202,"Calidad y fomento de la educación superior","0700","Intersubsectorial Educación","01","Servicio de educación superior","04","Gestión académica"]
[22,"EDUCACIÓN",2203,"Cierre de brechas para el goce efectivo de derechos fundamentales de la población en condición de discapacidad","0700","Intersubsectorial Educación","01","Servicio de rehabilitación, integración educativa, laboral y social a la población en condición de discapacidad","01","Apoyo a entidades del sector educación"]
[22,"EDUCACIÓN",2203,"Cierre de brechas para el goce efectivo de derechos fundamentales de la población en condición de discapacidad","0700","Intersubsectorial Educación","01","Servicio de rehabilitación, integración educativa, laboral y social a la población en condición de discapacidad","02","Gestión educativa inclusiva"]
[22,"EDUCACIÓN",2203,"Cierre de brechas para el goce efectivo de derechos fundamentales de la población en condición de discapacidad","0700","Intersubsectorial Educación","01","Servicio de rehabilitación, integración educativa, laboral y social a la población en condición de discapacidad","03","Promoción y Desarrollo"]
[22,"EDUCACIÓN",2299,"Fortalecimiento y apoyo a la gestión institucional del sector Educación","0700","Intersubsectorial Educación","01","Servicio de fortalecimiento y apoyo a la gestión institucional del sector educación","01","Direccionamiento estratégico"]
[22,"EDUCACIÓN",2299,"Fortalecimiento y apoyo a la gestión institucional del sector Educación","0700","Intersubsectorial Educación","01","Servicio de fortalecimiento y apoyo a la gestión institucional del sector educación","02","Gestión administrativa"]
[22,"EDUCACIÓN",2299,"Fortalecimiento y apoyo a la gestión institucional del sector Educación","0700","Intersubsectorial Educación","01","Servicio de fortalecimiento y apoyo a la gestión institucional del sector educación","03","Gestión de comunicaciones"]
[22,"EDUCACIÓN",2299,"Fortalecimiento y apoyo a la gestión institucional del sector Educación","0700","Intersubsectorial Educación","01","Servicio de fortalecimiento y apoyo a la gestión institucional del sector educación","04","Gestión contractual"]
[22,"EDUCACIÓN",2299,"Fortalecimiento y apoyo a la gestión institucional del sector Educación","0700","Intersubsectorial Educación","01","Servicio de fortalecimiento y apoyo a la gestión institucional del sector educación","05","Gestión de Comunicaciones y Atención al ciudadano"]
[22,"EDUCACIÓN",2299,"Fortalecimiento y apoyo a la gestión institucional del sector Educación","0700","Intersubsectorial Educación","01","Servicio de fortalecimiento y apoyo a la gestión institucional del sector educación","06","Gestión de TIC"]
[22,"EDUCACIÓN",2299,"Fortalecimiento y apoyo a la gestión institucional del sector Educación","0700","Intersubsectorial Educación","01","Servicio de fortalecimiento y apoyo a la gestión institucional del sector educación","07","Gestión financiera"]
[22,"EDUCACIÓN",2299,"Fortalecimiento y apoyo a la gestión institucional del sector Educación","0700","Intersubsectorial Educación","01","Servicio de fortalecimiento y apoyo a la gestión institucional del sector educación","08","Gestión jurídica"]
[22,"EDUCACIÓN",2299,"Fortalecimiento y apoyo a la gestión institucional del sector Educación","0700","Intersubsectorial Educación","01","Servicio de fortalecimiento y apoyo a la gestión institucional del sector educación","09","Gestión y desarrollo del talento humano"]
[22,"EDUCACIÓN",2299,"Fortalecimiento y apoyo a la gestión institucional del sector Educación","0700","Intersubsectorial Educación","01","Servicio de fortalecimiento y apoyo a la gestión institucional del sector educación","10","Seguimiento y evaluación"]
[22,"EDUCACIÓN",2299,"Fortalecimiento y apoyo a la gestión institucional del sector Educación","0700","Intersubsectorial Educación","01","Servicio de fortalecimiento y apoyo a la gestión institucional del sector educación","11","Gestión documental y atención al ciudadano "]
[22,"EDUCACIÓN",2200,"No asignable a programas","0700","Intersubsectorial Educación","01","Sin producto","01","Transferencias Corrientes"]
["05","EMPLEO PÚBLICO","0503","Mejoramiento de la calidad educativa en la gestión pública",1000,"Intersubsectorial Gobierno","01","Servicio de educación formal en el saber administrativo público","01","Fortalecimiento y apoyo a la gestión Estatal"]
["05","EMPLEO PÚBLICO","0503","Mejoramiento de la calidad educativa en la gestión pública",1000,"Intersubsectorial Gobierno","01","Servicio de educación formal en el saber administrativo público","02","Gestión académica en gestión pública"]
["05","EMPLEO PÚBLICO","0503","Mejoramiento de la calidad educativa en la gestión pública",1000,"Intersubsectorial Gobierno","01","Servicio de educación formal en el saber administrativo público","03","Gestión investigativa en gestión pública"]
["05","EMPLEO PÚBLICO","0504","Administración y vigilancia de las carreras administrativas de los servidores públicos",1000,"Intersubsectorial Gobierno","01","Servicio de administración y vigilancia de la carrera administrativa","01","Administración de carrera administrativa"]
["05","EMPLEO PÚBLICO","0504","Administración y vigilancia de las carreras administrativas de los servidores públicos",1000,"Intersubsectorial Gobierno","01","Servicio de administración y vigilancia de la carrera administrativa","02","Vigilancia de carrera administrativa"]
["05","EMPLEO PÚBLICO","0505","Fortalecimiento de la gestión pública en las entidades nacionales y territoriales",1000,"Intersubsectorial Gobierno","01","Servicio para la mejora de la gestión pública","01","Desarrollo organizacional"]
["05","EMPLEO PÚBLICO","0505","Fortalecimiento de la gestión pública en las entidades nacionales y territoriales",1000,"Intersubsectorial Gobierno","01","Servicio para la mejora de la gestión pública","02","Direccionamiento estratégico"]
["05","EMPLEO PÚBLICO","0505","Fortalecimiento de la gestión pública en las entidades nacionales y territoriales",1000,"Intersubsectorial Gobierno","01","Servicio para la mejora de la gestión pública","03","Gestión de empleo público"]
["05","EMPLEO PÚBLICO","0505","Fortalecimiento de la gestión pública en las entidades nacionales y territoriales",1000,"Intersubsectorial Gobierno","01","Servicio para la mejora de la gestión pública","04","Gestión del conocimiento en función pública"]
["05","EMPLEO PÚBLICO","0505","Fortalecimiento de la gestión pública en las entidades nacionales y territoriales",1000,"Intersubsectorial Gobierno","01","Servicio para la mejora de la gestión pública","05","Gestión del desempeño institucional"]
["05","EMPLEO PÚBLICO","0599","Fortalecimiento y apoyo a la gestión institucional del sector Empleo",1000,"Intersubsectorial Gobierno","01","Servicio de fortalecimiento y apoyo a la gestión institucional del sector Empleo","01","Direccionamiento estratégico"]
["05","EMPLEO PÚBLICO","0599","Fortalecimiento y apoyo a la gestión institucional del sector Empleo",1000,"Intersubsectorial Gobierno","01","Servicio de fortalecimiento y apoyo a la gestión institucional del sector Empleo","02","Gestión administrativa"]
["05","EMPLEO PÚBLICO","0599","Fortalecimiento y apoyo a la gestión institucional del sector Empleo",1000,"Intersubsectorial Gobierno","01","Servicio de fortalecimiento y apoyo a la gestión institucional del sector Empleo","03","Gestión contractual"]
["05","EMPLEO PÚBLICO","0599","Fortalecimiento y apoyo a la gestión institucional del sector Empleo",1000,"Intersubsectorial Gobierno","01","Servicio de fortalecimiento y apoyo a la gestión institucional del sector Empleo","04","Gestión de atención al ciudadano"]
["05","EMPLEO PÚBLICO","0599","Fortalecimiento y apoyo a la gestión institucional del sector Empleo",1000,"Intersubsectorial Gobierno","01","Servicio de fortalecimiento y apoyo a la gestión institucional del sector Empleo","05","Gestión de comunicaciones"]
["05","EMPLEO PÚBLICO","0599","Fortalecimiento y apoyo a la gestión institucional del sector Empleo",1000,"Intersubsectorial Gobierno","01","Servicio de fortalecimiento y apoyo a la gestión institucional del sector Empleo","06","Gestión de contratación"]
["05","EMPLEO PÚBLICO","0599","Fortalecimiento y apoyo a la gestión institucional del sector Empleo",1000,"Intersubsectorial Gobierno","01","Servicio de fortalecimiento y apoyo a la gestión institucional del sector Empleo","07","Gestión documental"]
["05","EMPLEO PÚBLICO","0599","Fortalecimiento y apoyo a la gestión institucional del sector Empleo",1000,"Intersubsectorial Gobierno","01","Servicio de fortalecimiento y apoyo a la gestión institucional del sector Empleo","08","Gestión financiera"]
["05","EMPLEO PÚBLICO","0599","Fortalecimiento y apoyo a la gestión institucional del sector Empleo",1000,"Intersubsectorial Gobierno","01","Servicio de fortalecimiento y apoyo a la gestión institucional del sector Empleo","09","Gestión jurídica"]
["05","EMPLEO PÚBLICO","0599","Fortalecimiento y apoyo a la gestión institucional del sector Empleo",1000,"Intersubsectorial Gobierno","01","Servicio de fortalecimiento y apoyo a la gestión institucional del sector Empleo","10","Gestión TIC"]
["05","EMPLEO PÚBLICO","0599","Fortalecimiento y apoyo a la gestión institucional del sector Empleo",1000,"Intersubsectorial Gobierno","01","Servicio de fortalecimiento y apoyo a la gestión institucional del sector Empleo","11","Gestión y desarrollo de talento humano"]
["05","EMPLEO PÚBLICO","0599","Fortalecimiento y apoyo a la gestión institucional del sector Empleo",1000,"Intersubsectorial Gobierno","01","Servicio de fortalecimiento y apoyo a la gestión institucional del sector Empleo","12","Internalización de la gestión académica"]
["05","EMPLEO PÚBLICO","0599","Fortalecimiento y apoyo a la gestión institucional del sector Empleo",1000,"Intersubsectorial Gobierno","01","Servicio de fortalecimiento y apoyo a la gestión institucional del sector Empleo","13","Seguimiento y evaluación"]
["05","EMPLEO PÚBLICO","0500","No asignable a programas",1000,"Intersubsectorial Gobierno","01","Sin producto","01","Transferencias Corrientes"]
[29,"FISCALÍA",2901,"Efectividad de la investigación penal y técnico científica",1000,"Intersubsectorial Gobierno","01","Servicio de Administración de la Justicia ","01","Investigación y judicialización  "]
[29,"FISCALÍA",2901,"Efectividad de la investigación penal y técnico científica",1000,"Intersubsectorial Gobierno","01","Servicio de Administración de la Justicia ","02","Gestión de la acción y cooperación internacional para la detención del crimen "]
[29,"FISCALÍA",2901,"Efectividad de la investigación penal y técnico científica",1000,"Intersubsectorial Gobierno","01","Servicio de Administración de la Justicia ","03","Direccionamiento estratégico de la Policía Judicial "]
[29,"FISCALÍA",2901,"Efectividad de la investigación penal y técnico científica",1000,"Intersubsectorial Gobierno","01","Servicio de Administración de la Justicia ","04","Gestión de denuncias y análisis de información "]
[29,"FISCALÍA",2901,"Efectividad de la investigación penal y técnico científica",1000,"Intersubsectorial Gobierno","02","Servicio de protección a víctimas y testigos","01","Protección a testigos, víctimas, servidores e intervinientes en procesos judiciales"]
[29,"FISCALÍA",2901,"Efectividad de la investigación penal y técnico científica",1000,"Intersubsectorial Gobierno","03","Servicio de educación en medicina legal y ciencias forenses","01","Gestión del conocimiento científico forense"]
[29,"FISCALÍA",2901,"Efectividad de la investigación penal y técnico científica",1000,"Intersubsectorial Gobierno","04","Servicios Forenses","01","Gestión del sistema de Medicina Legal y Ciencias Forenses "]
[29,"FISCALÍA",2999,"Fortalecimiento y apoyo a la gestión institucional del sector Fiscalía",1000,"Intersubsectorial Gobierno","01","Servicio de fortalecimiento y apoyo a la gestión institucional del sector Fiscalía","01","Direccionamiento estratégico"]
[29,"FISCALÍA",2999,"Fortalecimiento y apoyo a la gestión institucional del sector Fiscalía",1000,"Intersubsectorial Gobierno","01","Servicio de fortalecimiento y apoyo a la gestión institucional del sector Fiscalía","02","Gestión jurídica"]
[29,"FISCALÍA",2999,"Fortalecimiento y apoyo a la gestión institucional del sector Fiscalía",1000,"Intersubsectorial Gobierno","01","Servicio de fortalecimiento y apoyo a la gestión institucional del sector Fiscalía","03","Gestión de Comunicaciones "]
[29,"FISCALÍA",2999,"Fortalecimiento y apoyo a la gestión institucional del sector Fiscalía",1000,"Intersubsectorial Gobierno","01","Servicio de fortalecimiento y apoyo a la gestión institucional del sector Fiscalía","04","Seguimiento y evaluación "]
[29,"FISCALÍA",2999,"Fortalecimiento y apoyo a la gestión institucional del sector Fiscalía",1000,"Intersubsectorial Gobierno","01","Servicio de fortalecimiento y apoyo a la gestión institucional del sector Fiscalía","05","Generación de capacidades"]
[29,"FISCALÍA",2999,"Fortalecimiento y apoyo a la gestión institucional del sector Fiscalía",1000,"Intersubsectorial Gobierno","01","Servicio de fortalecimiento y apoyo a la gestión institucional del sector Fiscalía","06","Gestión Administrativa"]
[29,"FISCALÍA",2999,"Fortalecimiento y apoyo a la gestión institucional del sector Fiscalía",1000,"Intersubsectorial Gobierno","01","Servicio de fortalecimiento y apoyo a la gestión institucional del sector Fiscalía","07","Gestión y desarrollo del talento humano"]
[29,"FISCALÍA",2999,"Fortalecimiento y apoyo a la gestión institucional del sector Fiscalía",1000,"Intersubsectorial Gobierno","01","Servicio de fortalecimiento y apoyo a la gestión institucional del sector Fiscalía","08","Gestión de TIC"]
[29,"FISCALÍA",2999,"Fortalecimiento y apoyo a la gestión institucional del sector Fiscalía",1000,"Intersubsectorial Gobierno","01","Servicio de fortalecimiento y apoyo a la gestión institucional del sector Fiscalía","09","Gestión contractual"]
[29,"FISCALÍA",2999,"Fortalecimiento y apoyo a la gestión institucional del sector Fiscalía",1000,"Intersubsectorial Gobierno","01","Servicio de fortalecimiento y apoyo a la gestión institucional del sector Fiscalía","10","Gestión financiera "]
[29,"FISCALÍA",2999,"Fortalecimiento y apoyo a la gestión institucional del sector Fiscalía",1000,"Intersubsectorial Gobierno","01","Servicio de fortalecimiento y apoyo a la gestión institucional del sector Fiscalía","11","Gestión de bienes "]
[29,"FISCALÍA",2999,"Fortalecimiento y apoyo a la gestión institucional del sector Fiscalía",1000,"Intersubsectorial Gobierno","01","Servicio de fortalecimiento y apoyo a la gestión institucional del sector Fiscalía","12","Gestión documental y atención al ciudadano "]
[29,"FISCALÍA",2900,"No asignable a programas",1000,"Intersubsectorial Gobierno","01","Sin producto","01","Transferencias Corrientes"]
[13,"HACIENDA",1301,"Política macroeconómica fiscal",1000,"Intersubsectorial Gobierno","01","Servicio de definición, coordinación y regulación de la política macroeconómica y fiscal","01","Apoyo fiscal a nivel territorial"]
[13,"HACIENDA",1301,"Política macroeconómica fiscal",1000,"Intersubsectorial Gobierno","01","Servicio de definición, coordinación y regulación de la política macroeconómica y fiscal","02","Contabilidad Pública Nacional"]
[13,"HACIENDA",1301,"Política macroeconómica fiscal",1000,"Intersubsectorial Gobierno","01","Servicio de definición, coordinación y regulación de la política macroeconómica y fiscal","03","Política Macro"]
[13,"HACIENDA",1301,"Política macroeconómica fiscal",1000,"Intersubsectorial Gobierno","01","Servicio de definición, coordinación y regulación de la política macroeconómica y fiscal","04","Regulación económica de seguridad social"]
[13,"HACIENDA",1301,"Política macroeconómica fiscal",1000,"Intersubsectorial Gobierno","01","Servicio de definición, coordinación y regulación de la política macroeconómica y fiscal","05","Regulación financiera"]
[13,"HACIENDA",1302,"Gestión de recursos públicos",1000,"Intersubsectorial Gobierno","01","Servicio de gestión de recursos públicos","01","Administración del Sistema Integrado de Información Financiera y Presupuestal"]
[13,"HACIENDA",1302,"Gestión de recursos públicos",1000,"Intersubsectorial Gobierno","01","Servicio de gestión de recursos públicos","02","Bonos pensionales"]
[13,"HACIENDA",1302,"Gestión de recursos públicos",1000,"Intersubsectorial Gobierno","01","Servicio de gestión de recursos públicos","03","Gestión de pensiones y parafiscales"]
[13,"HACIENDA",1302,"Gestión de recursos públicos",1000,"Intersubsectorial Gobierno","01","Servicio de gestión de recursos públicos","04","Gestión de recursos del Sistema General de Regalías"]
[13,"HACIENDA",1302,"Gestión de recursos públicos",1000,"Intersubsectorial Gobierno","01","Servicio de gestión de recursos públicos","05","Gestión de tesorería"]
[13,"HACIENDA",1302,"Gestión de recursos públicos",1000,"Intersubsectorial Gobierno","01","Servicio de gestión de recursos públicos","06","Gestión presupuestal de los recursos de la Nación"]
[13,"HACIENDA",1302,"Gestión de recursos públicos",1000,"Intersubsectorial Gobierno","02","Servicio de financiamiento","01","Gestión de financiamiento de la Nación"]
[13,"HACIENDA",1302,"Gestión de recursos públicos",1000,"Intersubsectorial Gobierno","02","Servicio de financiamiento","02","Gestión de recursos de participación privada"]
[13,"HACIENDA",1303,"Reducción de la vulnerabilidad fiscal ante desastres y riesgos climáticos",1000,"Intersubsectorial Gobierno","01","Servicio de estructuración y ejecución de proyectos ante desastres y riesgos climáticos ","01","Gestión de portafolio"]
[13,"HACIENDA",1303,"Reducción de la vulnerabilidad fiscal ante desastres y riesgos climáticos",1000,"Intersubsectorial Gobierno","01","Servicio de estructuración y ejecución de proyectos ante desastres y riesgos climáticos ","02","Gestión del riesgo de desastres"]
[13,"HACIENDA",1303,"Reducción de la vulnerabilidad fiscal ante desastres y riesgos climáticos",1000,"Intersubsectorial Gobierno","01","Servicio de estructuración y ejecución de proyectos ante desastres y riesgos climáticos ","03","Gestión integral de programas y proyectos ante desastres y riesgos climáticos"]
[13,"HACIENDA",1304,"Inspección, control y vigilancia financiera, solidaria y de recursos públicos",1000,"Intersubsectorial Gobierno","01","Servicio de inspección y vigilancia a la Hacienda Pública Nacional","01","Auditoría y Gestión del Riesgo en tributos, rentas y contribuciones parafiscales"]
[13,"HACIENDA",1304,"Inspección, control y vigilancia financiera, solidaria y de recursos públicos",1000,"Intersubsectorial Gobierno","01","Servicio de inspección y vigilancia a la Hacienda Pública Nacional","02","Gestión Disciplinaria en el sector tributos, rentas y contribuciones parafiscales"]
[13,"HACIENDA",1304,"Inspección, control y vigilancia financiera, solidaria y de recursos públicos",1000,"Intersubsectorial Gobierno","01","Servicio de inspección y vigilancia a la Hacienda Pública Nacional","03","Inspección y vigilancia al sector financiero, y asegurador"]
[13,"HACIENDA",1304,"Inspección, control y vigilancia financiera, solidaria y de recursos públicos",1000,"Intersubsectorial Gobierno","01","Servicio de inspección y vigilancia a la Hacienda Pública Nacional","04","Investigación y vigilancia en el lavado de activos"]
[13,"HACIENDA",1304,"Inspección, control y vigilancia financiera, solidaria y de recursos públicos",1000,"Intersubsectorial Gobierno","01","Servicio de inspección y vigilancia a la Hacienda Pública Nacional","05","Protección al consumidor financiero"]
[13,"HACIENDA",1304,"Inspección, control y vigilancia financiera, solidaria y de recursos públicos",1000,"Intersubsectorial Gobierno","01","Servicio de inspección y vigilancia a la Hacienda Pública Nacional","06","Supervisión financiera del ahorro y la forma asociativa solidaria"]
[13,"HACIENDA",1304,"Inspección, control y vigilancia financiera, solidaria y de recursos públicos",1000,"Intersubsectorial Gobierno","01","Servicio de inspección y vigilancia a la Hacienda Pública Nacional","07","Supervisión financiera en el cooperativismo"]
[13,"HACIENDA",1305,"Fortalecimiento de recaudo y tributación",1000,"Intersubsectorial Gobierno","01","Servicio de recaudo y tributación","01","Gestión de aduanas"]
[13,"HACIENDA",1305,"Fortalecimiento de recaudo y tributación",1000,"Intersubsectorial Gobierno","01","Servicio de recaudo y tributación","02","Gestión de la fiscalización tributaria"]
[13,"HACIENDA",1305,"Fortalecimiento de recaudo y tributación",1000,"Intersubsectorial Gobierno","01","Servicio de recaudo y tributación","03","Gestión de policía judicial y aduanera"]
[13,"HACIENDA",1305,"Fortalecimiento de recaudo y tributación",1000,"Intersubsectorial Gobierno","01","Servicio de recaudo y tributación","04","Gestión del recaudo tributario"]
[13,"HACIENDA",1305,"Fortalecimiento de recaudo y tributación",1000,"Intersubsectorial Gobierno","01","Servicio de recaudo y tributación","05","Gestión tributaria de grandes contribuyentes"]
[13,"HACIENDA",1305,"Fortalecimiento de recaudo y tributación",1000,"Intersubsectorial Gobierno","01","Servicio de recaudo y tributación","06","Gestión tributaria internacional"]
[13,"HACIENDA",1399,"Fortalecimiento y apoyo a la gestión institucional del sector Hacienda",1000,"Intersubsectorial Gobierno","01","Servicio de fortalecimiento y apoyo a la gestión institucional del sector Hacienda","01","Direccionamiento estratégico"]
[13,"HACIENDA",1399,"Fortalecimiento y apoyo a la gestión institucional del sector Hacienda",1000,"Intersubsectorial Gobierno","01","Servicio de fortalecimiento y apoyo a la gestión institucional del sector Hacienda","02","Gestión administrativa"]
[13,"HACIENDA",1399,"Fortalecimiento y apoyo a la gestión institucional del sector Hacienda",1000,"Intersubsectorial Gobierno","01","Servicio de fortalecimiento y apoyo a la gestión institucional del sector Hacienda","03","Gestión de comunicaciones"]
[13,"HACIENDA",1399,"Fortalecimiento y apoyo a la gestión institucional del sector Hacienda",1000,"Intersubsectorial Gobierno","01","Servicio de fortalecimiento y apoyo a la gestión institucional del sector Hacienda","04","Gestión de inventarios"]
[13,"HACIENDA",1399,"Fortalecimiento y apoyo a la gestión institucional del sector Hacienda",1000,"Intersubsectorial Gobierno","01","Servicio de fortalecimiento y apoyo a la gestión institucional del sector Hacienda","05","Gestión contractual"]
[13,"HACIENDA",1399,"Fortalecimiento y apoyo a la gestión institucional del sector Hacienda",1000,"Intersubsectorial Gobierno","01","Servicio de fortalecimiento y apoyo a la gestión institucional del sector Hacienda","06","Gestión de Comunicaciones y Atención al ciudadano"]
[13,"HACIENDA",1399,"Fortalecimiento y apoyo a la gestión institucional del sector Hacienda",1000,"Intersubsectorial Gobierno","01","Servicio de fortalecimiento y apoyo a la gestión institucional del sector Hacienda","07","Gestión de TIC"]
[13,"HACIENDA",1399,"Fortalecimiento y apoyo a la gestión institucional del sector Hacienda",1000,"Intersubsectorial Gobierno","01","Servicio de fortalecimiento y apoyo a la gestión institucional del sector Hacienda","08","Gestión financiera"]
[13,"HACIENDA",1399,"Fortalecimiento y apoyo a la gestión institucional del sector Hacienda",1000,"Intersubsectorial Gobierno","01","Servicio de fortalecimiento y apoyo a la gestión institucional del sector Hacienda","09","Gestión jurídica"]
[13,"HACIENDA",1399,"Fortalecimiento y apoyo a la gestión institucional del sector Hacienda",1000,"Intersubsectorial Gobierno","01","Servicio de fortalecimiento y apoyo a la gestión institucional del sector Hacienda","10","Gestión y desarrollo del talento humano"]
[13,"HACIENDA",1399,"Fortalecimiento y apoyo a la gestión institucional del sector Hacienda",1000,"Intersubsectorial Gobierno","01","Servicio de fortalecimiento y apoyo a la gestión institucional del sector Hacienda","11","Seguimiento y evaluación"]
[13,"HACIENDA",1399,"Fortalecimiento y apoyo a la gestión institucional del sector Hacienda",1000,"Intersubsectorial Gobierno","01","Servicio de fortalecimiento y apoyo a la gestión institucional del sector Hacienda","12","Gestión documental "]
[13,"HACIENDA",1300,"No asignable a programas",1000,"Intersubsectorial Gobierno","01","Sin producto","01","Transferencias Corrientes"]
[41,"INCLUSIÓN SOCIAL Y RECONCILIACIÓN",4101,"Atención, asistencia y reparación integral a las víctimas",1500,"Intersubsectorial Desarrollo Social","01","Servicio de inclusión social para población vulnerable","01","Direccionamiento estratégico "]
[41,"INCLUSIÓN SOCIAL Y RECONCILIACIÓN",4101,"Atención, asistencia y reparación integral a las víctimas",1500,"Intersubsectorial Desarrollo Social","01","Servicio de inclusión social para población vulnerable","02","Gestión de atención integral a víctimas"]
[41,"INCLUSIÓN SOCIAL Y RECONCILIACIÓN",4101,"Atención, asistencia y reparación integral a las víctimas",1500,"Intersubsectorial Desarrollo Social","01","Servicio de inclusión social para población vulnerable","03","Reparación integral a víctimas"]
[41,"INCLUSIÓN SOCIAL Y RECONCILIACIÓN",4101,"Atención, asistencia y reparación integral a las víctimas",1500,"Intersubsectorial Desarrollo Social","01","Servicio de inclusión social para población vulnerable","04","Ejecución de la política de atención y reparación integral a víctimas"]
[41,"INCLUSIÓN SOCIAL Y RECONCILIACIÓN",4101,"Atención, asistencia y reparación integral a las víctimas",1500,"Intersubsectorial Desarrollo Social","01","Servicio de inclusión social para población vulnerable","05","Gestión de los sistemas de registro de víctimas "]
[41,"INCLUSIÓN SOCIAL Y RECONCILIACIÓN",4101,"Atención, asistencia y reparación integral a las víctimas",1500,"Intersubsectorial Desarrollo Social","01","Servicio de inclusión social para población vulnerable","06","Constucción y gestión de la memoria histórica del conflicto armado interno "]
[41,"INCLUSIÓN SOCIAL Y RECONCILIACIÓN",4101,"Atención, asistencia y reparación integral a las víctimas",1500,"Intersubsectorial Desarrollo Social","01","Servicio de inclusión social para población vulnerable","07","Gestión documental de la memoria histórica "]
[41,"INCLUSIÓN SOCIAL Y RECONCILIACIÓN",4101,"Atención, asistencia y reparación integral a las víctimas",1500,"Intersubsectorial Desarrollo Social","01","Servicio de inclusión social para población vulnerable","08","Gestión del museo de memoria histórica"]
[41,"INCLUSIÓN SOCIAL Y RECONCILIACIÓN",4101,"Atención, asistencia y reparación integral a las víctimas",1500,"Intersubsectorial Desarrollo Social","01","Servicio de inclusión social para población vulnerable","09","Recolección y adminsitración de la información provista por desmovilizados "]
[41,"INCLUSIÓN SOCIAL Y RECONCILIACIÓN",4102,"Desarrollo integral de la primera infancia a la juventud y fortalecimiento familiar",1500,"Intersubsectorial Desarrollo Social","01","Servicios de atención integral para niños y niñas en primera infancia, niñez y adolescencia","01","Gestión de servicios de atención integral en primera infancia"]
[41,"INCLUSIÓN SOCIAL Y RECONCILIACIÓN",4102,"Desarrollo integral de la primera infancia a la juventud y fortalecimiento familiar",1500,"Intersubsectorial Desarrollo Social","01","Servicios de atención integral para niños y niñas en primera infancia, niñez y adolescencia","02","Gestión de servicios de atención de la ruta integral (RIA) en infancia "]
[41,"INCLUSIÓN SOCIAL Y RECONCILIACIÓN",4102,"Desarrollo integral de la primera infancia a la juventud y fortalecimiento familiar",1500,"Intersubsectorial Desarrollo Social","01","Servicios de atención integral para niños y niñas en primera infancia, niñez y adolescencia","03","Gestión de servicios de atención de la ruta integral (RIA) en adolescencia y juventud "]
[41,"INCLUSIÓN SOCIAL Y RECONCILIACIÓN",4102,"Desarrollo integral de la primera infancia a la juventud y fortalecimiento familiar",1500,"Intersubsectorial Desarrollo Social","01","Servicios de atención integral para niños y niñas en primera infancia, niñez y adolescencia","04","Apoyo en la construcción de proyectos de vida de adolescentes y jóvenes"]
[41,"INCLUSIÓN SOCIAL Y RECONCILIACIÓN",4102,"Desarrollo integral de la primera infancia a la juventud y fortalecimiento familiar",1500,"Intersubsectorial Desarrollo Social","01","Servicios de atención integral para niños y niñas en primera infancia, niñez y adolescencia","05","Asistencia técnica a entidades territoriales"]
[41,"INCLUSIÓN SOCIAL Y RECONCILIACIÓN",4102,"Desarrollo integral de la primera infancia a la juventud y fortalecimiento familiar",1500,"Intersubsectorial Desarrollo Social","01","Servicios de atención integral para niños y niñas en primera infancia, niñez y adolescencia","06","Asistencia técnica a regionales y centros zonales del ICBF"]
[41,"INCLUSIÓN SOCIAL Y RECONCILIACIÓN",4102,"Desarrollo integral de la primera infancia a la juventud y fortalecimiento familiar",1500,"Intersubsectorial Desarrollo Social","01","Servicios de atención integral para niños y niñas en primera infancia, niñez y adolescencia","07","Atención y apoyo a las familias y comunidades"]
[41,"INCLUSIÓN SOCIAL Y RECONCILIACIÓN",4103,"Inclusión social y productiva para la población en situación de vulnerabilidad",1500,"Intersubsectorial Desarrollo Social","01","Servicio de inclusión social para población vulnerable","01","Gestión de la política de inclusión social para población vulnerable"]
[41,"INCLUSIÓN SOCIAL Y RECONCILIACIÓN",4103,"Inclusión social y productiva para la población en situación de vulnerabilidad",1500,"Intersubsectorial Desarrollo Social","01","Servicio de inclusión social para población vulnerable","02","Gestión de apoyo financiero para la entrega de transferencias monetarias"]
[41,"INCLUSIÓN SOCIAL Y RECONCILIACIÓN",4103,"Inclusión social y productiva para la población en situación de vulnerabilidad",1500,"Intersubsectorial Desarrollo Social","01","Servicio de inclusión social para población vulnerable","03","Gestión de la política de infraestructura social y de hábitat"]
[41,"INCLUSIÓN SOCIAL Y RECONCILIACIÓN",4103,"Inclusión social y productiva para la población en situación de vulnerabilidad",1500,"Intersubsectorial Desarrollo Social","01","Servicio de inclusión social para población vulnerable","04","Ejecución de la política de inclusión social para la población vulnerable"]
[41,"INCLUSIÓN SOCIAL Y RECONCILIACIÓN",4103,"Inclusión social y productiva para la población en situación de vulnerabilidad",1500,"Intersubsectorial Desarrollo Social","02","Servicio de inclusión social productiva para población vulnerable","01","Gestión dela política de inclusión productiva de la población vulnerable "]
[41,"INCLUSIÓN SOCIAL Y RECONCILIACIÓN",4103,"Inclusión social y productiva para la población en situación de vulnerabilidad",1500,"Intersubsectorial Desarrollo Social","02","Servicio de inclusión social productiva para población vulnerable","02","Ejecución de la política de inclusión productiva para población vulnerable"]
[41,"INCLUSIÓN SOCIAL Y RECONCILIACIÓN","410X","Protección de derechos de niños, niñas, adolescentes y jóvenes",1500,"Intersubsectorial Desarrollo Social","01","Servicio de restablecimiento de derechos de niños, niñas, adolescentes y jóvenes","01","Gestión de acciones de protección para el restablecimiento de derechos de niños, niñas, adolescentes y jóvenes"]
[41,"INCLUSIÓN SOCIAL Y RECONCILIACIÓN","410X","Protección de derechos de niños, niñas, adolescentes y jóvenes",1500,"Intersubsectorial Desarrollo Social","01","Servicio de restablecimiento de derechos de niños, niñas, adolescentes y jóvenes","02","Gestión del proceso de adopción de niños, niñas y adolescentes "]
[41,"INCLUSIÓN SOCIAL Y RECONCILIACIÓN","410X","Protección de derechos de niños, niñas, adolescentes y jóvenes",1500,"Intersubsectorial Desarrollo Social","02","Servicios para la superación de la desnutrición aguda","01","Gestión de recuperación y complementación alimentaria "]
[41,"INCLUSIÓN SOCIAL Y RECONCILIACIÓN",4199,"Fortalecimiento y apoyo a la gestión institucional del sector Inclusión social y Reconciliación",1500,"Intersubsectorial Desarrollo Social","01","Servicio de fortalecimiento y apoyo a la gestión institucional del sector Inclusión social y Reconciliación","01","Direccionamiento estratégico "]
[41,"INCLUSIÓN SOCIAL Y RECONCILIACIÓN",4199,"Fortalecimiento y apoyo a la gestión institucional del sector Inclusión social y Reconciliación",1500,"Intersubsectorial Desarrollo Social","01","Servicio de fortalecimiento y apoyo a la gestión institucional del sector Inclusión social y Reconciliación","02","Seguimiento y control "]
[41,"INCLUSIÓN SOCIAL Y RECONCILIACIÓN",4199,"Fortalecimiento y apoyo a la gestión institucional del sector Inclusión social y Reconciliación",1500,"Intersubsectorial Desarrollo Social","01","Servicio de fortalecimiento y apoyo a la gestión institucional del sector Inclusión social y Reconciliación","03","Gestión de las TIC"]
[41,"INCLUSIÓN SOCIAL Y RECONCILIACIÓN",4199,"Fortalecimiento y apoyo a la gestión institucional del sector Inclusión social y Reconciliación",1500,"Intersubsectorial Desarrollo Social","01","Servicio de fortalecimiento y apoyo a la gestión institucional del sector Inclusión social y Reconciliación","04","Gestión jurídica"]
[41,"INCLUSIÓN SOCIAL Y RECONCILIACIÓN",4199,"Fortalecimiento y apoyo a la gestión institucional del sector Inclusión social y Reconciliación",1500,"Intersubsectorial Desarrollo Social","01","Servicio de fortalecimiento y apoyo a la gestión institucional del sector Inclusión social y Reconciliación","05","Gestión de comunicaciones"]
[41,"INCLUSIÓN SOCIAL Y RECONCILIACIÓN",4199,"Fortalecimiento y apoyo a la gestión institucional del sector Inclusión social y Reconciliación",1500,"Intersubsectorial Desarrollo Social","01","Servicio de fortalecimiento y apoyo a la gestión institucional del sector Inclusión social y Reconciliación","06","Gestión contractual "]
[41,"INCLUSIÓN SOCIAL Y RECONCILIACIÓN",4199,"Fortalecimiento y apoyo a la gestión institucional del sector Inclusión social y Reconciliación",1500,"Intersubsectorial Desarrollo Social","01","Servicio de fortalecimiento y apoyo a la gestión institucional del sector Inclusión social y Reconciliación","07","Gestión de servicios e inventarios"]
[41,"INCLUSIÓN SOCIAL Y RECONCILIACIÓN",4199,"Fortalecimiento y apoyo a la gestión institucional del sector Inclusión social y Reconciliación",1500,"Intersubsectorial Desarrollo Social","01","Servicio de fortalecimiento y apoyo a la gestión institucional del sector Inclusión social y Reconciliación","08","Gestión financiera"]
[41,"INCLUSIÓN SOCIAL Y RECONCILIACIÓN",4199,"Fortalecimiento y apoyo a la gestión institucional del sector Inclusión social y Reconciliación",1500,"Intersubsectorial Desarrollo Social","01","Servicio de fortalecimiento y apoyo a la gestión institucional del sector Inclusión social y Reconciliación","09","Gestión y desarrollo del talento humano "]
[41,"INCLUSIÓN SOCIAL Y RECONCILIACIÓN",4199,"Fortalecimiento y apoyo a la gestión institucional del sector Inclusión social y Reconciliación",1500,"Intersubsectorial Desarrollo Social","01","Servicio de fortalecimiento y apoyo a la gestión institucional del sector Inclusión social y Reconciliación","10","Gestión de las comunicaciones"]
[41,"INCLUSIÓN SOCIAL Y RECONCILIACIÓN",4199,"Fortalecimiento y apoyo a la gestión institucional del sector Inclusión social y Reconciliación",1500,"Intersubsectorial Desarrollo Social","01","Servicio de fortalecimiento y apoyo a la gestión institucional del sector Inclusión social y Reconciliación","11","Seguimiento y evaluación "]
[41,"INCLUSIÓN SOCIAL Y RECONCILIACIÓN",4199,"Fortalecimiento y apoyo a la gestión institucional del sector Inclusión social y Reconciliación",1500,"Intersubsectorial Desarrollo Social","01","Servicio de fortalecimiento y apoyo a la gestión institucional del sector Inclusión social y Reconciliación","12","Gestión Adminsitrativa y financiera"]
["04","INFORMACIÓN ESTADÍSTICA","0401","Levantamiento y actualización de información estadística de calidad",1003,"Planificación Estadística","01","Servicio de producción y difusión de información estadística oficial","01","Planeación, regulación, normalización y estandarización de la producción estadística"]
["04","INFORMACIÓN ESTADÍSTICA","0401","Levantamiento y actualización de información estadística de calidad",1003,"Planificación Estadística","01","Servicio de producción y difusión de información estadística oficial","02","Gestión de información estadística social y económica"]
["04","INFORMACIÓN ESTADÍSTICA","0401","Levantamiento y actualización de información estadística de calidad",1003,"Planificación Estadística","01","Servicio de producción y difusión de información estadística oficial","03","Gestión de información estadística de censos y demografía"]
["04","INFORMACIÓN ESTADÍSTICA","0401","Levantamiento y actualización de información estadística de calidad",1003,"Planificación Estadística","01","Servicio de producción y difusión de información estadística oficial","04","Gestión de información estadística de cuentas nacionales"]
["04","INFORMACIÓN ESTADÍSTICA","0401","Levantamiento y actualización de información estadística de calidad",1003,"Planificación Estadística","01","Servicio de producción y difusión de información estadística oficial","05","Gestión de información geoestadística"]
["04","INFORMACIÓN ESTADÍSTICA","0401","Levantamiento y actualización de información estadística de calidad",1003,"Planificación Estadística","01","Servicio de producción y difusión de información estadística oficial","06","Recolección y acopio de la información estadística"]
["04","INFORMACIÓN ESTADÍSTICA","0401","Levantamiento y actualización de información estadística de calidad",1003,"Planificación Estadística","01","Servicio de producción y difusión de información estadística oficial","07","Gestión comercial y financiera de apoyo a la producción estadística"]
["04","INFORMACIÓN ESTADÍSTICA","0406","Generación de la información geográfica del territorio nacional",1003,"Planificación Estadística","01","Servicio de producción de información geográfica, agrológica y catastral","01","Regulación geográfica, catastral y agrológica y habilitación catastral"]
["04","INFORMACIÓN ESTADÍSTICA","0406","Generación de la información geográfica del territorio nacional",1003,"Planificación Estadística","01","Servicio de producción de información geográfica, agrológica y catastral","02","Investigación y prospectiva"]
["04","INFORMACIÓN ESTADÍSTICA","0406","Generación de la información geográfica del territorio nacional",1003,"Planificación Estadística","01","Servicio de producción de información geográfica, agrológica y catastral","03","Gestión de información de geografía y cartografía"]
["04","INFORMACIÓN ESTADÍSTICA","0406","Generación de la información geográfica del territorio nacional",1003,"Planificación Estadística","01","Servicio de producción de información geográfica, agrológica y catastral","04","Gestión de información agrológica"]
["04","INFORMACIÓN ESTADÍSTICA","0406","Generación de la información geográfica del territorio nacional",1003,"Planificación Estadística","01","Servicio de producción de información geográfica, agrológica y catastral","05","Gestión de información catastral"]
["04","INFORMACIÓN ESTADÍSTICA","0406","Generación de la información geográfica del territorio nacional",1003,"Planificación Estadística","01","Servicio de producción de información geográfica, agrológica y catastral","06","Promoción y asesoría en el uso de información geográfica, agrológica y catastral en el territorio"]
["04","INFORMACIÓN ESTADÍSTICA","0406","Generación de la información geográfica del territorio nacional",1003,"Planificación Estadística","01","Servicio de producción de información geográfica, agrológica y catastral","07"," Gestión de infraestructura, aplicaciones y servicios tecnológicos para la producción de información geográfica, agrológica y catastral"]
["04","INFORMACIÓN ESTADÍSTICA","0499","Fortalecimiento y apoyo a la gestión institucional del sector Información Estadística",1003,"Planificación Estadística","01","Servicio de fortalecimiento y apoyo a la gestión institucional del sector Información Estadística","01","Direccionamiento estratégico del Sector"]
["04","INFORMACIÓN ESTADÍSTICA","0499","Fortalecimiento y apoyo a la gestión institucional del sector Información Estadística",1003,"Planificación Estadística","01","Servicio de fortalecimiento y apoyo a la gestión institucional del sector Información Estadística","02","Gestión jurídica"]
["04","INFORMACIÓN ESTADÍSTICA","0499","Fortalecimiento y apoyo a la gestión institucional del sector Información Estadística",1003,"Planificación Estadística","01","Servicio de fortalecimiento y apoyo a la gestión institucional del sector Información Estadística","03","Gestión de comunicaciones "]
["04","INFORMACIÓN ESTADÍSTICA","0499","Fortalecimiento y apoyo a la gestión institucional del sector Información Estadística",1003,"Planificación Estadística","01","Servicio de fortalecimiento y apoyo a la gestión institucional del sector Información Estadística","04","Seguimiento y evaluación "]
["04","INFORMACIÓN ESTADÍSTICA","0499","Fortalecimiento y apoyo a la gestión institucional del sector Información Estadística",1003,"Planificación Estadística","01","Servicio de fortalecimiento y apoyo a la gestión institucional del sector Información Estadística","05","Gestión y desarrollo del talento humano"]
["04","INFORMACIÓN ESTADÍSTICA","0499","Fortalecimiento y apoyo a la gestión institucional del sector Información Estadística",1003,"Planificación Estadística","01","Servicio de fortalecimiento y apoyo a la gestión institucional del sector Información Estadística","06","Gestión Administrativa"]
["04","INFORMACIÓN ESTADÍSTICA","0499","Fortalecimiento y apoyo a la gestión institucional del sector Información Estadística",1003,"Planificación Estadística","01","Servicio de fortalecimiento y apoyo a la gestión institucional del sector Información Estadística","07","Gestión de TIC"]
["04","INFORMACIÓN ESTADÍSTICA","0499","Fortalecimiento y apoyo a la gestión institucional del sector Información Estadística",1003,"Planificación Estadística","01","Servicio de fortalecimiento y apoyo a la gestión institucional del sector Información Estadística","08","Gestión Contractual"]
["04","INFORMACIÓN ESTADÍSTICA","0499","Fortalecimiento y apoyo a la gestión institucional del sector Información Estadística",1003,"Planificación Estadística","01","Servicio de fortalecimiento y apoyo a la gestión institucional del sector Información Estadística","09","Gestión financiera "]
["04","INFORMACIÓN ESTADÍSTICA","0499","Fortalecimiento y apoyo a la gestión institucional del sector Información Estadística",1003,"Planificación Estadística","01","Servicio de fortalecimiento y apoyo a la gestión institucional del sector Información Estadística","10","Gestión documental "]
["04","INFORMACIÓN ESTADÍSTICA","0499","Fortalecimiento y apoyo a la gestión institucional del sector Información Estadística",1003,"Planificación Estadística","01","Servicio de fortalecimiento y apoyo a la gestión institucional del sector Información Estadística","11","Gestión de atención al ciudadano"]
["04","INFORMACIÓN ESTADÍSTICA","0499","Fortalecimiento y apoyo a la gestión institucional del sector Información Estadística",1003,"Planificación Estadística","01","Servicio de fortalecimiento y apoyo a la gestión institucional del sector Información Estadística","12","Gestión de Control Interno"]
["04","INFORMACIÓN ESTADÍSTICA","0499","Fortalecimiento y apoyo a la gestión institucional del sector Información Estadística",1003,"Planificación Estadística","01","Servicio de fortalecimiento y apoyo a la gestión institucional del sector Información Estadística","13","Gestión de Control Interno Disciplinario"]
["04","INFORMACIÓN ESTADÍSTICA","0400","No asignable a programas",1003,"Planificación Estadística","01","Sin producto","01","Transferencias"]
[42,"INTELIGENCIA",4201,"Desarrollo de inteligencia estratégica y contrainteligencia de Estado","0100","Intersubsectorial Defensa y Seguridad","01","Servicio de inteligencia y contrainteligencia","01","Gestión de inteligencia y contrainteligencia"]
[42,"INTELIGENCIA",4201,"Desarrollo de inteligencia estratégica y contrainteligencia de Estado","0100","Intersubsectorial Defensa y Seguridad","01","Servicio de inteligencia y contrainteligencia","02","Gestión de seguridad operacional"]
[42,"INTELIGENCIA",4299,"Fortalecimiento y apoyo a la gestión institucional del sector Inteligencia","0100","Intersubsectorial Defensa y Seguridad","01","Servicio de fortalecimiento y apoyo a la gestión institucional del sector Inteligencia","01","Direccionamiento estratégico"]
[42,"INTELIGENCIA",4299,"Fortalecimiento y apoyo a la gestión institucional del sector Inteligencia","0100","Intersubsectorial Defensa y Seguridad","01","Servicio de fortalecimiento y apoyo a la gestión institucional del sector Inteligencia","02","Gestión jurídica"]
[42,"INTELIGENCIA",4299,"Fortalecimiento y apoyo a la gestión institucional del sector Inteligencia","0100","Intersubsectorial Defensa y Seguridad","01","Servicio de fortalecimiento y apoyo a la gestión institucional del sector Inteligencia","03","Gestión de Comunicaciones "]
[42,"INTELIGENCIA",4299,"Fortalecimiento y apoyo a la gestión institucional del sector Inteligencia","0100","Intersubsectorial Defensa y Seguridad","01","Servicio de fortalecimiento y apoyo a la gestión institucional del sector Inteligencia","04","Seguimiento y evaluación "]
[42,"INTELIGENCIA",4299,"Fortalecimiento y apoyo a la gestión institucional del sector Inteligencia","0100","Intersubsectorial Defensa y Seguridad","01","Servicio de fortalecimiento y apoyo a la gestión institucional del sector Inteligencia","05","Generación de capacidades"]
[42,"INTELIGENCIA",4299,"Fortalecimiento y apoyo a la gestión institucional del sector Inteligencia","0100","Intersubsectorial Defensa y Seguridad","01","Servicio de fortalecimiento y apoyo a la gestión institucional del sector Inteligencia","06","Gestión Administrativa"]
[42,"INTELIGENCIA",4299,"Fortalecimiento y apoyo a la gestión institucional del sector Inteligencia","0100","Intersubsectorial Defensa y Seguridad","01","Servicio de fortalecimiento y apoyo a la gestión institucional del sector Inteligencia","07","Gestión y desarrollo del talento humano"]
[42,"INTELIGENCIA",4299,"Fortalecimiento y apoyo a la gestión institucional del sector Inteligencia","0100","Intersubsectorial Defensa y Seguridad","01","Servicio de fortalecimiento y apoyo a la gestión institucional del sector Inteligencia","08","Gestión de TIC"]
[42,"INTELIGENCIA",4299,"Fortalecimiento y apoyo a la gestión institucional del sector Inteligencia","0100","Intersubsectorial Defensa y Seguridad","01","Servicio de fortalecimiento y apoyo a la gestión institucional del sector Inteligencia","09","Gestión contractual"]
[42,"INTELIGENCIA",4299,"Fortalecimiento y apoyo a la gestión institucional del sector Inteligencia","0100","Intersubsectorial Defensa y Seguridad","01","Servicio de fortalecimiento y apoyo a la gestión institucional del sector Inteligencia","10","Gestión financiera "]
[42,"INTELIGENCIA",4299,"Fortalecimiento y apoyo a la gestión institucional del sector Inteligencia","0100","Intersubsectorial Defensa y Seguridad","01","Servicio de fortalecimiento y apoyo a la gestión institucional del sector Inteligencia","11","Gestión de bienes "]
[42,"INTELIGENCIA",4299,"Fortalecimiento y apoyo a la gestión institucional del sector Inteligencia","0100","Intersubsectorial Defensa y Seguridad","01","Servicio de fortalecimiento y apoyo a la gestión institucional del sector Inteligencia","12","Gestión documental y atención al ciudadano "]
[42,"INTELIGENCIA",4200,"No asignable a programas","0100","Intersubsectorial Defensa y Seguridad","01","Sin producto","01","Transferencias Corrientes"]
[37,"INTERIOR",3701,"Fortalecimiento institucional a los procesos organizativos de concertación; garantía, prevención y respeto de los derechos humanos como fundamentos para la paz",1000,"Intersubsectorial Gobierno","01","Servicio de promoción y protección de derechos humanos","01","Gestión de asuntos étnicos y de minorías"]
[37,"INTERIOR",3701,"Fortalecimiento institucional a los procesos organizativos de concertación; garantía, prevención y respeto de los derechos humanos como fundamentos para la paz",1000,"Intersubsectorial Gobierno","01","Servicio de promoción y protección de derechos humanos","02","Apoyo a la implementación de procesos de consulta previa"]
[37,"INTERIOR",3701,"Fortalecimiento institucional a los procesos organizativos de concertación; garantía, prevención y respeto de los derechos humanos como fundamentos para la paz",1000,"Intersubsectorial Gobierno","01","Servicio de promoción y protección de derechos humanos","03","Gestión de asuntos religiosos"]
[37,"INTERIOR",3701,"Fortalecimiento institucional a los procesos organizativos de concertación; garantía, prevención y respeto de los derechos humanos como fundamentos para la paz",1000,"Intersubsectorial Gobierno","01","Servicio de promoción y protección de derechos humanos","04","Garantía, prevención y respeto de los Derechos Humanos"]
[37,"INTERIOR",3702,"Fortalecimiento a la gobernabilidad territorial para la seguridad, convivencia ciudadana, paz y postconflicto.",1000,"Intersubsectorial Gobierno","01","Servicio de prevención de factores que atenten contra el orden público interno","01","Gestión de seguridad y convivencia ciudadana"]
[37,"INTERIOR",3702,"Fortalecimiento a la gobernabilidad territorial para la seguridad, convivencia ciudadana, paz y postconflicto.",1000,"Intersubsectorial Gobierno","02","Servicio de apoyo y asistencia técnica para la profundización de la descentralización","01","Gestión de la articulación territorial"]
[37,"INTERIOR",3704,"Gobernabilidad y participación ciudadana",1000,"Intersubsectorial Gobierno","01","Servicio de promoción de la gobernabilidad y la participación ciudadana","01","Gestión de asuntos legislativos"]
[37,"INTERIOR",3704,"Gobernabilidad y participación ciudadana",1000,"Intersubsectorial Gobierno","01","Servicio de promoción de la gobernabilidad y la participación ciudadana","02","Promoción de la democracia participativa y coordinación de asuntos electorales"]
[37,"INTERIOR",3704,"Gobernabilidad y participación ciudadana",1000,"Intersubsectorial Gobierno","02","Servicio de promoción de la acción comunal","01","Coordinación de procesos de acción comunal"]
[37,"INTERIOR",3704,"Gobernabilidad y participación ciudadana",1000,"Intersubsectorial Gobierno","02","Servicio de promoción de la acción comunal","02","Inspección, vigilancia y control de las organizaciones, federaciones y confederaciones de acción comunal"]
[37,"INTERIOR",3705,"Protección de personas, grupos y comunidades en riesgo extraordinario y extremo Unidad Nacional de Protección (UNP)",1000,"Intersubsectorial Gobierno","01","Servicio de protección para las personas, grupos o comunidades objeto del programa","01","Evaluación del riesgo para las personas, grupos o comunidades objeto del programa"]
[37,"INTERIOR",3705,"Protección de personas, grupos y comunidades en riesgo extraordinario y extremo Unidad Nacional de Protección (UNP)",1000,"Intersubsectorial Gobierno","01","Servicio de protección para las personas, grupos o comunidades objeto del programa","02","Gestión de medidas especiales de seguridad y protección para las personas, grupos o comunidades objeto del programa"]
[37,"INTERIOR",3706,"Protección, promoción y difusión del derecho de autor y los derechos conexos",1000,"Intersubsectorial Gobierno","01","Servicio de protección de los derechos de autor y derechos conexos","01","Gestión de conciliación y arbitraje"]
[37,"INTERIOR",3706,"Protección, promoción y difusión del derecho de autor y los derechos conexos",1000,"Intersubsectorial Gobierno","01","Servicio de protección de los derechos de autor y derechos conexos","02","Administración del Registro Nacional de Derechos de autor"]
[37,"INTERIOR",3706,"Protección, promoción y difusión del derecho de autor y los derechos conexos",1000,"Intersubsectorial Gobierno","01","Servicio de protección de los derechos de autor y derechos conexos","03","Gestión de protección de los derechos de autor y servicios conexos"]
[37,"INTERIOR",3706,"Protección, promoción y difusión del derecho de autor y los derechos conexos",1000,"Intersubsectorial Gobierno","01","Servicio de protección de los derechos de autor y derechos conexos","04","Capacitación e investigación y desarrollo"]
[37,"INTERIOR",3707,"Gestión del riesgo de desastres naturales y antrópicos en la zona de influencia del volcán Nevado del Huila.",1000,"Intersubsectorial Gobierno","01","Servicio de gestión del riesgo","01","Prevención del riesgo natural y antrópico de las de las comunidades asentadas en área de jurisdicción de la Corporación Nasa Kiwe"]
[37,"INTERIOR",3707,"Gestión del riesgo de desastres naturales y antrópicos en la zona de influencia del volcán Nevado del Huila.",1000,"Intersubsectorial Gobierno","01","Servicio de gestión del riesgo","02","Rehabilitación de zonas afectadas por desastres naturales"]
[37,"INTERIOR",3799,"Fortalecimiento y apoyo a la gestión institucional del sector interior ",1000,"Intersubsectorial Gobierno","01","Servicio de fortalecimiento y apoyo a la gestión institucional del sector Interior","01","Direccionamiento estratégico"]
[37,"INTERIOR",3799,"Fortalecimiento y apoyo a la gestión institucional del sector interior ",1000,"Intersubsectorial Gobierno","01","Servicio de fortalecimiento y apoyo a la gestión institucional del sector Interior","02","Gestión jurídica"]
[37,"INTERIOR",3799,"Fortalecimiento y apoyo a la gestión institucional del sector interior ",1000,"Intersubsectorial Gobierno","01","Servicio de fortalecimiento y apoyo a la gestión institucional del sector Interior","03","Gestión de Comunicaciones "]
[37,"INTERIOR",3799,"Fortalecimiento y apoyo a la gestión institucional del sector interior ",1000,"Intersubsectorial Gobierno","01","Servicio de fortalecimiento y apoyo a la gestión institucional del sector Interior","04","Seguimiento y evaluación "]
[37,"INTERIOR",3799,"Fortalecimiento y apoyo a la gestión institucional del sector interior ",1000,"Intersubsectorial Gobierno","01","Servicio de fortalecimiento y apoyo a la gestión institucional del sector Interior","05","Generación de capacidades"]
[37,"INTERIOR",3799,"Fortalecimiento y apoyo a la gestión institucional del sector interior ",1000,"Intersubsectorial Gobierno","01","Servicio de fortalecimiento y apoyo a la gestión institucional del sector Interior","06","Gestión Administrativa"]
[37,"INTERIOR",3799,"Fortalecimiento y apoyo a la gestión institucional del sector interior ",1000,"Intersubsectorial Gobierno","01","Servicio de fortalecimiento y apoyo a la gestión institucional del sector Interior","07","Gestión y desarrollo del talento humano"]
[37,"INTERIOR",3799,"Fortalecimiento y apoyo a la gestión institucional del sector interior ",1000,"Intersubsectorial Gobierno","01","Servicio de fortalecimiento y apoyo a la gestión institucional del sector Interior","08","Gestión de TIC"]
[37,"INTERIOR",3799,"Fortalecimiento y apoyo a la gestión institucional del sector interior ",1000,"Intersubsectorial Gobierno","01","Servicio de fortalecimiento y apoyo a la gestión institucional del sector Interior","09","Gestión contractual"]
[37,"INTERIOR",3799,"Fortalecimiento y apoyo a la gestión institucional del sector interior ",1000,"Intersubsectorial Gobierno","01","Servicio de fortalecimiento y apoyo a la gestión institucional del sector Interior","10","Gestión financiera "]
[37,"INTERIOR",3799,"Fortalecimiento y apoyo a la gestión institucional del sector interior ",1000,"Intersubsectorial Gobierno","01","Servicio de fortalecimiento y apoyo a la gestión institucional del sector Interior","11","Gestión de bienes "]
[37,"INTERIOR",3799,"Fortalecimiento y apoyo a la gestión institucional del sector interior ",1000,"Intersubsectorial Gobierno","01","Servicio de fortalecimiento y apoyo a la gestión institucional del sector Interior","12","Gestión documental y atención al ciudadano "]
[37,"INTERIOR",3700,"No asignable a programas",1000,"Intersubsectorial Gobierno","01","Sin producto","01","Transferiencias corrientes"]
[44,"SISTEMA INTEGRAL DE VERDAD, JUSTICIA, REPARACIÓN Y NO REPETICIÓN",4401,"Jurisdicción Especial para la Paz",1000,"Intersubsectorial Gobierno","01","Servicio de administración de justicia transicional y restaurativa","01","Realización de Juicios, imposición de sentencias y sanciones"]
[44,"SISTEMA INTEGRAL DE VERDAD, JUSTICIA, REPARACIÓN Y NO REPETICIÓN",4401,"Jurisdicción Especial para la Paz",1000,"Intersubsectorial Gobierno","01","Servicio de administración de justicia transicional y restaurativa","02 ","Investigación y acusación"]
[44,"SISTEMA INTEGRAL DE VERDAD, JUSTICIA, REPARACIÓN Y NO REPETICIÓN",4401,"Jurisdicción Especial para la Paz",1000,"Intersubsectorial Gobierno","01","Servicio de administración de justicia transicional y restaurativa","03","Atención, orientación y protección a las víctimas y defensa a comparecientes"]
[44,"SISTEMA INTEGRAL DE VERDAD, JUSTICIA, REPARACIÓN Y NO REPETICIÓN",4401,"Jurisdicción Especial para la Paz",1000,"Intersubsectorial Gobierno","01","Servicio de administración de justicia transicional y restaurativa","04","Policía Judicial"]
[44,"SISTEMA INTEGRAL DE VERDAD, JUSTICIA, REPARACIÓN Y NO REPETICIÓN",4403,"Unidad de Búsqueda de Personas dadas por Desaparecidas en el contexto y en razón del Conflicto Armado (UBPD)",1000,"Intersubsectorial Gobierno","01","Servicio de entrega digna o reencuentro de personas dadas por desaparecidas","01","Gestión de información para la búsqueda"]
[44,"SISTEMA INTEGRAL DE VERDAD, JUSTICIA, REPARACIÓN Y NO REPETICIÓN",4403,"Unidad de Búsqueda de Personas dadas por Desaparecidas en el contexto y en razón del Conflicto Armado (UBPD)",1000,"Intersubsectorial Gobierno","01","Servicio de entrega digna o reencuentro de personas dadas por desaparecidas","02","Planeación y localización para la búsqueda"]
[44,"SISTEMA INTEGRAL DE VERDAD, JUSTICIA, REPARACIÓN Y NO REPETICIÓN",4403,"Unidad de Búsqueda de Personas dadas por Desaparecidas en el contexto y en razón del Conflicto Armado (UBPD)",1000,"Intersubsectorial Gobierno","01","Servicio de entrega digna o reencuentro de personas dadas por desaparecidas","03","Participación, entrega digna o reencuentro con los familiares de las víctimas"]
[44,"SISTEMA INTEGRAL DE VERDAD, JUSTICIA, REPARACIÓN Y NO REPETICIÓN",4403,"Unidad de Búsqueda de Personas dadas por Desaparecidas en el contexto y en razón del Conflicto Armado (UBPD)",1000,"Intersubsectorial Gobierno","01","Servicio de entrega digna o reencuentro de personas dadas por desaparecidas","04","Prospección, recuperación e identificación"]
[44,"SISTEMA INTEGRAL DE VERDAD, JUSTICIA, REPARACIÓN Y NO REPETICIÓN",4499,"Fortalecimiento y apoyo a la gestión institucional del sector Justicia Especial para la Paz",1000,"Intersubsectorial Gobierno","01","Servicio de fortalecimiento y apoyo a la gestión institucional del sector Justicia Especial para la Paz","01","Direccionamiento estratégico del Sector"]
[44,"SISTEMA INTEGRAL DE VERDAD, JUSTICIA, REPARACIÓN Y NO REPETICIÓN",4499,"Fortalecimiento y apoyo a la gestión institucional del sector Justicia Especial para la Paz",1000,"Intersubsectorial Gobierno","01","Servicio de fortalecimiento y apoyo a la gestión institucional del sector Justicia Especial para la Paz","02","Gestión jurídica"]
[44,"SISTEMA INTEGRAL DE VERDAD, JUSTICIA, REPARACIÓN Y NO REPETICIÓN",4499,"Fortalecimiento y apoyo a la gestión del sector Justicia Especial para la Paz",1000,"Intersubsectorial Gobierno","01","Servicio de fortalecimiento y apoyo a la gestión institucional del sector Justicia Especial para la Paz","03","Gestión de comunicaciones "]
[44,"SISTEMA INTEGRAL DE VERDAD, JUSTICIA, REPARACIÓN Y NO REPETICIÓN",4499,"Fortalecimiento y apoyo a la gestión institucional del sector Justicia Especial para la Paz",1000,"Intersubsectorial Gobierno","01","Servicio de fortalecimiento y apoyo a la gestión institucional del sector Justicia Especial para la Paz","04","Generación de Capacidades"]
[44,"SISTEMA INTEGRAL DE VERDAD, JUSTICIA, REPARACIÓN Y NO REPETICIÓN",4499,"Fortalecimiento y apoyo a la gestión institucional del sector Justicia Especial para la Paz",1000,"Intersubsectorial Gobierno","01","Servicio de fortalecimiento y apoyo a la gestión institucional del sector Justicia Especial para la Paz","05","Seguimiento y evaluación "]
[44,"SISTEMA INTEGRAL DE VERDAD, JUSTICIA, REPARACIÓN Y NO REPETICIÓN",4499,"Fortalecimiento y apoyo a la gestión institucional del sector Justicia Especial para la Paz",1000,"Intersubsectorial Gobierno","01","Servicio de fortalecimiento y apoyo a la gestión institucional del sector Justicia Especial para la Paz","06","Gestión y desarrollo del talento humano"]
[44,"SISTEMA INTEGRAL DE VERDAD, JUSTICIA, REPARACIÓN Y NO REPETICIÓN",4499,"Fortalecimiento y apoyo a la gestión institucional del sector Justicia Especial para la Paz",1000,"Intersubsectorial Gobierno","01","Servicio de fortalecimiento y apoyo a la gestión institucional del sector Justicia Especial para la Paz","07","Gestión Administrativa"]
[44,"SISTEMA INTEGRAL DE VERDAD, JUSTICIA, REPARACIÓN Y NO REPETICIÓN",4499,"Fortalecimiento y apoyo a la gestión institucional del sector Justicia Especial para la Paz",1000,"Intersubsectorial Gobierno","01","Servicio de fortalecimiento y apoyo a la gestión institucional del sector Justicia Especial para la Paz","08","Gestión de TIC"]
[44,"SISTEMA INTEGRAL DE VERDAD, JUSTICIA, REPARACIÓN Y NO REPETICIÓN",4499,"Fortalecimiento y apoyo a la gestión institucional del sector Justicia Especial para la Paz",1000,"Intersubsectorial Gobierno","01","Servicio de fortalecimiento y apoyo a la gestión institucional del sector Justicia Especial para la Paz","09","Gestión Contractual"]
[44,"SISTEMA INTEGRAL DE VERDAD, JUSTICIA, REPARACIÓN Y NO REPETICIÓN",4499,"Fortalecimiento y apoyo a la gestión institucional del sector Justicia Especial para la Paz",1000,"Intersubsectorial Gobierno","01","Servicio de fortalecimiento y apoyo a la gestión institucional del sector Justicia Especial para la Paz","10","Gestión financiera "]
[44,"SISTEMA INTEGRAL DE VERDAD, JUSTICIA, REPARACIÓN Y NO REPETICIÓN",4499,"Fortalecimiento y apoyo a la gestión institucional del sector Justicia Especial para la Paz",1000,"Intersubsectorial Gobierno","01","Servicio de fortalecimiento y apoyo a la gestión institucional del sector Justicia Especial para la Paz","11","Gestión documental "]
[44,"SISTEMA INTEGRAL DE VERDAD, JUSTICIA, REPARACIÓN Y NO REPETICIÓN",4499,"Fortalecimiento y apoyo a la gestión institucional del sector Justicia Especial para la Paz",1000,"Intersubsectorial Gobierno","01","Servicio de fortalecimiento y apoyo a la gestión institucional del sector Justicia Especial para la Paz","12","Gestión de atención al ciudadano"]
[44,"SISTEMA INTEGRAL DE VERDAD, JUSTICIA, REPARACIÓN Y NO REPETICIÓN",4499,"Fortalecimiento y apoyo a la gestión institucional del sector Justicia Especial para la Paz",1000,"Intersubsectorial Gobierno","01","Servicio de fortalecimiento y apoyo a la gestión institucional del sector Justicia Especial para la Paz","13","Gestión de Control Interno"]
[44,"SISTEMA INTEGRAL DE VERDAD, JUSTICIA, REPARACIÓN Y NO REPETICIÓN",4499,"Fortalecimiento y apoyo a la gestión institucional del sector Justicia Especial para la Paz",1000,"Intersubsectorial Gobierno","01","Servicio de fortalecimiento y apoyo a la gestión institucional del sector Justicia Especial para la Paz","14","Gestión de Control Interno Disciplinario"]
[44,"SISTEMA INTEGRAL DE VERDAD, JUSTICIA, REPARACIÓN Y NO REPETICIÓN",4400,"No asignable a programas",1000,"Intersubsectorial Gobierno","01","Sin producto","01","Transferencias"]
[12,"JUSTICIA Y DEL DERECHO",1201,"Fortalecimiento del principio de seguridad jurídica, divulgación y depuración del ordenamiento jurídico","0800","Intersubsectorial Justicia","01","Servicio de seguridad y ordenamiento jurídico","01","Gestión de la calidad normativa"]
[12,"JUSTICIA Y DEL DERECHO",1201,"Fortalecimiento del principio de seguridad jurídica, divulgación y depuración del ordenamiento jurídico","0800","Intersubsectorial Justicia","01","Servicio de seguridad y ordenamiento jurídico","02","Administración SUIN - Jurisco"]
[12,"JUSTICIA Y DEL DERECHO",1201,"Fortalecimiento del principio de seguridad jurídica, divulgación y depuración del ordenamiento jurídico","0800","Intersubsectorial Justicia","01","Servicio de seguridad y ordenamiento jurídico","03","Defensa del ordenamiento jurídico"]
[12,"JUSTICIA Y DEL DERECHO",1202,"Promoción al acceso a la justicia","0800","Intersubsectorial Justicia","01","Servicio de fomento de la justicia","01","Fortalecimiento de la justicia étnica"]
[12,"JUSTICIA Y DEL DERECHO",1202,"Promoción al acceso a la justicia","0800","Intersubsectorial Justicia","01","Servicio de fomento de la justicia","02","Fortalecimiento de la justicia con enfoque de género"]
[12,"JUSTICIA Y DEL DERECHO",1202,"Promoción al acceso a la justicia","0800","Intersubsectorial Justicia","01","Servicio de fomento de la justicia","03","Gestión de comisarías de familia"]
[12,"JUSTICIA Y DEL DERECHO",1202,"Promoción al acceso a la justicia","0800","Intersubsectorial Justicia","01","Servicio de fomento de la justicia","04","Gestión operativa de Consultorios Jurídicos"]
[12,"JUSTICIA Y DEL DERECHO",1203,"Promoción de los métodos de resolución de conflictos","0800","Intersubsectorial Justicia","01","Servicio de promoción en la resolución de conflictos","01","Gestión de casas de justicia y centros convivencia ciudadana"]
[12,"JUSTICIA Y DEL DERECHO",1203,"Promoción de los métodos de resolución de conflictos","0800","Intersubsectorial Justicia","01","Servicio de promoción en la resolución de conflictos","02","Sistemas locales de justicia"]
[12,"JUSTICIA Y DEL DERECHO",1203,"Promoción de los métodos de resolución de conflictos","0800","Intersubsectorial Justicia","01","Servicio de promoción en la resolución de conflictos","03","Fomento y regulación de la Justicia en Equidad"]
[12,"JUSTICIA Y DEL DERECHO",1203,"Promoción de los métodos de resolución de conflictos","0800","Intersubsectorial Justicia","01","Servicio de promoción en la resolución de conflictos","04","Registro, Vigilancia y Seguimiento a Consultorios Jurídicos"]
[12,"JUSTICIA Y DEL DERECHO",1204,"Justicia transicional","0800","Intersubsectorial Justicia","01","Servicios de administración de justicia transicional","01","Acciones Legales y Constitucionales​"]
[12,"JUSTICIA Y DEL DERECHO",1204,"Justicia transicional","0800","Intersubsectorial Justicia","01","Servicios de administración de justicia transicional","02","Formulación de la política pública en materia de justicia Transicional"]
[12,"JUSTICIA Y DEL DERECHO",1205,"Defensa jurídica del Estado","0800","Intersubsectorial Justicia","01","Servicio de defensa jurídica del Estado","01","Asesoría legal"]
[12,"JUSTICIA Y DEL DERECHO",1205,"Defensa jurídica del Estado","0800","Intersubsectorial Justicia","01","Servicio de defensa jurídica del Estado","02","Defensa jurídica"]
[12,"JUSTICIA Y DEL DERECHO",1206,"Sistema penitenciario y carcelario en el marco de los derechos humanos","0800","Intersubsectorial Justicia","01","Servicio penitenciario y carcelario","01","Formulación de política penitenciaria y carcelaria"]
[12,"JUSTICIA Y DEL DERECHO",1206,"Sistema penitenciario y carcelario en el marco de los derechos humanos","0800","Intersubsectorial Justicia","01","Servicio penitenciario y carcelario","02","Seguridad y administración carcelaria y penitenciaria"]
[12,"JUSTICIA Y DEL DERECHO",1206,"Sistema penitenciario y carcelario en el marco de los derechos humanos","0800","Intersubsectorial Justicia","01","Servicio penitenciario y carcelario","03","Atención en salud a la población  privada de la libertad"]
[12,"JUSTICIA Y DEL DERECHO",1206,"Sistema penitenciario y carcelario en el marco de los derechos humanos","0800","Intersubsectorial Justicia","01","Servicio penitenciario y carcelario","04","Atención Psicosocial a la población  privada de la libertad"]
[12,"JUSTICIA Y DEL DERECHO",1206,"Sistema penitenciario y carcelario en el marco de los derechos humanos","0800","Intersubsectorial Justicia","01","Servicio penitenciario y carcelario","05","Educación de la población privada de la libertad para la Rehabilitación Social"]
[12,"JUSTICIA Y DEL DERECHO",1206,"Sistema penitenciario y carcelario en el marco de los derechos humanos","0800","Intersubsectorial Justicia","01","Servicio penitenciario y carcelario","06","Gestiones para la productividad y generación de ingresos de la población privada de la libertad "]
[12,"JUSTICIA Y DEL DERECHO",1206,"Sistema penitenciario y carcelario en el marco de los derechos humanos","0800","Intersubsectorial Justicia","01","Servicio penitenciario y carcelario","07","Gestión del plan maestro de reposición, rehabilitación, mantenimiento de Infraestructura y generación de cupos"]
[12,"JUSTICIA Y DEL DERECHO",1206,"Sistema penitenciario y carcelario en el marco de los derechos humanos","0800","Intersubsectorial Justicia","01","Servicio penitenciario y carcelario","08","Entrega y distribución de los bienes y servicios requeridos para la gestión penitenciaria y carcelaria"]
[12,"JUSTICIA Y DEL DERECHO",1207,"Fortalecimiento de la política criminal del Estado colombiano","0800","Intersubsectorial Justicia","01","Servicio de definición de la política criminal del Estado","01","Formulación de política criminal"]
[12,"JUSTICIA Y DEL DERECHO",1208,"Formulación y coordinación de la política integral frente a las drogas y actividades relacionadas","0800","Intersubsectorial Justicia","01","Servicio de definición de la política de drogas y actividades relacionadas","01","Formulación de política integral de drogas y actividades relacionadas"]
[12,"JUSTICIA Y DEL DERECHO",1209,"Modernización de la información inmobiliaria","0800","Intersubsectorial Justicia","01","Servicio notarial","01","Gestión del servicio público notarial"]
[12,"JUSTICIA Y DEL DERECHO",1209,"Modernización de la información inmobiliaria","0800","Intersubsectorial Justicia","02","Servicio registral","01","Gestión del servicio público registral "]
[12,"JUSTICIA Y DEL DERECHO",1209,"Modernización de la información inmobiliaria","0800","Intersubsectorial Justicia","02","Servicio registral","02","Gestión del servicio público registral sobre los predios rurales"]
[12,"JUSTICIA Y DEL DERECHO",1299,"Fortalecimiento y apoyo a la gestión institucional del sector Justicia y del Derecho","0800","Intersubsectorial Justicia","01","Servicio de fortalecimiento y apoyo a la gestión institucional del sector Justicia y del Derecho","01","Direccionamiento estratégico"]
[12,"JUSTICIA Y DEL DERECHO",1299,"Fortalecimiento y apoyo a la gestión institucional del sector Justicia y del Derecho","0800","Intersubsectorial Justicia","01","Servicio de fortalecimiento y apoyo a la gestión institucional del sector Justicia y del Derecho","02","Gestión Administrativa"]
[12,"JUSTICIA Y DEL DERECHO",1299,"Fortalecimiento y apoyo a la gestión institucional del sector Justicia y del Derecho","0800","Intersubsectorial Justicia","01","Servicio de fortalecimiento y apoyo a la gestión institucional del sector Justicia y del Derecho","03","Gestión contractual"]
[12,"JUSTICIA Y DEL DERECHO",1299,"Fortalecimiento y apoyo a la gestión institucional del sector Justicia y del Derecho","0800","Intersubsectorial Justicia","01","Servicio de fortalecimiento y apoyo a la gestión institucional del sector Justicia y del Derecho","04","Gestión de Comunicaciones y Atención al ciudadano"]
[12,"JUSTICIA Y DEL DERECHO",1299,"Fortalecimiento y apoyo a la gestión institucional del sector Justicia y del Derecho","0800","Intersubsectorial Justicia","01","Servicio de fortalecimiento y apoyo a la gestión institucional del sector Justicia y del Derecho","05","Gestión jurídica"]
[12,"JUSTICIA Y DEL DERECHO",1299,"Fortalecimiento y apoyo a la gestión institucional del sector Justicia y del Derecho","0800","Intersubsectorial Justicia","01","Servicio de fortalecimiento y apoyo a la gestión institucional del sector Justicia y del Derecho","06","Gestión y desarrollo del talento humano"]
[12,"JUSTICIA Y DEL DERECHO",1299,"Fortalecimiento y apoyo a la gestión institucional del sector Justicia y del Derecho","0800","Intersubsectorial Justicia","01","Servicio de fortalecimiento y apoyo a la gestión institucional del sector Justicia y del Derecho","07","Asistencia judicial internacional en materia penal"]
[12,"JUSTICIA Y DEL DERECHO",1299,"Fortalecimiento y apoyo a la gestión institucional del sector Justicia y del Derecho","0800","Intersubsectorial Justicia","01","Servicio de fortalecimiento y apoyo a la gestión institucional del sector Justicia y del Derecho","08","Seguimiento y evaluación "]
[12,"JUSTICIA Y DEL DERECHO",1299,"Fortalecimiento y apoyo a la gestión institucional del sector Justicia y del Derecho","0800","Intersubsectorial Justicia","01","Servicio de fortalecimiento y apoyo a la gestión institucional del sector Justicia y del Derecho","09","Articulación con el legislativo"]
[12,"JUSTICIA Y DEL DERECHO",1299,"Fortalecimiento y apoyo a la gestión institucional del sector Justicia y del Derecho","0800","Intersubsectorial Justicia","01","Servicio de fortalecimiento y apoyo a la gestión institucional del sector Justicia y del Derecho","10","Gestión TIC"]
[12,"JUSTICIA Y DEL DERECHO",1299,"Fortalecimiento y apoyo a la gestión institucional del sector Justicia y del Derecho","0800","Intersubsectorial Justicia","01","Servicio de fortalecimiento y apoyo a la gestión institucional del sector Justicia y del Derecho","11","Gestión Documental"]
[12,"JUSTICIA Y DEL DERECHO",1299,"Fortalecimiento y apoyo a la gestión institucional del sector Justicia y del Derecho","0800","Intersubsectorial Justicia","01","Servicio de fortalecimiento y apoyo a la gestión institucional del sector Justicia y del Derecho","12","Gestión Financiera"]
[12,"JUSTICIA Y DEL DERECHO",1299,"Fortalecimiento y apoyo a la gestión institucional del sector Justicia y del Derecho","0800","Intersubsectorial Justicia","01","Servicio de fortalecimiento y apoyo a la gestión institucional del sector Justicia y del Derecho","13","Gestión de atención al ciudadano"]
[12,"JUSTICIA Y DEL DERECHO",1299,"Fortalecimiento y apoyo a la gestión institucional del sector Justicia y del Derecho","0800","Intersubsectorial Justicia","01","Servicio de fortalecimiento y apoyo a la gestión institucional del sector Justicia y del Derecho","14","Gestión de comunicaciones "]
[12,"JUSTICIA Y DEL DERECHO",1299,"Fortalecimiento y apoyo a la gestión institucional del sector Justicia y del Derecho","0800","Intersubsectorial Justicia","01","Servicio de fortalecimiento y apoyo a la gestión institucional del sector Justicia y del Derecho","15","Atención de establecimientos de reclusión"]
[12,"JUSTICIA Y DEL DERECHO",1200,"No asignable a programas","0800","Intersubsectorial Justicia","01","Sin producto","01","Transferencias Corrientes"]
[21,"MINAS Y ENERGÍA",2101,"Acceso al servicio público domiciliario de gas combustible",1900,"Intersubsectorial Minas y Energía","01","Servicio de suministro domiciliario de gas combustible","01","Gestión de subsidios a la población"]
[21,"MINAS Y ENERGÍA",2101,"Acceso al servicio público domiciliario de gas combustible",1900,"Intersubsectorial Minas y Energía","01","Servicio de suministro domiciliario de gas combustible","02","Gestión de Midstream de Gas Combustible"]
[21,"MINAS Y ENERGÍA",2101,"Acceso al servicio público domiciliario de gas combustible",1900,"Intersubsectorial Minas y Energía","01","Servicio de suministro domiciliario de gas combustible","03","Gestión de Downstream de Gas Combustible"]
[21,"MINAS Y ENERGÍA",2101,"Acceso al servicio público domiciliario de gas combustible",1900,"Intersubsectorial Minas y Energía","01","Servicio de suministro domiciliario de gas combustible","04","Gestión de proyectos de infraestructura"]
[21,"MINAS Y ENERGÍA",2101,"Acceso al servicio público domiciliario de gas combustible",1900,"Intersubsectorial Minas y Energía","01","Servicio de suministro domiciliario de gas combustible","05","Regulación del servicio"]
[21,"MINAS Y ENERGÍA",2102,"Consolidación productiva del sector de energía eléctrica",1900,"Intersubsectorial Minas y Energía","01","Servicio de suministro domiciliario de energía eléctrica","01","Planeación e investigación en energía eléctrica"]
[21,"MINAS Y ENERGÍA",2102,"Consolidación productiva del sector de energía eléctrica",1900,"Intersubsectorial Minas y Energía","01","Servicio de suministro domiciliario de energía eléctrica","02","Gestión de soluciones energéticas para zonas no interconectadas"]
[21,"MINAS Y ENERGÍA",2102,"Consolidación productiva del sector de energía eléctrica",1900,"Intersubsectorial Minas y Energía","01","Servicio de suministro domiciliario de energía eléctrica","03","Gestión para la generación y suministro de energía eléctrica en zonas  interconectadas"]
[21,"MINAS Y ENERGÍA",2102,"Consolidación productiva del sector de energía eléctrica",1900,"Intersubsectorial Minas y Energía","01","Servicio de suministro domiciliario de energía eléctrica","04","Seguimiento  y control a la prestación del servicio"]
[21,"MINAS Y ENERGÍA",2102,"Consolidación productiva del sector de energía eléctrica",1900,"Intersubsectorial Minas y Energía","01","Servicio de suministro domiciliario de energía eléctrica","05","Gestión de reglamentos técnicos del sector"]
[21,"MINAS Y ENERGÍA",2102,"Consolidación productiva del sector de energía eléctrica",1900,"Intersubsectorial Minas y Energía","01","Servicio de suministro domiciliario de energía eléctrica","06","Gestión de subsidios al consumo"]
[21,"MINAS Y ENERGÍA",2102,"Consolidación productiva del sector de energía eléctrica",1900,"Intersubsectorial Minas y Energía","01","Servicio de suministro domiciliario de energía eléctrica","07","Regulación del servicio"]
[21,"MINAS Y ENERGÍA",2103,"Consolidación productiva del sector de hidrocarburos",1900,"Intersubsectorial Minas y Energía","01","Servicio de exploración y explotación de hidrocarburos","01","Planeación e investigación en hidrocarburos"]
[21,"MINAS Y ENERGÍA",2103,"Consolidación productiva del sector de hidrocarburos",1900,"Intersubsectorial Minas y Energía","01","Servicio de exploración y explotación de hidrocarburos","02","Gestión upstream de hidrocarburos"]
[21,"MINAS Y ENERGÍA",2103,"Consolidación productiva del sector de hidrocarburos",1900,"Intersubsectorial Minas y Energía","01","Servicio de exploración y explotación de hidrocarburos","03","Gestión midstream de hidrocarburos"]
[21,"MINAS Y ENERGÍA",2103,"Consolidación productiva del sector de hidrocarburos",1900,"Intersubsectorial Minas y Energía","01","Servicio de exploración y explotación de hidrocarburos","04","Gestión downstream de hidrocarburos"]
[21,"MINAS Y ENERGÍA",2103,"Consolidación productiva del sector de hidrocarburos",1900,"Intersubsectorial Minas y Energía","01","Servicio de exploración y explotación de hidrocarburos","05","Gestión de regalías"]
[21,"MINAS Y ENERGÍA",2104,"Consolidación productiva del sector minero",1900,"Intersubsectorial Minas y Energía","01","Servicio de modernización y formalización de la actividad minera","01","Planeación e investigación minera"]
[21,"MINAS Y ENERGÍA",2104,"Consolidación productiva del sector minero",1900,"Intersubsectorial Minas y Energía","01","Servicio de modernización y formalización de la actividad minera","02","Gestión de Promoción,  Fomentoy Formalización de minería de pequeña y mediana escala"]
[21,"MINAS Y ENERGÍA",2104,"Consolidación productiva del sector minero",1900,"Intersubsectorial Minas y Energía","01","Servicio de modernización y formalización de la actividad minera","03","Gestión de Contratación y titulación minera"]
[21,"MINAS Y ENERGÍA",2104,"Consolidación productiva del sector minero",1900,"Intersubsectorial Minas y Energía","01","Servicio de modernización y formalización de la actividad minera","04","Seguimiento  y control minero"]
[21,"MINAS Y ENERGÍA",2104,"Consolidación productiva del sector minero",1900,"Intersubsectorial Minas y Energía","01","Servicio de modernización y formalización de la actividad minera","05","Gestión de regalías"]
[21,"MINAS Y ENERGÍA",2105," Desarrollo ambiental sostenible del sector minero energético",1900,"Intersubsectorial Minas y Energía","01","Servicio de prevención y mitigación de los impactos ambientales y sociales de la actividad minero energética","01","Gestión del riesgo y del cambio climático "]
[21,"MINAS Y ENERGÍA",2105," Desarrollo ambiental sostenible del sector minero energético",1900,"Intersubsectorial Minas y Energía","01","Servicio de prevención y mitigación de los impactos ambientales y sociales de la actividad minero energética","02","Gestión de relacionamiento social"]
[21,"MINAS Y ENERGÍA",2105," Desarrollo ambiental sostenible del sector minero energético",1900,"Intersubsectorial Minas y Energía","01","Servicio de prevención y mitigación de los impactos ambientales y sociales de la actividad minero energética","03","Promoción de Derechos Humanos"]
[21,"MINAS Y ENERGÍA",2105," Desarrollo ambiental sostenible del sector minero energético",1900,"Intersubsectorial Minas y Energía","01","Servicio de prevención y mitigación de los impactos ambientales y sociales de la actividad minero energética","04","Promoción de la equidad de género"]
[21,"MINAS Y ENERGÍA",2105," Desarrollo ambiental sostenible del sector minero energético",1900,"Intersubsectorial Minas y Energía","01","Servicio de prevención y mitigación de los impactos ambientales y sociales de la actividad minero energética","05","Promoción de la eficiencia energética"]
[21,"MINAS Y ENERGÍA",2105," Desarrollo ambiental sostenible del sector minero energético",1900,"Intersubsectorial Minas y Energía","01","Servicio de prevención y mitigación de los impactos ambientales y sociales de la actividad minero energética","06","Gestión de impactos ambientales y sociales en el sector eléctrico"]
[21,"MINAS Y ENERGÍA",2106,"Gestión de la información en el sector minero energético",1900,"Intersubsectorial Minas y Energía","01","Servicio de generación de información geocientífica","01","Investigación y estudios en geociencias básicas"]
[21,"MINAS Y ENERGÍA",2106,"Gestión de la información en el sector minero energético",1900,"Intersubsectorial Minas y Energía","01","Servicio de generación de información geocientífica","02","Investigación y prospección en recursos minerales"]
[21,"MINAS Y ENERGÍA",2106,"Gestión de la información en el sector minero energético",1900,"Intersubsectorial Minas y Energía","01","Servicio de generación de información geocientífica","03","Investigación hidrocarburífera"]
[21,"MINAS Y ENERGÍA",2106,"Gestión de la información en el sector minero energético",1900,"Intersubsectorial Minas y Energía","01","Servicio de generación de información geocientífica","04","Investigación, monitoreo y evaluación de geoamenazas"]
[21,"MINAS Y ENERGÍA",2106,"Gestión de la información en el sector minero energético",1900,"Intersubsectorial Minas y Energía","01","Servicio de generación de información geocientífica","05","Desarrollo de sistemas de información geocientífica"]
[21,"MINAS Y ENERGÍA",2106,"Gestión de la información en el sector minero energético",1900,"Intersubsectorial Minas y Energía","01","Servicio de generación de información geocientífica","06","Investigaciones y control en asuntos nucleares"]
[21,"MINAS Y ENERGÍA",2106,"Gestión de la información en el sector minero energético",1900,"Intersubsectorial Minas y Energía","01","Servicio de generación de información geocientífica","07","Gestión de laboratorios"]
[21,"MINAS Y ENERGÍA",2199,"Fortalecimiento y apoyo a la gestión institucional del sector Minas y Energía",1900,"Intersubsectorial Minas y Energía","01","Servicio de fortalecimiento y apoyo a la gestión institucional del sector Minas y Energía","01","Direccionamiento estratégico del Sector"]
[21,"MINAS Y ENERGÍA",2199,"Fortalecimiento y apoyo a la gestión institucional del sector Minas y Energía",1900,"Intersubsectorial Minas y Energía","01","Servicio de fortalecimiento y apoyo a la gestión institucional del sector Minas y Energía","02","Gestión jurídica"]
[21,"MINAS Y ENERGÍA",2199,"Fortalecimiento y apoyo a la gestión institucional del sector Minas y Energía",1900,"Intersubsectorial Minas y Energía","01","Servicio de fortalecimiento y apoyo a la gestión institucional del sector Minas y Energía","03","Gestión de comunicaciones "]
[21,"MINAS Y ENERGÍA",2199,"Fortalecimiento y apoyo a la gestión institucional del sector Minas y Energía",1900,"Intersubsectorial Minas y Energía","01","Servicio de fortalecimiento y apoyo a la gestión institucional del sector Minas y Energía","04","Seguimiento y evaluación "]
[21,"MINAS Y ENERGÍA",2199,"Fortalecimiento y apoyo a la gestión institucional del sector Minas y Energía",1900,"Intersubsectorial Minas y Energía","01","Servicio de fortalecimiento y apoyo a la gestión institucional del sector Minas y Energía","05","Gestión y desarrollo del talento humano"]
[21,"MINAS Y ENERGÍA",2199,"Fortalecimiento y apoyo a la gestión institucional del sector Minas y Energía",1900,"Intersubsectorial Minas y Energía","01","Servicio de fortalecimiento y apoyo a la gestión institucional del sector Minas y Energía","06","Gestión Administrativa"]
[21,"MINAS Y ENERGÍA",2199,"Fortalecimiento y apoyo a la gestión institucional del sector Minas y Energía",1900,"Intersubsectorial Minas y Energía","01","Servicio de fortalecimiento y apoyo a la gestión institucional del sector Minas y Energía","07","Gestión de TIC"]
[21,"MINAS Y ENERGÍA",2199,"Fortalecimiento y apoyo a la gestión institucional del sector Minas y Energía",1900,"Intersubsectorial Minas y Energía","01","Servicio de fortalecimiento y apoyo a la gestión institucional del sector Minas y Energía","08","Gestión Contractual"]
[21,"MINAS Y ENERGÍA",2199,"Fortalecimiento y apoyo a la gestión institucional del sector Minas y Energía",1900,"Intersubsectorial Minas y Energía","01","Servicio de fortalecimiento y apoyo a la gestión institucional del sector Minas y Energía","09","Gestión financiera "]
[21,"MINAS Y ENERGÍA",2199,"Fortalecimiento y apoyo a la gestión institucional del sector Minas y Energía",1900,"Intersubsectorial Minas y Energía","01","Servicio de fortalecimiento y apoyo a la gestión institucional del sector Minas y Energía","10","Gestión documental "]
[21,"MINAS Y ENERGÍA",2199,"Fortalecimiento y apoyo a la gestión institucional del sector Minas y Energía",1900,"Intersubsectorial Minas y Energía","01","Servicio de fortalecimiento y apoyo a la gestión institucional del sector Minas y Energía","11","Gestión de atención al ciudadano"]
[21,"MINAS Y ENERGÍA",2199,"Fortalecimiento y apoyo a la gestión institucional del sector Minas y Energía",1900,"Intersubsectorial Minas y Energía","01","Servicio de fortalecimiento y apoyo a la gestión institucional del sector Minas y Energía","12","Gestión de Control Interno"]
[21,"MINAS Y ENERGÍA",2199,"Fortalecimiento y apoyo a la gestión institucional del sector Minas y Energía",1900,"Intersubsectorial Minas y Energía","01","Servicio de fortalecimiento y apoyo a la gestión institucional del sector Minas y Energía","13","Gestión de Control Interno Disciplinario"]
[21,"MINAS Y ENERGÍA",2100,"No asignable a programas",1900,"Intersubsectorial Minas y Energía","01","Sin producto","01","Transferencias"]
[25,"ORGANISMOS DE CONTROL",2502,"Promoción, protección y defensa de los Derechos Humanos y el Derecho Internacional Humanitario",1000,"Intersubsectorial Gobierno","01","Servicio de Promoción de Derechos Humanos y DIH","01","Direccionamiento estratégico de la Promoción de Derechos Humanos y DIH"]
[25,"ORGANISMOS DE CONTROL",2502,"Promoción, protección y defensa de los Derechos Humanos y el Derecho Internacional Humanitario",1000,"Intersubsectorial Gobierno","01","Servicio de Promoción de Derechos Humanos y DIH","02","Gestión de Promoción de los Derechos Humanos"]
[25,"ORGANISMOS DE CONTROL",2502,"Promoción, protección y defensa de los Derechos Humanos y el Derecho Internacional Humanitario",1000,"Intersubsectorial Gobierno","02","Servicio de Prevención y Defensa Pública de Derechos Humanos y DIH","01","Gestión de defensoría Pública"]
[25,"ORGANISMOS DE CONTROL",2502,"Promoción, protección y defensa de los Derechos Humanos y el Derecho Internacional Humanitario",1000,"Intersubsectorial Gobierno","02","Servicio de Prevención y Defensa Pública de Derechos Humanos y DIH","02","Gestión de litigio defensorial"]
[25,"ORGANISMOS DE CONTROL",2502,"Promoción, protección y defensa de los Derechos Humanos y el Derecho Internacional Humanitario",1000,"Intersubsectorial Gobierno","02","Servicio de Prevención y Defensa Pública de Derechos Humanos y DIH","03","Gestión de prevención de riesgos y alertas tempranas"]
[25,"ORGANISMOS DE CONTROL",2502,"Promoción, protección y defensa de los Derechos Humanos y el Derecho Internacional Humanitario",1000,"Intersubsectorial Gobierno","02","Servicio de Prevención y Defensa Pública de Derechos Humanos y DIH","04","Gestión de trámites y quejas acerca de infracciones a los DDHH y al DIH"]
[25,"ORGANISMOS DE CONTROL",2504,"Vigilancia de la gestión administrativa de los funcionarios del Estado",1000,"Intersubsectorial Gobierno","01","Servicio de vigilancia de la gestión administrativa de los servidores públicos","01","Gestión de Veeduría y Control Interno"]
[25,"ORGANISMOS DE CONTROL",2504,"Vigilancia de la gestión administrativa de los funcionarios del Estado",1000,"Intersubsectorial Gobierno","01","Servicio de vigilancia de la gestión administrativa de los servidores públicos","02","Gestión disciplinaria"]
[25,"ORGANISMOS DE CONTROL",2504,"Vigilancia de la gestión administrativa de los funcionarios del Estado",1000,"Intersubsectorial Gobierno","01","Servicio de vigilancia de la gestión administrativa de los servidores públicos","03","Gestión preventiva"]
[25,"ORGANISMOS DE CONTROL",2504,"Vigilancia de la gestión administrativa de los funcionarios del Estado",1000,"Intersubsectorial Gobierno","01","Servicio de vigilancia de la gestión administrativa de los servidores públicos","04","Intervención ante autoridades administrativas y judiciales"]
[25,"ORGANISMOS DE CONTROL",2504,"Vigilancia de la gestión administrativa de los funcionarios del Estado",1000,"Intersubsectorial Gobierno","02","Servicio de capacitación e investigación en asuntos de competencia del Ministerio Público","01","Gestión de capacitación en asuntos de competencia del Ministerio Público"]
[25,"ORGANISMOS DE CONTROL",2504,"Vigilancia de la gestión administrativa de los funcionarios del Estado",1000,"Intersubsectorial Gobierno","02","Servicio de capacitación e investigación en asuntos de competencia del Ministerio Público","02","Gestión de investigación en asuntos de competencia del Ministerio Público "]
[25,"ORGANISMOS DE CONTROL",2599,"Fortalecimiento y apoyo a la gestión institucional del sector organismos de control",1000,"Intersubsectorial Gobierno","01","Servicio de fortalecimiento y apoyo a la gestión institucional del sector organismos de control","01","Direccionamiento estratégico"]
[25,"ORGANISMOS DE CONTROL",2599,"Fortalecimiento y apoyo a la gestión institucional del sector organismos de control",1000,"Intersubsectorial Gobierno","01","Servicio de fortalecimiento y apoyo a la gestión institucional del sector organismos de control","02","Gestión administrativa"]
[25,"ORGANISMOS DE CONTROL",2599,"Fortalecimiento y apoyo a la gestión institucional del sector organismos de control",1000,"Intersubsectorial Gobierno","01","Servicio de fortalecimiento y apoyo a la gestión institucional del sector organismos de control","03","Gestión Contractual"]
[25,"ORGANISMOS DE CONTROL",2599,"Fortalecimiento y apoyo a la gestión institucional del sector organismos de control",1000,"Intersubsectorial Gobierno","01","Servicio de fortalecimiento y apoyo a la gestión institucional del sector organismos de control","04","Gestión de comunicaciones y atención al ciudadano"]
[25,"ORGANISMOS DE CONTROL",2599,"Fortalecimiento y apoyo a la gestión institucional del sector organismos de control",1000,"Intersubsectorial Gobierno","01","Servicio de fortalecimiento y apoyo a la gestión institucional del sector organismos de control","05","Gestión de Cooperación y Asuntos Internacionales"]
[25,"ORGANISMOS DE CONTROL",2599,"Fortalecimiento y apoyo a la gestión institucional del sector organismos de control",1000,"Intersubsectorial Gobierno","01","Servicio de fortalecimiento y apoyo a la gestión institucional del sector organismos de control","06","Gestión del talento humano"]
[25,"ORGANISMOS DE CONTROL",2599,"Fortalecimiento y apoyo a la gestión institucional del sector organismos de control",1000,"Intersubsectorial Gobierno","01","Servicio de fortalecimiento y apoyo a la gestión institucional del sector organismos de control","07","Gestión financiera"]
[25,"ORGANISMOS DE CONTROL",2599,"Fortalecimiento y apoyo a la gestión institucional del sector organismos de control",1000,"Intersubsectorial Gobierno","01","Servicio de fortalecimiento y apoyo a la gestión institucional del sector organismos de control","08","Gestión Jurídica"]
[25,"ORGANISMOS DE CONTROL",2599,"Fortalecimiento y apoyo a la gestión institucional del sector organismos de control",1000,"Intersubsectorial Gobierno","01","Servicio de fortalecimiento y apoyo a la gestión institucional del sector organismos de control","09","Gestión TIC"]
[25,"ORGANISMOS DE CONTROL",2599,"Fortalecimiento y apoyo a la gestión institucional del sector organismos de control",1000,"Intersubsectorial Gobierno","01","Servicio de fortalecimiento y apoyo a la gestión institucional del sector organismos de control","10","Seguimiento, Control y evaluación institucional"]
[25,"ORGANISMOS DE CONTROL",2501,"Fortalecimiento del control y la vigilancia de la gestión fiscal y resarcimiento al daño del patrimonio público",1000,"Intersubsectorial Gobierno","01","Servicio de vigilancia y control de la gestión fiscal del Estado. ","01","Articulación y coordinación nacional y territorial"]
[25,"ORGANISMOS DE CONTROL",2501,"Fortalecimiento del control y la vigilancia de la gestión fiscal y resarcimiento al daño del patrimonio público",1000,"Intersubsectorial Gobierno","01","Servicio de vigilancia y control de la gestión fiscal del Estado. ","02","Gestión de la vigilancia y control fiscal de las entidades estatales"]
[25,"ORGANISMOS DE CONTROL",2501,"Fortalecimiento del control y la vigilancia de la gestión fiscal y resarcimiento al daño del patrimonio público",1000,"Intersubsectorial Gobierno","01","Servicio de vigilancia y control de la gestión fiscal del Estado. ","03","Gestión de resarcimiento del daño al patrimonio público"]
[25,"ORGANISMOS DE CONTROL",2501,"Fortalecimiento del control y la vigilancia de la gestión fiscal y resarcimiento al daño del patrimonio público",1000,"Intersubsectorial Gobierno","02","Servicio de promoción del control fiscal participativo","01","Gestión de la promoción del control fiscal participativo"]
[25,"ORGANISMOS DE CONTROL",2501,"Fortalecimiento del control y la vigilancia de la gestión fiscal y resarcimiento al daño del patrimonio público",1000,"Intersubsectorial Gobierno","03","Servicio de capacitación e investigación en vigilancia y control fiscal","01","Capacitación en vigilancia y control fiscal"]
[25,"ORGANISMOS DE CONTROL",2501,"Fortalecimiento del control y la vigilancia de la gestión fiscal y resarcimiento al daño del patrimonio público",1000,"Intersubsectorial Gobierno","03","Servicio de capacitación e investigación en vigilancia y control fiscal","02","Investigación en vigilancia y control fiscal"]
[25,"ORGANISMOS DE CONTROL",2505,"Bienestar de los servidores de la Contraloría General de la República",1000,"Intersubsectorial Gobierno","01","Servicios de bienestar","01","Gestión del bienestar "]
[25,"ORGANISMOS DE CONTROL",2505,"Bienestar de los servidores de la Contraloría General de la República",1000,"Intersubsectorial Gobierno","02","Servicio de apoyo financiero","01","Gestión de apoyo financiero y cartera"]
[25,"ORGANISMOS DE CONTROL",2505,"Bienestar de los servidores de la Contraloría General de la República",1000,"Intersubsectorial Gobierno","03","Servicio de administración de cesantías","01","Gestión de cesantías"]
[25,"ORGANISMOS DE CONTROL",2599,"Fortalecimiento y apoyo a la gestión institucional del sector organismos de control",1000,"Intersubsectorial Gobierno","01","Servicio de fortalecimiento y apoyo a la gestión institucional del sector organismos de control","01","Direccionamiento estratégico"]
[25,"ORGANISMOS DE CONTROL",2599,"Fortalecimiento y apoyo a la gestión institucional del sector organismos de control",1000,"Intersubsectorial Gobierno","01","Servicio de fortalecimiento y apoyo a la gestión institucional del sector organismos de control","02","Gestión administrativa"]
[25,"ORGANISMOS DE CONTROL",2599,"Fortalecimiento y apoyo a la gestión institucional del sector organismos de control",1000,"Intersubsectorial Gobierno","01","Servicio de fortalecimiento y apoyo a la gestión institucional del sector organismos de control","03","Gestión Contractual"]
[25,"ORGANISMOS DE CONTROL",2599,"Fortalecimiento y apoyo a la gestión institucional del sector organismos de control",1000,"Intersubsectorial Gobierno","01","Servicio de fortalecimiento y apoyo a la gestión institucional del sector organismos de control","04","Gestión de comunicaciones y atención al ciudadano"]
[25,"ORGANISMOS DE CONTROL",2599,"Fortalecimiento y apoyo a la gestión institucional del sector organismos de control",1000,"Intersubsectorial Gobierno","01","Servicio de fortalecimiento y apoyo a la gestión institucional del sector organismos de control","06","Gestión del talento humano"]
[25,"ORGANISMOS DE CONTROL",2599,"Fortalecimiento y apoyo a la gestión institucional del sector organismos de control",1000,"Intersubsectorial Gobierno","01","Servicio de fortalecimiento y apoyo a la gestión institucional del sector organismos de control","07","Gestión financiera"]
[25,"ORGANISMOS DE CONTROL",2599,"Fortalecimiento y apoyo a la gestión institucional del sector organismos de control",1000,"Intersubsectorial Gobierno","01","Servicio de fortalecimiento y apoyo a la gestión institucional del sector organismos de control","08","Gestión Jurídica"]
[25,"ORGANISMOS DE CONTROL",2599,"Fortalecimiento y apoyo a la gestión institucional del sector organismos de control",1000,"Intersubsectorial Gobierno","01","Servicio de fortalecimiento y apoyo a la gestión institucional del sector organismos de control","09","Gestión TIC"]
[25,"ORGANISMOS DE CONTROL",2599,"Fortalecimiento y apoyo a la gestión institucional del sector organismos de control",1000,"Intersubsectorial Gobierno","01","Servicio de fortalecimiento y apoyo a la gestión institucional del sector organismos de control","10","Seguimiento, Control y evaluación institucional"]
[25,"ORGANISMOS DE CONTROL",2501,"Fortalecimiento del control y la vigilancia de la gestión fiscal y resarcimiento al daño del patrimonio público",1000,"Intersubsectorial Gobierno","04","Servicio de Vigilancia y Control Fiscal de la CGR y las Contralorías Territoriales","01","Gestión de Resarcimiento del daño al patrimonio público para la CGR y las Contralorías Territoriales"]
[25,"ORGANISMOS DE CONTROL",2501,"Fortalecimiento del control y la vigilancia de la gestión fiscal y resarcimiento al daño del patrimonio público",1000,"Intersubsectorial Gobierno","04","Servicio de Vigilancia y Control Fiscal de la CGR y las Contralorías Territoriales","02","Gestión de vigilancia y Control Fiscal a la CGR y las Contralorías Territoriales"]
[25,"ORGANISMOS DE CONTROL",2501,"Fortalecimiento del control y la vigilancia de la gestión fiscal y resarcimiento al daño del patrimonio público",1000,"Intersubsectorial Gobierno","03","Servicio de capacitación e investigación en vigilancia y control fiscal","01","Capacitación en vigilancia y control fiscal de la CGR y las Contralorías Territoriales"]
[25,"ORGANISMOS DE CONTROL",2501,"Fortalecimiento del control y la vigilancia de la gestión fiscal y resarcimiento al daño del patrimonio público",1000,"Intersubsectorial Gobierno","03","Servicio de capacitación e investigación en vigilancia y control fiscal","02","Investigación en vigilancia y control fiscal de la CGR y las Contralorías Territoriales"]
[25,"ORGANISMOS DE CONTROL",2599,"Fortalecimiento y apoyo a la gestión institucional del sector organismos de control",1000,"Intersubsectorial Gobierno","01","Servicio de fortalecimiento y apoyo a la gestión institucional del sector organismos de control","01","Direccionamiento estratégico"]
[25,"ORGANISMOS DE CONTROL",2599,"Fortalecimiento y apoyo a la gestión institucional del sector organismos de control",1000,"Intersubsectorial Gobierno","01","Servicio de fortalecimiento y apoyo a la gestión institucional del sector organismos de control","02","Gestión administrativa"]
[25,"ORGANISMOS DE CONTROL",2599,"Fortalecimiento y apoyo a la gestión institucional del sector organismos de control",1000,"Intersubsectorial Gobierno","01","Servicio de fortalecimiento y apoyo a la gestión institucional del sector organismos de control","04","Gestión de comunicaciones y atención al ciudadano"]
[25,"ORGANISMOS DE CONTROL",2599,"Fortalecimiento y apoyo a la gestión institucional del sector organismos de control",1000,"Intersubsectorial Gobierno","01","Servicio de fortalecimiento y apoyo a la gestión institucional del sector organismos de control","06","Gestión del talento humano"]
[25,"ORGANISMOS DE CONTROL",2599,"Fortalecimiento y apoyo a la gestión institucional del sector organismos de control",1000,"Intersubsectorial Gobierno","01","Servicio de fortalecimiento y apoyo a la gestión institucional del sector organismos de control","07","Gestión financiera"]
[25,"ORGANISMOS DE CONTROL",2599,"Fortalecimiento y apoyo a la gestión institucional del sector organismos de control",1000,"Intersubsectorial Gobierno","01","Servicio de fortalecimiento y apoyo a la gestión institucional del sector organismos de control","08","Gestión Jurídica"]
[25,"ORGANISMOS DE CONTROL",2599,"Fortalecimiento y apoyo a la gestión institucional del sector organismos de control",1000,"Intersubsectorial Gobierno","01","Servicio de fortalecimiento y apoyo a la gestión institucional del sector organismos de control","10","Seguimiento, Control y evaluación institucional"]
["03","PLANEACIÓN","0301","Mejoramiento de la planeación territorial, sectorial y de inversión pública",1000,"Intersubsectorial gobierno","01","Servicio de coordinación y articulación del ciclo de planeación y la inversión pública","01","Coordinación y articulación del ciclo de la inversión pública"]
["03","PLANEACIÓN","0301","Mejoramiento de la planeación territorial, sectorial y de inversión pública",1000,"Intersubsectorial gobierno","01","Servicio de coordinación y articulación del ciclo de planeación y la inversión pública","02","Coordinación y articulación del ciclo de la planeación y las políticas públicas"]
["03","PLANEACIÓN","0301","Mejoramiento de la planeación territorial, sectorial y de inversión pública",1000,"Intersubsectorial gobierno","01","Servicio de coordinación y articulación del ciclo de planeación y la inversión pública","03","Fortalecimiento de capacidades de entidades territoriales en el ciclo de planeación y la inversión pública"]
["03","PLANEACIÓN","0301","Mejoramiento de la planeación territorial, sectorial y de inversión pública",1000,"Intersubsectorial gobierno","01","Servicio de coordinación y articulación del ciclo de planeación y la inversión pública","04","Gestión del Sistema General de Regalías"]
["03","PLANEACIÓN","0303","Promoción de la prestación eficiente de los servicios públicos domiciliarios",1000,"Intersubsectorial gobierno","01","Servicio de inspección y vigilancia","01","Direccionamiento estratégco de la inspección y vigilancia para acueducto, alcantarillado y aseo"]
["03","PLANEACIÓN","0303","Promoción de la prestación eficiente de los servicios públicos domiciliarios",1000,"Intersubsectorial gobierno","01","Servicio de inspección y vigilancia","02","Direccionamiento estratégco de la inspección y vigilancia para para energía y gas combustible"]
["03","PLANEACIÓN","0303","Promoción de la prestación eficiente de los servicios públicos domiciliarios",1000,"Intersubsectorial gobierno","01","Servicio de inspección y vigilancia","03","Inspección y vigilancia para acueducto, alcantarillado y aseo"]
["03","PLANEACIÓN","0303","Promoción de la prestación eficiente de los servicios públicos domiciliarios",1000,"Intersubsectorial gobierno","01","Servicio de inspección y vigilancia","04","Inspección y vigilancia para energía y gas combustible"]
["03","PLANEACIÓN","0303","Promoción de la prestación eficiente de los servicios públicos domiciliarios",1000,"Intersubsectorial gobierno","02","Servicio de Control","01","Gestión de intervención y liquidación de entidad prestadoras de servicios públicos"]
["03","PLANEACIÓN","0303","Promoción de la prestación eficiente de los servicios públicos domiciliarios",1000,"Intersubsectorial gobierno","02","Servicio de Control","02","Gestión del control para acueducto, alcantarillado y aseo"]
["03","PLANEACIÓN","0303","Promoción de la prestación eficiente de los servicios públicos domiciliarios",1000,"Intersubsectorial gobierno","02","Servicio de Control","03","Gestión del control para energía y gas combustible"]
["03","PLANEACIÓN","0303","Promoción de la prestación eficiente de los servicios públicos domiciliarios",1000,"Intersubsectorial gobierno","03","Servicio de promoción de control social ","01","Gestión de PQRSD"]
["03","PLANEACIÓN","0303","Promoción de la prestación eficiente de los servicios públicos domiciliarios",1000,"Intersubsectorial gobierno","03","Servicio de promoción de control social ","02","Promoción de la participación ciundadana en control "]
["03","PLANEACIÓN","0304","Fortalecimiento del Sistema de Compra Pública",1000,"Intersubsectorial gobierno","01","Servicio de apoyo al desarrollo del Sistema de Compra Pública","01","Direccionamiento estratégico en Compra Pública"]
["03","PLANEACIÓN","0304","Fortalecimiento del Sistema de Compra Pública",1000,"Intersubsectorial gobierno","01","Servicio de apoyo al desarrollo del Sistema de Compra Pública","02","Gestión de Acuerdos Marco de Precios y demás instrumentos de agregación de demanda"]
["03","PLANEACIÓN","0304","Fortalecimiento del Sistema de Compra Pública",1000,"Intersubsectorial gobierno","01","Servicio de apoyo al desarrollo del Sistema de Compra Pública","03","Gestión de información en Compra Pública"]
["03","PLANEACIÓN","0304","Fortalecimiento del Sistema de Compra Pública",1000,"Intersubsectorial gobierno","01","Servicio de apoyo al desarrollo del Sistema de Compra Pública","04","Gestión normativa de compra pública"]
["03","PLANEACIÓN","0399","Fortalecimiento y apoyo a la gestión institucional del sector Planeación",1000,"Intersubsectorial gobierno","01","Servicio de fortalecimiento y apoyo a la gestión institucional del sector planeación","01","Direccionamiento estratégico"]
["03","PLANEACIÓN","0399","Fortalecimiento y apoyo a la gestión institucional del sector Planeación",1000,"Intersubsectorial gobierno","01","Servicio de fortalecimiento y apoyo a la gestión institucional del sector planeación","02","Gestión administrativa"]
["03","PLANEACIÓN","0399","Fortalecimiento y apoyo a la gestión institucional del sector Planeación",1000,"Intersubsectorial gobierno","01","Servicio de fortalecimiento y apoyo a la gestión institucional del sector planeación","03","Gestión Contractual"]
["03","PLANEACIÓN","0399","Fortalecimiento y apoyo a la gestión institucional del sector Planeación",1000,"Intersubsectorial gobierno","01","Servicio de fortalecimiento y apoyo a la gestión institucional del sector planeación","04","Gestión de comunicaciones y atención al ciudadano"]
["03","PLANEACIÓN","0399","Fortalecimiento y apoyo a la gestión institucional del sector Planeación",1000,"Intersubsectorial gobierno","01","Servicio de fortalecimiento y apoyo a la gestión institucional del sector planeación","05","Gestión de Cooperación y Asuntos Internacionales"]
["03","PLANEACIÓN","0399","Fortalecimiento y apoyo a la gestión institucional del sector Planeación",1000,"Intersubsectorial gobierno","01","Servicio de fortalecimiento y apoyo a la gestión institucional del sector planeación","06","Gestión del talento humano"]
["03","PLANEACIÓN","0399","Fortalecimiento y apoyo a la gestión institucional del sector Planeación",1000,"Intersubsectorial gobierno","01","Servicio de fortalecimiento y apoyo a la gestión institucional del sector planeación","07","Gestión financiera"]
["03","PLANEACIÓN","0399","Fortalecimiento y apoyo a la gestión institucional del sector Planeación",1000,"Intersubsectorial gobierno","01","Servicio de fortalecimiento y apoyo a la gestión institucional del sector planeación","08","Gestión Jurídica"]
["03","PLANEACIÓN","0399","Fortalecimiento y apoyo a la gestión institucional del sector Planeación",1000,"Intersubsectorial gobierno","01","Servicio de fortalecimiento y apoyo a la gestión institucional del sector planeación","09","Gestión TIC"]
["03","PLANEACIÓN","0399","Fortalecimiento y apoyo a la gestión institucional del sector Planeación",1000,"Intersubsectorial gobierno","01","Servicio de fortalecimiento y apoyo a la gestión institucional del sector planeación","10","Grupo de Atención al Ciudadano"]
["03","PLANEACIÓN","0399","Fortalecimiento y apoyo a la gestión institucional del sector Planeación",1000,"Intersubsectorial gobierno","01","Servicio de fortalecimiento y apoyo a la gestión institucional del sector planeación","11","Seguimiento, Control y evaluación institucional"]
["03","PLANEACIÓN","0300","No asignable a programas",1000,"Intersubsectorial gobierno ","01","Sin producto","01","Transferencias Corrientes"]
["02","PRESIDENCIA DE LA REPÚBLICA","0204","Impulsar la competitividad de las regiones y el desarrollo integral las poblaciones con enfoque diferencial desde el sector Presidencia. ",1000,"Intersubsectorial gobierno","01","Servicio de promoción del desarrollo de poblaciones con enfoque diferencial","01","Promoción de derechos de niños, niñas y adolecentes"]
["02","PRESIDENCIA DE LA REPÚBLICA","0204","Impulsar la competitividad de las regiones y el desarrollo integral las poblaciones con enfoque diferencial desde el sector Presidencia. ",1000,"Intersubsectorial gobierno","01","Servicio de promoción del desarrollo de poblaciones con enfoque diferencial","02","Promoción de la igualdad de género y el empoderamiento de las mujeres"]
["02","PRESIDENCIA DE LA REPÚBLICA","0204","Impulsar la competitividad de las regiones y el desarrollo integral las poblaciones con enfoque diferencial desde el sector Presidencia. ",1000,"Intersubsectorial gobierno","01","Servicio de promoción del desarrollo de poblaciones con enfoque diferencial","03","Promoción de la integración socioeconómica de la población migrante"]
["02","PRESIDENCIA DE LA REPÚBLICA","0204","Impulsar la competitividad de las regiones y el desarrollo integral las poblaciones con enfoque diferencial desde el sector Presidencia. ",1000,"Intersubsectorial gobierno","01","Servicio de promoción del desarrollo de poblaciones con enfoque diferencial","04","Promoción de la participación de jóvenes"]
["02","PRESIDENCIA DE LA REPÚBLICA","0204","Impulsar la competitividad de las regiones y el desarrollo integral las poblaciones con enfoque diferencial desde el sector Presidencia. ",1000,"Intersubsectorial gobierno","01","Servicio de promoción del desarrollo de poblaciones con enfoque diferencial","05","Promoción de la participación de personas con discapacidad"]
["02","PRESIDENCIA DE LA REPÚBLICA","0204","Impulsar la competitividad de las regiones y el desarrollo integral las poblaciones con enfoque diferencial desde el sector Presidencia. ",1000,"Intersubsectorial gobierno","02","Servicio de promoción de la competitividad y el desarrollo de las regiones","01","Promoción de la competitividad y alianzas público - privadas"]
["02","PRESIDENCIA DE LA REPÚBLICA","0204","Impulsar la competitividad de las regiones y el desarrollo integral las poblaciones con enfoque diferencial desde el sector Presidencia. ",1000,"Intersubsectorial gobierno","02","Servicio de promoción de la competitividad y el desarrollo de las regiones","02","Promoción de la transformación digital"]
["02","PRESIDENCIA DE LA REPÚBLICA","0204","Impulsar la competitividad de las regiones y el desarrollo integral las poblaciones con enfoque diferencial desde el sector Presidencia. ",1000,"Intersubsectorial gobierno","02","Servicio de promoción de la competitividad y el desarrollo de las regiones","03","Promoción del desarrollo regional"]
["02","PRESIDENCIA DE LA REPÚBLICA","0207","Prevención y mitigación del riesgo de desastres desde el sector Presidencia",1000,"Intersubsectorial gobierno","01","Servicio de gestión del riesgo","01","Direccionamiento estratégico de la gestión del riesgo"]
["02","PRESIDENCIA DE LA REPÚBLICA","0207","Prevención y mitigación del riesgo de desastres desde el sector Presidencia",1000,"Intersubsectorial gobierno","01","Servicio de gestión del riesgo","02","Gestión de conocimiento del riesgo"]
["02","PRESIDENCIA DE LA REPÚBLICA","0207","Prevención y mitigación del riesgo de desastres desde el sector Presidencia",1000,"Intersubsectorial gobierno","01","Servicio de gestión del riesgo","03","Gestión de reducción del riesgo"]
["02","PRESIDENCIA DE LA REPÚBLICA","0207","Prevención y mitigación del riesgo de desastres desde el sector Presidencia",1000,"Intersubsectorial gobierno","02","Servicio de manejo y atención de desastres y emergencias","01","Gestión de manejo de desastres"]
["02","PRESIDENCIA DE LA REPÚBLICA","0208","Gestión de la cooperación internacional del sector Presidencia",1000,"Intersubsectorial gobierno","01","Servicio de coordinación y promoción de cooperación internacional","01","Dirección de coordinación interinstitucional de cooperación "]
["02","PRESIDENCIA DE LA REPÚBLICA","0208","Gestión de la cooperación internacional del sector Presidencia",1000,"Intersubsectorial gobierno","01","Servicio de coordinación y promoción de cooperación internacional","02","Dirección de Gestión de Demanda de Cooperación Internacional"]
["02","PRESIDENCIA DE LA REPÚBLICA","0208","Gestión de la cooperación internacional del sector Presidencia",1000,"Intersubsectorial gobierno","01","Servicio de coordinación y promoción de cooperación internacional","03","Dirección de Oferta de Cooperación Internacional"]
["02","PRESIDENCIA DE LA REPÚBLICA","0209","Fortalecimiento de la infraestructura física de las entidades del Estado del nivel nacional desde el Sector Presidencia",1000,"Intersubsectorial gobierno","01","Servicio de administración inmobiliaria","01","Gestión inmobiliaria"]
["02","PRESIDENCIA DE LA REPÚBLICA","0209","Fortalecimiento de la infraestructura física de las entidades del Estado del nivel nacional desde el Sector Presidencia",1000,"Intersubsectorial gobierno","02","Servicio de estructuración y ejecución de proyectos inmobiliarios","01","Ejecución de proyectos inmobiliarios"]
["02","PRESIDENCIA DE LA REPÚBLICA","0209","Fortalecimiento de la infraestructura física de las entidades del Estado del nivel nacional desde el Sector Presidencia",1000,"Intersubsectorial gobierno","02","Servicio de estructuración y ejecución de proyectos inmobiliarios","02","Formulación y estructuración de proyectos inmobiliarios"]
["02","PRESIDENCIA DE LA REPÚBLICA","0210","Mecanismos de transición hacia la paz a nivel nacional y territorial desde el sector Presidencia",1000,"Intersubsectorial gobierno","01","Servicio de promoción de la seguridad y la paz a nivel nacional y territorial","01","Implementación del Acuerdo Final"]
["02","PRESIDENCIA DE LA REPÚBLICA","0210","Mecanismos de transición hacia la paz a nivel nacional y territorial desde el sector Presidencia",1000,"Intersubsectorial gobierno","01","Servicio de promoción de la seguridad y la paz a nivel nacional y territorial","02","Promoción de la paz a nivel nacional y territorial"]
["02","PRESIDENCIA DE LA REPÚBLICA","0210","Mecanismos de transición hacia la paz a nivel nacional y territorial desde el sector Presidencia",1000,"Intersubsectorial gobierno","01","Servicio de promoción de la seguridad y la paz a nivel nacional y territorial","03","Promoción de la seguridad nacional "]
["02","PRESIDENCIA DE LA REPÚBLICA","0210","Mecanismos de transición hacia la paz a nivel nacional y territorial desde el sector Presidencia",1000,"Intersubsectorial gobierno","01","Servicio de promoción de la seguridad y la paz a nivel nacional y territorial","04","Promoción de los Derechos Humanos"]
["02","PRESIDENCIA DE LA REPÚBLICA","0211","Reintegración de personas y grupos alzados en armas desde el Sector Presidencia",1000,"Intersubsectorial gobierno","01","Servicio de reintegración","01","Gestión del proceso de reintegración"]
["02","PRESIDENCIA DE LA REPÚBLICA","0211","Reintegración de personas y grupos alzados en armas desde el Sector Presidencia",1000,"Intersubsectorial gobierno","01","Servicio de reintegración","02","Reintegración comunitaria"]
["02","PRESIDENCIA DE LA REPÚBLICA","0211","Reintegración de personas y grupos alzados en armas desde el Sector Presidencia",1000,"Intersubsectorial gobierno","01","Servicio de reintegración","03","Seguimiento al proceso de reintegración "]
["02","PRESIDENCIA DE LA REPÚBLICA","0211","Reintegración de personas y grupos alzados en armas desde el Sector Presidencia",1000,"Intersubsectorial gobierno","02","Servicio de reincoporación","01","Gestión de reincorporación"]
["02","PRESIDENCIA DE LA REPÚBLICA","0212","Renovación territorial para el desarrollo integral de las zonas rurales afectadas por el conflicto armado. ",1000,"Intersubsectorial gobierno","01","Servicio de renovación territorial para zonas afectas por el conflicto armado","01","Coordinación y articulación de la implementación de iniciativas de renovación territorial para zonas afectadas por el conflicto armado"]
["02","PRESIDENCIA DE LA REPÚBLICA","0212","Renovación territorial para el desarrollo integral de las zonas rurales afectadas por el conflicto armado. ",1000,"Intersubsectorial gobierno","01","Servicio de renovación territorial para zonas afectas por el conflicto armado","02","Gestión de información acerca de la implementación de iniciativas de renovación territorial para zonas afectadas por el conflicto armado"]
["02","PRESIDENCIA DE LA REPÚBLICA","0212","Renovación territorial para el desarrollo integral de las zonas rurales afectadas por el conflicto armado. ",1000,"Intersubsectorial gobierno","01","Servicio de renovación territorial para zonas afectas por el conflicto armado","03","Gestión de proyectos de renovación territorial para zonas afectadas por el conflicto armado"]
["02","PRESIDENCIA DE LA REPÚBLICA","0214","Fortalecimiento de las capacidades de articulación estratégica, modernización, eficiencia administrativa, transparencia y acceso a la información desde el sector Presidencia",1000,"Intersubsectorial gobierno","01","Servicio de promoción de la eficiencia y la transparencia institucional","01","Gestión de PQRSD en materia de corrupción"]
["02","PRESIDENCIA DE LA REPÚBLICA","0214","Fortalecimiento de las capacidades de articulación estratégica, modernización, eficiencia administrativa, transparencia y acceso a la información desde el sector Presidencia",1000,"Intersubsectorial gobierno","01","Servicio de promoción de la eficiencia y la transparencia institucional","02","Implementación de la política de Transparencia, Acceso a la Información y Lucha contra la corrupción"]
["02","PRESIDENCIA DE LA REPÚBLICA","0214","Fortalecimiento de las capacidades de articulación estratégica, modernización, eficiencia administrativa, transparencia y acceso a la información desde el sector Presidencia",1000,"Intersubsectorial gobierno","01","Servicio de promoción de la eficiencia y la transparencia institucional","03","Innovación en eficiencia administrativa y transparencia"]
["02","PRESIDENCIA DE LA REPÚBLICA","0299","Fortalecimiento y apoyo a la gestión institucional del sector Presidencia",1000,"Intersubsectorial gobierno","01","Servicio de fortalecimiento y apoyo a la gestión institucional del sector presidencia","01","Direccionamiento estratégico"]
["02","PRESIDENCIA DE LA REPÚBLICA","0299","Fortalecimiento y apoyo a la gestión institucional del sector Presidencia",1000,"Intersubsectorial gobierno","01","Servicio de fortalecimiento y apoyo a la gestión institucional del sector presidencia","02","Gestión administrativa"]
["02","PRESIDENCIA DE LA REPÚBLICA","0299","Fortalecimiento y apoyo a la gestión institucional del sector Presidencia",1000,"Intersubsectorial gobierno","01","Servicio de fortalecimiento y apoyo a la gestión institucional del sector presidencia","03","Gestión Contractual"]
["02","PRESIDENCIA DE LA REPÚBLICA","0299","Fortalecimiento y apoyo a la gestión institucional del sector Presidencia",1000,"Intersubsectorial gobierno","01","Servicio de fortalecimiento y apoyo a la gestión institucional del sector presidencia","04","Gestión de comunicaciones y atención al ciudadano"]
["02","PRESIDENCIA DE LA REPÚBLICA","0299","Fortalecimiento y apoyo a la gestión institucional del sector Presidencia",1000,"Intersubsectorial gobierno","01","Servicio de fortalecimiento y apoyo a la gestión institucional del sector presidencia","05","Gestión de Cooperación y Asuntos Internacionales"]
["02","PRESIDENCIA DE LA REPÚBLICA","0299","Fortalecimiento y apoyo a la gestión institucional del sector Presidencia",1000,"Intersubsectorial gobierno","01","Servicio de fortalecimiento y apoyo a la gestión institucional del sector presidencia","06","Gestión del talento humano"]
["02","PRESIDENCIA DE LA REPÚBLICA","0299","Fortalecimiento y apoyo a la gestión institucional del sector Presidencia",1000,"Intersubsectorial gobierno","01","Servicio de fortalecimiento y apoyo a la gestión institucional del sector presidencia","07","Gestión financiera"]
["02","PRESIDENCIA DE LA REPÚBLICA","0299","Fortalecimiento y apoyo a la gestión institucional del sector Presidencia",1000,"Intersubsectorial gobierno","01","Servicio de fortalecimiento y apoyo a la gestión institucional del sector presidencia","08","Gestión Jurídica"]
["02","PRESIDENCIA DE LA REPÚBLICA","0299","Fortalecimiento y apoyo a la gestión institucional del sector Presidencia",1000,"Intersubsectorial gobierno","01","Servicio de fortalecimiento y apoyo a la gestión institucional del sector presidencia","09","Gestión TIC"]
["02","PRESIDENCIA DE LA REPÚBLICA","0299","Fortalecimiento y apoyo a la gestión institucional del sector Presidencia",1000,"Intersubsectorial gobierno","01","Servicio de fortalecimiento y apoyo a la gestión institucional del sector presidencia","10","Seguimiento, Control y evaluación institucional"]
["02","PRESIDENCIA DE LA REPÚBLICA","0200","No asignable a programas",1000,"Intersubsectorial gobierno ","01","Sin producto","01","Transferencias Corrientes"]
[27,"RAMA JUDICIAL",2701,"Mejoramiento y ejecución de las competencias de la administración de la justicia","0800","Intersubsectorial Justicia","01","Servicio de Administración de la Justicia ","01","Gestión de análisis y toma de decisiones de justicia civil y agraria "]
[27,"RAMA JUDICIAL",2701,"Mejoramiento y ejecución de las competencias de la administración de la justicia","0800","Intersubsectorial Justicia","01","Servicio de Administración de la Justicia ","02","Gestión de análisis y toma de decisiones de justicia laboral"]
[27,"RAMA JUDICIAL",2701,"Mejoramiento y ejecución de las competencias de la administración de la justicia","0800","Intersubsectorial Justicia","01","Servicio de Administración de la Justicia ","03","Gestión de análisis y toma de decisiones de justicia penal "]
[27,"RAMA JUDICIAL",2701,"Mejoramiento y ejecución de las competencias de la administración de la justicia","0800","Intersubsectorial Justicia","01","Servicio de Administración de la Justicia ","04","Gestión de acciones legales "]
[27,"RAMA JUDICIAL",2701,"Mejoramiento y ejecución de las competencias de la administración de la justicia","0800","Intersubsectorial Justicia","01","Servicio de Administración de la Justicia ","05","Gestión de constitucionalidad de normas"]
[27,"RAMA JUDICIAL",2701,"Mejoramiento y ejecución de las competencias de la administración de la justicia","0800","Intersubsectorial Justicia","01","Servicio de Administración de la Justicia ","06","Seguimiento a las decisiones de la Corte Constitucional"]
[27,"RAMA JUDICIAL",2701,"Mejoramiento y ejecución de las competencias de la administración de la justicia","0800","Intersubsectorial Justicia","01","Servicio de Administración de la Justicia ","07","Gestión de administración de la justicia "]
[27,"RAMA JUDICIAL",2799,"Fortalecimiento y apoyo a la gestión institucional del sector Rama Judicial","0800","Intersubsectorial Justicia","01","Servicio de fortalecimiento y apoyo a la gestión institucional del sector Rama Judicial","01","Direccionamiento Estratégico "]
[27,"RAMA JUDICIAL",2799,"Fortalecimiento y apoyo a la gestión institucional del sector Rama Judicial","0800","Intersubsectorial Justicia","01","Servicio de fortalecimiento y apoyo a la gestión institucional del sector Rama Judicial","02","Gestión documental y apoyo logístico"]
[27,"RAMA JUDICIAL",2799,"Fortalecimiento y apoyo a la gestión institucional del sector Rama Judicial","0800","Intersubsectorial Justicia","01","Servicio de fortalecimiento y apoyo a la gestión institucional del sector Rama Judicial","03","Fortalecimiento de las capacidades de los funcionarios "]
[27,"RAMA JUDICIAL",2799,"Fortalecimiento y apoyo a la gestión institucional del sector Rama Judicial","0800","Intersubsectorial Justicia","01","Servicio de fortalecimiento y apoyo a la gestión institucional del sector Rama Judicial","04","Protección de los funcionarios"]
[27,"RAMA JUDICIAL",2799,"Fortalecimiento y apoyo a la gestión institucional del sector Rama Judicial","0800","Intersubsectorial Justicia","01","Servicio de fortalecimiento y apoyo a la gestión institucional del sector Rama Judicial","05","Gestión del Recurso humano"]
[27,"RAMA JUDICIAL",2799,"Fortalecimiento y apoyo a la gestión institucional del sector Rama Judicial","0800","Intersubsectorial Justicia","01","Servicio de fortalecimiento y apoyo a la gestión institucional del sector Rama Judicial","06","Seguimiento y evaluación"]
[27,"RAMA JUDICIAL",2799,"Fortalecimiento y apoyo a la gestión institucional del sector Rama Judicial","0800","Intersubsectorial Justicia","01","Servicio de fortalecimiento y apoyo a la gestión institucional del sector Rama Judicial","07","Registro, inscripción y emisión de las tarjetas profesionales de los abogados"]
[27,"RAMA JUDICIAL",2799,"Fortalecimiento y apoyo a la gestión institucional del sector Rama Judicial","0800","Intersubsectorial Justicia","01","Servicio de fortalecimiento y apoyo a la gestión institucional del sector Rama Judicial","08","Gestión Administrativa"]
[27,"RAMA JUDICIAL",2799,"Fortalecimiento y apoyo a la gestión institucional del sector Rama Judicial","0800","Intersubsectorial Justicia","01","Servicio de fortalecimiento y apoyo a la gestión institucional del sector Rama Judicial","09","Gestión Jurídica"]
[27,"RAMA JUDICIAL",2799,"Fortalecimiento y apoyo a la gestión institucional del sector Rama Judicial","0800","Intersubsectorial Justicia","01","Servicio de fortalecimiento y apoyo a la gestión institucional del sector Rama Judicial","10","Gestión de las TIC"]
[27,"RAMA JUDICIAL",2799,"Fortalecimiento y apoyo a la gestión institucional del sector Rama Judicial","0800","Intersubsectorial Justicia","01","Servicio de fortalecimiento y apoyo a la gestión institucional del sector Rama Judicial","11","Gestión de infraestructura física"]
[27,"RAMA JUDICIAL",2799,"Fortalecimiento y apoyo a la gestión institucional del sector Rama Judicial","0800","Intersubsectorial Justicia","01","Servicio de fortalecimiento y apoyo a la gestión institucional del sector Rama Judicial","12","Gestión financiera"]
[27,"RAMA JUDICIAL",2799,"Fortalecimiento y apoyo a la gestión institucional del sector Rama Judicial","0800","Intersubsectorial Justicia","01","Servicio de fortalecimiento y apoyo a la gestión institucional del sector Rama Judicial","13","Gestión documental"]
[27,"RAMA JUDICIAL",2799,"Fortalecimiento y apoyo a la gestión institucional del sector Rama Judicial","0800","Intersubsectorial Justicia","01","Servicio de fortalecimiento y apoyo a la gestión institucional del sector Rama Judicial","14","Gestión de comunicaciones"]
[27,"RAMA JUDICIAL",2700,"No asignable a programas","0800","Intersubsectorial Justicia","01","Sin producto","01","Transferencias Corrientes"]
[28,"REGISTRADURÍA",2801,"Procesos democráticos y asuntos electorales",1000,"Intersubsectorial Gobierno","01","Servicios Electorales y de Participación ciudadana ","01","Direccionamiento estratégico de los procesos electorales y de participación ciudadana"]
[28,"REGISTRADURÍA",2801,"Procesos democráticos y asuntos electorales",1000,"Intersubsectorial Gobierno","01","Servicios Electorales y de Participación ciudadana ","02","Gestión de los procesos electorales y de participación ciudadana"]
[28,"REGISTRADURÍA",2801,"Procesos democráticos y asuntos electorales",1000,"Intersubsectorial Gobierno","01","Servicios Electorales y de Participación ciudadana ","03","Gestión del censo electoral "]
[28,"REGISTRADURÍA",2801,"Procesos democráticos y asuntos electorales",1000,"Intersubsectorial Gobierno","01","Servicios Electorales y de Participación ciudadana ","04","Apoyo a los procesos electorales y de participación ciudadana"]
[28,"REGISTRADURÍA",2801,"Procesos democráticos y asuntos electorales",1000,"Intersubsectorial Gobierno","02","Servicio de Inspección, Vigilancia y Control a los procesos electorales y de participación ciudadana ","01","Direccionamiento estratégico en los procesos de inspección y vigilancia de los procesos electorales y de participación ciudadana "]
[28,"REGISTRADURÍA",2801,"Procesos democráticos y asuntos electorales",1000,"Intersubsectorial Gobierno","02","Servicio de Inspección, Vigilancia y Control a los procesos electorales y de participación ciudadana ","02","Gestión logística para procesos electorales y de participación transparentes y confiables "]
[28,"REGISTRADURÍA",2801,"Procesos democráticos y asuntos electorales",1000,"Intersubsectorial Gobierno","02","Servicio de Inspección, Vigilancia y Control a los procesos electorales y de participación ciudadana ","03","Inspección y control de los procesos y resultados electorales"]
[28,"REGISTRADURÍA",2802,"Identificación y registro del estado civil de la población",1000,"Intersubsectorial Gobierno","01","Servicio de Registro civil de los ciudadanos ","01","Direccionamiento estratégico del registro civil y la identificación"]
[28,"REGISTRADURÍA",2802,"Identificación y registro del estado civil de la población",1000,"Intersubsectorial Gobierno","01","Servicio de Registro civil de los ciudadanos ","02","Gestión del servicio de identificación "]
[28,"REGISTRADURÍA",2802,"Identificación y registro del estado civil de la población",1000,"Intersubsectorial Gobierno","01","Servicio de Registro civil de los ciudadanos ","03","Gestión del servicio de registro civil "]
[28,"REGISTRADURÍA",2802,"Identificación y registro del estado civil de la población",1000,"Intersubsectorial Gobierno","01","Servicio de Registro civil de los ciudadanos ","04","Prestación a la ciudadanía de los servicios identificación y registro civil "]
[28,"REGISTRADURÍA",2899,"Fortalecimiento y apoyo a la gestión institucional del sector Registraduría",1000,"Intersubsectorial Gobierno","01","Servicio de fortalecimiento y apoyo a la gestión institucional del sector Registraduría","01","Direccionamiento estratégico "]
[28,"REGISTRADURÍA",2899,"Fortalecimiento y apoyo a la gestión institucional del sector Registraduría",1000,"Intersubsectorial Gobierno","01","Servicio de fortalecimiento y apoyo a la gestión institucional del sector Registraduría","02","Gestión Jurídica "]
[28,"REGISTRADURÍA",2899,"Fortalecimiento y apoyo a la gestión institucional del sector Registraduría",1000,"Intersubsectorial Gobierno","01","Servicio de fortalecimiento y apoyo a la gestión institucional del sector Registraduría","03","Gestión de las TIC"]
[28,"REGISTRADURÍA",2899,"Fortalecimiento y apoyo a la gestión institucional del sector Registraduría",1000,"Intersubsectorial Gobierno","01","Servicio de fortalecimiento y apoyo a la gestión institucional del sector Registraduría","04","Gestión Administrativa y Financiera"]
[28,"REGISTRADURÍA",2899,"Fortalecimiento y apoyo a la gestión institucional del sector Registraduría",1000,"Intersubsectorial Gobierno","01","Servicio de fortalecimiento y apoyo a la gestión institucional del sector Registraduría","05","Gestión financiera para el fortalecimiento institucional "]
[28,"REGISTRADURÍA",2899,"Fortalecimiento y apoyo a la gestión institucional del sector Registraduría",1000,"Intersubsectorial Gobierno","01","Servicio de fortalecimiento y apoyo a la gestión institucional del sector Registraduría","06","Gestión y Desarrollo del Talento Humano "]
[28,"REGISTRADURÍA",2899,"Fortalecimiento y apoyo a la gestión institucional del sector Registraduría",1000,"Intersubsectorial Gobierno","01","Servicio de fortalecimiento y apoyo a la gestión institucional del sector Registraduría","07","Gestión de Comunicaciones "]
[28,"REGISTRADURÍA",2899,"Fortalecimiento y apoyo a la gestión institucional del sector Registraduría",1000,"Intersubsectorial Gobierno","01","Servicio de fortalecimiento y apoyo a la gestión institucional del sector Registraduría","08","Seguimiento y control "]
[28,"REGISTRADURÍA",2899,"Fortalecimiento y apoyo a la gestión institucional del sector Registraduría",1000,"Intersubsectorial Gobierno","01","Servicio de fortalecimiento y apoyo a la gestión institucional del sector Registraduría","09","Apoyo de acceso a la vivenda a los funcionarios de la Registraduría"]
[28,"REGISTRADURÍA",2800,"No asignable a programas ",1000,"Intersubsectorial Gobierno","01","Sin producto","01","Transferencias corrientes"]
[11,"RELACIONES EXTERIORES",1101,"Fortalecimiento y diversificación de relaciones bilaterales ",1002,"Relaciones exteriores","01","Servicio de fortalecimiento de las relaciones bilaterales y promoción del país en el exterior ","01","Desarrollo de la política exterior "]
[11,"RELACIONES EXTERIORES",1102,"Posicionamiento en instancias globales, multilaterales, regionales y subregionales ",1002,"Relaciones exteriores","01","Servicio de representación del país en instancias internacionales ","01","Desarrollo de la política exterior "]
[11,"RELACIONES EXTERIORES",1103,"Política migratoria y servicio al ciudadano ",1002,"Relaciones exteriores","01"," Servicios migratorios ","01","Gestión de la política migratoria "]
[11,"RELACIONES EXTERIORES",1104,"Soberanía territorial y desarrollo fronterizo ",1002,"Relaciones exteriores","01","Servicio de desarrollo fronterizo","01","Promoción y desarrollo de zonas de frontera"]
[11,"RELACIONES EXTERIORES",1104,"Soberanía territorial y desarrollo fronterizo ",1002,"Relaciones exteriores","01","Servicio de desarrollo fronterizo","02","Desarrollo de la política exterior "]
[11,"RELACIONES EXTERIORES",1199,"Fortalecimiento y apoyo a la gestión institucional del sector relaciones exteriores",1002,"Relaciones exteriores","01","Servicio de fortalecimiento y apoyo a la gestión institucional del sector Relaciones Exteriores","01","Direccionamiento estratégico "]
[11,"RELACIONES EXTERIORES",1199,"Fortalecimiento y apoyo a la gestión institucional del sector relaciones exteriores",1002,"Relaciones exteriores","01","Servicio de fortalecimiento y apoyo a la gestión institucional del sector Relaciones Exteriores","02","Desarrollo de la política exterior "]
[11,"RELACIONES EXTERIORES",1199,"Fortalecimiento y apoyo a la gestión institucional del sector relaciones exteriores",1002,"Relaciones exteriores","01","Servicio de fortalecimiento y apoyo a la gestión institucional del sector Relaciones Exteriores","03","Gestión jurídica"]
[11,"RELACIONES EXTERIORES",1199,"Fortalecimiento y apoyo a la gestión institucional del sector relaciones exteriores",1002,"Relaciones exteriores","01","Servicio de fortalecimiento y apoyo a la gestión institucional del sector Relaciones Exteriores","04","Generación de capacidades"]
[11,"RELACIONES EXTERIORES",1199,"Fortalecimiento y apoyo a la gestión institucional del sector relaciones exteriores",1002,"Relaciones exteriores","01","Servicio de fortalecimiento y apoyo a la gestión institucional del sector Relaciones Exteriores","05","Gestión de TIC"]
[11,"RELACIONES EXTERIORES",1199,"Fortalecimiento y apoyo a la gestión institucional del sector relaciones exteriores",1002,"Relaciones exteriores","01","Servicio de fortalecimiento y apoyo a la gestión institucional del sector Relaciones Exteriores","06","Direccionamiento estratégico"]
[11,"RELACIONES EXTERIORES",1199,"Fortalecimiento y apoyo a la gestión institucional del sector relaciones exteriores",1002,"Relaciones exteriores","01","Servicio de fortalecimiento y apoyo a la gestión institucional del sector Relaciones Exteriores","07","Gestión del talento humano"]
[11,"RELACIONES EXTERIORES",1199,"Fortalecimiento y apoyo a la gestión institucional del sector relaciones exteriores",1002,"Relaciones exteriores","01","Servicio de fortalecimiento y apoyo a la gestión institucional del sector Relaciones Exteriores","08","Gestión administrativa y financiera "]
[11,"RELACIONES EXTERIORES",1199,"Fortalecimiento y apoyo a la gestión institucional del sector relaciones exteriores",1002,"Relaciones exteriores","01","Servicio de fortalecimiento y apoyo a la gestión institucional del sector Relaciones Exteriores","09","Seguimiento y evaluación "]
[11,"RELACIONES EXTERIORES",1199,"Fortalecimiento y apoyo a la gestión institucional del sector relaciones exteriores",1002,"Relaciones exteriores","01","Servicio de fortalecimiento y apoyo a la gestión institucional del sector Relaciones Exteriores","10","Gestión de comunicaciones y atención al ciudadano "]
[11,"RELACIONES EXTERIORES",1100,"No asignable a programas",1002,"Relaciones exteriores","01","Sin producto","01","Transferencias Corrientes"]
[19,"SALUD Y PROTECCIÓN SOCIAL",1901,"Salud Pública y prestación de servicios","0300","Intersubsectorial Salud","01","Servicio de promoción de la salud y prevención de la enfermedad","01","Gestión de promoción de la salud"]
[19,"SALUD Y PROTECCIÓN SOCIAL",1901,"Salud Pública y prestación de servicios","0300","Intersubsectorial Salud","01","Servicio de promoción de la salud y prevención de la enfermedad","02","Gestión de prevención de la enfermedad"]
[19,"SALUD Y PROTECCIÓN SOCIAL",1901,"Salud Pública y prestación de servicios","0300","Intersubsectorial Salud","01","Servicio de promoción de la salud y prevención de la enfermedad","03","Vigilancia epidemiológica y Análisis del Riesgo en Salud Pública"]
[19,"SALUD Y PROTECCIÓN SOCIAL",1901,"Salud Pública y prestación de servicios","0300","Intersubsectorial Salud","01","Servicio de promoción de la salud y prevención de la enfermedad","04","Promoción Social"]
[19,"SALUD Y PROTECCIÓN SOCIAL",1901,"Salud Pública y prestación de servicios","0300","Intersubsectorial Salud","01","Servicio de promoción de la salud y prevención de la enfermedad","05","Gestión de redes de salud pública"]
[19,"SALUD Y PROTECCIÓN SOCIAL",1901,"Salud Pública y prestación de servicios","0300","Intersubsectorial Salud","01","Servicio de promoción de la salud y prevención de la enfermedad","06","Gestión farmacéutica, de medicamentos, de dispositivos, de insumos y tecnología biomédica."]
[19,"SALUD Y PROTECCIÓN SOCIAL",1901,"Salud Pública y prestación de servicios","0300","Intersubsectorial Salud","02","Servicio de atención en salud","01","Gestión de la prestación de servicios y atención primaria"]
[19,"SALUD Y PROTECCIÓN SOCIAL",1901,"Salud Pública y prestación de servicios","0300","Intersubsectorial Salud","02","Servicio de atención en salud","02","Gestión de talento humano en salud"]
[19,"SALUD Y PROTECCIÓN SOCIAL",1901,"Salud Pública y prestación de servicios","0300","Intersubsectorial Salud","02","Servicio de atención en salud","03","Prevención, mitigación y atención de emergencias y desastres desde el sector salud"]
[19,"SALUD Y PROTECCIÓN SOCIAL",1902,"Aseguramiento y administración del Sistema General de la Seguridad Social en Salud - SGSSS","0300","Intersubsectorial Salud","01","Servicio de aseguramiento al SGSSS","01","Regulación de la operación del aseguramiento al SGSSS"]
[19,"SALUD Y PROTECCIÓN SOCIAL",1902,"Aseguramiento y administración del Sistema General de la Seguridad Social en Salud - SGSSS","0300","Intersubsectorial Salud","01","Servicio de aseguramiento al SGSSS","02","Regulación de beneficios, Costos y Tarifas del Aseguramiento al SGSSS"]
[19,"SALUD Y PROTECCIÓN SOCIAL",1902,"Aseguramiento y administración del Sistema General de la Seguridad Social en Salud - SGSSS","0300","Intersubsectorial Salud","01","Servicio de aseguramiento al SGSSS","03","Gestión del financiamiento del SGSSS"]
[19,"SALUD Y PROTECCIÓN SOCIAL",1902,"Aseguramiento y administración del Sistema General de la Seguridad Social en Salud - SGSSS","0300","Intersubsectorial Salud","01","Servicio de aseguramiento al SGSSS","04","Administración de Fondos de Protección Social"]
[19,"SALUD Y PROTECCIÓN SOCIAL",1903,"Inspección, vigilancia y control del Sistema de Seguridad Social en Salud","0300","Intersubsectorial Salud","01","Servicio de inspección, vigilancia y control en salud","01","Protección al usuario y promoción de la participación ciudadana en salud"]
[19,"SALUD Y PROTECCIÓN SOCIAL",1903,"Inspección, vigilancia y control del Sistema de Seguridad Social en Salud","0300","Intersubsectorial Salud","01","Servicio de inspección, vigilancia y control en salud","02","Inspección, vigilancia y control de entidades de aseguramiento en salud"]
[19,"SALUD Y PROTECCIÓN SOCIAL",1903,"Inspección, vigilancia y control del Sistema de Seguridad Social en Salud","0300","Intersubsectorial Salud","01","Servicio de inspección, vigilancia y control en salud","03","Inspección, vigilancia y control para prestadores de servicios de salud, operadores logísticos y gestores farmacéuticos"]
[19,"SALUD Y PROTECCIÓN SOCIAL",1903,"Inspección, vigilancia y control del Sistema de Seguridad Social en Salud","0300","Intersubsectorial Salud","01","Servicio de inspección, vigilancia y control en salud","04","Inspección, vigilancia y control para entidades territoriales y entidades relacionadas con la gestión de recursos del SGSSS"]
[19,"SALUD Y PROTECCIÓN SOCIAL",1903,"Inspección, vigilancia y control del Sistema de Seguridad Social en Salud","0300","Intersubsectorial Salud","01","Servicio de inspección, vigilancia y control en salud","05","Investigaciones administrativas"]
[19,"SALUD Y PROTECCIÓN SOCIAL",1903,"Inspección, vigilancia y control del Sistema de Seguridad Social en Salud","0300","Intersubsectorial Salud","02","Servicio de administración de justicia y resolución de conflictos en el SGSSS","01","Administración de justicia y conciliación en el SGSSS"]
[19,"SALUD Y PROTECCIÓN SOCIAL",1903,"Inspección, vigilancia y control del Sistema de Seguridad Social en Salud","0300","Intersubsectorial Salud","03","Servicio de Inspección, vigilancia y control de productos de consumo y uso humano","01","Inspección y vigilancia de productos de consumo y uso humano"]
[19,"SALUD Y PROTECCIÓN SOCIAL",1903,"Inspección, vigilancia y control del Sistema de Seguridad Social en Salud","0300","Intersubsectorial Salud","03","Servicio de Inspección, vigilancia y control de productos de consumo y uso humano","02","Control de productos de consumo y uso humano"]
[19,"SALUD Y PROTECCIÓN SOCIAL",1903,"Inspección, vigilancia y control del Sistema de Seguridad Social en Salud","0300","Intersubsectorial Salud","04","Servicio de vigilancia y control de drogas, medicamentos, materias primas o precursores de control especial.","01","Gestión de vigilancia y control de drogas, medicamentos, materias primas o precursores de sector especial."]
[19,"SALUD Y PROTECCIÓN SOCIAL",1907,"Administración de pensiones de entidades del sector salud","0300","Intersubsectorial Salud","01","Servicio de administración de pensiones","01","Administración de prestaciones económicas"]
[19,"SALUD Y PROTECCIÓN SOCIAL",1907,"Administración de pensiones de entidades del sector salud","0300","Intersubsectorial Salud","01","Servicio de administración de pensiones","02","Administración de salud para pensionados"]
[19,"SALUD Y PROTECCIÓN SOCIAL",1999,"Fortalecimiento y apoyo a la gestión institucional del sector salud","0300","Intersubsectorial Salud","01","Servicio de fortalecimiento y apoyo a la gestión institucional del sector salud","01","Direccionamiento estratégico"]
[19,"SALUD Y PROTECCIÓN SOCIAL",1999,"Fortalecimiento y apoyo a la gestión institucional del sector salud","0300","Intersubsectorial Salud","01","Servicio de fortalecimiento y apoyo a la gestión institucional del sector salud","02","Gestión jurídica"]
[19,"SALUD Y PROTECCIÓN SOCIAL",1999,"Fortalecimiento y apoyo a la gestión institucional del sector salud","0300","Intersubsectorial Salud","01","Servicio de fortalecimiento y apoyo a la gestión institucional del sector salud","03","Gestión de Comunicaciones "]
[19,"SALUD Y PROTECCIÓN SOCIAL",1999,"Fortalecimiento y apoyo a la gestión institucional del sector salud","0300","Intersubsectorial Salud","01","Servicio de fortalecimiento y apoyo a la gestión institucional del sector salud","04","Seguimiento y evaluación "]
[19,"SALUD Y PROTECCIÓN SOCIAL",1999,"Fortalecimiento y apoyo a la gestión institucional del sector salud","0300","Intersubsectorial Salud","01","Servicio de fortalecimiento y apoyo a la gestión institucional del sector salud","05","Generación de capacidades"]
[19,"SALUD Y PROTECCIÓN SOCIAL",1999,"Fortalecimiento y apoyo a la gestión institucional del sector salud","0300","Intersubsectorial Salud","01","Servicio de fortalecimiento y apoyo a la gestión institucional del sector salud","06","Gestión Administrativa"]
[19,"SALUD Y PROTECCIÓN SOCIAL",1999,"Fortalecimiento y apoyo a la gestión institucional del sector salud","0300","Intersubsectorial Salud","01","Servicio de fortalecimiento y apoyo a la gestión institucional del sector salud","07","Gestión y desarrollo del talento humano"]
[19,"SALUD Y PROTECCIÓN SOCIAL",1999,"Fortalecimiento y apoyo a la gestión institucional del sector salud","0300","Intersubsectorial Salud","01","Servicio de fortalecimiento y apoyo a la gestión institucional del sector salud","08","Gestión de TIC"]
[19,"SALUD Y PROTECCIÓN SOCIAL",1999,"Fortalecimiento y apoyo a la gestión institucional del sector salud","0300","Intersubsectorial Salud","01","Servicio de fortalecimiento y apoyo a la gestión institucional del sector salud","09","Gestión contractual"]
[19,"SALUD Y PROTECCIÓN SOCIAL",1999,"Fortalecimiento y apoyo a la gestión institucional del sector salud","0300","Intersubsectorial Salud","01","Servicio de fortalecimiento y apoyo a la gestión institucional del sector salud","10","Gestión financiera "]
[19,"SALUD Y PROTECCIÓN SOCIAL",1999,"Fortalecimiento y apoyo a la gestión institucional del sector salud","0300","Intersubsectorial Salud","01","Servicio de fortalecimiento y apoyo a la gestión institucional del sector salud","11","Gestión de bienes "]
[19,"SALUD Y PROTECCIÓN SOCIAL",1900,"No programático","0300","Intersubsectorial Salud","01","Sin producto","01","Transferencias Corrientes"]
[23,"TECNOLOGÍAS DE LA INFORMACIÓN Y LAS COMUNICACIONES",2301,"Facilitar el acceso y uso de las Tecnologías de la Información y las Comunicaciones en todo el territorio nacional","0400","Intersubsectorial Comunicaciones","01","Servicio de acceso a las tecnologías de la información y las telecomunicaciones","01","Gestión del acceso a las TIC"]
[23,"TECNOLOGÍAS DE LA INFORMACIÓN Y LAS COMUNICACIONES",2301,"Facilitar el acceso y uso de las Tecnologías de la Información y las Comunicaciones en todo el territorio nacional","0400","Intersubsectorial Comunicaciones","01","Servicio de acceso a las tecnologías de la información y las telecomunicaciones","01","Administración del espectro radioelectrónico "]
[23,"TECNOLOGÍAS DE LA INFORMACIÓN Y LAS COMUNICACIONES",2301,"Facilitar el acceso y uso de las Tecnologías de la Información y las Comunicaciones en todo el territorio nacional","0400","Intersubsectorial Comunicaciones","01","Servicio de acceso a las tecnologías de la información y las telecomunicaciones","01","Gestión educativa y formación en TICs"]
[23,"TECNOLOGÍAS DE LA INFORMACIÓN Y LAS COMUNICACIONES",2301,"Facilitar el acceso y uso de las Tecnologías de la Información y las Comunicaciones en todo el territorio nacional","0400","Intersubsectorial Comunicaciones","01","Servicio de acceso a las tecnologías de la información y las telecomunicaciones","01","Gestión de acceso al progama de Computadores para Educar"]
[23,"TECNOLOGÍAS DE LA INFORMACIÓN Y LAS COMUNICACIONES",2301,"Facilitar el acceso y uso de las Tecnologías de la Información y las Comunicaciones en todo el territorio nacional","0400","Intersubsectorial Comunicaciones","02","Servicio de regulación de los servicios de telecomunicaciones y postales","02","Seguimiento y control al la prestación de servicios TIC"]
[23,"TECNOLOGÍAS DE LA INFORMACIÓN Y LAS COMUNICACIONES",2301,"Facilitar el acceso y uso de las Tecnologías de la Información y las Comunicaciones en todo el territorio nacional","0400","Intersubsectorial Comunicaciones","02","Servicio de regulación de los servicios de telecomunicaciones y postales","02","Gestión de calidad de los servicios audiovisuales"]
[23,"TECNOLOGÍAS DE LA INFORMACIÓN Y LAS COMUNICACIONES",2301,"Facilitar el acceso y uso de las Tecnologías de la Información y las Comunicaciones en todo el territorio nacional","0400","Intersubsectorial Comunicaciones","02","Servicio de regulación de los servicios de telecomunicaciones y postales","02","Gestión de calidad de los servicios de comunicaciones"]
[23,"TECNOLOGÍAS DE LA INFORMACIÓN Y LAS COMUNICACIONES",2301,"Facilitar el acceso y uso de las Tecnologías de la Información y las Comunicaciones en todo el territorio nacional","0400","Intersubsectorial Comunicaciones","02","Servicio de regulación de los servicios de telecomunicaciones y postales","02","Gestión de vigilancia y control "]
[23,"TECNOLOGÍAS DE LA INFORMACIÓN Y LAS COMUNICACIONES",2301,"Facilitar el acceso y uso de las Tecnologías de la Información y las Comunicaciones en todo el territorio nacional","0400","Intersubsectorial Comunicaciones","02","Servicio de regulación de los servicios de telecomunicaciones y postales","02","Seguimiento y control al uso del espectro radioeléctrico "]
[23,"TECNOLOGÍAS DE LA INFORMACIÓN Y LAS COMUNICACIONES",2302,"Fomento del desarrollo de aplicaciones, software y contenidos para impulsar la apropiación de las Tecnologías de la Información y las Comunicaciones (TIC)","0400","Intersubsectorial Comunicaciones","01","Servicio de fomento a la innovación y uso de las TIC","01","Gestión del acceso a las TIC"]
[23,"TECNOLOGÍAS DE LA INFORMACIÓN Y LAS COMUNICACIONES",2302,"Fomento del desarrollo de aplicaciones, software y contenidos para impulsar la apropiación de las Tecnologías de la Información y las Comunicaciones (TIC)","0400","Intersubsectorial Comunicaciones","01","Servicio de fomento a la innovación y uso de las TIC","01","Administración del espectro radioelectrónico "]
[23,"TECNOLOGÍAS DE LA INFORMACIÓN Y LAS COMUNICACIONES",2302,"Fomento del desarrollo de aplicaciones, software y contenidos para impulsar la apropiación de las Tecnologías de la Información y las Comunicaciones (TIC)","0400","Intersubsectorial Comunicaciones","01","Servicio de fomento a la innovación y uso de las TIC","01","Gestión educativa y formación en TICs"]
[23,"TECNOLOGÍAS DE LA INFORMACIÓN Y LAS COMUNICACIONES",2302,"Fomento del desarrollo de aplicaciones, software y contenidos para impulsar la apropiación de las Tecnologías de la Información y las Comunicaciones (TIC)","0400","Intersubsectorial Comunicaciones","01","Servicio de fomento a la innovación y uso de las TIC","01","Gestión de acceso al progama de Computadores para Educar"]
[23,"TECNOLOGÍAS DE LA INFORMACIÓN Y LAS COMUNICACIONES",2399,"Fortalecimiento y apoyo a la gestión institucional del sector Tecnologías de la Información y las Comunicaciones","0400","Intersubsectorial Comunicaciones","01","Servicio de fortalecimiento y apoyo a la gestión institucional del sector Tecnologías de la Información y las Comunicaciones","01","Direccionamiento estratégico"]
[23,"TECNOLOGÍAS DE LA INFORMACIÓN Y LAS COMUNICACIONES",2399,"Fortalecimiento y apoyo a la gestión institucional del sector Tecnologías de la Información y las Comunicaciones","0400","Intersubsectorial Comunicaciones","01","Servicio de fortalecimiento y apoyo a la gestión institucional del sector Tecnologías de la Información y las Comunicaciones","01","Gestión de Comunicaciones"]
[23,"TECNOLOGÍAS DE LA INFORMACIÓN Y LAS COMUNICACIONES",2399,"Fortalecimiento y apoyo a la gestión institucional del sector Tecnologías de la Información y las Comunicaciones","0400","Intersubsectorial Comunicaciones","01","Servicio de fortalecimiento y apoyo a la gestión institucional del sector Tecnologías de la Información y las Comunicaciones","01","Gestión de las TIC"]
[23,"TECNOLOGÍAS DE LA INFORMACIÓN Y LAS COMUNICACIONES",2399,"Fortalecimiento y apoyo a la gestión institucional del sector Tecnologías de la Información y las Comunicaciones","0400","Intersubsectorial Comunicaciones","01","Servicio de fortalecimiento y apoyo a la gestión institucional del sector Tecnologías de la Información y las Comunicaciones","01","Seguimiento y evaluación"]
[23,"TECNOLOGÍAS DE LA INFORMACIÓN Y LAS COMUNICACIONES",2399,"Fortalecimiento y apoyo a la gestión institucional del sector Tecnologías de la Información y las Comunicaciones","0400","Intersubsectorial Comunicaciones","01","Servicio de fortalecimiento y apoyo a la gestión institucional del sector Tecnologías de la Información y las Comunicaciones","01","Gestión Jurídica "]
[23,"TECNOLOGÍAS DE LA INFORMACIÓN Y LAS COMUNICACIONES",2399,"Fortalecimiento y apoyo a la gestión institucional del sector Tecnologías de la Información y las Comunicaciones","0400","Intersubsectorial Comunicaciones","01","Servicio de fortalecimiento y apoyo a la gestión institucional del sector Tecnologías de la Información y las Comunicaciones","01","Gestión financiera del FUTIC"]
[23,"TECNOLOGÍAS DE LA INFORMACIÓN Y LAS COMUNICACIONES",2399,"Fortalecimiento y apoyo a la gestión institucional del sector Tecnologías de la Información y las Comunicaciones","0400","Intersubsectorial Comunicaciones","01","Servicio de fortalecimiento y apoyo a la gestión institucional del sector Tecnologías de la Información y las Comunicaciones","01","Gestión financiera  "]
[23,"TECNOLOGÍAS DE LA INFORMACIÓN Y LAS COMUNICACIONES",2399,"Fortalecimiento y apoyo a la gestión institucional del sector Tecnologías de la Información y las Comunicaciones","0400","Intersubsectorial Comunicaciones","01","Servicio de fortalecimiento y apoyo a la gestión institucional del sector Tecnologías de la Información y las Comunicaciones","01","Gestión y desarrollo del talento humano"]
[23,"TECNOLOGÍAS DE LA INFORMACIÓN Y LAS COMUNICACIONES",2399,"Fortalecimiento y apoyo a la gestión institucional del sector Tecnologías de la Información y las Comunicaciones","0400","Intersubsectorial Comunicaciones","01","Servicio de fortalecimiento y apoyo a la gestión institucional del sector Tecnologías de la Información y las Comunicaciones","01","Gestión Administrativa "]
[23,"TECNOLOGÍAS DE LA INFORMACIÓN Y LAS COMUNICACIONES",2399,"Fortalecimiento y apoyo a la gestión institucional del sector Tecnologías de la Información y las Comunicaciones","0400","Intersubsectorial Comunicaciones","01","Servicio de fortalecimiento y apoyo a la gestión institucional del sector Tecnologías de la Información y las Comunicaciones","01","Gestión Contractual"]
[23,"TECNOLOGÍAS DE LA INFORMACIÓN Y LAS COMUNICACIONES",2399,"Fortalecimiento y apoyo a la gestión institucional del sector Tecnologías de la Información y las Comunicaciones","0400","Intersubsectorial Comunicaciones","01","Servicio de fortalecimiento y apoyo a la gestión institucional del sector Tecnologías de la Información y las Comunicaciones","01","Seguimiento y evaluación "]
[23,"TECNOLOGÍAS DE LA INFORMACIÓN Y LAS COMUNICACIONES",2399,"Fortalecimiento y apoyo a la gestión institucional del sector Tecnologías de la Información y las Comunicaciones","0400","Intersubsectorial Comunicaciones","01","Servicio de fortalecimiento y apoyo a la gestión institucional del sector Tecnologías de la Información y las Comunicaciones","01","Gestión Administrativa y Financiera"]
[23,"TECNOLOGÍAS DE LA INFORMACIÓN Y LAS COMUNICACIONES",2300,"No asignable a programas","0400","Intersubsectorial Comunicaciones","01","Sin producto","01","Transferencias Corrientes"]
[36,"TRABAJO",3601,"Protección Social",1300,"Intersubsectorial Trabajo y Bienestar Social","01","Servicio de otorgamiento de subsidios al ahorro pensional y a la protección para la vejez","01","Direccionamiento estratégico del sistema general de pensiones y otras prestaciones de protección para la vejez"]
[36,"TRABAJO",3601,"Protección Social",1300,"Intersubsectorial Trabajo y Bienestar Social","01","Servicio de otorgamiento de subsidios familiares de vivienda","02","Orientación y gestión de convenios internacionales del sistema general de pensiones"]
[36,"TRABAJO",3601,"Protección Social",1300,"Intersubsectorial Trabajo y Bienestar Social","01","Servicio de otorgamiento de subsidios familiares de vivienda","03","Gestión de información, afiliación y administración  del sistema general de pensiones"]
[36,"TRABAJO",3601,"Protección Social",1300,"Intersubsectorial Trabajo y Bienestar Social","01","Servicio de otorgamiento de subsidios familiares de vivienda","04","Gestión de información, seguimiento, administración y logística de subsidios pensionales y subsidios económicos para la vejez"]
[36,"TRABAJO",3602,"Generación y formalización del empleo",1300,"Intersubsectorial Trabajo y Bienestar Social","01","Servicio de generación de empleos formales","01","Desarrollo de instrumentos de política de formalización laboral, promoción de emprendimientos y generación de empleo"]
[36,"TRABAJO",3602,"Generación y formalización del empleo",1300,"Intersubsectorial Trabajo y Bienestar Social","01","Servicio de generación de empleos formales","02","Gestión de formalización laboral"]
[36,"TRABAJO",3602,"Generación y formalización del empleo",1300,"Intersubsectorial Trabajo y Bienestar Social","01","Servicio de generación de empleos formales","03","Fortalecimiento de capacidades territoriales en formalización laboral"]
[36,"TRABAJO",3602,"Generación y formalización del empleo",1300,"Intersubsectorial Trabajo y Bienestar Social","01","Servicio de generación de empleos formales","04","Creación y fortalecimiento de emprendimientos solidarios"]
[36,"TRABAJO",3602,"Generación y formalización del empleo",1300,"Intersubsectorial Trabajo y Bienestar Social","01","Servicio de generación de empleos formales","05","Creación y fortalecimiento de empresas y gestión de empleo"]
[36,"TRABAJO",3602,"Generación y formalización del empleo",1300,"Intersubsectorial Trabajo y Bienestar Social","01","Servicio de generación de empleos formales","06","Inspección, vigilancia y control de las cajas de compensación y demás entidades encargadas del subsidio familiar"]
[36,"TRABAJO",3602,"Generación y formalización del empleo",1300,"Intersubsectorial Trabajo y Bienestar Social","01","Servicio de generación de empleos formales","07","Intermediación laboral integral y protección al cesante"]
[36,"TRABAJO",3603,"Formación para el Trabajo",1300,"Intersubsectorial Trabajo y Bienestar Social","01","Servicio de formación para el trabajo en sus diferentes modalidades ","01","Desarrollo de instrumentos de política, estrategias y servicios de formación para el trabajo"]
[36,"TRABAJO",3603,"Formación para el Trabajo",1300,"Intersubsectorial Trabajo y Bienestar Social","01","Servicio de formación para el trabajo en sus diferentes modalidades ","02","Gestión de formación profesional integral"]
[36,"TRABAJO",3603,"Formación para el Trabajo",1300,"Intersubsectorial Trabajo y Bienestar Social","01","Servicio de formación para el trabajo en sus diferentes modalidades ","03","Coordinación del Sistema Nacional para el Trabajo y gestión de formación complementaria y de competencias"]
[36,"TRABAJO",3603,"Formación para el Trabajo",1300,"Intersubsectorial Trabajo y Bienestar Social","01","Servicio de formación para el trabajo en sus diferentes modalidades ","04","Implementación de programas de formación para el trabajo"]
[36,"TRABAJO",3603,"Formación para el Trabajo",1300,"Intersubsectorial Trabajo y Bienestar Social","01","Servicio de formación para el trabajo en sus diferentes modalidades ","05","Análisis de mercado laboral para orientar la oferta de formación"]
[36,"TRABAJO",3604,"Derechos fundamentales del trabajo y fortalecimiento del diálogo social",1300,"Intersubsectorial Trabajo y Bienestar Social","01","Servicio de promoción y protección de los derechos fundamentales del trabajo","01","Desarrollo de instrumentos de política y estrategias de promoción y protección de los derechos fundamentales del trabajo"]
[36,"TRABAJO",3604,"Derechos fundamentales del trabajo y fortalecimiento del diálogo social",1300,"Intersubsectorial Trabajo y Bienestar Social","01","Servicio de promoción y protección de los derechos fundamentales del trabajo","02","Gestión del Sistema General de Riesgos Laborales y el Fondo de Riesgos Laborales"]
[36,"TRABAJO",3604,"Derechos fundamentales del trabajo y fortalecimiento del diálogo social",1300,"Intersubsectorial Trabajo y Bienestar Social","01","Servicio de promoción y protección de los derechos fundamentales del trabajo","03","Gestión de promoción y protección de los derechos fundamentales  del trabajo"]
[36,"TRABAJO",3604,"Derechos fundamentales del trabajo y fortalecimiento del diálogo social",1300,"Intersubsectorial Trabajo y Bienestar Social","01","Servicio de inspección, vigilancia y control de los derechos fundamentales del trabajo","01","Desarrollo de instrumentos de política y estrategias de inspección, vigilancia y control de los derechos fundamentales del trabajo"]
[36,"TRABAJO",3604,"Derechos fundamentales del trabajo y fortalecimiento del diálogo social",1300,"Intersubsectorial Trabajo y Bienestar Social","01","Servicio de inspección, vigilancia y control de los derechos fundamentales del trabajo","02","Gestión de inspección, vigilancia y control de los derechos fundamentales del trabajo"]
[36,"TRABAJO",3605,"Fomento de la investigación, desarrollo tecnológico e innovación del sector trabajo",1300,"Intersubsectorial Trabajo y Bienestar Social","01","Servicio de promoción de la innovación tecnológica","01","Gestión de investigación aplicada para la innovación y desarrollo tecnológico"]
[36,"TRABAJO",3605,"Fomento de la investigación, desarrollo tecnológico e innovación del sector trabajo",1300,"Intersubsectorial Trabajo y Bienestar Social","01","Servicio de promoción de la innovación tecnológica","02","Gestión de semilleros de investigación y de apoyo al desarrollo de prototipos de base tecnológica"]
[36,"TRABAJO",3699,"Fortalecimiento y apoyo a la gestión institucional del sector Trabajo",1300,"Intersubsectorial Trabajo y Bienestar Social","01","Servicio de fortalecimiento y apoyo a la gestión institucional del sector Trabajo","01","Direccionamiento estratégico del Sector"]
[36,"TRABAJO",3699,"Fortalecimiento y apoyo a la gestión institucional del sector Trabajo",1300,"Intersubsectorial Trabajo y Bienestar Social","01","Servicio de fortalecimiento y apoyo a la gestión institucional del sector Trabajo","02","Gestión jurídica"]
[36,"TRABAJO",3699,"Fortalecimiento y apoyo a la gestión institucional del sector Trabajo",1300,"Intersubsectorial Trabajo y Bienestar Social","01","Servicio de fortalecimiento y apoyo a la gestión institucional del sector Trabajo","03","Gestión de comunicaciones "]
[36,"TRABAJO",3699,"Fortalecimiento y apoyo a la gestión institucional del sector Trabajo",1300,"Intersubsectorial Trabajo y Bienestar Social","01","Servicio de fortalecimiento y apoyo a la gestión institucional del sector Trabajo","04","Seguimiento y evaluación "]
[36,"TRABAJO",3699,"Fortalecimiento y apoyo a la gestión institucional del sector Trabajo",1300,"Intersubsectorial Trabajo y Bienestar Social","01","Servicio de fortalecimiento y apoyo a la gestión institucional del sector Trabajo","05","Generación de Capacidades"]
[36,"TRABAJO",3699,"Fortalecimiento y apoyo a la gestión institucional del sector Trabajo",1300,"Intersubsectorial Trabajo y Bienestar Social","01","Servicio de fortalecimiento y apoyo a la gestión institucional del sector Trabajo","06","Gestión Administrativa"]
[36,"TRABAJO",3699,"Fortalecimiento y apoyo a la gestión institucional del sector Trabajo",1300,"Intersubsectorial Trabajo y Bienestar Social","01","Servicio de fortalecimiento y apoyo a la gestión institucional del sector Trabajo","07","Gestión y desarrollo del talento humano"]
[36,"TRABAJO",3699,"Fortalecimiento y apoyo a la gestión institucional del sector Trabajo",1300,"Intersubsectorial Trabajo y Bienestar Social","01","Servicio de fortalecimiento y apoyo a la gestión institucional del sector Trabajo","08","Gestión de TIC"]
[36,"TRABAJO",3699,"Fortalecimiento y apoyo a la gestión institucional del sector Trabajo",1300,"Intersubsectorial Trabajo y Bienestar Social","01","Servicio de fortalecimiento y apoyo a la gestión institucional del sector Trabajo","09","Gestión Contractual"]
[36,"TRABAJO",3699,"Fortalecimiento y apoyo a la gestión institucional del sector Trabajo",1300,"Intersubsectorial Trabajo y Bienestar Social","01","Servicio de fortalecimiento y apoyo a la gestión institucional del sector Trabajo","10","Gestión financiera "]
[36,"TRABAJO",3699,"Fortalecimiento y apoyo a la gestión institucional del sector Trabajo",1300,"Intersubsectorial Trabajo y Bienestar Social","01","Servicio de fortalecimiento y apoyo a la gestión institucional del sector Trabajo","11","Gestión documental "]
[36,"TRABAJO",3699,"Fortalecimiento y apoyo a la gestión institucional del sector Trabajo",1300,"Intersubsectorial Trabajo y Bienestar Social","01","Servicio de fortalecimiento y apoyo a la gestión institucional del sector Trabajo","12","Gestión de atención al ciudadano"]
[36,"TRABAJO",3699,"Fortalecimiento y apoyo a la gestión institucional del sector Trabajo",1300,"Intersubsectorial Trabajo y Bienestar Social","01","Servicio de fortalecimiento y apoyo a la gestión institucional del sector Trabajo","13","Gestión de Control Interno"]
[36,"TRABAJO",3699,"Fortalecimiento y apoyo a la gestión institucional del sector Trabajo",1300,"Intersubsectorial Trabajo y Bienestar Social","01","Servicio de fortalecimiento y apoyo a la gestión institucional del sector Trabajo","14","Gestión de Control Interno Disciplinario"]
[36,"TRABAJO",3600,"No asignable a programas",1300,"Intersubsectorial Trabajo y Bienestar Social","01","Sin producto","01","Transferencias"]
[24,"TRANSPORTE",2401,"Infraestructura red vial primaria","0600","Intersubsectorial Transporte","01","Servicio de provisión de Infraestructura y operación de carreteras de red vial primaria","01","Estructuración de proyectos de infraestructura red vial primaria"]
[24,"TRANSPORTE",2401,"Infraestructura red vial primaria","0600","Intersubsectorial Transporte","01","Servicio de provisión de Infraestructura y operación de carreteras de red vial primaria","02","Gestión contractual procesos de concesión red vial primaria"]
[24,"TRANSPORTE",2401,"Infraestructura red vial primaria","0600","Intersubsectorial Transporte","01","Servicio de provisión de Infraestructura y operación de carreteras de red vial primaria","03","Gestión integral red vial primaria"]
[24,"TRANSPORTE",2401,"Infraestructura red vial primaria","0600","Intersubsectorial Transporte","01","Servicio de provisión de Infraestructura y operación de carreteras de red vial primaria","04","Modernización red vial primaria"]
[24,"TRANSPORTE",2401,"Infraestructura red vial primaria","0600","Intersubsectorial Transporte","01","Servicio de provisión de Infraestructura y operación de carreteras de red vial primaria","05","Supervisar, evaluar y controlar contratos de concesión vial primaria"]
[24,"TRANSPORTE",2402,"Infraestructura red vial regional","0600","Intersubsectorial Transporte","01","Servicio de provisión de Infraestructura y operación de la red vial regional","01","Gestión integral de la red vial regional"]
[24,"TRANSPORTE",2403,"Infraestructura y servicios de transporte aéreo","0600","Intersubsectorial Transporte","01","Servicio de provisión de infraestructura y operación de transporte aéreo","01","Análisis de la información aeronáutica"]
[24,"TRANSPORTE",2403,"Infraestructura y servicios de transporte aéreo","0600","Intersubsectorial Transporte","01","Servicio de provisión de infraestructura y operación de transporte aéreo","02","Direccionamiento estratégico"]
[24,"TRANSPORTE",2403,"Infraestructura y servicios de transporte aéreo","0600","Intersubsectorial Transporte","01","Servicio de provisión de infraestructura y operación de transporte aéreo","03","Estructuración de proyectos de infraestructura de transporte aéreo"]
[24,"TRANSPORTE",2403,"Infraestructura y servicios de transporte aéreo","0600","Intersubsectorial Transporte","01","Servicio de provisión de infraestructura y operación de transporte aéreo","04","Formación e investigación aeronáutica"]
[24,"TRANSPORTE",2403,"Infraestructura y servicios de transporte aéreo","0600","Intersubsectorial Transporte","01","Servicio de provisión de infraestructura y operación de transporte aéreo","05","Gestión de la autoridad aeronáutica"]
[24,"TRANSPORTE",2403,"Infraestructura y servicios de transporte aéreo","0600","Intersubsectorial Transporte","01","Servicio de provisión de infraestructura y operación de transporte aéreo","06","Gestión de la navegación aérea"]
[24,"TRANSPORTE",2403,"Infraestructura y servicios de transporte aéreo","0600","Intersubsectorial Transporte","01","Servicio de provisión de infraestructura y operación de transporte aéreo","07","Gestión de proyectos"]
[24,"TRANSPORTE",2403,"Infraestructura y servicios de transporte aéreo","0600","Intersubsectorial Transporte","01","Servicio de provisión de infraestructura y operación de transporte aéreo","08","Gestión en la prestación de servicios Aeroportuarios"]
[24,"TRANSPORTE",2403,"Infraestructura y servicios de transporte aéreo","0600","Intersubsectorial Transporte","01","Servicio de provisión de infraestructura y operación de transporte aéreo","09","Gestión territorial en servicios de infraestructura de transporte aéreo"]
[24,"TRANSPORTE",2403,"Infraestructura y servicios de transporte aéreo","0600","Intersubsectorial Transporte","01","Servicio de provisión de infraestructura y operación de transporte aéreo","10","Investigaciones aeronáuticas"]
[24,"TRANSPORTE",2404,"Infraestructura de transporte férreo","0600","Intersubsectorial Transporte","01","Servicio de provisión de Infraestructura y operación de transporte férreo","01","Estructuración de proyectos de infraestructura de transporte férreo"]
[24,"TRANSPORTE",2404,"Infraestructura de transporte férreo","0600","Intersubsectorial Transporte","01","Servicio de provisión de Infraestructura y operación de transporte férreo","02","Gestión para proveer y operar infraestructura de transporte férreo"]
[24,"TRANSPORTE",2405,"Infraestructura de transporte marítimo","0600","Intersubsectorial Transporte","01","Servicio de provisión de Infraestructura y operación de transporte marítimo","01","Gestión para proveer y operar infraestructura de transporte marítimo"]
[24,"TRANSPORTE",2406,"Infraestructura de transporte fluvial","0600","Intersubsectorial Transporte","01","Servicio de provisión de Infraestructura y operación de transporte fluvial","01","Estructuración de proyectos de infraestructura de transporte fluvial"]
[24,"TRANSPORTE",2406,"Infraestructura de transporte fluvial","0600","Intersubsectorial Transporte","01","Servicio de provisión de Infraestructura y operación de transporte fluvial","02","Gestión para proveer y operar infraestructura de transporte fluvial"]
[24,"TRANSPORTE",2407,"Infraestructura y servicios de logística de transporte","0600","Intersubsectorial Transporte","01","Servicio de provisión de Infraestructura y servicios de logística de transporte","01","Gestión integral de infraestructura intermodal"]
[24,"TRANSPORTE",2408,"Prestación de servicios de transporte público de pasajeros","0600","Intersubsectorial Transporte","01","Servicio de transporte público de pasajeros","01","Gestión de movilidad urbana"]
[24,"TRANSPORTE",2409,"Seguridad de transporte","0600","Intersubsectorial Transporte","01","Servicio de seguridad vial en los diferentes modos de transporte","01","Coordinación interinstitucional en seguridad vial"]
[24,"TRANSPORTE",2409,"Seguridad de transporte","0600","Intersubsectorial Transporte","01","Servicio de seguridad vial en los diferentes modos de transporte","02","Direccionamiento estratégico"]
[24,"TRANSPORTE",2409,"Seguridad de transporte","0600","Intersubsectorial Transporte","01","Servicio de seguridad vial en los diferentes modos de transporte","03","Gestión de estadísticas de seguridad vial"]
[24,"TRANSPORTE",2409,"Seguridad de transporte","0600","Intersubsectorial Transporte","01","Servicio de seguridad vial en los diferentes modos de transporte","04","Gestión de la seguridad vial de la infraestructura y de vehículos "]
[24,"TRANSPORTE",2409,"Seguridad de transporte","0600","Intersubsectorial Transporte","01","Servicio de seguridad vial en los diferentes modos de transporte","05","Gestión del comportamiento de los actores en la vía"]
[24,"TRANSPORTE",2410,"Política, regulación y supervisión de la infraestructura y servicios de transporte","0600","Intersubsectorial Transporte","01","Servicio de definición de Política, regulación y supervisión de la infraestructura y servicios de transporte","01","Direccionamiento estratégico"]
[24,"TRANSPORTE",2410,"Política, regulación y supervisión de la infraestructura y servicios de transporte","0600","Intersubsectorial Transporte","01","Servicio de definición de Política, regulación y supervisión de la infraestructura y servicios de transporte","02","Estructuración y evaluación del plan de infraestructura"]
[24,"TRANSPORTE",2410,"Política, regulación y supervisión de la infraestructura y servicios de transporte","0600","Intersubsectorial Transporte","01","Servicio de definición de Política, regulación y supervisión de la infraestructura y servicios de transporte","03","Estudios y elaboración del plan de infraestructura"]
[24,"TRANSPORTE",2410,"Política, regulación y supervisión de la infraestructura y servicios de transporte","0600","Intersubsectorial Transporte","01","Servicio de definición de Política, regulación y supervisión de la infraestructura y servicios de transporte","04","Inspección control y vigilancia en Concesiones e infraestructura"]
[24,"TRANSPORTE",2410,"Política, regulación y supervisión de la infraestructura y servicios de transporte","0600","Intersubsectorial Transporte","01","Servicio de definición de Política, regulación y supervisión de la infraestructura y servicios de transporte","05","Inspección control y vigilancia en Puertos, marítimo y fluvial"]
[24,"TRANSPORTE",2410,"Política, regulación y supervisión de la infraestructura y servicios de transporte","0600","Intersubsectorial Transporte","01","Servicio de definición de Política, regulación y supervisión de la infraestructura y servicios de transporte","06","Inspección control y vigilancia en tránsito y transporte"]
[24,"TRANSPORTE",2410,"Política, regulación y supervisión de la infraestructura y servicios de transporte","0600","Intersubsectorial Transporte","01","Servicio de definición de Política, regulación y supervisión de la infraestructura y servicios de transporte","07","Protección de usuarios del sector transporte"]
[24,"TRANSPORTE",2410,"Política, regulación y supervisión de la infraestructura y servicios de transporte","0600","Intersubsectorial Transporte","01","Servicio de definición de Política, regulación y supervisión de la infraestructura y servicios de transporte","08","Regulación económica de los servicios e infraestructura de transporte"]
[24,"TRANSPORTE",2499,"Fortalecimiento y apoyo a la gestión institucional del sector Transporte","0600","Intersubsectorial Transporte","01","Servicio de fortalecimiento y apoyo a la gestión institucional del sector transporte","01","Direccionamiento estratégico"]
[24,"TRANSPORTE",2499,"Fortalecimiento y apoyo a la gestión institucional del sector Transporte","0600","Intersubsectorial Transporte","01","Servicio de fortalecimiento y apoyo a la gestión institucional del sector transporte","02","Estructuración de proyectos de infraestructura de transporte"]
[24,"TRANSPORTE",2499,"Fortalecimiento y apoyo a la gestión institucional del sector Transporte","0600","Intersubsectorial Transporte","01","Servicio de fortalecimiento y apoyo a la gestión institucional del sector transporte","03","Gestión administrativa"]
[24,"TRANSPORTE",2499,"Fortalecimiento y apoyo a la gestión institucional del sector Transporte","0600","Intersubsectorial Transporte","01","Servicio de fortalecimiento y apoyo a la gestión institucional del sector transporte","04","Gestión Ambiental"]
[24,"TRANSPORTE",2499,"Fortalecimiento y apoyo a la gestión institucional del sector Transporte","0600","Intersubsectorial Transporte","01","Servicio de fortalecimiento y apoyo a la gestión institucional del sector transporte","05","Gestión contractual"]
[24,"TRANSPORTE",2499,"Fortalecimiento y apoyo a la gestión institucional del sector Transporte","0600","Intersubsectorial Transporte","01","Servicio de fortalecimiento y apoyo a la gestión institucional del sector transporte","06","Gestión de atención ciudadana"]
[24,"TRANSPORTE",2499,"Fortalecimiento y apoyo a la gestión institucional del sector Transporte","0600","Intersubsectorial Transporte","01","Servicio de fortalecimiento y apoyo a la gestión institucional del sector transporte","07","Gestión de comunicaciones"]
[24,"TRANSPORTE",2499,"Fortalecimiento y apoyo a la gestión institucional del sector Transporte","0600","Intersubsectorial Transporte","01","Servicio de fortalecimiento y apoyo a la gestión institucional del sector transporte","08","Gestión de definiciones y conceptos técnicos"]
[24,"TRANSPORTE",2499,"Fortalecimiento y apoyo a la gestión institucional del sector Transporte","0600","Intersubsectorial Transporte","01","Servicio de fortalecimiento y apoyo a la gestión institucional del sector transporte","09","Gestión de inmuebles"]
[24,"TRANSPORTE",2499,"Fortalecimiento y apoyo a la gestión institucional del sector Transporte","0600","Intersubsectorial Transporte","01","Servicio de fortalecimiento y apoyo a la gestión institucional del sector transporte","10","Gestión de tránsito"]
[24,"TRANSPORTE",2499,"Fortalecimiento y apoyo a la gestión institucional del sector Transporte","0600","Intersubsectorial Transporte","01","Servicio de fortalecimiento y apoyo a la gestión institucional del sector transporte","11","Gestión de transporte"]
[24,"TRANSPORTE",2499,"Fortalecimiento y apoyo a la gestión institucional del sector Transporte","0600","Intersubsectorial Transporte","01","Servicio de fortalecimiento y apoyo a la gestión institucional del sector transporte","12","Gestión del riesgo en proyectos de infraestructura de transporte"]
[24,"TRANSPORTE",2499,"Fortalecimiento y apoyo a la gestión institucional del sector Transporte","0600","Intersubsectorial Transporte","01","Servicio de fortalecimiento y apoyo a la gestión institucional del sector transporte","13","Gestión documental"]
[24,"TRANSPORTE",2499,"Fortalecimiento y apoyo a la gestión institucional del sector Transporte","0600","Intersubsectorial Transporte","01","Servicio de fortalecimiento y apoyo a la gestión institucional del sector transporte","14","Gestión financiera"]
[24,"TRANSPORTE",2499,"Fortalecimiento y apoyo a la gestión institucional del sector Transporte","0600","Intersubsectorial Transporte","01","Servicio de fortalecimiento y apoyo a la gestión institucional del sector transporte","15","Gestión inmobiliaria"]
[24,"TRANSPORTE",2499,"Fortalecimiento y apoyo a la gestión institucional del sector Transporte","0600","Intersubsectorial Transporte","01","Servicio de fortalecimiento y apoyo a la gestión institucional del sector transporte","16","Gestión jurídica"]
[24,"TRANSPORTE",2499,"Fortalecimiento y apoyo a la gestión institucional del sector Transporte","0600","Intersubsectorial Transporte","01","Servicio de fortalecimiento y apoyo a la gestión institucional del sector transporte","17","Gestión predial"]
[24,"TRANSPORTE",2499,"Fortalecimiento y apoyo a la gestión institucional del sector Transporte","0600","Intersubsectorial Transporte","01","Servicio de fortalecimiento y apoyo a la gestión institucional del sector transporte","18","Gestión Social"]
[24,"TRANSPORTE",2499,"Fortalecimiento y apoyo a la gestión institucional del sector Transporte","0600","Intersubsectorial Transporte","01","Servicio de fortalecimiento y apoyo a la gestión institucional del sector transporte","19","Gestión territorial en servicios de infraestructura de transporte"]
[24,"TRANSPORTE",2499,"Fortalecimiento y apoyo a la gestión institucional del sector Transporte","0600","Intersubsectorial Transporte","01","Servicio de fortalecimiento y apoyo a la gestión institucional del sector transporte","20","Gestión territorial en servicios e infraestructura de tranporte"]
[24,"TRANSPORTE",2499,"Fortalecimiento y apoyo a la gestión institucional del sector Transporte","0600","Intersubsectorial Transporte","01","Servicio de fortalecimiento y apoyo a la gestión institucional del sector transporte","21","Gestión TIC"]
[24,"TRANSPORTE",2499,"Fortalecimiento y apoyo a la gestión institucional del sector Transporte","0600","Intersubsectorial Transporte","01","Servicio de fortalecimiento y apoyo a la gestión institucional del sector transporte","22","Gestión y administración de proyectos"]
[24,"TRANSPORTE",2499,"Fortalecimiento y apoyo a la gestión institucional del sector Transporte","0600","Intersubsectorial Transporte","01","Servicio de fortalecimiento y apoyo a la gestión institucional del sector transporte","23","Gestión y desarrollo del talento humano"]
[24,"TRANSPORTE",2499,"Fortalecimiento y apoyo a la gestión institucional del sector Transporte","0600","Intersubsectorial Transporte","01","Servicio de fortalecimiento y apoyo a la gestión institucional del sector transporte","24","Planificación de infraestructura de transporte"]
[24,"TRANSPORTE",2499,"Fortalecimiento y apoyo a la gestión institucional del sector Transporte","0600","Intersubsectorial Transporte","01","Servicio de fortalecimiento y apoyo a la gestión institucional del sector transporte","25","Seguimiento y evaluación"]
[24,"TRANSPORTE",2400,"No asignable a programas","0600","Intersubsectorial Transporte","01","Sin producto","01","Transferencias corrientes"]
[40,"VIVIENDA, CIUDAD Y TERRITORIO",4001,"Acceso a soluciones de vivienda",1400,"Intersubsectorial Vivienda y Desarrollo territorial","01","Servicio de acceso a la vivienda","01","Direccionamiento estratégico de la política de vivienda y el Sistema Nacional VIS"]
[40,"VIVIENDA, CIUDAD Y TERRITORIO",4001,"Acceso a soluciones de vivienda",1400,"Intersubsectorial Vivienda y Desarrollo territorial","01","Servicio de acceso a la vivienda","02","Gestión de política habitacional"]
[40,"VIVIENDA, CIUDAD Y TERRITORIO",4001,"Acceso a soluciones de vivienda",1400,"Intersubsectorial Vivienda y Desarrollo territorial","01","Servicio de acceso a la vivienda","03","Titulación y saneamiento predial"]
[40,"VIVIENDA, CIUDAD Y TERRITORIO",4001,"Acceso a soluciones de vivienda",1400,"Intersubsectorial Vivienda y Desarrollo territorial","01","Servicio de acceso a la vivienda","04","Gestión del subsidio familiar de vivienda rural"]
[40,"VIVIENDA, CIUDAD Y TERRITORIO",4001,"Acceso a soluciones de vivienda",1400,"Intersubsectorial Vivienda y Desarrollo territorial","01","Servicio de acceso a la vivienda","05","Asistencia técnica y promoción de vivienda rural"]
[40,"VIVIENDA, CIUDAD Y TERRITORIO",4001,"Acceso a soluciones de vivienda",1400,"Intersubsectorial Vivienda y Desarrollo territorial","01","Servicio de acceso a la vivienda","06","Seguimiento y evaluación a la gestión de vivienda rural"]
[40,"VIVIENDA, CIUDAD Y TERRITORIO",4001,"Acceso a soluciones de vivienda",1400,"Intersubsectorial Vivienda y Desarrollo territorial","01","Servicio de acceso a la vivienda","07","Gestión del subsidio familiar de vivienda urbana"]
[40,"VIVIENDA, CIUDAD Y TERRITORIO",4001,"Acceso a soluciones de vivienda",1400,"Intersubsectorial Vivienda y Desarrollo territorial","01","Servicio de acceso a la vivienda","08","Asistencia técnica, promoción, seguimiento y evaluación de vivienda urbana"]
[40,"VIVIENDA, CIUDAD Y TERRITORIO",4001,"Acceso a soluciones de vivienda",1400,"Intersubsectorial Vivienda y Desarrollo territorial","01","Servicio de acceso a la vivienda","09","Gestión de procesos sancionatorios y acompañamiento social"]
[40,"VIVIENDA, CIUDAD Y TERRITORIO",4002,"Ordenamiento territorial y desarrollo urbano",1400,"Intersubsectorial Vivienda y Desarrollo territorial","01","Servicio de asistencia técnica a entidades territoriales en la gestión de instrumentos de ordenamiento territorial y desarrollo urbano","01","Direccionamiento estratégico de la política y normatividad de ordenamiento territorial y desarrollo urbano"]
[40,"VIVIENDA, CIUDAD Y TERRITORIO",4002,"Ordenamiento territorial y desarrollo urbano",1400,"Intersubsectorial Vivienda y Desarrollo territorial","01","Servicio de asistencia técnica a entidades territoriales en la gestión de instrumentos de ordenamiento territorial y desarrollo urbano","02","Gestión de capacitación, orientación y apoyo técnico en ordenamiento territorial y desarrollo urbano"]
[40,"VIVIENDA, CIUDAD Y TERRITORIO",4002,"Ordenamiento territorial y desarrollo urbano",1400,"Intersubsectorial Vivienda y Desarrollo territorial","02","Servicio de desarrollo de intervenciones de desarrollo urbano","01","Gestión de apoyo financiero y técnico a entidades territoriales en la ejecución de intervenciones de desarrollo urbano"]
[40,"VIVIENDA, CIUDAD Y TERRITORIO",4003,"Acceso de la población a los servicios de agua potable y saneamiento básico",1400,"Intersubsectorial Vivienda y Desarrollo territorial","01","Sistemas de acueducto urbanos y rurales","01","Direccionamiento estratégico de la política y normatividad de agua potable y saneamiento básico"]
[40,"VIVIENDA, CIUDAD Y TERRITORIO",4003,"Acceso de la población a los servicios de agua potable y saneamiento básico",1400,"Intersubsectorial Vivienda y Desarrollo territorial","01","Sistemas de acueducto urbanos y rurales","02","Servicio de asistencia técnica y apoyo a la estrategia de monitoreo, seguimiento y control a los recursos SGP - Agua Potable y Saneamiento Básico"]
[40,"VIVIENDA, CIUDAD Y TERRITORIO",4003,"Acceso de la población a los servicios de agua potable y saneamiento básico",1400,"Intersubsectorial Vivienda y Desarrollo territorial","01","Sistemas de acueducto urbanos y rurales","03","Servicio de asistencia técnica a la gestión, elegibilidad, viabilización y evaluación de proyectos de agua potable"]
[40,"VIVIENDA, CIUDAD Y TERRITORIO",4003,"Acceso de la población a los servicios de agua potable y saneamiento básico",1400,"Intersubsectorial Vivienda y Desarrollo territorial","01","Sistemas de acueducto urbanos y rurales","04","Servicio de asistencia técnica y apoyo a la gestión de planes y programas de agua potable"]
[40,"VIVIENDA, CIUDAD Y TERRITORIO",4003,"Acceso de la población a los servicios de agua potable y saneamiento básico",1400,"Intersubsectorial Vivienda y Desarrollo territorial","01","Sistemas de acueducto urbanos y rurales","05","Asistencia técnica, seguimiento y control a prestadores de los servicios públicos de acueducto"]
[40,"VIVIENDA, CIUDAD Y TERRITORIO",4003,"Acceso de la población a los servicios de agua potable y saneamiento básico",1400,"Intersubsectorial Vivienda y Desarrollo territorial","02","Sistemas de saneamiento básico urbanos y rurales","01","Direccionamiento estratégico de la política y normatividad de agua potable y saneamiento básico"]
[40,"VIVIENDA, CIUDAD Y TERRITORIO",4003,"Acceso de la población a los servicios de agua potable y saneamiento básico",1400,"Intersubsectorial Vivienda y Desarrollo territorial","02","Sistemas de saneamiento básico urbanos y rurales","02","Servicio de asistencia técnica y apoyo a la estrategia de monitoreo, seguimiento y control a los recursos SGP - Agua Potable y Saneamiento Básico"]
[40,"VIVIENDA, CIUDAD Y TERRITORIO",4003,"Acceso de la población a los servicios de agua potable y saneamiento básico",1400,"Intersubsectorial Vivienda y Desarrollo territorial","02","Sistemas de saneamiento básico urbanos y rurales","03","Servicio de asistencia técnica a la gestión, elegibilidad, viabilización y evaluación de proyectos de saneamiento básico"]
[40,"VIVIENDA, CIUDAD Y TERRITORIO",4003,"Acceso de la población a los servicios de agua potable y saneamiento básico",1400,"Intersubsectorial Vivienda y Desarrollo territorial","02","Sistemas de saneamiento básico urbanos y rurales","04","Servicio de asistencia técnica y apoyo a la gestión de planes y programas de saneamiento básico"]
[40,"VIVIENDA, CIUDAD Y TERRITORIO",4003,"Acceso de la población a los servicios de agua potable y saneamiento básico",1400,"Intersubsectorial Vivienda y Desarrollo territorial","02","Sistemas de saneamiento básico urbanos y rurales","05","Asistencia técnica, seguimiento y control a prestadores de los servicios públicos de alcantarillado y aseo"]
[40,"VIVIENDA, CIUDAD Y TERRITORIO",4003,"Acceso de la población a los servicios de agua potable y saneamiento básico",1400,"Intersubsectorial Vivienda y Desarrollo territorial","03","Servicio de regulación de los servicios públicos domiciliarios de acueducto, alcantarillado y aseo","01","Gestión normativa de ordenamiento, seguimiento y control para la regulación de los servicios públicos domiciliarios de acueducto, alcantarillado y aseo"]
[40,"VIVIENDA, CIUDAD Y TERRITORIO",4099,"Fortalecimiento y apoyo a la gestión institucional del sector Vivienda, Ciudad y Territorio",1400,"Intersubsectorial Vivienda y Desarrollo territorial","01","Servicio de fortalecimiento y apoyo a la gestión institucional del sector Vivienda, Ciudad y Territorio","01","Direccionamiento estratégico del Sector"]
[40,"VIVIENDA, CIUDAD Y TERRITORIO",4099,"Fortalecimiento y apoyo a la gestión institucional del sector Vivienda, Ciudad y Territorio",1400,"Intersubsectorial Vivienda y Desarrollo territorial","01","Servicio de fortalecimiento y apoyo a la gestión institucional del sector Vivienda, Ciudad y Territorio","02","Generación de capacidades"]
[40,"VIVIENDA, CIUDAD Y TERRITORIO",4099,"Fortalecimiento y apoyo a la gestión institucional del sector Vivienda, Ciudad y Territorio",1400,"Intersubsectorial Vivienda y Desarrollo territorial","01","Servicio de fortalecimiento y apoyo a la gestión institucional del sector Vivienda, Ciudad y Territorio","03","Gestión administrativa"]
[40,"VIVIENDA, CIUDAD Y TERRITORIO",4099,"Fortalecimiento y apoyo a la gestión institucional del sector Vivienda, Ciudad y Territorio",1400,"Intersubsectorial Vivienda y Desarrollo territorial","01","Servicio de fortalecimiento y apoyo a la gestión institucional del sector Vivienda, Ciudad y Territorio","04","Gestión contractual"]
[40,"VIVIENDA, CIUDAD Y TERRITORIO",4099,"Fortalecimiento y apoyo a la gestión institucional del sector Vivienda, Ciudad y Territorio",1400,"Intersubsectorial Vivienda y Desarrollo territorial","01","Servicio de fortalecimiento y apoyo a la gestión institucional del sector Vivienda, Ciudad y Territorio","05","Gestión de atención al ciudadano "]
[40,"VIVIENDA, CIUDAD Y TERRITORIO",4099,"Fortalecimiento y apoyo a la gestión institucional del sector Vivienda, Ciudad y Territorio",1400,"Intersubsectorial Vivienda y Desarrollo territorial","01","Servicio de fortalecimiento y apoyo a la gestión institucional del sector Vivienda, Ciudad y Territorio","06","Gestión de control interno "]
[40,"VIVIENDA, CIUDAD Y TERRITORIO",4099,"Fortalecimiento y apoyo a la gestión institucional del sector Vivienda, Ciudad y Territorio",1400,"Intersubsectorial Vivienda y Desarrollo territorial","01","Servicio de fortalecimiento y apoyo a la gestión institucional del sector Vivienda, Ciudad y Territorio","07","Gestión de comunicaciones "]
[40,"VIVIENDA, CIUDAD Y TERRITORIO",4099,"Fortalecimiento y apoyo a la gestión institucional del sector Vivienda, Ciudad y Territorio",1400,"Intersubsectorial Vivienda y Desarrollo territorial","01","Servicio de fortalecimiento y apoyo a la gestión institucional del sector Vivienda, Ciudad y Territorio","08","Gestión de control interno disciplinario"]
[40,"VIVIENDA, CIUDAD Y TERRITORIO",4099,"Fortalecimiento y apoyo a la gestión institucional del sector Vivienda, Ciudad y Territorio",1400,"Intersubsectorial Vivienda y Desarrollo territorial","01","Servicio de fortalecimiento y apoyo a la gestión institucional del sector Vivienda, Ciudad y Territorio","09","Gestión de TIC"]
[40,"VIVIENDA, CIUDAD Y TERRITORIO",4099,"Fortalecimiento y apoyo a la gestión institucional del sector Vivienda, Ciudad y Territorio",1400,"Intersubsectorial Vivienda y Desarrollo territorial","01","Servicio de fortalecimiento y apoyo a la gestión institucional del sector Vivienda, Ciudad y Territorio","10","Gestión documental "]
[40,"VIVIENDA, CIUDAD Y TERRITORIO",4099,"Fortalecimiento y apoyo a la gestión institucional del sector Vivienda, Ciudad y Territorio",1400,"Intersubsectorial Vivienda y Desarrollo territorial","01","Servicio de fortalecimiento y apoyo a la gestión institucional del sector Vivienda, Ciudad y Territorio","11","Gestión financiera "]
[40,"VIVIENDA, CIUDAD Y TERRITORIO",4099,"Fortalecimiento y apoyo a la gestión institucional del sector Vivienda, Ciudad y Territorio",1400,"Intersubsectorial Vivienda y Desarrollo territorial","01","Servicio de fortalecimiento y apoyo a la gestión institucional del sector Vivienda, Ciudad y Territorio","12","Gestión jurídica"]
[40,"VIVIENDA, CIUDAD Y TERRITORIO",4099,"Fortalecimiento y apoyo a la gestión institucional del sector Vivienda, Ciudad y Territorio",1400,"Intersubsectorial Vivienda y Desarrollo territorial","01","Servicio de fortalecimiento y apoyo a la gestión institucional del sector Vivienda, Ciudad y Territorio","13","Gestión y desarrollo del talento humano"]
[40,"VIVIENDA, CIUDAD Y TERRITORIO",4099,"Fortalecimiento y apoyo a la gestión institucional del sector Vivienda, Ciudad y Territorio",1400,"Intersubsectorial Vivienda y Desarrollo territorial","01","Servicio de fortalecimiento y apoyo a la gestión institucional del sector Vivienda, Ciudad y Territorio","14","Seguimiento y evaluación "]
[40,"VIVIENDA, CIUDAD Y TERRITORIO",4000,"No asignable a programas",1400,"Intersubsectorial Vivienda y Desarrollo territorial","01","Sin producto","01","Transferencias"]